Workbook

Sheet Update
B1: Start FY | C1: 2018 | D1: End FY | E1: 2019 | F1: # Years: | G1: =End_FY-Start_FY+1 -> 2
B3: Auroa Price Data ID | C3: 192 | D3: Aurora Price Description | E3: BP18 Final Proposal
B4: Credit Data ID | C4: 16 | D4: Data Descript. | E4: BP18 Final Proposal FY18-19
E7: Pisces is included in the Capital Expense
B8: Fiscal Year | C8: Purchase Expense | D8: Direct Expense | E8: Pisces | F8: Capital | G8: % | H8: Credit | J8: Credit 4 RAM
B9: =IF(Purch_1="","",Purch_1) -> 2018 | C9: =IF(Exp_1/1000="","",Exp_1/1000) -> 79.19673634 | D9: 288.0822254 | F9: 50.53249212 | G9: 0.223 | H9: =IF(B9="","",(SUM(C9:F9)*G9)) -> 93.17195422 | J9: =IF(H9="","",H9*-1000) -> -93171.95422
B10: =IF(Purch_2="","",Purch_2) -> 2019 | C10: =IF(Exp_2/1000="","",Exp_2/1000) -> 78.09790376 | D10: 288.3304203 | F10: 44.00000004 | G10: 0.223 | H10: =IF(B10="","",(SUM(C10:F10)*G10)) -> 91.52551627 | J10: =IF(H10="","",H10*-1000) -> -91525.51627
B11: =IF(Purch_3="","",Purch_3) -> 2020 | C11: =IF(Exp_3/1000="","",Exp_3/1000) -> 105.4341768 | D11: 294.2733111 | F11: 38.033 | G11: 0.223 | H11: 97.61612879 | J11: -97616.12879
B12: =IF(Purch_4="","",Purch_4) -> 2021 | C12: =IF(Exp_4/1000="","",Exp_4/1000) -> 111.2305144 | D12: 299.630614 | F12: 33.599 | G12: 0.223 | H12: 99.11460863 | J12: -99114.60863
B13: =IF(Purch_5="","",Purch_5) -> 2022 | C13: =IF(Exp_5/1000="","",Exp_5/1000) -> 117.4109079 | D13: 305.3060786 | F13: 29.047 | G13: 0.223 | H13: 100.743369 | J13: -100743.369
B14: =IF(Purch_6="","",Purch_6) -> 2023 | C14: =IF(Exp_6/1000="","",Exp_6/1000) -> 126.1799138 | D14: 311.131702 | F14: 29.290999 | G14: 0.223 | H14: 104.0523831 | J14: -104052.3831
B15: =IF(Purch_7="","",Purch_7) -> 2024 | C15: =IF(Exp_7/1000="","",Exp_7/1000) -> 129.0799947 | D15: 317.0188504 | F15: 36.01377764 | G15: 0.223 | H15: 107.5111149 | J15: -107511.1149
B16: =IF(Purch_8="","",Purch_8) -> 2025 | C16: =IF(Exp_8/1000="","",Exp_8/1000) -> 137.6248161 | D16: 323.029629 | F16: 36.73765457 | G16: 0.223 | H16: 110.9184382 | J16: -110918.4382
B17: =IF(Purch_9="","",Purch_9) -> 2026 | C17: =IF(Exp_9/1000="","",Exp_9/1000) -> 148.0735413 | D17: 329.2309917 | F17: 37.45403883 | G17: 0.223 | H17: 114.7911615 | J17: -114791.1615
B18: =IF(Purch_10="","",Purch_10) -> 2027 | C18: =IF(Exp_10/1000="","",Exp_10/1000) -> 155.0352391 | D18: 335.6294212 | F18: 38.17690178 | G18: 0.223 | H18: 117.9316683 | J18: -117931.6683
B19: =IF(Purch_11="","",Purch_11) -> 2028 | C19: =IF(Exp_11/1000="","",Exp_11/1000) -> 158.303362 | D19: 342.1647771 | F19: 38.93280444 | G19: 0.223 | H19: 120.2864104 | J19: -120286.4104
B20: =IF(Purch_12="","",Purch_12) -> 2029 | C20: =IF(Exp_12/1000="","",Exp_12/1000) -> 161.2076806 | D20: 348.874082 | F20: 39.66084788 | G20: 0.223 | H20: 122.5926021 | J20: -122592.6021
B21: =IF(Purch_13="","",Purch_13) -> 2030 | C21: =IF(Exp_13/1000="","",Exp_13/1000) -> 163.471135 | D21: 355.7624002 | F21: 40.40250573 | G21: 0.223 | H21: 124.7988371 | J21: -124798.8371
B22: 2031 | C22: =IF(Exp_14/1000="","",Exp_14/1000) -> 166.4003382 | D22: 362.7867243 | F22: 41.15803259 | G22: 0.223 | H22: 127.1869562 | J22: -127186.9562
A28: Fiscal Year | B28: Oct | C28: Nov | D28: Dec | E28: Jan | F28: Feb | G28: Mar | H28: Apr | I28: May | J28: Jun | K28: Jul | L28: Aug | M28: Sep | N28: Total
A29: =B9 -> 2018 | B29: =(ExpenseByItr!C3204+(SUM(Update!$D$9:$F$9)*1000)/12)*Update!$G$9 -> 9671.723434 | C29: =(ExpenseByItr!D3204+(SUM(Update!$D$9:$F$9)*1000)/12)*Update!$G$9 -> 7590.387671 | D29: =(ExpenseByItr!E3204+(SUM(Update!$D$9:$F$9)*1000)/12)*Update!$G$9 -> 9314.625258 | E29: =(ExpenseByItr!F3204+(SUM(Update!$D$9:$F$9)*1000)/12)*Update!$G$9 -> 10087.26659 | F29: =(ExpenseByItr!G3204+(SUM(Update!$D$9:$F$9)*1000)/12)*Update!$G$9 -> 8481.894171 | G29: =(ExpenseByItr!H3204+(SUM(Update!$D$9:$F$9)*1000)/12)*Update!$G$9 -> 7447.785003 | H29: =(ExpenseByItr!I3204+(SUM(Update!$D$9:$F$9)*1000)/12)*Update!$G$9 -> 6850.018488 | I29: =(ExpenseByItr!J3204+(SUM(Update!$D$9:$F$9)*1000)/12)*Update!$G$9 -> 6475.515303 | J29: =(ExpenseByItr!K3204+(SUM(Update!$D$9:$F$9)*1000)/12)*Update!$G$9 -> 6998.777176 | K29: =(ExpenseByItr!L3204+(SUM(Update!$D$9:$F$9)*1000)/12)*Update!$G$9 -> 6413.189476 | L29: =(ExpenseByItr!M3204+(SUM(Update!$D$9:$F$9)*1000)/12)*Update!$G$9 -> 6118.470441 | M29: =(ExpenseByItr!N3204+(SUM(Update!$D$9:$F$9)*1000)/12)*Update!$G$9 -> 7722.301207 | N29: =SUM(B29:M29) -> 93171.95422
A30: =B10 -> 2019 | B30: =(ExpenseByItr!S3204+(SUM(Update!$D$10:$F$10)*1000)/12)*Update!$G$10 -> 9314.117275 | C30: =(ExpenseByItr!T3204+(SUM(Update!$D$10:$F$10)*1000)/12)*Update!$G$10 -> 7475.691773 | D30: =(ExpenseByItr!U3204+(SUM(Update!$D$10:$F$10)*1000)/12)*Update!$G$10 -> 9096.013622 | E30: =(ExpenseByItr!V3204+(SUM(Update!$D$10:$F$10)*1000)/12)*Update!$G$10 -> 9829.289774 | F30: =(ExpenseByItr!W3204+(SUM(Update!$D$10:$F$10)*1000)/12)*Update!$G$10 -> 8450.70576 | G30: =(ExpenseByItr!X3204+(SUM(Update!$D$10:$F$10)*1000)/12)*Update!$G$10 -> 7207.367424 | H30: =(ExpenseByItr!Y3204+(SUM(Update!$D$10:$F$10)*1000)/12)*Update!$G$10 -> 6738.000151 | I30: =(ExpenseByItr!Z3204+(SUM(Update!$D$10:$F$10)*1000)/12)*Update!$G$10 -> 6370.618134 | J30: =(ExpenseByItr!AA3204+(SUM(Update!$D$10:$F$10)*1000)/12)*Update!$G$10 -> 6956.293275 | K30: =(ExpenseByItr!AB3204+(SUM(Update!$D$10:$F$10)*1000)/12)*Update!$G$10 -> 6296.040589 | L30: =(ExpenseByItr!AC3204+(SUM(Update!$D$10:$F$10)*1000)/12)*Update!$G$10 -> 6107.276953 | M30: =(ExpenseByItr!AD3204+(SUM(Update!$D$10:$F$10)*1000)/12)*Update!$G$10 -> 7684.101545 | N30: =SUM(B30:M30) -> 91525.51627
A31: 2020 | B31: =(ExpenseByItr!AI3204+(SUM(Update!$D$10:$F$10)*1000)/12)*Update!$G$10 -> 8929.705841 | C31: =(ExpenseByItr!AJ3204+(SUM(Update!$D$10:$F$10)*1000)/12)*Update!$G$10 -> 6943.688315 | D31: =(ExpenseByItr!AK3204+(SUM(Update!$D$10:$F$10)*1000)/12)*Update!$G$10 -> 10310.78224 | E31: =(ExpenseByItr!AL3204+(SUM(Update!$D$10:$F$10)*1000)/12)*Update!$G$10 -> 11594.01923 | F31: =(ExpenseByItr!AM3204+(SUM(Update!$D$10:$F$10)*1000)/12)*Update!$G$10 -> 9317.528491 | G31: =(ExpenseByItr!AN3204+(SUM(Update!$D$10:$F$10)*1000)/12)*Update!$G$10 -> 8171.017923 | H31: =(ExpenseByItr!AO3204+(SUM(Update!$D$10:$F$10)*1000)/12)*Update!$G$10 -> 7190.799234 | I31: =(ExpenseByItr!AP3204+(SUM(Update!$D$10:$F$10)*1000)/12)*Update!$G$10 -> 6560.588436 | J31: =(ExpenseByItr!AQ3204+(SUM(Update!$D$10:$F$10)*1000)/12)*Update!$G$10 -> 7361.227246 | K31: =(ExpenseByItr!AR3204+(SUM(Update!$D$10:$F$10)*1000)/12)*Update!$G$10 -> 6376.728316 | L31: =(ExpenseByItr!AS3204+(SUM(Update!$D$10:$F$10)*1000)/12)*Update!$G$10 -> 6005.31439 | M31: =(ExpenseByItr!AT3204+(SUM(Update!$D$10:$F$10)*1000)/12)*Update!$G$10 -> 8860.105499 | N31: 97621.50515
A32: 2021 | B32: =(ExpenseByItr!AY3204+(SUM(Update!$D$11:$F$11)*1000)/12)*Update!$G$11 -> 8945.500023 | C32: =(ExpenseByItr!AZ3204+(SUM(Update!$D$11:$F$11)*1000)/12)*Update!$G$11 -> 6943.046732 | D32: =(ExpenseByItr!BA3204+(SUM(Update!$D$11:$F$11)*1000)/12)*Update!$G$11 -> 10299.26636 | E32: =(ExpenseByItr!BB3204+(SUM(Update!$D$11:$F$11)*1000)/12)*Update!$G$11 -> 12037.45587 | F32: =(ExpenseByItr!BC3204+(SUM(Update!$D$11:$F$11)*1000)/12)*Update!$G$11 -> 9589.581491 | G32: =(ExpenseByItr!BD3204+(SUM(Update!$D$11:$F$11)*1000)/12)*Update!$G$11 -> 8316.412925 | H32: =(ExpenseByItr!BE3204+(SUM(Update!$D$11:$F$11)*1000)/12)*Update!$G$11 -> 7254.419139 | I32: =(ExpenseByItr!BF3204+(SUM(Update!$D$11:$F$11)*1000)/12)*Update!$G$11 -> 6579.451659 | J32: =(ExpenseByItr!BG3204+(SUM(Update!$D$11:$F$11)*1000)/12)*Update!$G$11 -> 7503.789523 | K32: =(ExpenseByItr!BH3204+(SUM(Update!$D$11:$F$11)*1000)/12)*Update!$G$11 -> 6383.681695 | L32: =(ExpenseByItr!BI3204+(SUM(Update!$D$11:$F$11)*1000)/12)*Update!$G$11 -> 5993.420218 | M32: =(ExpenseByItr!BJ3204+(SUM(Update!$D$11:$F$11)*1000)/12)*Update!$G$11 -> 9062.686434 | N32: 98908.71207
A33: 2022 | B33: =(ExpenseByItr!BO3204+(SUM(Update!$D$13:$F$13)*1000)/12)*Update!$G$13 -> 9145.208062 | C33: =(ExpenseByItr!BP3204+(SUM(Update!$D$13:$F$13)*1000)/12)*Update!$G$13 -> 7058.978109 | D33: =(ExpenseByItr!BQ3204+(SUM(Update!$D$13:$F$13)*1000)/12)*Update!$G$13 -> 10821.43252 | E33: =(ExpenseByItr!BR3204+(SUM(Update!$D$13:$F$13)*1000)/12)*Update!$G$13 -> 12351.84903 | F33: =(ExpenseByItr!BS3204+(SUM(Update!$D$13:$F$13)*1000)/12)*Update!$G$13 -> 9762.492433 | G33: =(ExpenseByItr!BT3204+(SUM(Update!$D$13:$F$13)*1000)/12)*Update!$G$13 -> 8424.91472 | H33: =(ExpenseByItr!BU3204+(SUM(Update!$D$13:$F$13)*1000)/12)*Update!$G$13 -> 7339.628304 | I33: =(ExpenseByItr!BV3204+(SUM(Update!$D$13:$F$13)*1000)/12)*Update!$G$13 -> 6615.702888 | J33: =(ExpenseByItr!BW3204+(SUM(Update!$D$13:$F$13)*1000)/12)*Update!$G$13 -> 7533.475061 | K33: =(ExpenseByItr!BX3204+(SUM(Update!$D$13:$F$13)*1000)/12)*Update!$G$13 -> 6428.504489 | L33: =(ExpenseByItr!BY3204+(SUM(Update!$D$13:$F$13)*1000)/12)*Update!$G$13 -> 6017.353004 | M33: =(ExpenseByItr!BZ3204+(SUM(Update!$D$13:$F$13)*1000)/12)*Update!$G$13 -> 9243.830376 | N33: 100743.369
A34: 2023 | B34: =(ExpenseByItr!CE3204+(SUM(Update!$D$14:$F$14)*1000)/12)*Update!$G$14 -> 9463.379799 | C34: =(ExpenseByItr!CF3204+(SUM(Update!$D$14:$F$14)*1000)/12)*Update!$G$14 -> 7245.641015 | D34: =(ExpenseByItr!CG3204+(SUM(Update!$D$14:$F$14)*1000)/12)*Update!$G$14 -> 11203.84174 | E34: =(ExpenseByItr!CH3204+(SUM(Update!$D$14:$F$14)*1000)/12)*Update!$G$14 -> 12922.39497 | F34: =(ExpenseByItr!CI3204+(SUM(Update!$D$14:$F$14)*1000)/12)*Update!$G$14 -> 10130.83168 | G34: =(ExpenseByItr!CJ3204+(SUM(Update!$D$14:$F$14)*1000)/12)*Update!$G$14 -> 8715.987747 | H34: =(ExpenseByItr!CK3204+(SUM(Update!$D$14:$F$14)*1000)/12)*Update!$G$14 -> 7522.541266 | I34: =(ExpenseByItr!CL3204+(SUM(Update!$D$14:$F$14)*1000)/12)*Update!$G$14 -> 6777.585684 | J34: =(ExpenseByItr!CM3204+(SUM(Update!$D$14:$F$14)*1000)/12)*Update!$G$14 -> 7802.486459 | K34: =(ExpenseByItr!CN3204+(SUM(Update!$D$14:$F$14)*1000)/12)*Update!$G$14 -> 6556.211632 | L34: =(ExpenseByItr!CO3204+(SUM(Update!$D$14:$F$14)*1000)/12)*Update!$G$14 -> 6124.386875 | M34: =(ExpenseByItr!CP3204+(SUM(Update!$D$14:$F$14)*1000)/12)*Update!$G$14 -> 9587.094219 | N34: 104052.3831
A35: 2024 | B35: =(ExpenseByItr!CU3204+(SUM(Update!$D$15:$F$15)*1000)/12)*Update!$G$15 -> 9880.032565 | C35: =(ExpenseByItr!CV3204+(SUM(Update!$D$15:$F$15)*1000)/12)*Update!$G$15 -> 7532.239598 | D35: =(ExpenseByItr!CW3204+(SUM(Update!$D$15:$F$15)*1000)/12)*Update!$G$15 -> 11698.0226 | E35: =(ExpenseByItr!CX3204+(SUM(Update!$D$15:$F$15)*1000)/12)*Update!$G$15 -> 13434.63834 | F35: =(ExpenseByItr!CY3204+(SUM(Update!$D$15:$F$15)*1000)/12)*Update!$G$15 -> 10592.73437 | G35: =(ExpenseByItr!CZ3204+(SUM(Update!$D$15:$F$15)*1000)/12)*Update!$G$15 -> 9093.029153 | H35: =(ExpenseByItr!DA3204+(SUM(Update!$D$15:$F$15)*1000)/12)*Update!$G$15 -> 7232.192316 | I35: =(ExpenseByItr!DB3204+(SUM(Update!$D$15:$F$15)*1000)/12)*Update!$G$15 -> 7007.408906 | J35: =(ExpenseByItr!DC3204+(SUM(Update!$D$15:$F$15)*1000)/12)*Update!$G$15 -> 7999.353172 | K35: =(ExpenseByItr!DD3204+(SUM(Update!$D$15:$F$15)*1000)/12)*Update!$G$15 -> 6804.132346 | L35: =(ExpenseByItr!DE3204+(SUM(Update!$D$15:$F$15)*1000)/12)*Update!$G$15 -> 6345.251547 | M35: =(ExpenseByItr!DF3204+(SUM(Update!$D$15:$F$15)*1000)/12)*Update!$G$15 -> 9892.079964 | N35: 107511.1149
A36: 2025 | B36: =(ExpenseByItr!DK3204+(SUM(Update!$D$16:$F$16)*1000)/12)*Update!$G$16 -> 10144.0537 | C36: =(ExpenseByItr!DL3204+(SUM(Update!$D$16:$F$16)*1000)/12)*Update!$G$16 -> 7687.906631 | D36: =(ExpenseByItr!DM3204+(SUM(Update!$D$16:$F$16)*1000)/12)*Update!$G$16 -> 11972.01966 | E36: =(ExpenseByItr!DN3204+(SUM(Update!$D$16:$F$16)*1000)/12)*Update!$G$16 -> 13944.79846 | F36: =(ExpenseByItr!DO3204+(SUM(Update!$D$16:$F$16)*1000)/12)*Update!$G$16 -> 10927.01439 | G36: =(ExpenseByItr!DP3204+(SUM(Update!$D$16:$F$16)*1000)/12)*Update!$G$16 -> 9284.818139 | H36: =(ExpenseByItr!DQ3204+(SUM(Update!$D$16:$F$16)*1000)/12)*Update!$G$16 -> 7976.80159 | I36: =(ExpenseByItr!DR3204+(SUM(Update!$D$16:$F$16)*1000)/12)*Update!$G$16 -> 7171.656816 | J36: =(ExpenseByItr!DS3204+(SUM(Update!$D$16:$F$16)*1000)/12)*Update!$G$16 -> 8254.131668 | K36: =(ExpenseByItr!DT3204+(SUM(Update!$D$16:$F$16)*1000)/12)*Update!$G$16 -> 6942.051991 | L36: =(ExpenseByItr!DU3204+(SUM(Update!$D$16:$F$16)*1000)/12)*Update!$G$16 -> 6460.967539 | M36: =(ExpenseByItr!DV3204+(SUM(Update!$D$16:$F$16)*1000)/12)*Update!$G$16 -> 10152.21766 | N36: 110918.4382
A37: 2026 | B37: =(ExpenseByItr!EA3204+(SUM(Update!$D$17:$F$17)*1000)/12)*Update!$G$17 -> 10399.93973 | C37: =(ExpenseByItr!EB3204+(SUM(Update!$D$17:$F$17)*1000)/12)*Update!$G$17 -> 7839.723514 | D37: =(ExpenseByItr!EC3204+(SUM(Update!$D$17:$F$17)*1000)/12)*Update!$G$17 -> 12502.12897 | E37: =(ExpenseByItr!ED3204+(SUM(Update!$D$17:$F$17)*1000)/12)*Update!$G$17 -> 14717.20395 | F37: =(ExpenseByItr!EE3204+(SUM(Update!$D$17:$F$17)*1000)/12)*Update!$G$17 -> 11450.26401 | G37: =(ExpenseByItr!EF3204+(SUM(Update!$D$17:$F$17)*1000)/12)*Update!$G$17 -> 9609.265789 | H37: =(ExpenseByItr!EG3204+(SUM(Update!$D$17:$F$17)*1000)/12)*Update!$G$17 -> 8207.279031 | I37: =(ExpenseByItr!EH3204+(SUM(Update!$D$17:$F$17)*1000)/12)*Update!$G$17 -> 7317.933735 | J37: =(ExpenseByItr!EI3204+(SUM(Update!$D$17:$F$17)*1000)/12)*Update!$G$17 -> 8461.283317 | K37: =(ExpenseByItr!EJ3204+(SUM(Update!$D$17:$F$17)*1000)/12)*Update!$G$17 -> 7090.100138 | L37: =(ExpenseByItr!EK3204+(SUM(Update!$D$17:$F$17)*1000)/12)*Update!$G$17 -> 6569.513978 | M37: =(ExpenseByItr!EL3204+(SUM(Update!$D$17:$F$17)*1000)/12)*Update!$G$17 -> 10626.52536 | N37: 114791.1615
A38: 2027 | B38: =(ExpenseByItr!EQ3204+(SUM(Update!$D$18:$F$18)*1000)/12)*Update!$G$18 -> 10930.68288 | C38: =(ExpenseByItr!ER3204+(SUM(Update!$D$18:$F$18)*1000)/12)*Update!$G$18 -> 8099.925019 | D38: =(ExpenseByItr!ES3204+(SUM(Update!$D$18:$F$18)*1000)/12)*Update!$G$18 -> 13185.83507 | E38: =(ExpenseByItr!ET3204+(SUM(Update!$D$18:$F$18)*1000)/12)*Update!$G$18 -> 14926.01546 | F38: =(ExpenseByItr!EU3204+(SUM(Update!$D$18:$F$18)*1000)/12)*Update!$G$18 -> 11629.98005 | G38: =(ExpenseByItr!EV3204+(SUM(Update!$D$18:$F$18)*1000)/12)*Update!$G$18 -> 9820.496601 | H38: =(ExpenseByItr!EW3204+(SUM(Update!$D$18:$F$18)*1000)/12)*Update!$G$18 -> 8378.092107 | I38: =(ExpenseByItr!EX3204+(SUM(Update!$D$18:$F$18)*1000)/12)*Update!$G$18 -> 7473.960582 | J38: =(ExpenseByItr!EY3204+(SUM(Update!$D$18:$F$18)*1000)/12)*Update!$G$18 -> 8682.954049 | K38: =(ExpenseByItr!EZ3204+(SUM(Update!$D$18:$F$18)*1000)/12)*Update!$G$18 -> 7229.016794 | L38: =(ExpenseByItr!FA3204+(SUM(Update!$D$18:$F$18)*1000)/12)*Update!$G$18 -> 6699.082308 | M38: =(ExpenseByItr!FB3204+(SUM(Update!$D$18:$F$18)*1000)/12)*Update!$G$18 -> 10875.62743 | N38: 117931.6683
A39: 2028 | B39: =(ExpenseByItr!FG3204+(SUM(Update!$D$19:$F$19)*1000)/12)*Update!$G$19 -> 11146.10682 | C39: =(ExpenseByItr!FH3204+(SUM(Update!$D$19:$F$19)*1000)/12)*Update!$G$19 -> 8261.569852 | D39: =(ExpenseByItr!FI3204+(SUM(Update!$D$19:$F$19)*1000)/12)*Update!$G$19 -> 13266.49336 | E39: =(ExpenseByItr!FJ3204+(SUM(Update!$D$19:$F$19)*1000)/12)*Update!$G$19 -> 15391.08564 | F39: =(ExpenseByItr!FK3204+(SUM(Update!$D$19:$F$19)*1000)/12)*Update!$G$19 -> 11815.99843 | G39: =(ExpenseByItr!FL3204+(SUM(Update!$D$19:$F$19)*1000)/12)*Update!$G$19 -> 10048.93447 | H39: =(ExpenseByItr!FM3204+(SUM(Update!$D$19:$F$19)*1000)/12)*Update!$G$19 -> 8550.78812 | I39: =(ExpenseByItr!FN3204+(SUM(Update!$D$19:$F$19)*1000)/12)*Update!$G$19 -> 7615.113631 | J39: =(ExpenseByItr!FO3204+(SUM(Update!$D$19:$F$19)*1000)/12)*Update!$G$19 -> 8809.308786 | K39: =(ExpenseByItr!FP3204+(SUM(Update!$D$19:$F$19)*1000)/12)*Update!$G$19 -> 7378.024858 | L39: =(ExpenseByItr!FQ3204+(SUM(Update!$D$19:$F$19)*1000)/12)*Update!$G$19 -> 6814.312808 | M39: =(ExpenseByItr!FR3204+(SUM(Update!$D$19:$F$19)*1000)/12)*Update!$G$19 -> 11188.67362 | N39: 120286.4104
A40: 2029 | B40: =(ExpenseByItr!FW3204+(SUM(Update!$D$20:$F$20)*1000)/12)*Update!$G$20 -> 11432.95949 | C40: =(ExpenseByItr!FX3204+(SUM(Update!$D$20:$F$20)*1000)/12)*Update!$G$20 -> 8470.004258 | D40: =(ExpenseByItr!FY3204+(SUM(Update!$D$20:$F$20)*1000)/12)*Update!$G$20 -> 13577.82213 | E40: =(ExpenseByItr!FZ3204+(SUM(Update!$D$20:$F$20)*1000)/12)*Update!$G$20 -> 15530.54657 | F40: =(ExpenseByItr!GA3204+(SUM(Update!$D$20:$F$20)*1000)/12)*Update!$G$20 -> 12041.67202 | G40: =(ExpenseByItr!GB3204+(SUM(Update!$D$20:$F$20)*1000)/12)*Update!$G$20 -> 10220.38569 | H40: =(ExpenseByItr!GC3204+(SUM(Update!$D$20:$F$20)*1000)/12)*Update!$G$20 -> 8691.335876 | I40: =(ExpenseByItr!GD3204+(SUM(Update!$D$20:$F$20)*1000)/12)*Update!$G$20 -> 7789.13415 | J40: =(ExpenseByItr!GE3204+(SUM(Update!$D$20:$F$20)*1000)/12)*Update!$G$20 -> 9065.383984 | K40: =(ExpenseByItr!GF3204+(SUM(Update!$D$20:$F$20)*1000)/12)*Update!$G$20 -> 7516.251004 | L40: =(ExpenseByItr!GG3204+(SUM(Update!$D$20:$F$20)*1000)/12)*Update!$G$20 -> 6957.750405 | M40: =(ExpenseByItr!GH3204+(SUM(Update!$D$20:$F$20)*1000)/12)*Update!$G$20 -> 11299.35656 | N40: 122592.6021
A41: 2030 | B41: =(ExpenseByItr!GM3204+(SUM(Update!$D$21:$F$21)*1000)/12)*Update!$G$21 -> 11561.61704 | C41: =(ExpenseByItr!GN3204+(SUM(Update!$D$21:$F$21)*1000)/12)*Update!$G$21 -> 8596.019096 | D41: =(ExpenseByItr!GO3204+(SUM(Update!$D$21:$F$21)*1000)/12)*Update!$G$21 -> 13685.47148 | E41: =(ExpenseByItr!GP3204+(SUM(Update!$D$21:$F$21)*1000)/12)*Update!$G$21 -> 15734.78374 | F41: =(ExpenseByItr!GQ3204+(SUM(Update!$D$21:$F$21)*1000)/12)*Update!$G$21 -> 12364.59886 | G41: =(ExpenseByItr!GR3204+(SUM(Update!$D$21:$F$21)*1000)/12)*Update!$G$21 -> 10411.1236 | H41: =(ExpenseByItr!GS3204+(SUM(Update!$D$21:$F$21)*1000)/12)*Update!$G$21 -> 8889.112085 | I41: =(ExpenseByItr!GT3204+(SUM(Update!$D$21:$F$21)*1000)/12)*Update!$G$21 -> 7939.296365 | J41: =(ExpenseByItr!GU3204+(SUM(Update!$D$21:$F$21)*1000)/12)*Update!$G$21 -> 9187.223766 | K41: =(ExpenseByItr!GV3204+(SUM(Update!$D$21:$F$21)*1000)/12)*Update!$G$21 -> 7666.997651 | L41: =(ExpenseByItr!GW3204+(SUM(Update!$D$21:$F$21)*1000)/12)*Update!$G$21 -> 7091.571789 | M41: =(ExpenseByItr!GX3204+(SUM(Update!$D$21:$F$21)*1000)/12)*Update!$G$21 -> 11671.02167 | N41: 124798.8371
A42: 2031 | B42: =(ExpenseByItr!HC3204+(SUM(Update!$D$22:$F$22)*1000)/12)*Update!$G$22 -> 11959.65596 | C42: =(ExpenseByItr!HD3204+(SUM(Update!$D$22:$F$22)*1000)/12)*Update!$G$22 -> 8294.555339 | D42: =(ExpenseByItr!HE3204+(SUM(Update!$D$22:$F$22)*1000)/12)*Update!$G$22 -> 14006.38135 | E42: =(ExpenseByItr!HF3204+(SUM(Update!$D$22:$F$22)*1000)/12)*Update!$G$22 -> 16308.12479 | F42: =(ExpenseByItr!HG3204+(SUM(Update!$D$22:$F$22)*1000)/12)*Update!$G$22 -> 13147.70967 | G42: =(ExpenseByItr!HH3204+(SUM(Update!$D$22:$F$22)*1000)/12)*Update!$G$22 -> 9744.088335 | H42: =(ExpenseByItr!HI3204+(SUM(Update!$D$22:$F$22)*1000)/12)*Update!$G$22 -> 9023.957597 | I42: =(ExpenseByItr!HJ3204+(SUM(Update!$D$22:$F$22)*1000)/12)*Update!$G$22 -> 8124.937218 | J42: =(ExpenseByItr!HK3204+(SUM(Update!$D$22:$F$22)*1000)/12)*Update!$G$22 -> 9303.979104 | K42: =(ExpenseByItr!HL3204+(SUM(Update!$D$22:$F$22)*1000)/12)*Update!$G$22 -> 7549.720925 | L42: =(ExpenseByItr!HM3204+(SUM(Update!$D$22:$F$22)*1000)/12)*Update!$G$22 -> 7129.62772 | M42: =(ExpenseByItr!HN3204+(SUM(Update!$D$22:$F$22)*1000)/12)*Update!$G$22 -> 12594.21821 | N42: 127186.9562
A43: 0 | B43: =(ExpenseByItr!HS3204+(SUM(Update!$D$23:$F$23)*1000)/12)*Update!$G$23 ->  | C43: =(ExpenseByItr!HT3204+(SUM(Update!$D$23:$F$23)*1000)/12)*Update!$G$23 ->  | D43: =(ExpenseByItr!HU3204+(SUM(Update!$D$23:$F$23)*1000)/12)*Update!$G$23 ->  | E43: =(ExpenseByItr!HV3204+(SUM(Update!$D$23:$F$23)*1000)/12)*Update!$G$23 ->  | F43: =(ExpenseByItr!HW3204+(SUM(Update!$D$23:$F$23)*1000)/12)*Update!$G$23 ->  | G43: =(ExpenseByItr!HX3204+(SUM(Update!$D$23:$F$23)*1000)/12)*Update!$G$23 ->  | H43: =(ExpenseByItr!HY3204+(SUM(Update!$D$23:$F$23)*1000)/12)*Update!$G$23 ->  | I43: =(ExpenseByItr!HZ3204+(SUM(Update!$D$23:$F$23)*1000)/12)*Update!$G$23 ->  | J43: =(ExpenseByItr!IA3204+(SUM(Update!$D$23:$F$23)*1000)/12)*Update!$G$23 ->  | K43: =(ExpenseByItr!IB3204+(SUM(Update!$D$23:$F$23)*1000)/12)*Update!$G$23 ->  | L43: =(ExpenseByItr!IC3204+(SUM(Update!$D$23:$F$23)*1000)/12)*Update!$G$23 ->  | M43: =(ExpenseByItr!ID3204+(SUM(Update!$D$23:$F$23)*1000)/12)*Update!$G$23 -> 
A47: BP18 Initial Proposal
A49: Fiscal Year | B49: Oct | C49: Nov | D49: Dec | E49: Jan | F49: Feb | G49: Mar | H49: Apr | I49: May | J49: Jun | K49: Jul | L49: Aug | M49: Sep | N49: Total
A50: 2018 | B50: 9829.887266 | C50: 7829.317775 | D50: 9469.129947 | E50: 10807.08816 | F50: 9279.695137 | G50: 7720.393681 | H50: 7097.215886 | I50: 6557.502158 | J50: 7548.064701 | K50: 6361.515018 | L50: 6097.020746 | M50: 7959.975428 | N50: 96556.80591
A51: 2019 | B51: 9945.812765 | C51: 7852.529394 | D51: 9760.234821 | E51: 10928.59852 | F51: 9403.578712 | G51: 7719.445433 | H51: 7134.85564 | I51: 6586.200095 | J51: 7763.320503 | K51: 6362.744172 | L51: 6000.873406 | M51: 7992.381541 | N51: 97450.57501
A52: Deltas
A53: 2018 | B53: =B29-B50 -> -158.1638317 | C53: =C29-C50 -> -238.9301048 | D53: -154.5046893 | E53: -719.8215702 | F53: -797.8009656 | G53: -272.6086776 | H53: -247.1973981 | I53: -81.98685519 | J53: -549.2875252 | K53: 51.67445867 | L53: 21.4496944 | M53: -237.6742207 | N53: -3384.851685
A54: 2019 | B54: =B30-B51 -> -631.6954893 | C54: -376.8376212 | D54: -664.2211987 | E54: -1099.308749 | F54: -952.8729525 | G54: -512.0780086 | H54: -396.8554893 | I54: -215.5819615 | J54: -807.0272282 | K54: -66.70358276 | L54: 106.403547 | M54: -308.2799963 | N54: -5925.05873
B57: Fiscal Year | C57: Purchase Expense | D57: Direct Expense | E57: Pisces | F57: Capital | G57: % | H57: Credit
B58: 2018 | C58: 99.66666901 | D58: 282.791 | F58: 50.532492 | G58: 0.223 | H58: 96.55680591
B59: 2019 | C59: 103.8240942 | D59: 289.174 | F59: 44 | G59: 0.223 | H59: 97.45057501
B60: Deltas
B61: 2018 | C61: =C9-C58 -> -20.46993267 | D61: =D9-D58 -> 5.29122544 | E61: 0 | F61: 1.200000028e-07 | G61: 0 | H61: -3.384851685
B62: 2019 | C62: =C10-C59 -> -25.72619043 | D62: =D10-D59 -> -0.8435797 | E62: 0 | F62: 3.99999962e-08 | G62: 0 | H62: -5.92505873

Sheet MonthlySummaries
A2: =Aurora_Descrp -> BP18 Final Proposal | P2: =Aurora_Descrp -> BP18 Final Proposal
G3: Directe Expense | H3: =Update!D9 -> 288.0822254 | I3: Pices | J3: =Update!E9 -> 0 | K3: Capital | L3: =Update!F9 -> 50.53249212 | M3: =Update!G9 -> 0.223 | N3: =((N7/1000)+SUM(H3,J3,L3))*M3 -> 93.17195422 | V3: Directe Expense | W3: =Update!D10 -> 288.3304203 | X3: Pices | Y3: =Update!E10 -> 0 | Z3: Capital | AA3: =Update!F10 -> 44.00000004 | AB3: =Update!G10 -> 0.223 | AC3: =((AC7/1000)+SUM(W3,Y3,AA3))*AB3 -> 91.52551627
A4: =Purch_1 -> 2018 | B4: Oct | C4: Nov | D4: Dec | E4: Jan | F4: Feb | G4: Mar | H4: Apr | I4: May | J4: Jun | K4: Jul | L4: Aug | M4: Sep | N4: Total | P4: =Purch_2 -> 2019 | Q4: Oct | R4: Nov | S4: Dec | T4: Jan | U4: Feb | V4: Mar | W4: Apr | X4: May | Y4: Jun | Z4: Jul | AA4: Aug | AB4: Sep | AC4: Total
A5: Purchase (aMW) | B5: =ReplacementPurches!C95 -> 793.6375 | C5: =ReplacementPurches!D95 -> 304.2375 | D5: =ReplacementPurches!E95 -> 615.1 | E5: =ReplacementPurches!F95 -> 760.425 | F5: =ReplacementPurches!G95 -> 509.325 | G5: =ReplacementPurches!H95 -> 299.05 | H5: =ReplacementPurches!I95 -> 187.38125 | I5: =ReplacementPurches!J95 -> 86.95 | J5: =ReplacementPurches!K95 -> 273.475 | K5: =ReplacementPurches!L95 -> 32.7125 | L5: =ReplacementPurches!M95 -> -40.80080645 | M5: =ReplacementPurches!N95 -> 354.1 | N5: =ReplacementPurches!O95 -> 347.3874757 | P5: Purchase (aMW) | Q5: =ReplacementPurches!S95 -> 785.575 | R5: =ReplacementPurches!T95 -> 320.9875 | S5: =ReplacementPurches!U95 -> 610.225 | T5: =ReplacementPurches!V95 -> 745.2 | U5: =ReplacementPurches!W95 -> 521.7125 | V5: =ReplacementPurches!X95 -> 273.5 | W5: =ReplacementPurches!Y95 -> 189.425 | X5: =ReplacementPurches!Z95 -> 87.95 | Y5: =ReplacementPurches!AA95 -> 283.025 | Z5: =ReplacementPurches!AB95 -> 32.5125 | AA5: =ReplacementPurches!AC95 -> -15.43225806 | AB5: =ReplacementPurches!AD95 -> 374.1 | AC5: =ReplacementPurches!AE95 -> 349.9766881
A6: Price | B6: =((B7*1000)/(B5*PricesByItr!C$1)) -> 25.66287691 | C6: =((C7*1000)/(C5*PricesByItr!D$1)) -> 26.53102706 | D6: =((D7*1000)/(D5*PricesByItr!E$1)) -> 29.6125616 | E6: =((E7*1000)/(E5*PricesByItr!F$1)) -> 30.07741887 | F6: =((F7*1000)/(F5*PricesByItr!G$1)) -> 28.68381688 | G6: =((G7*1000)/(G5*PricesByItr!H$1)) -> 23.31405168 | H6: =((H7*1000)/(H5*PricesByItr!I$1)) -> 18.52787182 | I6: =((I7*1000)/(I5*PricesByItr!J$1)) -> 12.68019697 | J6: =((J7*1000)/(J5*PricesByItr!K$1)) -> 16.08291375 | K6: =((K7*1000)/(K5*PricesByItr!L$1)) -> 22.22047214 | L6: =((L7*1000)/(L5*PricesByItr!M$1)) -> 25.72180446 | M6: =((M7*1000)/(M5*PricesByItr!N$1)) -> 25.14693065 | N6: =((N7*1000)/(N5*PricesByItr!O$1)) -> 26.02489715 | P6: Price | Q6: =((Q7*1000)/(Q5*PricesByItr!S$1)) -> 24.07855548 | R6: =((R7*1000)/(R5*PricesByItr!T$1)) -> 25.18701005 | S6: =((S7*1000)/(S5*PricesByItr!U$1)) -> 28.84335598 | T6: =((T7*1000)/(T5*PricesByItr!V$1)) -> 29.54992764 | U6: =((U7*1000)/(U5*PricesByItr!W$1)) -> 29.09756853 | V6: =((V7*1000)/(V5*PricesByItr!X$1)) -> 22.763743 | W6: =((W7*1000)/(W5*PricesByItr!Y$1)) -> 18.4846364 | X6: =((X7*1000)/(X5*PricesByItr!Z$1)) -> 13.35058146 | Y6: =((Y7*1000)/(Y5*PricesByItr!AA$1)) -> 17.17525224 | Z6: =ABS((Z7*1000)/(Z5*PricesByItr!AB$1)) -> 22.28936661 | AA6: =((AA7*1000)/(AA5*PricesByItr!AC$1)) -> 26.76539226 | AB6: =((AB7*1000)/(AB5*PricesByItr!AD$1)) -> 25.11083179 | AC6: =((AC7*1000)/(AC5*PricesByItr!O$1)) -> 25.4739419
A7: Purchase Expense | B7: =ExpenseByItr!C3204 -> 15153.06398 | C7: =ExpenseByItr!D3204 -> 5819.719742 | D7: =ExpenseByItr!E3204 -> 13551.72686 | E7: =ExpenseByItr!F3204 -> 17016.48621 | F7: =ExpenseByItr!G3204 -> 9817.50674 | G7: =ExpenseByItr!H3204 -> 5180.245897 | H7: =ExpenseByItr!I3204 -> 2499.678563 | I7: =ExpenseByItr!J3204 -> 820.2920859 | J7: =ExpenseByItr!K3204 -> 3166.757884 | K7: =ExpenseByItr!L3204 -> 540.804073 | L7: =ExpenseByItr!M3204 -> -780.8059518 | M7: =ExpenseByItr!N3204 -> 6411.260264 | N7: =ExpenseByItr!O3204 -> 79196.73634 | P7: Purchase Expense | Q7: =ExpenseByItr!S3204 -> 14073.14035 | R7: =ExpenseByItr!T3204 -> 5829.079796 | S7: =ExpenseByItr!U3204 -> 13095.09706 | T7: =ExpenseByItr!V3204 -> 16383.33092 | U7: =ExpenseByItr!W3204 -> 10201.33983 | V7: =ExpenseByItr!X3204 -> 4625.831597 | W7: =ExpenseByItr!Y3204 -> 2521.04562 | X7: =ExpenseByItr!Z3204 -> 873.5926276 | Y7: =ExpenseByItr!AA3204 -> 3499.938552 | Z7: =ExpenseByItr!AB3204 -> 539.1641757 | AA7: =ExpenseByItr!AC3204 -> -307.3095277 | AB7: =ExpenseByItr!AD3204 -> 6763.652765 | AC7: =ExpenseByItr!AE3204 -> 78097.90376
A8: Credit | B8: =(B7+(SUM(Update!$D$9:$F$9)*1000)/12)*Update!$G$9 -> 9671.723434 | C8: =(C7+(SUM(Update!$D$9:$F$9)*1000)/12)*Update!$G$9 -> 7590.387671 | D8: =(D7+(SUM(Update!$D$9:$F$9)*1000)/12)*Update!$G$9 -> 9314.625258 | E8: =(E7+(SUM(Update!$D$9:$F$9)*1000)/12)*Update!$G$9 -> 10087.26659 | F8: =(F7+(SUM(Update!$D$9:$F$9)*1000)/12)*Update!$G$9 -> 8481.894171 | G8: =(G7+(SUM(Update!$D$9:$F$9)*1000)/12)*Update!$G$9 -> 7447.785003 | H8: =(H7+(SUM(Update!$D$9:$F$9)*1000)/12)*Update!$G$9 -> 6850.018488 | I8: =(I7+(SUM(Update!$D$9:$F$9)*1000)/12)*Update!$G$9 -> 6475.515303 | J8: =(J7+(SUM(Update!$D$9:$F$9)*1000)/12)*Update!$G$9 -> 6998.777176 | K8: =(K7+(SUM(Update!$D$9:$F$9)*1000)/12)*Update!$G$9 -> 6413.189476 | L8: =(L7+(SUM(Update!$D$9:$F$9)*1000)/12)*Update!$G$9 -> 6118.470441 | M8: =(M7+(SUM(Update!$D$9:$F$9)*1000)/12)*Update!$G$9 -> 7722.301207 | N8: =SUM(B8:M8) -> 93171.95422 | P8: Credit | Q8: =(Q7+(SUM(W3,Y3,AA3)*1000)/12)*Update!$G$10 -> 9314.117275 | R8: =(R7+(SUM(Update!$D$10:$F$10)*1000)/12)*Update!$G$10 -> 7475.691773 | S8: =(S7+(SUM(Update!$D$10:$F$10)*1000)/12)*Update!$G$10 -> 9096.013622 | T8: =(T7+(SUM(Update!$D$10:$F$10)*1000)/12)*Update!$G$10 -> 9829.289774 | U8: =(U7+(SUM(Update!$D$10:$F$10)*1000)/12)*Update!$G$10 -> 8450.70576 | V8: =(V7+(SUM(Update!$D$10:$F$10)*1000)/12)*Update!$G$10 -> 7207.367424 | W8: =(W7+(SUM(Update!$D$10:$F$10)*1000)/12)*Update!$G$10 -> 6738.000151 | X8: =(X7+(SUM(Update!$D$10:$F$10)*1000)/12)*Update!$G$10 -> 6370.618134 | Y8: =(Y7+(SUM(Update!$D$10:$F$10)*1000)/12)*Update!$G$10 -> 6956.293275 | Z8: =(Z7+(SUM(Update!$D$10:$F$10)*1000)/12)*Update!$G$10 -> 6296.040589 | AA8: =(AA7+(SUM(Update!$D$10:$F$10)*1000)/12)*Update!$G$10 -> 6107.276953 | AB8: =(AB7+(SUM(Update!$D$10:$F$10)*1000)/12)*Update!$G$10 -> 7684.101545 | AC8: =SUM(Q8:AB8) -> 91525.51627
A10: =IF(A12="","",Aurora_Descrp) -> BP18 Final Proposal | P10: =IF(P12="","",Aurora_Descrp) -> BP18 Final Proposal
G11: Directe Expense | H11: =Update!$D18 -> 335.6294212 | I11: Pices | J11: =Update!$E18 -> 0 | K11: Capital | L11: =Update!$F18 -> 38.17690178 | M11: =Update!$G18 -> 0.223 | N11: =IFERROR(((N15/1000)+SUM(H11,J11,L11))*M11,"") -> 106.8706314 | V11: Directe Expense | W11: =Update!$D19 -> 342.1647771 | X11: Pices | Y11: =Update!$E19 -> 0 | Z11: Capital | AA11: =Update!$F19 -> 38.93280444 | AB11: =Update!$G19 -> 0.223 | AC11: =IFERROR(((AC15/1000)+SUM(W11,Y11,AA11))*AB11,"") -> 109.7891654
A12: =IF(Purch_3="","",Purch_3) -> 2020 | B12: Oct | C12: Nov | D12: Dec | E12: Jan | F12: Feb | G12: Mar | H12: Apr | I12: May | J12: Jun | K12: Jul | L12: Aug | M12: Sep | N12: Total | P12: =IF(Purch_4=0,"",Purch_4) -> 2021 | Q12: Oct | R12: Nov | S12: Dec | T12: Jan | U12: Feb | V12: Mar | W12: Apr | X12: May | Y12: Jun | Z12: Jul | AA12: Aug | AB12: Sep | AC12: Total
A13: Purchase (aMW) | B13: =ReplacementPurches!AI95 -> 541.25 | C13: =ReplacementPurches!AJ95 -> 145.1125 | D13: =ReplacementPurches!AK95 -> 686.5625 | E13: =ReplacementPurches!AL95 -> 846.175 | F13: =ReplacementPurches!AM95 -> 518.3125 | G13: =ReplacementPurches!AN95 -> 377.575 | H13: =ReplacementPurches!AO95 -> 212.54375 | I13: =ReplacementPurches!AP95 -> 89.5125 | J13: =ReplacementPurches!AQ95 -> 236.8 | K13: =ReplacementPurches!AR95 -> 33.025 | L13: =ReplacementPurches!AS95 -> -31.14354839 | M13: =ReplacementPurches!AT95 -> 522.9875 | N13: =ReplacementPurches!AU95 ->  | P13: Purchase (aMW) | Q13: =ReplacementPurches!AY95 -> 541.25 | R13: =ReplacementPurches!AZ95 -> 145.1125 | S13: =ReplacementPurches!BA95 -> 686.5625 | T13: =ReplacementPurches!BB95 -> 846.175 | U13: =ReplacementPurches!BC95 -> 518.3125 | V13: =ReplacementPurches!BD95 -> 377.575 | W13: =ReplacementPurches!BE95 -> 212.54375 | X13: =ReplacementPurches!BF95 -> 89.5125 | Y13: =ReplacementPurches!BG95 -> 236.8 | Z13: =ReplacementPurches!BH95 -> 33.025 | AA13: =ReplacementPurches!BI95 -> -31.14354839 | AB13: =ReplacementPurches!BJ95 -> 522.9875 | AC13: =ReplacementPurches!BK95 -> 
A14: Price | B14: =IFERROR((B15*1000)/(B13*PricesByItr!AI$1),"") -> 30.6670696 | C14: =IFERROR((C15*1000)/(C13*PricesByItr!AJ$1),"") -> 32.91161246 | D14: =IFERROR((D15*1000)/(D13*PricesByItr!AK$1),"") -> 36.30070321 | E14: =IFERROR((E15*1000)/(E13*PricesByItr!AL$1),"") -> 38.59384294 | F14: =IFERROR((F15*1000)/(F13*PricesByItr!AM$1),"") -> 39.05367434 | G14: =IFERROR((G15*1000)/(G13*PricesByItr!AN$1),"") -> 31.89274574 | H14: =IFERROR((H15*1000)/(H13*PricesByItr!AO$1),"") -> 29.74246988 | I14: =IFERROR((I15*1000)/(I13*PricesByItr!AP$1),"") -> 25.9091193 | J14: =IFERROR((J15*1000)/(J13*PricesByItr!AQ$1),"") -> 31.17836168 | K14: =IFERROR((K15*1000)/(K13*PricesByItr!AR$1),"") -> 36.66953782 | L14: =IFERROR((L15*1000)/(L13*PricesByItr!AS$1),"") -> 32.99587211 | M14: =IFERROR((M15*1000)/(M13*PricesByItr!AT$1),"") -> 31.96701933 | N14: =IFERROR((N15*1000)/(N13*PricesByItr!AU$1),"") ->  | P14: Price | Q14: =IFERROR((Q15*1000)/(Q13*PricesByItr!AY$1),"") -> 30.84794082 | R14: =IFERROR((R15*1000)/(R13*PricesByItr!AZ$1),"") -> 32.90331675 | S14: =IFERROR((S15*1000)/(S13*PricesByItr!BA$1),"") -> 36.20353925 | T14: =IFERROR((T15*1000)/(T13*PricesByItr!BB$1),"") -> 41.75562668 | U14: =IFERROR((U15*1000)/(U13*PricesByItr!BC$1),"") -> 43.95679372 | V14: =IFERROR((V15*1000)/(V13*PricesByItr!BD$1),"") -> 34.22399537 | W14: =IFERROR((W15*1000)/(W13*PricesByItr!BE$1),"") -> 31.61986219 | X14: =IFERROR((X15*1000)/(X13*PricesByItr!BF$1),"") -> 27.2094355 | Y14: =IFERROR((Y15*1000)/(Y13*PricesByItr!BG$1),"") -> 34.93975098 | Z14: =IFERROR((Z15*1000)/(Z13*PricesByItr!BH$1),"") -> 38.02034636 | AA14: =IFERROR((AA15*1000)/(AA13*PricesByItr!BI$1),"") -> 35.21107349 | AB14: =IFERROR((AB15*1000)/(AB13*PricesByItr!BJ$1),"") -> 34.38486922 | AC14: =IFERROR((AC15*1000)/(AC13*PricesByItr!BK$1),"") -> 
A15: Purchase Expense | B15: =ExpenseByItr!AI3204 -> 12349.32226 | C15: =ExpenseByItr!AJ3204 -> 3443.414068 | D15: =ExpenseByItr!AK3204 -> 18542.48995 | E15: =ExpenseByItr!AL3204 -> 24296.91591 | F15: =ExpenseByItr!AM3204 -> 14088.43728 | G15: =ExpenseByItr!AN3204 -> 8947.134281 | H15: =ExpenseByItr!AO3204 -> 4551.534779 | I15: =ExpenseByItr!AP3204 -> 1725.477391 | J15: =ExpenseByItr!AQ3204 -> 5315.785954 | K15: =ExpenseByItr!AR3204 -> 900.992546 | L15: =ExpenseByItr!AS3204 -> -764.5407535 | M15: =ExpenseByItr!AT3204 -> 12037.2131 | N15: =ExpenseByItr!AU3204 -> 105434.1768 | P15: Purchase Expense | Q15: =ExpenseByItr!AY3204 -> 12422.15729 | R15: =ExpenseByItr!AZ3204 -> 3442.54612 | S15: =ExpenseByItr!BA3204 -> 18492.85836 | T15: =ExpenseByItr!BB3204 -> 26287.43015 | U15: =ExpenseByItr!BC3204 -> 15310.41499 | V15: =ExpenseByItr!BD3204 -> 9601.138915 | W15: =ExpenseByItr!BE3204 -> 4838.834941 | X15: =ExpenseByItr!BF3204 -> 1812.074939 | Y15: =ExpenseByItr!BG3204 -> 5957.087783 | Z15: =ExpenseByItr!BH3204 -> 934.1827224 | AA15: =ExpenseByItr!BI3204 -> -815.8687417 | AB15: =ExpenseByItr!BJ3204 -> 12947.65689 | AC15: =ExpenseByItr!BK3204 -> 111230.5144
A16: Credit | B16: =IFERROR((B15+(SUM(Update!$D$18:$F$18)*1000)/12)*Update!$G18,"") -> 9700.466365 | C16: =IFERROR((C15+(SUM(Update!$D$18:$F$18)*1000)/12)*Update!$G18,"") -> 7714.448839 | D16: =IFERROR((D15+(SUM(Update!$D$18:$F$18)*1000)/12)*Update!$G18,"") -> 11081.54276 | E16: =IFERROR((E15+(SUM(Update!$D$18:$F$18)*1000)/12)*Update!$G18,"") -> 12364.77975 | F16: =IFERROR((F15+(SUM(Update!$D$18:$F$18)*1000)/12)*Update!$G18,"") -> 10088.28901 | G16: =IFERROR((G15+(SUM(Update!$D$18:$F$18)*1000)/12)*Update!$G18,"") -> 8941.778447 | H16: =IFERROR((H15+(SUM(Update!$D$18:$F$18)*1000)/12)*Update!$G18,"") -> 7961.559758 | I16: =IFERROR((I15+(SUM(Update!$D$18:$F$18)*1000)/12)*Update!$G18,"") -> 7331.34896 | J16: =IFERROR((J15+(SUM(Update!$D$18:$F$18)*1000)/12)*Update!$G18,"") -> 8131.98777 | K16: =IFERROR((K15+(SUM(Update!$D$18:$F$18)*1000)/12)*Update!$G18,"") -> 7147.48884 | L16: =IFERROR((L15+(SUM(Update!$D$18:$F$18)*1000)/12)*Update!$G18,"") -> 6776.074914 | M16: =IFERROR((M15+(SUM(Update!$D$18:$F$18)*1000)/12)*Update!$G18,"") -> 9630.866023 | N16: =IFERROR((N15+(SUM(Update!$D$18:$F$18)*1000)/12)*Update!$G18,"") -> 30458.38892 | P16: Credit | Q16: =IFERROR((Q15+(SUM(Update!$D$19:$F$19)*1000)/12)*Update!$G19,"") -> 9852.204465 | R16: =IFERROR((R15+(SUM(Update!$D$19:$F$19)*1000)/12)*Update!$G19,"") -> 7849.751175 | S16: =IFERROR((S15+(SUM(Update!$D$19:$F$19)*1000)/12)*Update!$G19,"") -> 11205.9708 | T16: =IFERROR((T15+(SUM(Update!$D$19:$F$19)*1000)/12)*Update!$G19,"") -> 12944.16031 | U16: =IFERROR((U15+(SUM(Update!$D$19:$F$19)*1000)/12)*Update!$G19,"") -> 10496.28593 | V16: =IFERROR((V15+(SUM(Update!$D$19:$F$19)*1000)/12)*Update!$G19,"") -> 9223.117368 | W16: =IFERROR((W15+(SUM(Update!$D$19:$F$19)*1000)/12)*Update!$G19,"") -> 8161.123582 | X16: =IFERROR((X15+(SUM(Update!$D$19:$F$19)*1000)/12)*Update!$G19,"") -> 7486.156102 | Y16: =IFERROR((Y15+(SUM(Update!$D$19:$F$19)*1000)/12)*Update!$G19,"") -> 8410.493966 | Z16: =IFERROR((Z15+(SUM(Update!$D$19:$F$19)*1000)/12)*Update!$G19,"") -> 7290.386137 | AA16: =IFERROR((AA15+(SUM(Update!$D$19:$F$19)*1000)/12)*Update!$G19,"") -> 6900.124661 | AB16: =IFERROR((AB15+(SUM(Update!$D$19:$F$19)*1000)/12)*Update!$G19,"") -> 9969.390877 | AC16: =IFERROR((AC15+(SUM(Update!$D$19:$F$19)*1000)/12)*Update!$G19,"") -> 31886.46809
A18: =IF(A20="","",Aurora_Descrp) -> BP18 Final Proposal | P18: =IF(P20="","",Aurora_Descrp) -> BP18 Final Proposal
G19: Directe Expense | H19: =Update!$D20 -> 348.874082 | I19: Pices | J19: =Update!$E20 -> 0 | K19: Capital | L19: =Update!$F20 -> 39.66084788 | M19: =Update!$G20 -> 0.223 | N19: =IFERROR(((N23/1000)+SUM(H19,J19,L19))*M19,"") -> 112.8259218 | V19: Directe Expense | W19: =Update!$D21 -> 355.7624002 | X19: Pices | Y19: =Update!$E21 -> 0 | Z19: Capital | AA19: =Update!$F21 -> 40.40250573 | AB19: =Update!$G21 -> 0.223 | AC19: =IFERROR(((AC23/1000)+SUM(W19,Y19,AA19))*AB19,"") -> 116.4828948
A20: =IF(Purch_5="","",Purch_5) -> 2022 | B20: Oct | C20: Nov | D20: Dec | E20: Jan | F20: Feb | G20: Mar | H20: Apr | I20: May | J20: Jun | K20: Jul | L20: Aug | M20: Sep | N20: Total | P20: =IF(Purch_6="","",Purch_6) -> 2023 | Q20: Oct | R20: Nov | S20: Dec | T20: Jan | U20: Feb | V20: Mar | W20: Apr | X20: May | Y20: Jun | Z20: Jul | AA20: Aug | AB20: Sep | AC20: Total
A21: Purchase (aMW) | B21: =ReplacementPurches!BO95 -> 541.25 | C21: =ReplacementPurches!BP95 -> 145.1125 | D21: =ReplacementPurches!BQ95 -> 686.5625 | E21: =ReplacementPurches!BR95 -> 846.175 | F21: =ReplacementPurches!BS95 -> 518.3125 | G21: =ReplacementPurches!BT95 -> 377.575 | H21: =ReplacementPurches!BU95 -> 212.54375 | I21: =ReplacementPurches!BV95 -> 89.5125 | J21: =ReplacementPurches!BW95 -> 236.8 | K21: =ReplacementPurches!BX95 -> 33.025 | L21: =ReplacementPurches!BY95 -> -31.14354839 | M21: =ReplacementPurches!BZ95 -> 522.9875 | N21: =ReplacementPurches!CA95 ->  | P21: Purchase (aMW) | Q21: =ReplacementPurches!CE95 -> 541.25 | R21: =ReplacementPurches!CF95 -> 145.1125 | S21: =ReplacementPurches!CG95 -> 686.5625 | T21: =ReplacementPurches!CH95 -> 846.175 | U21: =ReplacementPurches!CI95 -> 518.3125 | V21: =ReplacementPurches!CJ95 -> 377.575 | W21: =ReplacementPurches!CK95 -> 212.54375 | X21: =ReplacementPurches!CL95 -> 89.5125 | Y21: =ReplacementPurches!CM95 -> 236.8 | Z21: =ReplacementPurches!CN95 -> 33.025 | AA21: =ReplacementPurches!CO95 -> -31.14354839 | AB21: =ReplacementPurches!CP95 -> 522.9875 | AC21: =ReplacementPurches!CQ95 -> 
A22: Price | B22: =IFERROR((B23*1000)/(B21*PricesByItr!BO$1),"") -> 32.64830285 | C22: =IFERROR((C23*1000)/(C21*PricesByItr!BP$1),"") -> 36.24194492 | D22: =IFERROR((D23*1000)/(D21*PricesByItr!BQ$1),"") -> 40.45369139 | E22: =IFERROR((E23*1000)/(E21*PricesByItr!BR$1),"") -> 43.72411618 | F22: =IFERROR((F23*1000)/(F21*PricesByItr!BS$1),"") -> 45.69325945 | G22: =IFERROR((G23*1000)/(G21*PricesByItr!BT$1),"") -> 35.35037012 | H22: =IFERROR((H23*1000)/(H21*PricesByItr!BU$1),"") -> 33.00219144 | I22: =IFERROR((I23*1000)/(I21*PricesByItr!BV$1),"") -> 27.08927455 | J22: =IFERROR((J23*1000)/(J21*PricesByItr!BW$1),"") -> 34.72012731 | K22: =IFERROR((K23*1000)/(K21*PricesByItr!BX$1),"") -> 39.25902661 | L22: =IFERROR((L23*1000)/(L21*PricesByItr!BY$1),"") -> 37.94045924 | M22: =IFERROR((M23*1000)/(M21*PricesByItr!BZ$1),"") -> 36.08912897 | N22: =IFERROR((N23*1000)/(N21*PricesByItr!CA$1),"") ->  | P22: Price | Q22: =IFERROR((Q23*1000)/(Q21*PricesByItr!CE$1),"") -> 34.93536542 | R22: =IFERROR((R23*1000)/(R21*PricesByItr!CF$1),"") -> 39.40799509 | S22: =IFERROR((S23*1000)/(S21*PricesByItr!CG$1),"") -> 42.82062905 | T22: =IFERROR((T23*1000)/(T21*PricesByItr!CH$1),"") -> 46.98467756 | U22: =IFERROR((U23*1000)/(U21*PricesByItr!CI$1),"") -> 48.98330791 | V22: =IFERROR((V23*1000)/(V21*PricesByItr!CJ$1),"") -> 38.20010066 | W22: =IFERROR((W23*1000)/(W21*PricesByItr!CK$1),"") -> 35.05690326 | X22: =IFERROR((X23*1000)/(X21*PricesByItr!CL$1),"") -> 30.39466316 | Y22: =IFERROR((Y23*1000)/(Y21*PricesByItr!CM$1),"") -> 38.82888807 | Z22: =IFERROR((Z23*1000)/(Z21*PricesByItr!CN$1),"") -> 41.98081224 | AA22: =IFERROR((AA23*1000)/(AA21*PricesByItr!CO$1),"") -> 39.05519618 | AB22: =IFERROR((AB23*1000)/(AB21*PricesByItr!CP$1),"") -> 38.83377147 | AC22: =IFERROR((AC23*1000)/(AC21*PricesByItr!CQ$1),"") -> 
A23: Purchase Expense | B23: =ExpenseByItr!BO3204 -> 13147.14507 | C23: =ExpenseByItr!BP3204 -> 3791.853806 | D23: =ExpenseByItr!BQ3204 -> 20663.84669 | E23: =ExpenseByItr!BR3204 -> 27526.70098 | F23: =ExpenseByItr!BS3204 -> 15915.23642 | G23: =ExpenseByItr!BT3204 -> 9917.130086 | H23: =ExpenseByItr!BU3204 -> 5050.374859 | I23: =ExpenseByItr!BV3204 -> 1804.072544 | J23: =ExpenseByItr!BW3204 -> 5919.642825 | K23: =ExpenseByItr!BX3204 -> 964.6178393 | L23: =ExpenseByItr!BY3204 -> -879.110793 | M23: =ExpenseByItr!BZ3204 -> 13589.3976 | N23: =ExpenseByItr!CA3204 -> 117410.9079 | P23: Purchase Expense | Q23: =ExpenseByItr!CE3204 -> 14068.1223 | R23: =ExpenseByItr!CF3204 -> 4123.105328 | S23: =ExpenseByItr!CG3204 -> 21872.88437 | T23: =ExpenseByItr!CH3204 -> 29579.4011 | U23: =ExpenseByItr!CI3204 -> 17061.18004 | V23: =ExpenseByItr!CJ3204 -> 10716.58843 | W23: =ExpenseByItr!CK3204 -> 5364.810491 | X23: =ExpenseByItr!CL3204 -> 2024.202501 | Y23: =ExpenseByItr!CM3204 -> 6620.1701 | Z23: =ExpenseByItr!CN3204 -> 1031.493745 | AA23: =ExpenseByItr!CO3204 -> -904.9401397 | AB23: =ExpenseByItr!CP3204 -> 14622.89548 | AC23: =ExpenseByItr!CQ3204 -> 126179.9138
A24: Credit | B24: =IFERROR((B23+(SUM(Update!$D$20:$F$20)*1000)/12)*Update!$G20,"") -> 10152.08746 | C24: =IFERROR((C23+(SUM(Update!$D$20:$F$20)*1000)/12)*Update!$G20,"") -> 8065.857512 | D24: =IFERROR((D23+(SUM(Update!$D$20:$F$20)*1000)/12)*Update!$G20,"") -> 11828.31193 | E24: =IFERROR((E23+(SUM(Update!$D$20:$F$20)*1000)/12)*Update!$G20,"") -> 13358.72843 | F24: =IFERROR((F23+(SUM(Update!$D$20:$F$20)*1000)/12)*Update!$G20,"") -> 10769.37184 | G24: =IFERROR((G23+(SUM(Update!$D$20:$F$20)*1000)/12)*Update!$G20,"") -> 9431.794122 | H24: =IFERROR((H23+(SUM(Update!$D$20:$F$20)*1000)/12)*Update!$G20,"") -> 8346.507707 | I24: =IFERROR((I23+(SUM(Update!$D$20:$F$20)*1000)/12)*Update!$G20,"") -> 7622.582291 | J24: =IFERROR((J23+(SUM(Update!$D$20:$F$20)*1000)/12)*Update!$G20,"") -> 8540.354463 | K24: =IFERROR((K23+(SUM(Update!$D$20:$F$20)*1000)/12)*Update!$G20,"") -> 7435.383891 | L24: =IFERROR((L23+(SUM(Update!$D$20:$F$20)*1000)/12)*Update!$G20,"") -> 7024.232406 | M24: =IFERROR((M23+(SUM(Update!$D$20:$F$20)*1000)/12)*Update!$G20,"") -> 10250.70978 | N24: =IFERROR((N23+(SUM(Update!$D$20:$F$20)*1000)/12)*Update!$G20,"") -> 33402.90658 | P24: Credit | Q24: =IFERROR((Q23+(SUM(Update!$D$21:$F$21)*1000)/12)*Update!$G21,"") -> 10499.25578 | R24: =IFERROR((R23+(SUM(Update!$D$21:$F$21)*1000)/12)*Update!$G21,"") -> 8281.516991 | S24: =IFERROR((S23+(SUM(Update!$D$21:$F$21)*1000)/12)*Update!$G21,"") -> 12239.71772 | T24: =IFERROR((T23+(SUM(Update!$D$21:$F$21)*1000)/12)*Update!$G21,"") -> 13958.27095 | U24: =IFERROR((U23+(SUM(Update!$D$21:$F$21)*1000)/12)*Update!$G21,"") -> 11166.70765 | V24: =IFERROR((V23+(SUM(Update!$D$21:$F$21)*1000)/12)*Update!$G21,"") -> 9751.863723 | W24: =IFERROR((W23+(SUM(Update!$D$21:$F$21)*1000)/12)*Update!$G21,"") -> 8558.417242 | X24: =IFERROR((X23+(SUM(Update!$D$21:$F$21)*1000)/12)*Update!$G21,"") -> 7813.46166 | Y24: =IFERROR((Y23+(SUM(Update!$D$21:$F$21)*1000)/12)*Update!$G21,"") -> 8838.362435 | Z24: =IFERROR((Z23+(SUM(Update!$D$21:$F$21)*1000)/12)*Update!$G21,"") -> 7592.087608 | AA24: =IFERROR((AA23+(SUM(Update!$D$21:$F$21)*1000)/12)*Update!$G21,"") -> 7160.262851 | AB24: =IFERROR((AB23+(SUM(Update!$D$21:$F$21)*1000)/12)*Update!$G21,"") -> 10622.97019 | AC24: =IFERROR((AC23+(SUM(Update!$D$21:$F$21)*1000)/12)*Update!$G21,"") -> 35500.18527
A26: =IF(A28="","",Aurora_Descrp) -> BP18 Final Proposal | P26: =IF(P28="","",Aurora_Descrp) -> BP18 Final Proposal
G27: Directe Expense | H27: =Update!$D22 -> 362.7867243 | I27: Pices | J27: =Update!$E22 -> 0 | K27: Capital | L27: =Update!$F22 -> 41.15803259 | M27: =Update!$G22 -> 0.223 | N27: =IFERROR(((N31/1000)+SUM(H27,J27,L27))*M27,"") -> 118.8645196 | V27: Directe Expense | W27: =Update!$D23 -> 0 | X27: Pices | Y27: =Update!$E23 -> 0 | Z27: Capital | AA27: =Update!$F23 -> 0 | AB27: =Update!$G23 -> 0 | AC27: =IFERROR(((AC31/1000)+SUM(W27,Y27,AA27))*AB27,"") -> 0
A28: =IF(Purch_7="","",Purch_7) -> 2024 | B28: Oct | C28: Nov | D28: Dec | E28: Jan | F28: Feb | G28: Mar | H28: Apr | I28: May | J28: Jun | K28: Jul | L28: Aug | M28: Sep | N28: Total | P28: =IF(Purch_8="","",Purch_8) -> 2025 | Q28: Oct | R28: Nov | S28: Dec | T28: Jan | U28: Feb | V28: Mar | W28: Apr | X28: May | Y28: Jun | Z28: Jul | AA28: Aug | AB28: Sep | AC28: Total
A29: Purchase (aMW) | B29: =ReplacementPurches!CU95 -> 541.25 | C29: =ReplacementPurches!CV95 -> 145.1125 | D29: =ReplacementPurches!CW95 -> 686.5625 | E29: =ReplacementPurches!CX95 -> 846.175 | F29: =ReplacementPurches!CY95 -> 518.3125 | G29: =ReplacementPurches!CZ95 -> 377.575 | H29: =ReplacementPurches!DA95 -> 113.71875 | I29: =ReplacementPurches!DB95 -> 89.5125 | J29: =ReplacementPurches!DC95 -> 236.8 | K29: =ReplacementPurches!DD95 -> 33.025 | L29: =ReplacementPurches!DE95 -> -31.14354839 | M29: =ReplacementPurches!DF95 -> 522.9875 | N29: =ReplacementPurches!DG95 ->  | P29: Purchase (aMW) | Q29: =ReplacementPurches!DK95 -> 541.25 | R29: =ReplacementPurches!DL95 -> 145.1125 | S29: =ReplacementPurches!DM95 -> 686.5625 | T29: =ReplacementPurches!DN95 -> 846.175 | U29: =ReplacementPurches!DO95 -> 518.3125 | V29: =ReplacementPurches!DP95 -> 377.575 | W29: =ReplacementPurches!DQ95 -> 212.54375 | X29: =ReplacementPurches!DR95 -> 89.5125 | Y29: =ReplacementPurches!DS95 -> 236.8 | Z29: =ReplacementPurches!DT95 -> 33.025 | AA29: =ReplacementPurches!DU95 -> -31.14354839 | AB29: =ReplacementPurches!DV95 -> 522.9875 | AC29: =ReplacementPurches!DW95 -> 
A30: Price | B30: =IFERROR((B31*1000)/(B29*PricesByItr!CU$1),"") -> 36.96563881 | C30: =IFERROR((C31*1000)/(C29*PricesByItr!CV$1),"") -> 41.6480495 | D30: =IFERROR((D31*1000)/(D29*PricesByItr!CW$1),"") -> 45.10180504 | E30: =IFERROR((E31*1000)/(E29*PricesByItr!CX$1),"") -> 48.96421834 | F30: =IFERROR((F31*1000)/(F29*PricesByItr!CY$1),"") -> 50.12305167 | G30: =IFERROR((G31*1000)/(G29*PricesByItr!CZ$1),"") -> 40.48122074 | H30: =IFERROR((H31*1000)/(H29*PricesByItr!DA$1),"") -> 36.78629663 | I30: =IFERROR((I31*1000)/(I29*PricesByItr!DB$1),"") -> 30.09089931 | J30: =IFERROR((J31*1000)/(J29*PricesByItr!DC$1),"") -> 37.84342868 | K30: =IFERROR((K31*1000)/(K29*PricesByItr!DD$1),"") -> 44.46039447 | L30: =IFERROR((L31*1000)/(L29*PricesByItr!DE$1),"") -> 41.66204276 | M30: =IFERROR((M31*1000)/(M29*PricesByItr!DF$1),"") -> 39.67514973 | N30: =IFERROR((N31*1000)/(N29*PricesByItr!DG$1),"") ->  | P30: Price | Q30: =IFERROR((Q31*1000)/(Q29*PricesByItr!DK$1),"") -> 38.51206412 | R30: =IFERROR((R31*1000)/(R29*PricesByItr!DL$1),"") -> 42.95591753 | S30: =IFERROR((S31*1000)/(S29*PricesByItr!DM$1),"") -> 46.40850396 | T30: =IFERROR((T31*1000)/(T29*PricesByItr!DN$1),"") -> 51.70662278 | U30: =IFERROR((U31*1000)/(U29*PricesByItr!DO$1),"") -> 54.60559838 | V30: =IFERROR((V31*1000)/(V29*PricesByItr!DP$1),"") -> 41.54638397 | W30: =IFERROR((W31*1000)/(W29*PricesByItr!DQ$1),"") -> 37.83406522 | X30: =IFERROR((X31*1000)/(X29*PricesByItr!DR$1),"") -> 32.72338474 | Y30: =IFERROR((Y31*1000)/(Y29*PricesByItr!DS$1),"") -> 41.25279413 | Z30: =IFERROR((Z31*1000)/(Z29*PricesByItr!DT$1),"") -> 46.79051457 | AA30: =IFERROR((AA31*1000)/(AA29*PricesByItr!DU$1),"") -> 43.48828542 | AB30: =IFERROR((AB31*1000)/(AB29*PricesByItr!DV$1),"") -> 41.28267559 | AC30: =IFERROR((AC31*1000)/(AC29*PricesByItr!DW$1),"") -> 
A31: Purchase Expense | B31: =ExpenseByItr!CU3204 -> 14885.69309 | C31: =ExpenseByItr!CV3204 -> 4357.473512 | D31: =ExpenseByItr!CW3204 -> 23038.11477 | E31: =ExpenseByItr!CX3204 -> 30825.62931 | F31: =ExpenseByItr!CY3204 -> 18081.66534 | G31: =ExpenseByItr!CZ3204 -> 11356.52981 | H31: =ExpenseByItr!DA3204 -> 3011.970002 | I31: =ExpenseByItr!DB3204 -> 2003.972649 | J31: =ExpenseByItr!DC3204 -> 6452.153216 | K31: =ExpenseByItr!DD3204 -> 1092.418568 | L31: =ExpenseByItr!DE3204 -> -965.3428603 | M31: =ExpenseByItr!DF3204 -> 14939.7173 | N31: =ExpenseByItr!DG3204 -> 129079.9947 | P31: Purchase Expense | Q31: =ExpenseByItr!DK3204 -> 15508.4231 | R31: =ExpenseByItr!DL3204 -> 4494.31066 | S31: =ExpenseByItr!DM3204 -> 23705.57985 | T31: =ExpenseByItr!DN3204 -> 32552.12154 | U31: =ExpenseByItr!DO3204 -> 19019.45755 | V31: =ExpenseByItr!DP3204 -> 11655.34881 | W31: =ExpenseByItr!DQ3204 -> 5789.803752 | X31: =ExpenseByItr!DR3204 -> 2179.289071 | Y31: =ExpenseByItr!DS3204 -> 7033.436388 | Z31: =ExpenseByItr!DT3204 -> 1149.671017 | AA31: =ExpenseByItr!DU3204 -> -1007.658364 | AB31: =ExpenseByItr!DV3204 -> 15545.03278 | AC31: =ExpenseByItr!DW3204 -> 137624.8161
A32: Credit | B32: =IFERROR((B31+(SUM(Update!$D$22:$F$22)*1000)/12)*Update!$G22,"") -> 10826.14963 | C32: =IFERROR((C31+(SUM(Update!$D$22:$F$22)*1000)/12)*Update!$G22,"") -> 8478.35666 | D32: =IFERROR((D31+(SUM(Update!$D$22:$F$22)*1000)/12)*Update!$G22,"") -> 12644.13966 | E32: =IFERROR((E31+(SUM(Update!$D$22:$F$22)*1000)/12)*Update!$G22,"") -> 14380.7554 | F32: =IFERROR((F31+(SUM(Update!$D$22:$F$22)*1000)/12)*Update!$G22,"") -> 11538.85144 | G32: =IFERROR((G31+(SUM(Update!$D$22:$F$22)*1000)/12)*Update!$G22,"") -> 10039.14621 | H32: =IFERROR((H31+(SUM(Update!$D$22:$F$22)*1000)/12)*Update!$G22,"") -> 8178.309377 | I32: =IFERROR((I31+(SUM(Update!$D$22:$F$22)*1000)/12)*Update!$G22,"") -> 7953.525967 | J32: =IFERROR((J31+(SUM(Update!$D$22:$F$22)*1000)/12)*Update!$G22,"") -> 8945.470233 | K32: =IFERROR((K31+(SUM(Update!$D$22:$F$22)*1000)/12)*Update!$G22,"") -> 7750.249407 | L32: =IFERROR((L31+(SUM(Update!$D$22:$F$22)*1000)/12)*Update!$G22,"") -> 7291.368609 | M32: =IFERROR((M31+(SUM(Update!$D$22:$F$22)*1000)/12)*Update!$G22,"") -> 10838.19703 | N32: =IFERROR((N31+(SUM(Update!$D$22:$F$22)*1000)/12)*Update!$G22,"") -> 36291.47889 | P32: Credit | Q32: =IFERROR((Q31+(SUM(Update!$D$23:$F$23)*1000)/12)*Update!$G23,"") -> 0 | R32: =IFERROR((R31+(SUM(Update!$D$23:$F$23)*1000)/12)*Update!$G23,"") -> 0 | S32: =IFERROR((S31+(SUM(Update!$D$23:$F$23)*1000)/12)*Update!$G23,"") -> 0 | T32: =IFERROR((T31+(SUM(Update!$D$23:$F$23)*1000)/12)*Update!$G23,"") -> 0 | U32: =IFERROR((U31+(SUM(Update!$D$23:$F$23)*1000)/12)*Update!$G23,"") -> 0 | V32: =IFERROR((V31+(SUM(Update!$D$23:$F$23)*1000)/12)*Update!$G23,"") -> 0 | W32: =IFERROR((W31+(SUM(Update!$D$23:$F$23)*1000)/12)*Update!$G23,"") -> 0 | X32: =IFERROR((X31+(SUM(Update!$D$23:$F$23)*1000)/12)*Update!$G23,"") -> 0 | Y32: =IFERROR((Y31+(SUM(Update!$D$23:$F$23)*1000)/12)*Update!$G23,"") -> 0 | Z32: =IFERROR((Z31+(SUM(Update!$D$23:$F$23)*1000)/12)*Update!$G23,"") -> 0 | AA32: =IFERROR((AA31+(SUM(Update!$D$23:$F$23)*1000)/12)*Update!$G23,"") -> 0 | AB32: =IFERROR((AB31+(SUM(Update!$D$23:$F$23)*1000)/12)*Update!$G23,"") -> 0 | AC32: =IFERROR((AC31+(SUM(Update!$D$23:$F$23)*1000)/12)*Update!$G23,"") -> 0
A34: =IF(A36="","",Aurora_Descrp) -> BP18 Final Proposal | P34: =IF(P36="","",Aurora_Descrp) -> BP18 Final Proposal
G35: Directe Expense | H35: =Update!$D24 -> 0 | I35: Pices | J35: =Update!$E24 -> 0 | K35: Capital | L35: =Update!$F24 -> 0 | M35: =Update!$G24 -> 0 | N35: =IFERROR(((N39/1000)+SUM(H35,J35,L35))*M35,"") -> 0 | V35: Directe Expense | W35: =Update!$D165 -> 0 | X35: Pices | Y35: =Update!$E25 -> 0 | Z35: Capital | AA35: =Update!$F25 -> 0 | AB35: =Update!$G25 -> 0 | AC35: =IFERROR(((AC39/1000)+SUM(W35,Y35,AA35))*AB35,"") -> 0
A36: =IF(Purch_9="","",Purch_9) -> 2026 | B36: Oct | C36: Nov | D36: Dec | E36: Jan | F36: Feb | G36: Mar | H36: Apr | I36: May | J36: Jun | K36: Jul | L36: Aug | M36: Sep | N36: Total | P36: =IF(Purch_10="","",Purch_10) -> 2027 | Q36: Oct | R36: Nov | S36: Dec | T36: Jan | U36: Feb | V36: Mar | W36: Apr | X36: May | Y36: Jun | Z36: Jul | AA36: Aug | AB36: Sep | AC36: Total
A37: Purchase (aMW) | B37: =ReplacementPurches!EA95 -> 541.25 | C37: =ReplacementPurches!EB95 -> 145.1125 | D37: =ReplacementPurches!EC95 -> 686.5625 | E37: =ReplacementPurches!ED95 -> 846.175 | F37: =ReplacementPurches!EE95 -> 518.3125 | G37: =ReplacementPurches!EF95 -> 377.575 | H37: =ReplacementPurches!EG95 -> 212.54375 | I37: =ReplacementPurches!EH95 -> 89.5125 | J37: =ReplacementPurches!EI95 -> 236.8 | K37: =ReplacementPurches!EJ95 -> 33.025 | L37: =ReplacementPurches!EK95 -> -31.14354839 | M37: =ReplacementPurches!EL95 -> 522.9875 | N37: =ReplacementPurches!EM95 ->  | P37: Purchase (aMW) | Q37: =ReplacementPurches!EQ95 -> 541.25 | R37: =ReplacementPurches!ER95 -> 145.1125 | S37: =ReplacementPurches!ES95 -> 686.5625 | T37: =ReplacementPurches!ET95 -> 846.175 | U37: =ReplacementPurches!EU95 -> 518.3125 | V37: =ReplacementPurches!EV95 -> 377.575 | W37: =ReplacementPurches!EW95 -> 212.54375 | X37: =ReplacementPurches!EX95 -> 89.5125 | Y37: =ReplacementPurches!EY95 -> 236.8 | Z37: =ReplacementPurches!EZ95 -> 33.025 | AA37: =ReplacementPurches!FA95 -> -31.14354839 | AB37: =ReplacementPurches!FB95 -> 522.9875 | AC37: =ReplacementPurches!FC95 -> 
A38: Price | B38: =IFERROR((B39*1000)/(B37*PricesByItr!EA$1),"") -> 39.93000853 | C38: =IFERROR((C39*1000)/(C37*PricesByItr!EB$1),"") -> 43.95293718 | D38: =IFERROR((D39*1000)/(D37*PricesByItr!EC$1),"") -> 49.93372731 | E38: =IFERROR((E39*1000)/(E37*PricesByItr!ED$1),"") -> 56.29276142 | F38: =IFERROR((F39*1000)/(F37*PricesByItr!EE$1),"") -> 59.68714148 | G38: =IFERROR((G39*1000)/(G37*PricesByItr!EF$1),"") -> 44.67766237 | H38: =IFERROR((H39*1000)/(H37*PricesByItr!EG$1),"") -> 40.82071971 | I38: =IFERROR((I39*1000)/(I37*PricesByItr!EH$1),"") -> 33.91669735 | J38: =IFERROR((J39*1000)/(J37*PricesByItr!EI$1),"") -> 43.32001126 | K38: =IFERROR((K39*1000)/(K37*PricesByItr!EJ$1),"") -> 50.34818621 | L38: =IFERROR((L39*1000)/(L37*PricesByItr!EK$1),"") -> 47.36055465 | M38: =IFERROR((M39*1000)/(M37*PricesByItr!EL$1),"") -> 45.40020934 | N38: =IFERROR((N39*1000)/(N37*PricesByItr!EM$1),"") ->  | P38: Price | Q38: =IFERROR((Q39*1000)/(Q37*PricesByItr!EQ$1),"") -> 44.36660518 | R38: =IFERROR((R39*1000)/(R37*PricesByItr!ER$1),"") -> 49.43323116 | S38: =IFERROR((S39*1000)/(S37*PricesByItr!ES$1),"") -> 54.77416088 | T38: =IFERROR((T39*1000)/(T37*PricesByItr!ET$1),"") -> 56.83748572 | U38: =IFERROR((U39*1000)/(U37*PricesByItr!EU$1),"") -> 60.29712376 | V38: =IFERROR((V39*1000)/(V37*PricesByItr!EV$1),"") -> 45.93874661 | W38: =IFERROR((W39*1000)/(W37*PricesByItr!EW$1),"") -> 41.94817959 | X38: =IFERROR((X39*1000)/(X37*PricesByItr!EX$1),"") -> 35.51182091 | Y38: =IFERROR((Y39*1000)/(Y37*PricesByItr!EY$1),"") -> 45.66961546 | Z38: =IFERROR((Z39*1000)/(Z37*PricesByItr!EZ$1),"") -> 51.54895492 | AA38: =IFERROR((AA39*1000)/(AA37*PricesByItr!FA$1),"") -> 47.89645045 | AB38: =IFERROR((AB39*1000)/(AB37*PricesByItr!FB$1),"") -> 46.79074768 | AC38: =IFERROR((AC39*1000)/(AC37*PricesByItr!FC$1),"") -> 
A39: Purchase Expense | B39: =ExpenseByItr!EA3204 -> 16079.41514 | C39: =ExpenseByItr!EB3204 -> 4598.62495 | D39: =ExpenseByItr!EC3204 -> 25506.27275 | E39: =ExpenseByItr!ED3204 -> 35439.34438 | F39: =ExpenseByItr!EE3204 -> 20789.3895 | G39: =ExpenseByItr!EF3204 -> 12533.7921 | H39: =ExpenseByItr!EG3204 -> 6246.855968 | I39: =ExpenseByItr!EH3204 -> 2258.760468 | J39: =ExpenseByItr!EI3204 -> 7385.88864 | K39: =ExpenseByItr!EJ3204 -> 1237.085144 | L39: =ExpenseByItr!EK3204 -> -1097.38194 | M39: =ExpenseByItr!EL3204 -> 17095.49423 | N39: =ExpenseByItr!EM3204 -> 148073.5413 | P39: Purchase Expense | Q39: =ExpenseByItr!EQ3204 -> 17865.98824 | R39: =ExpenseByItr!ER3204 -> 5172.006804 | S39: =ExpenseByItr!ES3204 -> 27978.77831 | T39: =ExpenseByItr!ET3204 -> 35782.27785 | U39: =ExpenseByItr!EU3204 -> 21001.84999 | V39: =ExpenseByItr!EV3204 -> 12887.57443 | W39: =ExpenseByItr!EW3204 -> 6419.392846 | X39: =ExpenseByItr!EX3204 -> 2364.991391 | Y39: =ExpenseByItr!EY3204 -> 7786.486758 | Z39: =ExpenseByItr!EZ3204 -> 1266.588752 | AA39: =ExpenseByItr!FA3204 -> -1109.799074 | AB39: =ExpenseByItr!FB3204 -> 17619.10283 | AC39: =ExpenseByItr!FC3204 -> 155035.2391
A40: Credit | B40: =IFERROR((B39+(SUM(Update!$D$24:$F$24)*1000)/12)*Update!$G24,"") -> 0 | C40: =IFERROR((C39+(SUM(Update!$D$24:$F$24)*1000)/12)*Update!$G24,"") -> 0 | D40: =IFERROR((D39+(SUM(Update!$D$24:$F$24)*1000)/12)*Update!$G24,"") -> 0 | E40: =IFERROR((E39+(SUM(Update!$D$24:$F$24)*1000)/12)*Update!$G24,"") -> 0 | F40: =IFERROR((F39+(SUM(Update!$D$24:$F$24)*1000)/12)*Update!$G24,"") -> 0 | G40: =IFERROR((G39+(SUM(Update!$D$24:$F$24)*1000)/12)*Update!$G24,"") -> 0 | H40: =IFERROR((H39+(SUM(Update!$D$24:$F$24)*1000)/12)*Update!$G24,"") -> 0 | I40: =IFERROR((I39+(SUM(Update!$D$24:$F$24)*1000)/12)*Update!$G24,"") -> 0 | J40: =IFERROR((J39+(SUM(Update!$D$24:$F$24)*1000)/12)*Update!$G24,"") -> 0 | K40: =IFERROR((K39+(SUM(Update!$D$24:$F$24)*1000)/12)*Update!$G24,"") -> 0 | L40: =IFERROR((L39+(SUM(Update!$D$24:$F$24)*1000)/12)*Update!$G24,"") -> 0 | M40: =IFERROR((M39+(SUM(Update!$D$24:$F$24)*1000)/12)*Update!$G24,"") -> 0 | N40: =IFERROR((N39+(SUM(Update!$D$24:$F$24)*1000)/12)*Update!$G24,"") -> 0 | P40: Credit | Q40: =IFERROR((Q39+(SUM(Update!$D$25:$F$25)*1000)/12)*Update!$G25,"") -> 0 | R40: =IFERROR((R39+(SUM(Update!$D$25:$F$25)*1000)/12)*Update!$G25,"") -> 0 | S40: =IFERROR((S39+(SUM(Update!$D$25:$F$25)*1000)/12)*Update!$G25,"") -> 0 | T40: =IFERROR((T39+(SUM(Update!$D$25:$F$25)*1000)/12)*Update!$G25,"") -> 0 | U40: =IFERROR((U39+(SUM(Update!$D$25:$F$25)*1000)/12)*Update!$G25,"") -> 0 | V40: =IFERROR((V39+(SUM(Update!$D$25:$F$25)*1000)/12)*Update!$G25,"") -> 0 | W40: =IFERROR((W39+(SUM(Update!$D$25:$F$25)*1000)/12)*Update!$G25,"") -> 0 | X40: =IFERROR((X39+(SUM(Update!$D$25:$F$25)*1000)/12)*Update!$G25,"") -> 0 | Y40: =IFERROR((Y39+(SUM(Update!$D$25:$F$25)*1000)/12)*Update!$G25,"") -> 0 | Z40: =IFERROR((Z39+(SUM(Update!$D$25:$F$25)*1000)/12)*Update!$G25,"") -> 0 | AA40: =IFERROR((AA39+(SUM(Update!$D$25:$F$25)*1000)/12)*Update!$G25,"") -> 0 | AB40: =IFERROR((AB39+(SUM(Update!$D$25:$F$25)*1000)/12)*Update!$G25,"") -> 0 | AC40: =IFERROR((AC39+(SUM(Update!$D$25:$F$25)*1000)/12)*Update!$G25,"") -> 0
A42: =IF(A44="","",Aurora_Descrp) -> BP18 Final Proposal | P42: =IF(P44="","",Aurora_Descrp) -> BP18 Final Proposal
G43: Directe Expense | H43: =Update!$D32 -> 10299.26636 | I43: Pices | J43: =Update!$E32 -> 12037.45587 | K43: Capital | L43: =Update!$F32 -> 9589.581491 | M43: =Update!$G32 -> 8316.412925 | N43: =IFERROR(((N47/1000)+SUM(H43,J43,L43))*M43,"") -> 265512324.9 | V43: Directe Expense | W43: =Update!$D173 -> 0 | X43: Pices | Y43: =Update!$E33 -> 12351.84903 | Z43: Capital | AA43: =Update!$F33 -> 9762.492433 | AB43: =Update!$G33 -> 8424.91472 | AC43: =IFERROR(((AC47/1000)+SUM(W43,Y43,AA43))*AB43,"") -> 186311440.9
A44: =IF(Purch_10="","",Purch_10) -> 2027 | B44: Oct | C44: Nov | D44: Dec | E44: Jan | F44: Feb | G44: Mar | H44: Apr | I44: May | J44: Jun | K44: Jul | L44: Aug | M44: Sep | N44: Total | P44: =IF(Purch_11="","",Purch_11) -> 2028 | Q44: Oct | R44: Nov | S44: Dec | T44: Jan | U44: Feb | V44: Mar | W44: Apr | X44: May | Y44: Jun | Z44: Jul | AA44: Aug | AB44: Sep | AC44: Total
A45: Purchase (aMW) | B45: =ReplacementPurches!FG95 -> 541.25 | C45: =ReplacementPurches!FH95 -> 145.1125 | D45: =ReplacementPurches!FI95 -> 686.5625 | E45: =ReplacementPurches!FJ95 -> 846.175 | F45: =ReplacementPurches!FK95 -> 518.3125 | G45: =ReplacementPurches!FL95 -> 377.575 | H45: =ReplacementPurches!FM95 -> 212.54375 | I45: =ReplacementPurches!FN95 -> 89.5125 | J45: =ReplacementPurches!FO95 -> 236.8 | K45: =ReplacementPurches!FP95 -> 33.025 | L45: =ReplacementPurches!FQ95 -> -31.14354839 | M45: =ReplacementPurches!FR95 -> 522.9875 | N45: =ReplacementPurches!EM103 -> 0 | P45: Purchase (aMW) | Q45: =ReplacementPurches!EQ103 -> 0 | R45: =ReplacementPurches!ER103 -> 0 | S45: =ReplacementPurches!ES103 -> 0 | T45: =ReplacementPurches!ET103 -> 0 | U45: =ReplacementPurches!EU103 -> 0 | V45: =ReplacementPurches!EV103 -> 0 | W45: =ReplacementPurches!EW103 -> 0 | X45: =ReplacementPurches!EX103 -> 0 | Y45: =ReplacementPurches!EY103 -> 0 | Z45: =ReplacementPurches!EZ103 -> 0 | AA45: =ReplacementPurches!FA103 -> 0 | AB45: =ReplacementPurches!FB103 -> 0 | AC45: =ReplacementPurches!FC103 -> 0
A46: Price | B46: =IFERROR((B47*1000)/(B45*PricesByItr!FG$3204),"") -> 0 | C46: =IFERROR((C47*1000)/(C45*PricesByItr!ER$1),"") -> 0 | D46: =IFERROR((D47*1000)/(D45*PricesByItr!ES$1),"") -> 0 | E46: =IFERROR((E47*1000)/(E45*PricesByItr!ET$1),"") -> 0 | F46: =IFERROR((F47*1000)/(F45*PricesByItr!EU$1),"") -> 0 | G46: =IFERROR((G47*1000)/(G45*PricesByItr!EV$1),"") -> 0 | H46: =IFERROR((H47*1000)/(H45*PricesByItr!EW$1),"") -> 0 | I46: =IFERROR((I47*1000)/(I45*PricesByItr!EX$1),"") -> 0 | J46: =IFERROR((J47*1000)/(J45*PricesByItr!EY$1),"") -> 0 | K46: =IFERROR((K47*1000)/(K45*PricesByItr!EZ$1),"") -> 0 | L46: =IFERROR((L47*1000)/(L45*PricesByItr!FA$1),"") -> 0 | M46: =IFERROR((M47*1000)/(M45*PricesByItr!FB$1),"") -> 0 | N46: =IFERROR((N47*1000)/(N45*PricesByItr!EM$1),"") ->  | P46: Price | Q46: =IFERROR((Q47*1000)/(Q45*PricesByItr!EQ$1),"") ->  | R46: =IFERROR((R47*1000)/(R45*PricesByItr!ER$1),"") ->  | S46: =IFERROR((S47*1000)/(S45*PricesByItr!ES$1),"") ->  | T46: =IFERROR((T47*1000)/(T45*PricesByItr!ET$1),"") ->  | U46: =IFERROR((U47*1000)/(U45*PricesByItr!EU$1),"") ->  | V46: =IFERROR((V47*1000)/(V45*PricesByItr!EV$1),"") ->  | W46: =IFERROR((W47*1000)/(W45*PricesByItr!EW$1),"") ->  | X46: =IFERROR((X47*1000)/(X45*PricesByItr!EX$1),"") ->  | Y46: =IFERROR((Y47*1000)/(Y45*PricesByItr!EY$1),"") ->  | Z46: =IFERROR((Z47*1000)/(Z45*PricesByItr!EZ$1),"") ->  | AA46: =IFERROR((AA47*1000)/(AA45*PricesByItr!FA$1),"") ->  | AB46: =IFERROR((AB47*1000)/(AB45*PricesByItr!FB$1),"") ->  | AC46: =IFERROR((AC47*1000)/(AC45*PricesByItr!FC$1),"") -> 
A47: Purchase Expense | B47: =ExpenseByItr!EQ103 -> 0 | C47: =ExpenseByItr!ER103 -> 0 | D47: =ExpenseByItr!ES103 -> 0 | E47: =ExpenseByItr!ET103 -> 0 | F47: =ExpenseByItr!EU103 -> 0 | G47: =ExpenseByItr!EV103 -> 0 | H47: =ExpenseByItr!EW103 -> 0 | I47: =ExpenseByItr!EX103 -> 0 | J47: =ExpenseByItr!EY103 -> 0 | K47: =ExpenseByItr!EZ103 -> 0 | L47: =ExpenseByItr!FA103 -> 0 | M47: =ExpenseByItr!FB103 -> 0 | N47: =SUM(B47:M47) -> 0 | P47: Purchase Expense | Q47: =ExpenseByItr!EQ103 -> 0 | R47: =ExpenseByItr!ER103 -> 0 | S47: =ExpenseByItr!ES103 -> 0 | T47: =ExpenseByItr!ET103 -> 0 | U47: =ExpenseByItr!EU103 -> 0 | V47: =ExpenseByItr!EV103 -> 0 | W47: =ExpenseByItr!EW103 -> 0 | X47: =ExpenseByItr!EX103 -> 0 | Y47: =ExpenseByItr!EY103 -> 0 | Z47: =ExpenseByItr!EZ103 -> 0 | AA47: =ExpenseByItr!FA103 -> 0 | AB47: =ExpenseByItr!FB103 -> 0 | AC47: =SUM(Q47:AB47) -> 0
A48: Credit | B48: =IFERROR((B47+(SUM(Update!$D$24:$F$24)*1000)/12)*Update!$G32,"") -> 0 | C48: =IFERROR((C47+(SUM(Update!$D$24:$F$24)*1000)/12)*Update!$G32,"") -> 0 | D48: =IFERROR((D47+(SUM(Update!$D$24:$F$24)*1000)/12)*Update!$G32,"") -> 0 | E48: =IFERROR((E47+(SUM(Update!$D$24:$F$24)*1000)/12)*Update!$G32,"") -> 0 | F48: =IFERROR((F47+(SUM(Update!$D$24:$F$24)*1000)/12)*Update!$G32,"") -> 0 | G48: =IFERROR((G47+(SUM(Update!$D$24:$F$24)*1000)/12)*Update!$G32,"") -> 0 | H48: =IFERROR((H47+(SUM(Update!$D$24:$F$24)*1000)/12)*Update!$G32,"") -> 0 | I48: =IFERROR((I47+(SUM(Update!$D$24:$F$24)*1000)/12)*Update!$G32,"") -> 0 | J48: =IFERROR((J47+(SUM(Update!$D$24:$F$24)*1000)/12)*Update!$G32,"") -> 0 | K48: =IFERROR((K47+(SUM(Update!$D$24:$F$24)*1000)/12)*Update!$G32,"") -> 0 | L48: =IFERROR((L47+(SUM(Update!$D$24:$F$24)*1000)/12)*Update!$G32,"") -> 0 | M48: =IFERROR((M47+(SUM(Update!$D$24:$F$24)*1000)/12)*Update!$G32,"") -> 0 | N48: =IFERROR((N47+(SUM(Update!$D$24:$F$24)*1000)/12)*Update!$G32,"") -> 0 | P48: Credit | Q48: =IFERROR((Q47+(SUM(Update!$D$25:$F$25)*1000)/12)*Update!$G33,"") -> 0 | R48: =IFERROR((R47+(SUM(Update!$D$25:$F$25)*1000)/12)*Update!$G33,"") -> 0 | S48: =IFERROR((S47+(SUM(Update!$D$25:$F$25)*1000)/12)*Update!$G33,"") -> 0 | T48: =IFERROR((T47+(SUM(Update!$D$25:$F$25)*1000)/12)*Update!$G33,"") -> 0 | U48: =IFERROR((U47+(SUM(Update!$D$25:$F$25)*1000)/12)*Update!$G33,"") -> 0 | V48: =IFERROR((V47+(SUM(Update!$D$25:$F$25)*1000)/12)*Update!$G33,"") -> 0 | W48: =IFERROR((W47+(SUM(Update!$D$25:$F$25)*1000)/12)*Update!$G33,"") -> 0 | X48: =IFERROR((X47+(SUM(Update!$D$25:$F$25)*1000)/12)*Update!$G33,"") -> 0 | Y48: =IFERROR((Y47+(SUM(Update!$D$25:$F$25)*1000)/12)*Update!$G33,"") -> 0 | Z48: =IFERROR((Z47+(SUM(Update!$D$25:$F$25)*1000)/12)*Update!$G33,"") -> 0 | AA48: =IFERROR((AA47+(SUM(Update!$D$25:$F$25)*1000)/12)*Update!$G33,"") -> 0 | AB48: =IFERROR((AB47+(SUM(Update!$D$25:$F$25)*1000)/12)*Update!$G33,"") -> 0 | AC48: =IFERROR((AC47+(SUM(Update!$D$25:$F$25)*1000)/12)*Update!$G33,"") -> 0
A50: =IF(A52="","",Aurora_Descrp) -> BP18 Final Proposal | P50: =IF(P52="","",Aurora_Descrp) -> BP18 Final Proposal
G51: Directe Expense | H51: =Update!$D40 -> 13577.82213 | I51: Pices | J51: =Update!$E40 -> 15530.54657 | K51: Capital | L51: =Update!$F40 -> 12041.67202 | M51: =Update!$G40 -> 10220.38569 | N51: =IFERROR(((N55/1000)+SUM(H51,J51,L51))*M51,"") -> 420569287.3 | V51: Directe Expense | W51: =Update!$D181 -> 0 | X51: Pices | Y51: =Update!$E41 -> 15734.78374 | Z51: Capital | AA51: =Update!$F41 -> 12364.59886 | AB51: =Update!$G41 -> 10411.1236 | AC51: =IFERROR(((AC55/1000)+SUM(W51,Y51,AA51))*AB51,"") -> 292546145.1
A52: =IF(Purch_12="","",Purch_12) -> 2029 | B52: Oct | C52: Nov | D52: Dec | E52: Jan | F52: Feb | G52: Mar | H52: Apr | I52: May | J52: Jun | K52: Jul | L52: Aug | M52: Sep | N52: Total | P52: =IF(Purch_13="","",Purch_13) -> 2030 | Q52: Oct | R52: Nov | S52: Dec | T52: Jan | U52: Feb | V52: Mar | W52: Apr | X52: May | Y52: Jun | Z52: Jul | AA52: Aug | AB52: Sep | AC52: Total
A53: Purchase (aMW) | B53: =ReplacementPurches!EA111 -> 0 | C53: =ReplacementPurches!EB111 -> 0 | D53: =ReplacementPurches!EC111 -> 0 | E53: =ReplacementPurches!ED111 -> 0 | F53: =ReplacementPurches!EE111 -> 0 | G53: =ReplacementPurches!EF111 -> 0 | H53: =ReplacementPurches!EG111 -> 0 | I53: =ReplacementPurches!EH111 -> 0 | J53: =ReplacementPurches!EI111 -> 0 | K53: =ReplacementPurches!EJ111 -> 0 | L53: =ReplacementPurches!EK111 -> 0 | M53: =ReplacementPurches!EL111 -> 0 | N53: =ReplacementPurches!EM111 -> 0 | P53: Purchase (aMW) | Q53: =ReplacementPurches!EQ111 -> 0 | R53: =ReplacementPurches!ER111 -> 0 | S53: =ReplacementPurches!ES111 -> 0 | T53: =ReplacementPurches!ET111 -> 0 | U53: =ReplacementPurches!EU111 -> 0 | V53: =ReplacementPurches!EV111 -> 0 | W53: =ReplacementPurches!EW111 -> 0 | X53: =ReplacementPurches!EX111 -> 0 | Y53: =ReplacementPurches!EY111 -> 0 | Z53: =ReplacementPurches!EZ111 -> 0 | AA53: =ReplacementPurches!FA111 -> 0 | AB53: =ReplacementPurches!FB111 -> 0 | AC53: =ReplacementPurches!FC111 -> 0
A54: Price | B54: =IFERROR((B55*1000)/(B53*PricesByItr!EA$1),"") ->  | C54: =IFERROR((C55*1000)/(C53*PricesByItr!EB$1),"") ->  | D54: =IFERROR((D55*1000)/(D53*PricesByItr!EC$1),"") ->  | E54: =IFERROR((E55*1000)/(E53*PricesByItr!ED$1),"") ->  | F54: =IFERROR((F55*1000)/(F53*PricesByItr!EE$1),"") ->  | G54: =IFERROR((G55*1000)/(G53*PricesByItr!EF$1),"") ->  | H54: =IFERROR((H55*1000)/(H53*PricesByItr!EG$1),"") ->  | I54: =IFERROR((I55*1000)/(I53*PricesByItr!EH$1),"") ->  | J54: =IFERROR((J55*1000)/(J53*PricesByItr!EI$1),"") ->  | K54: =IFERROR((K55*1000)/(K53*PricesByItr!EJ$1),"") ->  | L54: =IFERROR((L55*1000)/(L53*PricesByItr!EK$1),"") ->  | M54: =IFERROR((M55*1000)/(M53*PricesByItr!EL$1),"") ->  | N54: =IFERROR((N55*1000)/(N53*PricesByItr!EM$1),"") ->  | P54: Price | Q54: =IFERROR((Q55*1000)/(Q53*PricesByItr!EQ$1),"") ->  | R54: =IFERROR((R55*1000)/(R53*PricesByItr!ER$1),"") ->  | S54: =IFERROR((S55*1000)/(S53*PricesByItr!ES$1),"") ->  | T54: =IFERROR((T55*1000)/(T53*PricesByItr!ET$1),"") ->  | U54: =IFERROR((U55*1000)/(U53*PricesByItr!EU$1),"") ->  | V54: =IFERROR((V55*1000)/(V53*PricesByItr!EV$1),"") ->  | W54: =IFERROR((W55*1000)/(W53*PricesByItr!EW$1),"") ->  | X54: =IFERROR((X55*1000)/(X53*PricesByItr!EX$1),"") ->  | Y54: =IFERROR((Y55*1000)/(Y53*PricesByItr!EY$1),"") ->  | Z54: =IFERROR((Z55*1000)/(Z53*PricesByItr!EZ$1),"") ->  | AA54: =IFERROR((AA55*1000)/(AA53*PricesByItr!FA$1),"") ->  | AB54: =IFERROR((AB55*1000)/(AB53*PricesByItr!FB$1),"") ->  | AC54: =IFERROR((AC55*1000)/(AC53*PricesByItr!FC$1),"") -> 
A55: Purchase Expense | B55: =ExpenseByItr!EA111 -> 0 | C55: =ExpenseByItr!EB111 -> 0 | D55: =ExpenseByItr!EC111 -> 0 | E55: =ExpenseByItr!ED111 -> 0 | F55: =ExpenseByItr!EE111 -> 0 | G55: =ExpenseByItr!EF111 -> 0 | H55: =ExpenseByItr!EG111 -> 0 | I55: =ExpenseByItr!EH111 -> 0 | J55: =ExpenseByItr!EI111 -> 0 | K55: =ExpenseByItr!EJ111 -> 0 | L55: =ExpenseByItr!EK111 -> 0 | M55: =ExpenseByItr!EL111 -> 0 | N55: =ExpenseByItr!EM111 -> 0 | P55: Purchase Expense | Q55: =ExpenseByItr!EQ111 -> 0 | R55: =ExpenseByItr!ER111 -> 0 | S55: =ExpenseByItr!ES111 -> 0 | T55: =ExpenseByItr!ET111 -> 0 | U55: =ExpenseByItr!EU111 -> 0 | V55: =ExpenseByItr!EV111 -> 0 | W55: =ExpenseByItr!EW111 -> 0 | X55: =ExpenseByItr!EX111 -> 0 | Y55: =ExpenseByItr!EY111 -> 0 | Z55: =ExpenseByItr!EZ111 -> 0 | AA55: =ExpenseByItr!FA111 -> 0 | AB55: =ExpenseByItr!FB111 -> 0 | AC55: =ExpenseByItr!FC111 -> 0
A56: Credit | B56: =IFERROR((B55+(SUM(Update!$D$24:$F$24)*1000)/12)*Update!$G40,"") -> 0 | C56: =IFERROR((C55+(SUM(Update!$D$24:$F$24)*1000)/12)*Update!$G40,"") -> 0 | D56: =IFERROR((D55+(SUM(Update!$D$24:$F$24)*1000)/12)*Update!$G40,"") -> 0 | E56: =IFERROR((E55+(SUM(Update!$D$24:$F$24)*1000)/12)*Update!$G40,"") -> 0 | F56: =IFERROR((F55+(SUM(Update!$D$24:$F$24)*1000)/12)*Update!$G40,"") -> 0 | G56: =IFERROR((G55+(SUM(Update!$D$24:$F$24)*1000)/12)*Update!$G40,"") -> 0 | H56: =IFERROR((H55+(SUM(Update!$D$24:$F$24)*1000)/12)*Update!$G40,"") -> 0 | I56: =IFERROR((I55+(SUM(Update!$D$24:$F$24)*1000)/12)*Update!$G40,"") -> 0 | J56: =IFERROR((J55+(SUM(Update!$D$24:$F$24)*1000)/12)*Update!$G40,"") -> 0 | K56: =IFERROR((K55+(SUM(Update!$D$24:$F$24)*1000)/12)*Update!$G40,"") -> 0 | L56: =IFERROR((L55+(SUM(Update!$D$24:$F$24)*1000)/12)*Update!$G40,"") -> 0 | M56: =IFERROR((M55+(SUM(Update!$D$24:$F$24)*1000)/12)*Update!$G40,"") -> 0 | N56: =IFERROR((N55+(SUM(Update!$D$24:$F$24)*1000)/12)*Update!$G40,"") -> 0 | P56: Credit | Q56: =IFERROR((Q55+(SUM(Update!$D$25:$F$25)*1000)/12)*Update!$G41,"") -> 0 | R56: =IFERROR((R55+(SUM(Update!$D$25:$F$25)*1000)/12)*Update!$G41,"") -> 0 | S56: =IFERROR((S55+(SUM(Update!$D$25:$F$25)*1000)/12)*Update!$G41,"") -> 0 | T56: =IFERROR((T55+(SUM(Update!$D$25:$F$25)*1000)/12)*Update!$G41,"") -> 0 | U56: =IFERROR((U55+(SUM(Update!$D$25:$F$25)*1000)/12)*Update!$G41,"") -> 0 | V56: =IFERROR((V55+(SUM(Update!$D$25:$F$25)*1000)/12)*Update!$G41,"") -> 0 | W56: =IFERROR((W55+(SUM(Update!$D$25:$F$25)*1000)/12)*Update!$G41,"") -> 0 | X56: =IFERROR((X55+(SUM(Update!$D$25:$F$25)*1000)/12)*Update!$G41,"") -> 0 | Y56: =IFERROR((Y55+(SUM(Update!$D$25:$F$25)*1000)/12)*Update!$G41,"") -> 0 | Z56: =IFERROR((Z55+(SUM(Update!$D$25:$F$25)*1000)/12)*Update!$G41,"") -> 0 | AA56: =IFERROR((AA55+(SUM(Update!$D$25:$F$25)*1000)/12)*Update!$G41,"") -> 0 | AB56: =IFERROR((AB55+(SUM(Update!$D$25:$F$25)*1000)/12)*Update!$G41,"") -> 0 | AC56: =IFERROR((AC55+(SUM(Update!$D$25:$F$25)*1000)/12)*Update!$G41,"") -> 0
A58: =IF(A60="","",Aurora_Descrp) -> BP18 Final Proposal | P58: =IF(P60="","",Aurora_Descrp) -> 
G59: Directe Expense | H59: =Update!$D48 -> 0 | I59: Pices | J59: =Update!$E48 -> 0 | K59: Capital | L59: =Update!$F48 -> 0 | M59: =Update!$G48 -> 0 | N59: =IFERROR(((N63/1000)+SUM(H59,J59,L59))*M59,"") -> 0 | V59: Directe Expense | W59: =Update!$D189 -> 0 | X59: Pices | Y59: =Update!$E49 -> Jan | Z59: Capital | AA59: =Update!$F49 -> Feb | AB59: =Update!$G49 -> Mar | AC59: =IFERROR(((AC63/1000)+SUM(W59,Y59,AA59))*AB59,"") -> 
A60: =IF(Purch_14="","",Purch_14) -> 2031 | B60: Oct | C60: Nov | D60: Dec | E60: Jan | F60: Feb | G60: Mar | H60: Apr | I60: May | J60: Jun | K60: Jul | L60: Aug | M60: Sep | N60: Total | P60: =IF(Purch_15="","",Purch_15) ->  | Q60: Oct | R60: Nov | S60: Dec | T60: Jan | U60: Feb | V60: Mar | W60: Apr | X60: May | Y60: Jun | Z60: Jul | AA60: Aug | AB60: Sep | AC60: Total
A61: Purchase (aMW) | B61: =ReplacementPurches!EA119 -> 0 | C61: =ReplacementPurches!EB119 -> 0 | D61: =ReplacementPurches!EC119 -> 0 | E61: =ReplacementPurches!ED119 -> 0 | F61: =ReplacementPurches!EE119 -> 0 | G61: =ReplacementPurches!EF119 -> 0 | H61: =ReplacementPurches!EG119 -> 0 | I61: =ReplacementPurches!EH119 -> 0 | J61: =ReplacementPurches!EI119 -> 0 | K61: =ReplacementPurches!EJ119 -> 0 | L61: =ReplacementPurches!EK119 -> 0 | M61: =ReplacementPurches!EL119 -> 0 | N61: =ReplacementPurches!EM119 -> 0 | P61: Purchase (aMW) | Q61: =ReplacementPurches!EQ119 -> 0 | R61: =ReplacementPurches!ER119 -> 0 | S61: =ReplacementPurches!ES119 -> 0 | T61: =ReplacementPurches!ET119 -> 0 | U61: =ReplacementPurches!EU119 -> 0 | V61: =ReplacementPurches!EV119 -> 0 | W61: =ReplacementPurches!EW119 -> 0 | X61: =ReplacementPurches!EX119 -> 0 | Y61: =ReplacementPurches!EY119 -> 0 | Z61: =ReplacementPurches!EZ119 -> 0 | AA61: =ReplacementPurches!FA119 -> 0 | AB61: =ReplacementPurches!FB119 -> 0 | AC61: =ReplacementPurches!FC119 -> 0
A62: Price | B62: =IFERROR((B63*1000)/(B61*PricesByItr!EA$1),"") ->  | C62: =IFERROR((C63*1000)/(C61*PricesByItr!EB$1),"") ->  | D62: =IFERROR((D63*1000)/(D61*PricesByItr!EC$1),"") ->  | E62: =IFERROR((E63*1000)/(E61*PricesByItr!ED$1),"") ->  | F62: =IFERROR((F63*1000)/(F61*PricesByItr!EE$1),"") ->  | G62: =IFERROR((G63*1000)/(G61*PricesByItr!EF$1),"") ->  | H62: =IFERROR((H63*1000)/(H61*PricesByItr!EG$1),"") ->  | I62: =IFERROR((I63*1000)/(I61*PricesByItr!EH$1),"") ->  | J62: =IFERROR((J63*1000)/(J61*PricesByItr!EI$1),"") ->  | K62: =IFERROR((K63*1000)/(K61*PricesByItr!EJ$1),"") ->  | L62: =IFERROR((L63*1000)/(L61*PricesByItr!EK$1),"") ->  | M62: =IFERROR((M63*1000)/(M61*PricesByItr!EL$1),"") ->  | N62: =IFERROR((N63*1000)/(N61*PricesByItr!EM$1),"") ->  | P62: Price | Q62: =IFERROR((Q63*1000)/(Q61*PricesByItr!EQ$1),"") ->  | R62: =IFERROR((R63*1000)/(R61*PricesByItr!ER$1),"") ->  | S62: =IFERROR((S63*1000)/(S61*PricesByItr!ES$1),"") ->  | T62: =IFERROR((T63*1000)/(T61*PricesByItr!ET$1),"") ->  | U62: =IFERROR((U63*1000)/(U61*PricesByItr!EU$1),"") ->  | V62: =IFERROR((V63*1000)/(V61*PricesByItr!EV$1),"") ->  | W62: =IFERROR((W63*1000)/(W61*PricesByItr!EW$1),"") ->  | X62: =IFERROR((X63*1000)/(X61*PricesByItr!EX$1),"") ->  | Y62: =IFERROR((Y63*1000)/(Y61*PricesByItr!EY$1),"") ->  | Z62: =IFERROR((Z63*1000)/(Z61*PricesByItr!EZ$1),"") ->  | AA62: =IFERROR((AA63*1000)/(AA61*PricesByItr!FA$1),"") ->  | AB62: =IFERROR((AB63*1000)/(AB61*PricesByItr!FB$1),"") ->  | AC62: =IFERROR((AC63*1000)/(AC61*PricesByItr!FC$1),"") -> 
A63: Purchase Expense | B63: =ExpenseByItr!EA119 -> 0 | C63: =ExpenseByItr!EB119 -> 0 | D63: =ExpenseByItr!EC119 -> 0 | E63: =ExpenseByItr!ED119 -> 0 | F63: =ExpenseByItr!EE119 -> 0 | G63: =ExpenseByItr!EF119 -> 0 | H63: =ExpenseByItr!EG119 -> 0 | I63: =ExpenseByItr!EH119 -> 0 | J63: =ExpenseByItr!EI119 -> 0 | K63: =ExpenseByItr!EJ119 -> 0 | L63: =ExpenseByItr!EK119 -> 0 | M63: =ExpenseByItr!EL119 -> 0 | N63: =ExpenseByItr!EM119 -> 0 | P63: Purchase Expense | Q63: =ExpenseByItr!EQ119 -> 0 | R63: =ExpenseByItr!ER119 -> 0 | S63: =ExpenseByItr!ES119 -> 0 | T63: =ExpenseByItr!ET119 -> 0 | U63: =ExpenseByItr!EU119 -> 0 | V63: =ExpenseByItr!EV119 -> 0 | W63: =ExpenseByItr!EW119 -> 0 | X63: =ExpenseByItr!EX119 -> 0 | Y63: =ExpenseByItr!EY119 -> 0 | Z63: =ExpenseByItr!EZ119 -> 0 | AA63: =ExpenseByItr!FA119 -> 0 | AB63: =ExpenseByItr!FB119 -> 0 | AC63: =ExpenseByItr!FC119 -> 0
A64: Credit | B64: =IFERROR((B63+(SUM(Update!$D$24:$F$24)*1000)/12)*Update!$G48,"") -> 0 | C64: =IFERROR((C63+(SUM(Update!$D$24:$F$24)*1000)/12)*Update!$G48,"") -> 0 | D64: =IFERROR((D63+(SUM(Update!$D$24:$F$24)*1000)/12)*Update!$G48,"") -> 0 | E64: =IFERROR((E63+(SUM(Update!$D$24:$F$24)*1000)/12)*Update!$G48,"") -> 0 | F64: =IFERROR((F63+(SUM(Update!$D$24:$F$24)*1000)/12)*Update!$G48,"") -> 0 | G64: =IFERROR((G63+(SUM(Update!$D$24:$F$24)*1000)/12)*Update!$G48,"") -> 0 | H64: =IFERROR((H63+(SUM(Update!$D$24:$F$24)*1000)/12)*Update!$G48,"") -> 0 | I64: =IFERROR((I63+(SUM(Update!$D$24:$F$24)*1000)/12)*Update!$G48,"") -> 0 | J64: =IFERROR((J63+(SUM(Update!$D$24:$F$24)*1000)/12)*Update!$G48,"") -> 0 | K64: =IFERROR((K63+(SUM(Update!$D$24:$F$24)*1000)/12)*Update!$G48,"") -> 0 | L64: =IFERROR((L63+(SUM(Update!$D$24:$F$24)*1000)/12)*Update!$G48,"") -> 0 | M64: =IFERROR((M63+(SUM(Update!$D$24:$F$24)*1000)/12)*Update!$G48,"") -> 0 | N64: =IFERROR((N63+(SUM(Update!$D$24:$F$24)*1000)/12)*Update!$G48,"") -> 0 | P64: Credit | Q64: =IFERROR((Q63+(SUM(Update!$D$25:$F$25)*1000)/12)*Update!$G49,"") ->  | R64: =IFERROR((R63+(SUM(Update!$D$25:$F$25)*1000)/12)*Update!$G49,"") ->  | S64: =IFERROR((S63+(SUM(Update!$D$25:$F$25)*1000)/12)*Update!$G49,"") ->  | T64: =IFERROR((T63+(SUM(Update!$D$25:$F$25)*1000)/12)*Update!$G49,"") ->  | U64: =IFERROR((U63+(SUM(Update!$D$25:$F$25)*1000)/12)*Update!$G49,"") ->  | V64: =IFERROR((V63+(SUM(Update!$D$25:$F$25)*1000)/12)*Update!$G49,"") ->  | W64: =IFERROR((W63+(SUM(Update!$D$25:$F$25)*1000)/12)*Update!$G49,"") ->  | X64: =IFERROR((X63+(SUM(Update!$D$25:$F$25)*1000)/12)*Update!$G49,"") ->  | Y64: =IFERROR((Y63+(SUM(Update!$D$25:$F$25)*1000)/12)*Update!$G49,"") ->  | Z64: =IFERROR((Z63+(SUM(Update!$D$25:$F$25)*1000)/12)*Update!$G49,"") ->  | AA64: =IFERROR((AA63+(SUM(Update!$D$25:$F$25)*1000)/12)*Update!$G49,"") ->  | AB64: =IFERROR((AB63+(SUM(Update!$D$25:$F$25)*1000)/12)*Update!$G49,"") ->  | AC64: =IFERROR((AC63+(SUM(Update!$D$25:$F$25)*1000)/12)*Update!$G49,"") -> 

Sheet ReplacementPurches
A1: Hours | C1: 744 | D1: 721 | E1: 744 | F1: 744 | G1: 672 | H1: 743 | I1: 720 | J1: 744 | K1: 720 | L1: 744 | M1: 744 | N1: 720 | O1: 8760 | Q1: Hours | S1: 744 | T1: 721 | U1: 744 | V1: 744 | W1: 672 | X1: 743 | Y1: 720 | Z1: 744 | AA1: 720 | AB1: 744 | AC1: 744 | AD1: 720 | AE1: 8760 | AG1: Hours | AI1: 744 | AJ1: 721 | AK1: 744 | AL1: 744 | AM1: 696 | AN1: 743 | AO1: 720 | AP1: 744 | AQ1: 720 | AR1: 744 | AS1: 744 | AT1: 720 | AU1: 8784 | AW1: Hours | AY1: 744 | AZ1: 721 | BA1: 744 | BB1: 744 | BC1: 672 | BD1: 743 | BE1: 720 | BF1: 744 | BG1: 720 | BH1: 744 | BI1: 744 | BJ1: 720 | BK1: 8760 | BM1: Hours | BO1: 744 | BP1: 721 | BQ1: 744 | BR1: 744 | BS1: 672 | BT1: 743 | BU1: 720 | BV1: 744 | BW1: 720 | BX1: 744 | BY1: 744 | BZ1: 720 | CA1: 8760 | CC1: Hours | CE1: 744 | CF1: 721 | CG1: 744 | CH1: 744 | CI1: 672 | CJ1: 743 | CK1: 720 | CL1: 744 | CM1: 720 | CN1: 744 | CO1: 744 | CP1: 720 | CQ1: 8760 | CS1: Hours | CU1: 744 | CV1: 721 | CW1: 744 | CX1: 744 | CY1: 696 | CZ1: 743 | DA1: 720 | DB1: 744 | DC1: 720 | DD1: 744 | DE1: 744 | DF1: 720 | DG1: 8784 | DI1: Hours | DK1: 744 | DL1: 721 | DM1: 744 | DN1: 744 | DO1: 672 | DP1: 743 | DQ1: 720 | DR1: 744 | DS1: 720 | DT1: 744 | DU1: 744 | DV1: 720 | DW1: 8760 | DY1: Hours | EA1: 744 | EB1: 721 | EC1: 744 | ED1: 744 | EE1: 672 | EF1: 743 | EG1: 720 | EH1: 744 | EI1: 720 | EJ1: 744 | EK1: 744 | EL1: 720 | EM1: 8760 | EO1: Hours | EQ1: 744 | ER1: 721 | ES1: 744 | ET1: 744 | EU1: 672 | EV1: 743 | EW1: 720 | EX1: 744 | EY1: 720 | EZ1: 744 | FA1: 744 | FB1: 720 | FC1: 8760 | FE1: Hours | FG1: 744 | FH1: 721 | FI1: 744 | FJ1: 744 | FK1: 696 | FL1: 743 | FM1: 720 | FN1: 744 | FO1: 720 | FP1: 744 | FQ1: 744 | FR1: 720 | FS1: 8784 | FU1: Hours | FW1: 744 | FX1: 721 | FY1: 744 | FZ1: 744 | GA1: 672 | GB1: 743 | GC1: 720 | GD1: 744 | GE1: 720 | GF1: 744 | GG1: 744 | GH1: 720 | GI1: 8760 | GK1: Hours | GM1: 744 | GN1: 721 | GO1: 744 | GP1: 744 | GQ1: 672 | GR1: 743 | GS1: 720 | GT1: 744 | GU1: 720 | GV1: 744 | GW1: 744 | GX1: 720 | GY1: 8760 | HA1: Hours | HC1: 744 | HD1: 721 | HE1: 744 | HF1: 744 | HG1: 672 | HH1: 743 | HI1: 720 | HJ1: 744 | HK1: 720 | HL1: 744 | HM1: 744 | HN1: 720 | HO1: 8760
A2: FY | B2: WY | C2: Oct | D2: Nov | E2: Dec | F2: Jan | G2: Feb | H2: Mar | I2: Apr | J2: May | K2: Jun | L2: Jul | M2: Aug | N2: Sep | O2: Wtd Avg | Q2: FY | R2: WY | S2: Oct | T2: Nov | U2: Dec | V2: Jan | W2: Feb | X2: Mar | Y2: Apr | Z2: May | AA2: Jun | AB2: Jul | AC2: Aug | AD2: Sep | AE2: Wtd Avg | AG2: FY | AH2: WY | AI2: Oct | AJ2: Nov | AK2: Dec | AL2: Jan | AM2: Feb | AN2: Mar | AO2: Apr | AP2: May | AQ2: Jun | AR2: Jul | AS2: Aug | AT2: Sep | AU2: Wtd Avg | AW2: FY | AX2: WY | AY2: Oct | AZ2: Nov | BA2: Dec | BB2: Jan | BC2: Feb | BD2: Mar | BE2: Apr | BF2: May | BG2: Jun | BH2: Jul | BI2: Aug | BJ2: Sep | BK2: Wtd Avg | BM2: FY | BN2: WY | BO2: Oct | BP2: Nov | BQ2: Dec | BR2: Jan | BS2: Feb | BT2: Mar | BU2: Apr | BV2: May | BW2: Jun | BX2: Jul | BY2: Aug | BZ2: Sep | CA2: Wtd Avg | CC2: FY | CD2: WY | CE2: Oct | CF2: Nov | CG2: Dec | CH2: Jan | CI2: Feb | CJ2: Mar | CK2: Apr | CL2: May | CM2: Jun | CN2: Jul | CO2: Aug | CP2: Sep | CQ2: Wtd Avg | CS2: FY | CT2: WY | CU2: Oct | CV2: Nov | CW2: Dec | CX2: Jan | CY2: Feb | CZ2: Mar | DA2: Apr | DB2: May | DC2: Jun | DD2: Jul | DE2: Aug | DF2: Sep | DG2: Wtd Avg | DI2: FY | DJ2: WY | DK2: Oct | DL2: Nov | DM2: Dec | DN2: Jan | DO2: Feb | DP2: Mar | DQ2: Apr | DR2: May | DS2: Jun | DT2: Jul | DU2: Aug | DV2: Sep | DW2: Wtd Avg | DY2: FY | DZ2: WY | EA2: Oct | EB2: Nov | EC2: Dec | ED2: Jan | EE2: Feb | EF2: Mar | EG2: Apr | EH2: May | EI2: Jun | EJ2: Jul | EK2: Aug | EL2: Sep | EM2: Wtd Avg | EO2: FY | EP2: WY | EQ2: Oct | ER2: Nov | ES2: Dec | ET2: Jan | EU2: Feb | EV2: Mar | EW2: Apr | EX2: May | EY2: Jun | EZ2: Jul | FA2: Aug | FB2: Sep | FC2: Wtd Avg | FE2: FY | FF2: WY | FG2: Oct | FH2: Nov | FI2: Dec | FJ2: Jan | FK2: Feb | FL2: Mar | FM2: Apr | FN2: May | FO2: Jun | FP2: Jul | FQ2: Aug | FR2: Sep | FS2: Wtd Avg | FU2: FY | FV2: WY | FW2: Oct | FX2: Nov | FY2: Dec | FZ2: Jan | GA2: Feb | GB2: Mar | GC2: Apr | GD2: May | GE2: Jun | GF2: Jul | GG2: Aug | GH2: Sep | GI2: Wtd Avg | GK2: FY | GL2: WY | GM2: Oct | GN2: Nov | GO2: Dec | GP2: Jan | GQ2: Feb | GR2: Mar | GS2: Apr | GT2: May | GU2: Jun | GV2: Jul | GW2: Aug | GX2: Sep | GY2: Wtd Avg | HA2: FY | HB2: WY | HC2: Oct | HD2: Nov | HE2: Dec | HF2: Jan | HG2: Feb | HH2: Mar | HI2: Apr | HJ2: May | HK2: Jun | HL2: Jul | HM2: Aug | HN2: Sep | HO2: Wtd Avg
A3: 2018 | B3: 1929 | C3: 1039 | D3: 431 | E3: 1432 | F3: 2067 | G3: 2077 | H3: 723 | I3: -976 | J3: 654 | K3: 168 | L3: 1200 | M3: 0 | N3: 218 | O3: =IFERROR((SUMPRODUCT(C3:N3,C$1:N$1)/O$1),"") -> 750.5173516 | Q3: 2019 | R3: 1929 | S3: 1039 | T3: 431 | U3: 1432 | V3: 2067 | W3: 2069 | X3: 699 | Y3: -976 | Z3: 650 | AA3: 252 | AB3: 1173 | AC3: -9.677419355 | AD3: 258 | AE3: =IFERROR((SUMPRODUCT(S3:AD3,S$1:AD$1)/AE$1),"") -> 754.6050228 | AG3: 2020 | AH3: 1929 | AI3: 927 | AJ3: 400 | AK3: 1387 | AL3: 1932 | AM3: 1628 | AN3: 1372 | AO3: 722 | AP3: 1321 | AQ3: 0 | AR3: 999 | AS3: -141.7096774 | AT3: 543 | AW3: 2021 | AX3: 1929 | AY3: 927 | AZ3: 400 | BA3: 1387 | BB3: 1932 | BC3: 1628 | BD3: 1372 | BE3: 722 | BF3: 1321 | BG3: 0 | BH3: 999 | BI3: -141.7096774 | BJ3: 543 | BM3: 2022 | BN3: 1929 | BO3: 927 | BP3: 400 | BQ3: 1387 | BR3: 1932 | BS3: 1628 | BT3: 1372 | BU3: 722 | BV3: 1321 | BW3: 0 | BX3: 999 | BY3: -141.7096774 | BZ3: 543 | CC3: 2023 | CD3: 1929 | CE3: 927 | CF3: 400 | CG3: 1387 | CH3: 1932 | CI3: 1628 | CJ3: 1372 | CK3: 722 | CL3: 1321 | CM3: 0 | CN3: 999 | CO3: -141.7096774 | CP3: 543 | CS3: 2024 | CT3: 1929 | CU3: 927 | CV3: 400 | CW3: 1387 | CX3: 1932 | CY3: 1628 | CZ3: 1372 | DA3: 61.5 | DB3: 1321 | DC3: 0 | DD3: 999 | DE3: -141.7096774 | DF3: 543 | DI3: 2025 | DJ3: 1929 | DK3: 927 | DL3: 400 | DM3: 1387 | DN3: 1932 | DO3: 1628 | DP3: 1372 | DQ3: 722 | DR3: 1321 | DS3: 0 | DT3: 999 | DU3: -141.7096774 | DV3: 543 | DY3: 2026 | DZ3: 1929 | EA3: 927 | EB3: 400 | EC3: 1387 | ED3: 1932 | EE3: 1628 | EF3: 1372 | EG3: 722 | EH3: 1321 | EI3: 0 | EJ3: 999 | EK3: -141.7096774 | EL3: 543 | EO3: 2027 | EP3: 1929 | EQ3: 927 | ER3: 400 | ES3: 1387 | ET3: 1932 | EU3: 1628 | EV3: 1372 | EW3: 722 | EX3: 1321 | EY3: 0 | EZ3: 999 | FA3: -141.7096774 | FB3: 543 | FE3: 2028 | FF3: 1929 | FG3: 927 | FH3: 400 | FI3: 1387 | FJ3: 1932 | FK3: 1628 | FL3: 1372 | FM3: 722 | FN3: 1321 | FO3: 0 | FP3: 999 | FQ3: -141.7096774 | FR3: 543 | FU3: 2029 | FV3: 1929 | FW3: 927 | FX3: 400 | FY3: 1387 | FZ3: 1932 | GA3: 1628 | GB3: 1372 | GC3: 722 | GD3: 1321 | GE3: 0 | GF3: 999 | GG3: -141.7096774 | GH3: 543 | GK3: 2030 | GL3: 1929 | GM3: 927 | GN3: 400 | GO3: 1387 | GP3: 1932 | GQ3: 1628 | GR3: 1372 | GS3: 722 | GT3: 1321 | GU3: 0 | GV3: 999 | GW3: -141.7096774 | GX3: 543 | HA3: 2031 | HB3: 1929 | HC3: 927 | HD3: 223 | HE3: 1398 | HF3: 1986 | HG3: 1517 | HH3: 1450 | HI3: 778 | HJ3: 1129 | HK3: 0 | HL3: 1000 | HM3: -155.3548387 | HN3: 712
A4: 2018 | B4: 1930 | C4: 290 | D4: 0 | E4: 1528 | F4: 3278 | G4: 2218 | H4: -1649 | I4: -66.5 | J4: 1174 | K4: 2911 | L4: 0 | M4: -735.3870968 | N4: -180 | O4: =IFERROR((SUMPRODUCT(C4:N4,C$1:N$1)/O$1),"") -> 719.3471461 | Q4: 2019 | R4: 1930 | S4: 254 | T4: 0 | U4: 1528 | V4: 3275 | W4: 2321 | X4: -1723 | Y4: -62.5 | Z4: 1174 | AA4: 2954 | AB4: 0 | AC4: 0 | AD4: 344 | AE4: =IFERROR((SUMPRODUCT(S4:AD4,S$1:AD$1)/AE$1),"") -> 827.0487443 | AG4: 2020 | AH4: 1930 | AI4: 767 | AJ4: 138 | AK4: 1460 | AL4: 3439 | AM4: 1357 | AN4: 1454 | AO4: -157.5 | AP4: 928 | AQ4: 2417 | AR4: 0 | AS4: 0 | AT4: 148 | AW4: 2021 | AX4: 1930 | AY4: 767 | AZ4: 138 | BA4: 1460 | BB4: 3439 | BC4: 1357 | BD4: 1454 | BE4: -157.5 | BF4: 928 | BG4: 2417 | BH4: 0 | BI4: 0 | BJ4: 148 | BM4: 2022 | BN4: 1930 | BO4: 767 | BP4: 138 | BQ4: 1460 | BR4: 3439 | BS4: 1357 | BT4: 1454 | BU4: -157.5 | BV4: 928 | BW4: 2417 | BX4: 0 | BY4: 0 | BZ4: 148 | CC4: 2023 | CD4: 1930 | CE4: 767 | CF4: 138 | CG4: 1460 | CH4: 3439 | CI4: 1357 | CJ4: 1454 | CK4: -157.5 | CL4: 928 | CM4: 2417 | CN4: 0 | CO4: 0 | CP4: 148 | CS4: 2024 | CT4: 1930 | CU4: 767 | CV4: 138 | CW4: 1460 | CX4: 3439 | CY4: 1357 | CZ4: 1454 | DA4: 0 | DB4: 928 | DC4: 2417 | DD4: 0 | DE4: 0 | DF4: 148 | DI4: 2025 | DJ4: 1930 | DK4: 767 | DL4: 138 | DM4: 1460 | DN4: 3439 | DO4: 1357 | DP4: 1454 | DQ4: -157.5 | DR4: 928 | DS4: 2417 | DT4: 0 | DU4: 0 | DV4: 148 | DY4: 2026 | DZ4: 1930 | EA4: 767 | EB4: 138 | EC4: 1460 | ED4: 3439 | EE4: 1357 | EF4: 1454 | EG4: -157.5 | EH4: 928 | EI4: 2417 | EJ4: 0 | EK4: 0 | EL4: 148 | EO4: 2027 | EP4: 1930 | EQ4: 767 | ER4: 138 | ES4: 1460 | ET4: 3439 | EU4: 1357 | EV4: 1454 | EW4: -157.5 | EX4: 928 | EY4: 2417 | EZ4: 0 | FA4: 0 | FB4: 148 | FE4: 2028 | FF4: 1930 | FG4: 767 | FH4: 138 | FI4: 1460 | FJ4: 3439 | FK4: 1357 | FL4: 1454 | FM4: -157.5 | FN4: 928 | FO4: 2417 | FP4: 0 | FQ4: 0 | FR4: 148 | FU4: 2029 | FV4: 1930 | FW4: 767 | FX4: 138 | FY4: 1460 | FZ4: 3439 | GA4: 1357 | GB4: 1454 | GC4: -157.5 | GD4: 928 | GE4: 2417 | GF4: 0 | GG4: 0 | GH4: 148 | GK4: 2030 | GL4: 1930 | GM4: 767 | GN4: 138 | GO4: 1460 | GP4: 3439 | GQ4: 1357 | GR4: 1454 | GS4: -157.5 | GT4: 928 | GU4: 2417 | GV4: 0 | GW4: 0 | GX4: 148 | HA4: 2031 | HB4: 1930 | HC4: 767 | HD4: 54 | HE4: 1478 | HF4: 3493 | HG4: 1266 | HH4: 1396 | HI4: -133.5 | HJ4: 992 | HK4: 2419 | HL4: 0 | HM4: -100.483871 | HN4: -24
A5: 2018 | B5: 1931 | C5: 575 | D5: 138 | E5: 1692 | F5: 2662 | G5: 2390 | H5: 1116 | I5: 1434.5 | J5: -96 | K5: 2014 | L5: -62 | M5: 0 | N5: 559 | O5: 1023.94863 | Q5: 2019 | R5: 1931 | S5: 314 | T5: 0 | U5: 1195 | V5: 2614 | W5: 3844 | X5: -315 | Y5: 1484.5 | Z5: -104 | AA5: 2469 | AB5: -182 | AC5: 0 | AD5: 567 | AE5: 965.594863 | AG5: 2020 | AH5: 1931 | AI5: 406 | AJ5: 402 | AK5: 1305 | AL5: 3977 | AM5: 2120 | AN5: 2171 | AO5: 2969 | AP5: -138 | AQ5: 2460 | AR5: -100 | AS5: 0 | AT5: 1029 | AW5: 2021 | AX5: 1931 | AY5: 406 | AZ5: 402 | BA5: 1305 | BB5: 3977 | BC5: 2120 | BD5: 2171 | BE5: 2969 | BF5: -138 | BG5: 2460 | BH5: -100 | BI5: 0 | BJ5: 1029 | BM5: 2022 | BN5: 1931 | BO5: 406 | BP5: 402 | BQ5: 1305 | BR5: 3977 | BS5: 2120 | BT5: 2171 | BU5: 2969 | BV5: -138 | BW5: 2460 | BX5: -100 | BY5: 0 | BZ5: 1029 | CC5: 2023 | CD5: 1931 | CE5: 406 | CF5: 402 | CG5: 1305 | CH5: 3977 | CI5: 2120 | CJ5: 2171 | CK5: 2969 | CL5: -138 | CM5: 2460 | CN5: -100 | CO5: 0 | CP5: 1029 | CS5: 2024 | CT5: 1931 | CU5: 406 | CV5: 402 | CW5: 1305 | CX5: 3977 | CY5: 2120 | CZ5: 2171 | DA5: 2481 | DB5: -138 | DC5: 2460 | DD5: -100 | DE5: 0 | DF5: 1029 | DI5: 2025 | DJ5: 1931 | DK5: 406 | DL5: 402 | DM5: 1305 | DN5: 3977 | DO5: 2120 | DP5: 2171 | DQ5: 2969 | DR5: -138 | DS5: 2460 | DT5: -100 | DU5: 0 | DV5: 1029 | DY5: 2026 | DZ5: 1931 | EA5: 406 | EB5: 402 | EC5: 1305 | ED5: 3977 | EE5: 2120 | EF5: 2171 | EG5: 2969 | EH5: -138 | EI5: 2460 | EJ5: -100 | EK5: 0 | EL5: 1029 | EO5: 2027 | EP5: 1931 | EQ5: 406 | ER5: 402 | ES5: 1305 | ET5: 3977 | EU5: 2120 | EV5: 2171 | EW5: 2969 | EX5: -138 | EY5: 2460 | EZ5: -100 | FA5: 0 | FB5: 1029 | FE5: 2028 | FF5: 1931 | FG5: 406 | FH5: 402 | FI5: 1305 | FJ5: 3977 | FK5: 2120 | FL5: 2171 | FM5: 2969 | FN5: -138 | FO5: 2460 | FP5: -100 | FQ5: 0 | FR5: 1029 | FU5: 2029 | FV5: 1931 | FW5: 406 | FX5: 402 | FY5: 1305 | FZ5: 3977 | GA5: 2120 | GB5: 2171 | GC5: 2969 | GD5: -138 | GE5: 2460 | GF5: -100 | GG5: 0 | GH5: 1029 | GK5: 2030 | GL5: 1931 | GM5: 406 | GN5: 402 | GO5: 1305 | GP5: 3977 | GQ5: 2120 | GR5: 2171 | GS5: 2969 | GT5: -138 | GU5: 2460 | GV5: -100 | GW5: 0 | GX5: 1029 | HA5: 2031 | HB5: 1931 | HC5: 307 | HD5: 0 | HE5: 1745 | HF5: 3696 | HG5: 2067 | HH5: 1505 | HI5: 2492 | HJ5: -119 | HK5: 1728 | HL5: 0 | HM5: 0 | HN5: 1054
A6: 2018 | B6: 1932 | C6: 462 | D6: 219 | E6: 1378 | F6: 3385 | G6: -1169 | H6: 672 | I6: 0 | J6: 0 | K6: 0 | L6: 0 | M6: -24.19354839 | N6: 61 | O6: 432.0715753 | Q6: 2019 | R6: 1932 | S6: 462 | T6: 238 | U6: 1378 | V6: 2365 | W6: -1300 | X6: 673 | Y6: 0 | Z6: 0 | AA6: 0 | AB6: 0 | AC6: -19.83870968 | AD6: 69 | AE6: 338.0681507 | AG6: 2020 | AH6: 1932 | AI6: 137 | AJ6: 275 | AK6: 1470 | AL6: 2880 | AM6: -371 | AN6: 450 | AO6: 0 | AP6: 0 | AQ6: 0 | AR6: 0 | AS6: 0 | AT6: 447 | AW6: 2021 | AX6: 1932 | AY6: 137 | AZ6: 275 | BA6: 1470 | BB6: 2880 | BC6: -371 | BD6: 450 | BE6: 0 | BF6: 0 | BG6: 0 | BH6: 0 | BI6: 0 | BJ6: 447 | BM6: 2022 | BN6: 1932 | BO6: 137 | BP6: 275 | BQ6: 1470 | BR6: 2880 | BS6: -371 | BT6: 450 | BU6: 0 | BV6: 0 | BW6: 0 | BX6: 0 | BY6: 0 | BZ6: 447 | CC6: 2023 | CD6: 1932 | CE6: 137 | CF6: 275 | CG6: 1470 | CH6: 2880 | CI6: -371 | CJ6: 450 | CK6: 0 | CL6: 0 | CM6: 0 | CN6: 0 | CO6: 0 | CP6: 447 | CS6: 2024 | CT6: 1932 | CU6: 137 | CV6: 275 | CW6: 1470 | CX6: 2880 | CY6: -371 | CZ6: 450 | DA6: 0 | DB6: 0 | DC6: 0 | DD6: 0 | DE6: 0 | DF6: 447 | DI6: 2025 | DJ6: 1932 | DK6: 137 | DL6: 275 | DM6: 1470 | DN6: 2880 | DO6: -371 | DP6: 450 | DQ6: 0 | DR6: 0 | DS6: 0 | DT6: 0 | DU6: 0 | DV6: 447 | DY6: 2026 | DZ6: 1932 | EA6: 137 | EB6: 275 | EC6: 1470 | ED6: 2880 | EE6: -371 | EF6: 450 | EG6: 0 | EH6: 0 | EI6: 0 | EJ6: 0 | EK6: 0 | EL6: 447 | EO6: 2027 | EP6: 1932 | EQ6: 137 | ER6: 275 | ES6: 1470 | ET6: 2880 | EU6: -371 | EV6: 450 | EW6: 0 | EX6: 0 | EY6: 0 | EZ6: 0 | FA6: 0 | FB6: 447 | FE6: 2028 | FF6: 1932 | FG6: 137 | FH6: 275 | FI6: 1470 | FJ6: 2880 | FK6: -371 | FL6: 450 | FM6: 0 | FN6: 0 | FO6: 0 | FP6: 0 | FQ6: 0 | FR6: 447 | FU6: 2029 | FV6: 1932 | FW6: 137 | FX6: 275 | FY6: 1470 | FZ6: 2880 | GA6: -371 | GB6: 450 | GC6: 0 | GD6: 0 | GE6: 0 | GF6: 0 | GG6: 0 | GH6: 447 | GK6: 2030 | GL6: 1932 | GM6: 137 | GN6: 275 | GO6: 1470 | GP6: 2880 | GQ6: -371 | GR6: 450 | GS6: 0 | GT6: 0 | GU6: 0 | GV6: 0 | GW6: 0 | GX6: 447 | HA6: 2031 | HB6: 1932 | HC6: 140 | HD6: 274 | HE6: 1470 | HF6: 3678 | HG6: 3236 | HH6: 626 | HI6: 0 | HJ6: 0 | HK6: 0 | HL6: 0 | HM6: 0 | HN6: 553
A7: 2018 | B7: 1933 | C7: 1186 | D7: 1085 | E7: 0 | F7: 0 | G7: 0 | H7: 0 | I7: 0 | J7: 0 | K7: 0 | L7: 0 | M7: 0 | N7: 395 | O7: 222.4964612 | Q7: 2019 | R7: 1933 | S7: 1186 | T7: 1086 | U7: 0 | V7: 0 | W7: 0 | X7: 0 | Y7: 0 | Z7: 0 | AA7: 0 | AB7: 0 | AC7: 0 | AD7: 409 | AE7: 223.7294521 | AG7: 2020 | AH7: 1933 | AI7: 630 | AJ7: 182 | AK7: 523 | AL7: 0 | AM7: 0 | AN7: 0 | AO7: 0 | AP7: 0 | AQ7: 0 | AR7: 0 | AS7: 0 | AT7: 652 | AW7: 2021 | AX7: 1933 | AY7: 630 | AZ7: 182 | BA7: 523 | BB7: 0 | BC7: 0 | BD7: 0 | BE7: 0 | BF7: 0 | BG7: 0 | BH7: 0 | BI7: 0 | BJ7: 652 | BM7: 2022 | BN7: 1933 | BO7: 630 | BP7: 182 | BQ7: 523 | BR7: 0 | BS7: 0 | BT7: 0 | BU7: 0 | BV7: 0 | BW7: 0 | BX7: 0 | BY7: 0 | BZ7: 652 | CC7: 2023 | CD7: 1933 | CE7: 630 | CF7: 182 | CG7: 523 | CH7: 0 | CI7: 0 | CJ7: 0 | CK7: 0 | CL7: 0 | CM7: 0 | CN7: 0 | CO7: 0 | CP7: 652 | CS7: 2024 | CT7: 1933 | CU7: 630 | CV7: 182 | CW7: 523 | CX7: 0 | CY7: 0 | CZ7: 0 | DA7: 0 | DB7: 0 | DC7: 0 | DD7: 0 | DE7: 0 | DF7: 652 | DI7: 2025 | DJ7: 1933 | DK7: 630 | DL7: 182 | DM7: 523 | DN7: 0 | DO7: 0 | DP7: 0 | DQ7: 0 | DR7: 0 | DS7: 0 | DT7: 0 | DU7: 0 | DV7: 652 | DY7: 2026 | DZ7: 1933 | EA7: 630 | EB7: 182 | EC7: 523 | ED7: 0 | EE7: 0 | EF7: 0 | EG7: 0 | EH7: 0 | EI7: 0 | EJ7: 0 | EK7: 0 | EL7: 652 | EO7: 2027 | EP7: 1933 | EQ7: 630 | ER7: 182 | ES7: 523 | ET7: 0 | EU7: 0 | EV7: 0 | EW7: 0 | EX7: 0 | EY7: 0 | EZ7: 0 | FA7: 0 | FB7: 652 | FE7: 2028 | FF7: 1933 | FG7: 630 | FH7: 182 | FI7: 523 | FJ7: 0 | FK7: 0 | FL7: 0 | FM7: 0 | FN7: 0 | FO7: 0 | FP7: 0 | FQ7: 0 | FR7: 652 | FU7: 2029 | FV7: 1933 | FW7: 630 | FX7: 182 | FY7: 523 | FZ7: 0 | GA7: 0 | GB7: 0 | GC7: 0 | GD7: 0 | GE7: 0 | GF7: 0 | GG7: 0 | GH7: 652 | GK7: 2030 | GL7: 1933 | GM7: 630 | GN7: 182 | GO7: 523 | GP7: 0 | GQ7: 0 | GR7: 0 | GS7: 0 | GT7: 0 | GU7: 0 | GV7: 0 | GW7: 0 | GX7: 652 | HA7: 2031 | HB7: 1933 | HC7: 630 | HD7: 95 | HE7: 523 | HF7: 0 | HG7: 0 | HH7: 0 | HI7: 0 | HJ7: 0 | HK7: 0 | HL7: 0 | HM7: 0 | HN7: 794
A8: 2018 | B8: 1934 | C8: 277 | D8: 0 | E8: 0 | F8: 0 | G8: 0 | H8: 0 | I8: 0 | J8: 0 | K8: -483 | L8: -167 | M8: 25.48387097 | N8: 74 | O8: -22.10958904 | Q8: 2019 | R8: 1934 | S8: 277 | T8: 0 | U8: 0 | V8: 0 | W8: 0 | X8: 0 | Y8: 0 | Z8: 0 | AA8: -486 | AB8: -167 | AC8: 23 | AD8: 79 | AE8: -22.15616438 | AG8: 2020 | AH8: 1934 | AI8: 116 | AJ8: 0 | AK8: 0 | AL8: 0 | AM8: 0 | AN8: 0 | AO8: 0 | AP8: 0 | AQ8: -475 | AR8: -122 | AS8: -58.4516129 | AT8: 439 | AW8: 2021 | AX8: 1934 | AY8: 116 | AZ8: 0 | BA8: 0 | BB8: 0 | BC8: 0 | BD8: 0 | BE8: 0 | BF8: 0 | BG8: -475 | BH8: -122 | BI8: -58.4516129 | BJ8: 439 | BM8: 2022 | BN8: 1934 | BO8: 116 | BP8: 0 | BQ8: 0 | BR8: 0 | BS8: 0 | BT8: 0 | BU8: 0 | BV8: 0 | BW8: -475 | BX8: -122 | BY8: -58.4516129 | BZ8: 439 | CC8: 2023 | CD8: 1934 | CE8: 116 | CF8: 0 | CG8: 0 | CH8: 0 | CI8: 0 | CJ8: 0 | CK8: 0 | CL8: 0 | CM8: -475 | CN8: -122 | CO8: -58.4516129 | CP8: 439 | CS8: 2024 | CT8: 1934 | CU8: 116 | CV8: 0 | CW8: 0 | CX8: 0 | CY8: 0 | CZ8: 0 | DA8: 0 | DB8: 0 | DC8: -475 | DD8: -122 | DE8: -58.4516129 | DF8: 439 | DI8: 2025 | DJ8: 1934 | DK8: 116 | DL8: 0 | DM8: 0 | DN8: 0 | DO8: 0 | DP8: 0 | DQ8: 0 | DR8: 0 | DS8: -475 | DT8: -122 | DU8: -58.4516129 | DV8: 439 | DY8: 2026 | DZ8: 1934 | EA8: 116 | EB8: 0 | EC8: 0 | ED8: 0 | EE8: 0 | EF8: 0 | EG8: 0 | EH8: 0 | EI8: -475 | EJ8: -122 | EK8: -58.4516129 | EL8: 439 | EO8: 2027 | EP8: 1934 | EQ8: 116 | ER8: 0 | ES8: 0 | ET8: 0 | EU8: 0 | EV8: 0 | EW8: 0 | EX8: 0 | EY8: -475 | EZ8: -122 | FA8: -58.4516129 | FB8: 439 | FE8: 2028 | FF8: 1934 | FG8: 116 | FH8: 0 | FI8: 0 | FJ8: 0 | FK8: 0 | FL8: 0 | FM8: 0 | FN8: 0 | FO8: -475 | FP8: -122 | FQ8: -58.4516129 | FR8: 439 | FU8: 2029 | FV8: 1934 | FW8: 116 | FX8: 0 | FY8: 0 | FZ8: 0 | GA8: 0 | GB8: 0 | GC8: 0 | GD8: 0 | GE8: -475 | GF8: -122 | GG8: -58.4516129 | GH8: 439 | GK8: 2030 | GL8: 1934 | GM8: 116 | GN8: 0 | GO8: 0 | GP8: 0 | GQ8: 0 | GR8: 0 | GS8: 0 | GT8: 0 | GU8: -475 | GV8: -122 | GW8: -58.4516129 | GX8: 439 | HA8: 2031 | HB8: 1934 | HC8: 116 | HD8: 0 | HE8: 0 | HF8: 0 | HG8: 0 | HH8: 0 | HI8: 0 | HJ8: 0 | HK8: -630 | HL8: -143 | HM8: -52.96774194 | HN8: 528
A9: 2018 | B9: 1935 | C9: 868 | D9: 1608 | E9: 1799 | F9: 0 | G9: 0 | H9: 0 | I9: 194.5 | J9: 0 | K9: 0 | L9: 0 | M9: 0 | N9: 1210 | O9: 474.2986301 | Q9: 2019 | R9: 1935 | S9: 868 | T9: 1610 | U9: 1799 | V9: 0 | W9: 0 | X9: 0 | Y9: 194.5 | Z9: 0 | AA9: -21 | AB9: -26 | AC9: 0 | AD9: 1217 | AE9: 471.1043379 | AG9: 2020 | AH9: 1935 | AI9: 279 | AJ9: 650 | AK9: 1804 | AL9: 0 | AM9: 0 | AN9: 0 | AO9: 215.5 | AP9: 0 | AQ9: -18 | AR9: 0 | AS9: 0 | AT9: 1166 | AW9: 2021 | AX9: 1935 | AY9: 279 | AZ9: 650 | BA9: 1804 | BB9: 0 | BC9: 0 | BD9: 0 | BE9: 215.5 | BF9: 0 | BG9: -18 | BH9: 0 | BI9: 0 | BJ9: 1166 | BM9: 2022 | BN9: 1935 | BO9: 279 | BP9: 650 | BQ9: 1804 | BR9: 0 | BS9: 0 | BT9: 0 | BU9: 215.5 | BV9: 0 | BW9: -18 | BX9: 0 | BY9: 0 | BZ9: 1166 | CC9: 2023 | CD9: 1935 | CE9: 279 | CF9: 650 | CG9: 1804 | CH9: 0 | CI9: 0 | CJ9: 0 | CK9: 215.5 | CL9: 0 | CM9: -18 | CN9: 0 | CO9: 0 | CP9: 1166 | CS9: 2024 | CT9: 1935 | CU9: 279 | CV9: 650 | CW9: 1804 | CX9: 0 | CY9: 0 | CZ9: 0 | DA9: 215.5 | DB9: 0 | DC9: -18 | DD9: 0 | DE9: 0 | DF9: 1166 | DI9: 2025 | DJ9: 1935 | DK9: 279 | DL9: 650 | DM9: 1804 | DN9: 0 | DO9: 0 | DP9: 0 | DQ9: 215.5 | DR9: 0 | DS9: -18 | DT9: 0 | DU9: 0 | DV9: 1166 | DY9: 2026 | DZ9: 1935 | EA9: 279 | EB9: 650 | EC9: 1804 | ED9: 0 | EE9: 0 | EF9: 0 | EG9: 215.5 | EH9: 0 | EI9: -18 | EJ9: 0 | EK9: 0 | EL9: 1166 | EO9: 2027 | EP9: 1935 | EQ9: 279 | ER9: 650 | ES9: 1804 | ET9: 0 | EU9: 0 | EV9: 0 | EW9: 215.5 | EX9: 0 | EY9: -18 | EZ9: 0 | FA9: 0 | FB9: 1166 | FE9: 2028 | FF9: 1935 | FG9: 279 | FH9: 650 | FI9: 1804 | FJ9: 0 | FK9: 0 | FL9: 0 | FM9: 215.5 | FN9: 0 | FO9: -18 | FP9: 0 | FQ9: 0 | FR9: 1166 | FU9: 2029 | FV9: 1935 | FW9: 279 | FX9: 650 | FY9: 1804 | FZ9: 0 | GA9: 0 | GB9: 0 | GC9: 215.5 | GD9: 0 | GE9: -18 | GF9: 0 | GG9: 0 | GH9: 1166 | GK9: 2030 | GL9: 1935 | GM9: 279 | GN9: 650 | GO9: 1804 | GP9: 0 | GQ9: 0 | GR9: 0 | GS9: 215.5 | GT9: 0 | GU9: -18 | GV9: 0 | GW9: 0 | GX9: 1166 | HA9: 2031 | HB9: 1935 | HC9: 231 | HD9: 593 | HE9: 1843 | HF9: 0 | HG9: 0 | HH9: 0 | HI9: 250.5 | HJ9: 0 | HK9: 0 | HL9: 0 | HM9: 0 | HN9: 1306
A10: 2018 | B10: 1936 | C10: 1095 | D10: 431 | E10: 1807 | F10: 3385 | G10: 2062 | H10: 1352 | I10: 0.5 | J10: 0 | K10: 0 | L10: 0 | M10: 0 | N10: 718 | O10: 901.3469178 | Q10: 2019 | R10: 1936 | S10: 1095 | T10: 431 | U10: 1807 | V10: 3318 | W10: 1973 | X10: 1353 | Y10: 1 | Z10: 0 | AA10: 0 | AB10: 0 | AC10: 0 | AD10: 710 | AE10: 888.2974886 | AG10: 2020 | AH10: 1936 | AI10: 928 | AJ10: 315 | AK10: 1374 | AL10: 3283 | AM10: 1663 | AN10: 1333 | AO10: 0 | AP10: 0 | AQ10: 0 | AR10: 0 | AS10: 0 | AT10: 961 | AW10: 2021 | AX10: 1936 | AY10: 928 | AZ10: 315 | BA10: 1374 | BB10: 3283 | BC10: 1663 | BD10: 1333 | BE10: 0 | BF10: 0 | BG10: 0 | BH10: 0 | BI10: 0 | BJ10: 961 | BM10: 2022 | BN10: 1936 | BO10: 928 | BP10: 315 | BQ10: 1374 | BR10: 3283 | BS10: 1663 | BT10: 1333 | BU10: 0 | BV10: 0 | BW10: 0 | BX10: 0 | BY10: 0 | BZ10: 961 | CC10: 2023 | CD10: 1936 | CE10: 928 | CF10: 315 | CG10: 1374 | CH10: 3283 | CI10: 1663 | CJ10: 1333 | CK10: 0 | CL10: 0 | CM10: 0 | CN10: 0 | CO10: 0 | CP10: 961 | CS10: 2024 | CT10: 1936 | CU10: 928 | CV10: 315 | CW10: 1374 | CX10: 3283 | CY10: 1663 | CZ10: 1333 | DA10: 0 | DB10: 0 | DC10: 0 | DD10: 0 | DE10: 0 | DF10: 961 | DI10: 2025 | DJ10: 1936 | DK10: 928 | DL10: 315 | DM10: 1374 | DN10: 3283 | DO10: 1663 | DP10: 1333 | DQ10: 0 | DR10: 0 | DS10: 0 | DT10: 0 | DU10: 0 | DV10: 961 | DY10: 2026 | DZ10: 1936 | EA10: 928 | EB10: 315 | EC10: 1374 | ED10: 3283 | EE10: 1663 | EF10: 1333 | EG10: 0 | EH10: 0 | EI10: 0 | EJ10: 0 | EK10: 0 | EL10: 961 | EO10: 2027 | EP10: 1936 | EQ10: 928 | ER10: 315 | ES10: 1374 | ET10: 3283 | EU10: 1663 | EV10: 1333 | EW10: 0 | EX10: 0 | EY10: 0 | EZ10: 0 | FA10: 0 | FB10: 961 | FE10: 2028 | FF10: 1936 | FG10: 928 | FH10: 315 | FI10: 1374 | FJ10: 3283 | FK10: 1663 | FL10: 1333 | FM10: 0 | FN10: 0 | FO10: 0 | FP10: 0 | FQ10: 0 | FR10: 961 | FU10: 2029 | FV10: 1936 | FW10: 928 | FX10: 315 | FY10: 1374 | FZ10: 3283 | GA10: 1663 | GB10: 1333 | GC10: 0 | GD10: 0 | GE10: 0 | GF10: 0 | GG10: 0 | GH10: 961 | GK10: 2030 | GL10: 1936 | GM10: 928 | GN10: 315 | GO10: 1374 | GP10: 3283 | GQ10: 1663 | GR10: 1333 | GS10: 0 | GT10: 0 | GU10: 0 | GV10: 0 | GW10: 0 | GX10: 961 | HA10: 2031 | HB10: 1936 | HC10: 928 | HD10: 231 | HE10: 1374 | HF10: 3157 | HG10: 1746 | HH10: 1327 | HI10: 0 | HJ10: 0 | HK10: 0 | HL10: 0 | HM10: 0 | HN10: 1084
A11: 2018 | B11: 1937 | C11: 1120 | D11: 14 | E11: 1416 | F11: 3465 | G11: 2504 | H11: 1628 | I11: 1005.5 | J11: 30 | K11: 523 | L11: 804 | M11: -380.2580645 | N11: -219 | O11: 987.1636986 | Q11: 2019 | R11: 1937 | S11: 1120 | T11: 14 | U11: 1438 | V11: 3462 | W11: 2508 | X11: 1553 | Y11: 978.5 | Z11: 38 | AA11: 534 | AB11: 804 | AC11: -282.5806452 | AD11: -256 | AE11: 987.3421233 | AG11: 2020 | AH11: 1937 | AI11: 1059 | AJ11: 0 | AK11: 1253 | AL11: 3088 | AM11: 2207 | AN11: 1587 | AO11: 1458 | AP11: 260 | AQ11: 305 | AR11: 345 | AS11: -225 | AT11: 277 | AW11: 2021 | AX11: 1937 | AY11: 1059 | AZ11: 0 | BA11: 1253 | BB11: 3088 | BC11: 2207 | BD11: 1587 | BE11: 1458 | BF11: 260 | BG11: 305 | BH11: 345 | BI11: -225 | BJ11: 277 | BM11: 2022 | BN11: 1937 | BO11: 1059 | BP11: 0 | BQ11: 1253 | BR11: 3088 | BS11: 2207 | BT11: 1587 | BU11: 1458 | BV11: 260 | BW11: 305 | BX11: 345 | BY11: -225 | BZ11: 277 | CC11: 2023 | CD11: 1937 | CE11: 1059 | CF11: 0 | CG11: 1253 | CH11: 3088 | CI11: 2207 | CJ11: 1587 | CK11: 1458 | CL11: 260 | CM11: 305 | CN11: 345 | CO11: -225 | CP11: 277 | CS11: 2024 | CT11: 1937 | CU11: 1059 | CV11: 0 | CW11: 1253 | CX11: 3088 | CY11: 2207 | CZ11: 1587 | DA11: 1065.5 | DB11: 260 | DC11: 305 | DD11: 345 | DE11: -225 | DF11: 277 | DI11: 2025 | DJ11: 1937 | DK11: 1059 | DL11: 0 | DM11: 1253 | DN11: 3088 | DO11: 2207 | DP11: 1587 | DQ11: 1458 | DR11: 260 | DS11: 305 | DT11: 345 | DU11: -225 | DV11: 277 | DY11: 2026 | DZ11: 1937 | EA11: 1059 | EB11: 0 | EC11: 1253 | ED11: 3088 | EE11: 2207 | EF11: 1587 | EG11: 1458 | EH11: 260 | EI11: 305 | EJ11: 345 | EK11: -225 | EL11: 277 | EO11: 2027 | EP11: 1937 | EQ11: 1059 | ER11: 0 | ES11: 1253 | ET11: 3088 | EU11: 2207 | EV11: 1587 | EW11: 1458 | EX11: 260 | EY11: 305 | EZ11: 345 | FA11: -225 | FB11: 277 | FE11: 2028 | FF11: 1937 | FG11: 1059 | FH11: 0 | FI11: 1253 | FJ11: 3088 | FK11: 2207 | FL11: 1587 | FM11: 1458 | FN11: 260 | FO11: 305 | FP11: 345 | FQ11: -225 | FR11: 277 | FU11: 2029 | FV11: 1937 | FW11: 1059 | FX11: 0 | FY11: 1253 | FZ11: 3088 | GA11: 2207 | GB11: 1587 | GC11: 1458 | GD11: 260 | GE11: 305 | GF11: 345 | GG11: -225 | GH11: 277 | GK11: 2030 | GL11: 1937 | GM11: 1059 | GN11: 0 | GO11: 1253 | GP11: 3088 | GQ11: 2207 | GR11: 1587 | GS11: 1458 | GT11: 260 | GU11: 305 | GV11: 345 | GW11: -225 | GX11: 277 | HA11: 2031 | HB11: 1937 | HC11: 1060 | HD11: 0 | HE11: 1253 | HF11: 2840 | HG11: 2524 | HH11: 1551 | HI11: 1458 | HJ11: 262 | HK11: 228 | HL11: 253 | HM11: -236.3548387 | HN11: 340
A12: 2018 | B12: 1938 | C12: 633 | D12: 259 | E12: 875 | F12: 8 | G12: 0 | H12: 0 | I12: 0 | J12: 0 | K12: 0 | L12: 0 | M12: -17.4516129 | N12: 80 | O12: 155.1665525 | Q12: 2019 | R12: 1938 | S12: 626 | T12: 357 | U12: 872 | V12: 17 | W12: 0 | X12: 0 | Y12: 0 | Z12: 0 | AA12: 0 | AB12: 0 | AC12: -30.03225806 | AD12: 393 | AE12: 187.805137 | AG12: 2020 | AH12: 1938 | AI12: 358 | AJ12: 697 | AK12: 807 | AL12: 335 | AM12: 0 | AN12: 0 | AO12: 0 | AP12: 0 | AQ12: 0 | AR12: -62 | AS12: -43.06451613 | AT12: 19 | AW12: 2021 | AX12: 1938 | AY12: 358 | AZ12: 697 | BA12: 807 | BB12: 335 | BC12: 0 | BD12: 0 | BE12: 0 | BF12: 0 | BG12: 0 | BH12: -62 | BI12: -43.06451613 | BJ12: 19 | BM12: 2022 | BN12: 1938 | BO12: 358 | BP12: 697 | BQ12: 807 | BR12: 335 | BS12: 0 | BT12: 0 | BU12: 0 | BV12: 0 | BW12: 0 | BX12: -62 | BY12: -43.06451613 | BZ12: 19 | CC12: 2023 | CD12: 1938 | CE12: 358 | CF12: 697 | CG12: 807 | CH12: 335 | CI12: 0 | CJ12: 0 | CK12: 0 | CL12: 0 | CM12: 0 | CN12: -62 | CO12: -43.06451613 | CP12: 19 | CS12: 2024 | CT12: 1938 | CU12: 358 | CV12: 697 | CW12: 807 | CX12: 335 | CY12: 0 | CZ12: 0 | DA12: 0 | DB12: 0 | DC12: 0 | DD12: -62 | DE12: -43.06451613 | DF12: 19 | DI12: 2025 | DJ12: 1938 | DK12: 358 | DL12: 697 | DM12: 807 | DN12: 335 | DO12: 0 | DP12: 0 | DQ12: 0 | DR12: 0 | DS12: 0 | DT12: -62 | DU12: -43.06451613 | DV12: 19 | DY12: 2026 | DZ12: 1938 | EA12: 358 | EB12: 697 | EC12: 807 | ED12: 335 | EE12: 0 | EF12: 0 | EG12: 0 | EH12: 0 | EI12: 0 | EJ12: -62 | EK12: -43.06451613 | EL12: 19 | EO12: 2027 | EP12: 1938 | EQ12: 358 | ER12: 697 | ES12: 807 | ET12: 335 | EU12: 0 | EV12: 0 | EW12: 0 | EX12: 0 | EY12: 0 | EZ12: -62 | FA12: -43.06451613 | FB12: 19 | FE12: 2028 | FF12: 1938 | FG12: 358 | FH12: 697 | FI12: 807 | FJ12: 335 | FK12: 0 | FL12: 0 | FM12: 0 | FN12: 0 | FO12: 0 | FP12: -62 | FQ12: -43.06451613 | FR12: 19 | FU12: 2029 | FV12: 1938 | FW12: 358 | FX12: 697 | FY12: 807 | FZ12: 335 | GA12: 0 | GB12: 0 | GC12: 0 | GD12: 0 | GE12: 0 | GF12: -62 | GG12: -43.06451613 | GH12: 19 | GK12: 2030 | GL12: 1938 | GM12: 358 | GN12: 697 | GO12: 807 | GP12: 335 | GQ12: 0 | GR12: 0 | GS12: 0 | GT12: 0 | GU12: 0 | GV12: -62 | GW12: -43.06451613 | GX12: 19 | HA12: 2031 | HB12: 1938 | HC12: 370 | HD12: 404 | HE12: 1204 | HF12: 0 | HG12: 0 | HH12: 0 | HI12: 0 | HJ12: 0 | HK12: 0 | HL12: -289 | HM12: -225.1290323 | HN12: 441
A13: 2018 | B13: 1939 | C13: 1158 | D13: 591 | E13: 1574 | F13: 896 | G13: 995 | H13: 830 | I13: 0 | J13: 0 | K13: 786 | L13: -10 | M13: 0 | N13: 0 | O13: 567.2549087 | Q13: 2019 | R13: 1939 | S13: 1195 | T13: 591 | U13: 1600 | V13: 896 | W13: 995 | X13: 830 | Y13: 0 | Z13: 0 | AA13: 861 | AB13: -24 | AC13: 0 | AD13: 0 | AE13: 577.5809361 | AG13: 2020 | AH13: 1939 | AI13: 358 | AJ13: 965 | AK13: 1739 | AL13: 1449 | AM13: 451 | AN13: 1174 | AO13: 0 | AP13: 0 | AQ13: 931 | AR13: -125 | AS13: 0 | AT13: 204 | AW13: 2021 | AX13: 1939 | AY13: 358 | AZ13: 965 | BA13: 1739 | BB13: 1449 | BC13: 451 | BD13: 1174 | BE13: 0 | BF13: 0 | BG13: 931 | BH13: -125 | BI13: 0 | BJ13: 204 | BM13: 2022 | BN13: 1939 | BO13: 358 | BP13: 965 | BQ13: 1739 | BR13: 1449 | BS13: 451 | BT13: 1174 | BU13: 0 | BV13: 0 | BW13: 931 | BX13: -125 | BY13: 0 | BZ13: 204 | CC13: 2023 | CD13: 1939 | CE13: 358 | CF13: 965 | CG13: 1739 | CH13: 1449 | CI13: 451 | CJ13: 1174 | CK13: 0 | CL13: 0 | CM13: 931 | CN13: -125 | CO13: 0 | CP13: 204 | CS13: 2024 | CT13: 1939 | CU13: 358 | CV13: 965 | CW13: 1739 | CX13: 1449 | CY13: 451 | CZ13: 1174 | DA13: 0 | DB13: 0 | DC13: 931 | DD13: -125 | DE13: 0 | DF13: 204 | DI13: 2025 | DJ13: 1939 | DK13: 358 | DL13: 965 | DM13: 1739 | DN13: 1449 | DO13: 451 | DP13: 1174 | DQ13: 0 | DR13: 0 | DS13: 931 | DT13: -125 | DU13: 0 | DV13: 204 | DY13: 2026 | DZ13: 1939 | EA13: 358 | EB13: 965 | EC13: 1739 | ED13: 1449 | EE13: 451 | EF13: 1174 | EG13: 0 | EH13: 0 | EI13: 931 | EJ13: -125 | EK13: 0 | EL13: 204 | EO13: 2027 | EP13: 1939 | EQ13: 358 | ER13: 965 | ES13: 1739 | ET13: 1449 | EU13: 451 | EV13: 1174 | EW13: 0 | EX13: 0 | EY13: 931 | EZ13: -125 | FA13: 0 | FB13: 204 | FE13: 2028 | FF13: 1939 | FG13: 358 | FH13: 965 | FI13: 1739 | FJ13: 1449 | FK13: 451 | FL13: 1174 | FM13: 0 | FN13: 0 | FO13: 931 | FP13: -125 | FQ13: 0 | FR13: 204 | FU13: 2029 | FV13: 1939 | FW13: 358 | FX13: 965 | FY13: 1739 | FZ13: 1449 | GA13: 451 | GB13: 1174 | GC13: 0 | GD13: 0 | GE13: 931 | GF13: -125 | GG13: 0 | GH13: 204 | GK13: 2030 | GL13: 1939 | GM13: 358 | GN13: 965 | GO13: 1739 | GP13: 1449 | GQ13: 451 | GR13: 1174 | GS13: 0 | GT13: 0 | GU13: 931 | GV13: -125 | GW13: 0 | GX13: 204 | HA13: 2031 | HB13: 1939 | HC13: 578 | HD13: 467 | HE13: 1653 | HF13: 1299 | HG13: 994 | HH13: 488 | HI13: 0 | HJ13: 0 | HK13: 424 | HL13: -74 | HM13: 0 | HN13: 841
A14: 2018 | B14: 1940 | C14: 821 | D14: 384 | E14: 1328 | F14: 1340 | G14: 568 | H14: 0 | I14: 3.5 | J14: 0 | K14: 1642 | L14: 0 | M14: 315.1290323 | N14: -163 | O14: 520.1178082 | Q14: 2019 | R14: 1940 | S14: 821 | T14: 489 | U14: 1322 | V14: 1337 | W14: 572 | X14: 0 | Y14: 3.5 | Z14: 0 | AA14: 1655 | AB14: 0 | AC14: 369.6451613 | AD14: -72 | AE14: 541.4804795 | AG14: 2020 | AH14: 1940 | AI14: 167 | AJ14: 0 | AK14: 986 | AL14: 1935 | AM14: 1038 | AN14: 0 | AO14: 0 | AP14: 0 | AQ14: 1225 | AR14: 268 | AS14: 322.2258065 | AT14: -93 | AW14: 2021 | AX14: 1940 | AY14: 167 | AZ14: 0 | BA14: 986 | BB14: 1935 | BC14: 1038 | BD14: 0 | BE14: 0 | BF14: 0 | BG14: 1225 | BH14: 268 | BI14: 322.2258065 | BJ14: -93 | BM14: 2022 | BN14: 1940 | BO14: 167 | BP14: 0 | BQ14: 986 | BR14: 1935 | BS14: 1038 | BT14: 0 | BU14: 0 | BV14: 0 | BW14: 1225 | BX14: 268 | BY14: 322.2258065 | BZ14: -93 | CC14: 2023 | CD14: 1940 | CE14: 167 | CF14: 0 | CG14: 986 | CH14: 1935 | CI14: 1038 | CJ14: 0 | CK14: 0 | CL14: 0 | CM14: 1225 | CN14: 268 | CO14: 322.2258065 | CP14: -93 | CS14: 2024 | CT14: 1940 | CU14: 167 | CV14: 0 | CW14: 986 | CX14: 1935 | CY14: 1038 | CZ14: 0 | DA14: 0 | DB14: 0 | DC14: 1225 | DD14: 268 | DE14: 322.2258065 | DF14: -93 | DI14: 2025 | DJ14: 1940 | DK14: 167 | DL14: 0 | DM14: 986 | DN14: 1935 | DO14: 1038 | DP14: 0 | DQ14: 0 | DR14: 0 | DS14: 1225 | DT14: 268 | DU14: 322.2258065 | DV14: -93 | DY14: 2026 | DZ14: 1940 | EA14: 167 | EB14: 0 | EC14: 986 | ED14: 1935 | EE14: 1038 | EF14: 0 | EG14: 0 | EH14: 0 | EI14: 1225 | EJ14: 268 | EK14: 322.2258065 | EL14: -93 | EO14: 2027 | EP14: 1940 | EQ14: 167 | ER14: 0 | ES14: 986 | ET14: 1935 | EU14: 1038 | EV14: 0 | EW14: 0 | EX14: 0 | EY14: 1225 | EZ14: 268 | FA14: 322.2258065 | FB14: -93 | FE14: 2028 | FF14: 1940 | FG14: 167 | FH14: 0 | FI14: 986 | FJ14: 1935 | FK14: 1038 | FL14: 0 | FM14: 0 | FN14: 0 | FO14: 1225 | FP14: 268 | FQ14: 322.2258065 | FR14: -93 | FU14: 2029 | FV14: 1940 | FW14: 167 | FX14: 0 | FY14: 986 | FZ14: 1935 | GA14: 1038 | GB14: 0 | GC14: 0 | GD14: 0 | GE14: 1225 | GF14: 268 | GG14: 322.2258065 | GH14: -93 | GK14: 2030 | GL14: 1940 | GM14: 167 | GN14: 0 | GO14: 986 | GP14: 1935 | GQ14: 1038 | GR14: 0 | GS14: 0 | GT14: 0 | GU14: 1225 | GV14: 268 | GW14: 322.2258065 | GX14: -93 | HA14: 2031 | HB14: 1940 | HC14: 400 | HD14: 0 | HE14: 890 | HF14: 1542 | HG14: 1639 | HH14: 0 | HI14: 0 | HJ14: 0 | HK14: 684 | HL14: 0 | HM14: 341.0967742 | HN14: -98
A15: 2018 | B15: 1941 | C15: 915 | D15: 355 | E15: 1287 | F15: 2785 | G15: 1131 | H15: 1028 | I15: 1012.5 | J15: 0 | K15: 926 | L15: 0 | M15: 0 | N15: 153 | O15: 798.6300228 | Q15: 2019 | R15: 1941 | S15: 810 | T15: 355 | U15: 1300 | V15: 2785 | W15: 1123 | X15: 903 | Y15: 1008 | Z15: 0 | AA15: 938 | AB15: 0 | AC15: 0 | AD15: 161 | AE15: 780.8744292 | AG15: 2020 | AH15: 1941 | AI15: 353 | AJ15: 223 | AK15: 1682 | AL15: 2532 | AM15: 1014 | AN15: 294 | AO15: 1116 | AP15: 0 | AQ15: 580 | AR15: 0 | AS15: -399.4516129 | AT15: -37 | AW15: 2021 | AX15: 1941 | AY15: 353 | AZ15: 223 | BA15: 1682 | BB15: 2532 | BC15: 1014 | BD15: 294 | BE15: 1116 | BF15: 0 | BG15: 580 | BH15: 0 | BI15: -399.4516129 | BJ15: -37 | BM15: 2022 | BN15: 1941 | BO15: 353 | BP15: 223 | BQ15: 1682 | BR15: 2532 | BS15: 1014 | BT15: 294 | BU15: 1116 | BV15: 0 | BW15: 580 | BX15: 0 | BY15: -399.4516129 | BZ15: -37 | CC15: 2023 | CD15: 1941 | CE15: 353 | CF15: 223 | CG15: 1682 | CH15: 2532 | CI15: 1014 | CJ15: 294 | CK15: 1116 | CL15: 0 | CM15: 580 | CN15: 0 | CO15: -399.4516129 | CP15: -37 | CS15: 2024 | CT15: 1941 | CU15: 353 | CV15: 223 | CW15: 1682 | CX15: 2532 | CY15: 1014 | CZ15: 294 | DA15: 190.5 | DB15: 0 | DC15: 580 | DD15: 0 | DE15: -399.4516129 | DF15: -37 | DI15: 2025 | DJ15: 1941 | DK15: 353 | DL15: 223 | DM15: 1682 | DN15: 2532 | DO15: 1014 | DP15: 294 | DQ15: 1116 | DR15: 0 | DS15: 580 | DT15: 0 | DU15: -399.4516129 | DV15: -37 | DY15: 2026 | DZ15: 1941 | EA15: 353 | EB15: 223 | EC15: 1682 | ED15: 2532 | EE15: 1014 | EF15: 294 | EG15: 1116 | EH15: 0 | EI15: 580 | EJ15: 0 | EK15: -399.4516129 | EL15: -37 | EO15: 2027 | EP15: 1941 | EQ15: 353 | ER15: 223 | ES15: 1682 | ET15: 2532 | EU15: 1014 | EV15: 294 | EW15: 1116 | EX15: 0 | EY15: 580 | EZ15: 0 | FA15: -399.4516129 | FB15: -37 | FE15: 2028 | FF15: 1941 | FG15: 353 | FH15: 223 | FI15: 1682 | FJ15: 2532 | FK15: 1014 | FL15: 294 | FM15: 1116 | FN15: 0 | FO15: 580 | FP15: 0 | FQ15: -399.4516129 | FR15: -37 | FU15: 2029 | FV15: 1941 | FW15: 353 | FX15: 223 | FY15: 1682 | FZ15: 2532 | GA15: 1014 | GB15: 294 | GC15: 1116 | GD15: 0 | GE15: 580 | GF15: 0 | GG15: -399.4516129 | GH15: -37 | GK15: 2030 | GL15: 1941 | GM15: 353 | GN15: 223 | GO15: 1682 | GP15: 2532 | GQ15: 1014 | GR15: 294 | GS15: 1116 | GT15: 0 | GU15: 580 | GV15: 0 | GW15: -399.4516129 | GX15: -37 | HA15: 2031 | HB15: 1941 | HC15: 357 | HD15: 223 | HE15: 1682 | HF15: 2755 | HG15: 1046 | HH15: 381 | HI15: 1146 | HJ15: 0 | HK15: 580 | HL15: 0 | HM15: 0 | HN15: 303
A16: 2018 | B16: 1942 | C16: 560 | D16: 0 | E16: 0 | F16: 0 | G16: 391 | H16: 881 | I16: 50 | J16: 0 | K16: 0 | L16: 0 | M16: 0 | N16: -626 | O16: 104.9377854 | Q16: 2019 | R16: 1942 | S16: 546 | T16: 0 | U16: 0 | V16: 0 | W16: 391 | X16: 881 | Y16: 50 | Z16: 0 | AA16: 0 | AB16: 0 | AC16: 0 | AD16: -651 | AE16: 101.6939498 | AG16: 2020 | AH16: 1942 | AI16: 266 | AJ16: 0 | AK16: 229 | AL16: 371 | AM16: 582 | AN16: 370 | AO16: 293 | AP16: 0 | AQ16: 0 | AR16: 0 | AS16: 0 | AT16: 0 | AW16: 2021 | AX16: 1942 | AY16: 266 | AZ16: 0 | BA16: 229 | BB16: 371 | BC16: 582 | BD16: 370 | BE16: 293 | BF16: 0 | BG16: 0 | BH16: 0 | BI16: 0 | BJ16: 0 | BM16: 2022 | BN16: 1942 | BO16: 266 | BP16: 0 | BQ16: 229 | BR16: 371 | BS16: 582 | BT16: 370 | BU16: 293 | BV16: 0 | BW16: 0 | BX16: 0 | BY16: 0 | BZ16: 0 | CC16: 2023 | CD16: 1942 | CE16: 266 | CF16: 0 | CG16: 229 | CH16: 371 | CI16: 582 | CJ16: 370 | CK16: 293 | CL16: 0 | CM16: 0 | CN16: 0 | CO16: 0 | CP16: 0 | CS16: 2024 | CT16: 1942 | CU16: 266 | CV16: 0 | CW16: 229 | CX16: 371 | CY16: 582 | CZ16: 370 | DA16: 0 | DB16: 0 | DC16: 0 | DD16: 0 | DE16: 0 | DF16: 0 | DI16: 2025 | DJ16: 1942 | DK16: 266 | DL16: 0 | DM16: 229 | DN16: 371 | DO16: 582 | DP16: 370 | DQ16: 293 | DR16: 0 | DS16: 0 | DT16: 0 | DU16: 0 | DV16: 0 | DY16: 2026 | DZ16: 1942 | EA16: 266 | EB16: 0 | EC16: 229 | ED16: 371 | EE16: 582 | EF16: 370 | EG16: 293 | EH16: 0 | EI16: 0 | EJ16: 0 | EK16: 0 | EL16: 0 | EO16: 2027 | EP16: 1942 | EQ16: 266 | ER16: 0 | ES16: 229 | ET16: 371 | EU16: 582 | EV16: 370 | EW16: 293 | EX16: 0 | EY16: 0 | EZ16: 0 | FA16: 0 | FB16: 0 | FE16: 2028 | FF16: 1942 | FG16: 266 | FH16: 0 | FI16: 229 | FJ16: 371 | FK16: 582 | FL16: 370 | FM16: 293 | FN16: 0 | FO16: 0 | FP16: 0 | FQ16: 0 | FR16: 0 | FU16: 2029 | FV16: 1942 | FW16: 266 | FX16: 0 | FY16: 229 | FZ16: 371 | GA16: 582 | GB16: 370 | GC16: 293 | GD16: 0 | GE16: 0 | GF16: 0 | GG16: 0 | GH16: 0 | GK16: 2030 | GL16: 1942 | GM16: 266 | GN16: 0 | GO16: 229 | GP16: 371 | GQ16: 582 | GR16: 370 | GS16: 293 | GT16: 0 | GU16: 0 | GV16: 0 | GW16: 0 | GX16: 0 | HA16: 2031 | HB16: 1942 | HC16: 1 | HD16: 0 | HE16: 0 | HF16: 0 | HG16: 1578 | HH16: 654 | HI16: 55 | HJ16: 0 | HK16: 0 | HL16: 0 | HM16: 0 | HN16: -554
A17: 2018 | B17: 1943 | C17: 976 | D17: 1281 | E17: 1127 | F17: 0 | G17: 0 | H17: 0 | I17: 0 | J17: 0 | K17: 0 | L17: 0 | M17: 0 | N17: 982 | O17: 364.7571918 | Q17: 2019 | R17: 1943 | S17: 971 | T17: 1281 | U17: 1105 | V17: 0 | W17: 0 | X17: 0 | Y17: 0 | Z17: 0 | AA17: 0 | AB17: 0 | AC17: 0 | AD17: 992 | AE17: 363.2859589 | AG17: 2020 | AH17: 1943 | AI17: 682 | AJ17: 1524 | AK17: 1037 | AL17: 0 | AM17: 0 | AN17: 0 | AO17: 0 | AP17: 0 | AQ17: 0 | AR17: 0 | AS17: 0 | AT17: 997 | AW17: 2021 | AX17: 1943 | AY17: 682 | AZ17: 1524 | BA17: 1037 | BB17: 0 | BC17: 0 | BD17: 0 | BE17: 0 | BF17: 0 | BG17: 0 | BH17: 0 | BI17: 0 | BJ17: 997 | BM17: 2022 | BN17: 1943 | BO17: 682 | BP17: 1524 | BQ17: 1037 | BR17: 0 | BS17: 0 | BT17: 0 | BU17: 0 | BV17: 0 | BW17: 0 | BX17: 0 | BY17: 0 | BZ17: 997 | CC17: 2023 | CD17: 1943 | CE17: 682 | CF17: 1524 | CG17: 1037 | CH17: 0 | CI17: 0 | CJ17: 0 | CK17: 0 | CL17: 0 | CM17: 0 | CN17: 0 | CO17: 0 | CP17: 997 | CS17: 2024 | CT17: 1943 | CU17: 682 | CV17: 1524 | CW17: 1037 | CX17: 0 | CY17: 0 | CZ17: 0 | DA17: 0 | DB17: 0 | DC17: 0 | DD17: 0 | DE17: 0 | DF17: 997 | DI17: 2025 | DJ17: 1943 | DK17: 682 | DL17: 1524 | DM17: 1037 | DN17: 0 | DO17: 0 | DP17: 0 | DQ17: 0 | DR17: 0 | DS17: 0 | DT17: 0 | DU17: 0 | DV17: 997 | DY17: 2026 | DZ17: 1943 | EA17: 682 | EB17: 1524 | EC17: 1037 | ED17: 0 | EE17: 0 | EF17: 0 | EG17: 0 | EH17: 0 | EI17: 0 | EJ17: 0 | EK17: 0 | EL17: 997 | EO17: 2027 | EP17: 1943 | EQ17: 682 | ER17: 1524 | ES17: 1037 | ET17: 0 | EU17: 0 | EV17: 0 | EW17: 0 | EX17: 0 | EY17: 0 | EZ17: 0 | FA17: 0 | FB17: 997 | FE17: 2028 | FF17: 1943 | FG17: 682 | FH17: 1524 | FI17: 1037 | FJ17: 0 | FK17: 0 | FL17: 0 | FM17: 0 | FN17: 0 | FO17: 0 | FP17: 0 | FQ17: 0 | FR17: 997 | FU17: 2029 | FV17: 1943 | FW17: 682 | FX17: 1524 | FY17: 1037 | FZ17: 0 | GA17: 0 | GB17: 0 | GC17: 0 | GD17: 0 | GE17: 0 | GF17: 0 | GG17: 0 | GH17: 997 | GK17: 2030 | GL17: 1943 | GM17: 682 | GN17: 1524 | GO17: 1037 | GP17: 0 | GQ17: 0 | GR17: 0 | GS17: 0 | GT17: 0 | GU17: 0 | GV17: 0 | GW17: 0 | GX17: 997 | HA17: 2031 | HB17: 1943 | HC17: 609 | HD17: 1167 | HE17: 951 | HF17: 0 | HG17: 0 | HH17: 0 | HI17: 0 | HJ17: 0 | HK17: 0 | HL17: 0 | HM17: 0 | HN17: 1130
A18: 2018 | B18: 1944 | C18: 1355 | D18: 397 | E18: 1481 | F18: 1932 | G18: 1604 | H18: 1721 | I18: 778.5 | J18: 1711 | K18: 2938 | L18: 568 | M18: -53.22580645 | N18: 580 | O18: 1248.821461 | Q18: 2019 | R18: 1944 | S18: 1355 | T18: 397 | U18: 1516 | V18: 1912 | W18: 1596 | X18: 1726 | Y18: 781.5 | Z18: 1711 | AA18: 2953 | AB18: 584 | AC18: -55.64516129 | AD18: 584 | AE18: 1252.867466 | AG18: 2020 | AH18: 1944 | AI18: 976 | AJ18: 202 | AK18: 1513 | AL18: 1829 | AM18: 1511 | AN18: 1713 | AO18: 719 | AP18: 1750 | AQ18: 2957 | AR18: 145 | AS18: -64.83870968 | AT18: 861 | AW18: 2021 | AX18: 1944 | AY18: 976 | AZ18: 202 | BA18: 1513 | BB18: 1829 | BC18: 1511 | BD18: 1713 | BE18: 719 | BF18: 1750 | BG18: 2957 | BH18: 145 | BI18: -64.83870968 | BJ18: 861 | BM18: 2022 | BN18: 1944 | BO18: 976 | BP18: 202 | BQ18: 1513 | BR18: 1829 | BS18: 1511 | BT18: 1713 | BU18: 719 | BV18: 1750 | BW18: 2957 | BX18: 145 | BY18: -64.83870968 | BZ18: 861 | CC18: 2023 | CD18: 1944 | CE18: 976 | CF18: 202 | CG18: 1513 | CH18: 1829 | CI18: 1511 | CJ18: 1713 | CK18: 719 | CL18: 1750 | CM18: 2957 | CN18: 145 | CO18: -64.83870968 | CP18: 861 | CS18: 2024 | CT18: 1944 | CU18: 976 | CV18: 202 | CW18: 1513 | CX18: 1829 | CY18: 1511 | CZ18: 1713 | DA18: 193 | DB18: 1750 | DC18: 2957 | DD18: 145 | DE18: -64.83870968 | DF18: 861 | DI18: 2025 | DJ18: 1944 | DK18: 976 | DL18: 202 | DM18: 1513 | DN18: 1829 | DO18: 1511 | DP18: 1713 | DQ18: 719 | DR18: 1750 | DS18: 2957 | DT18: 145 | DU18: -64.83870968 | DV18: 861 | DY18: 2026 | DZ18: 1944 | EA18: 976 | EB18: 202 | EC18: 1513 | ED18: 1829 | EE18: 1511 | EF18: 1713 | EG18: 719 | EH18: 1750 | EI18: 2957 | EJ18: 145 | EK18: -64.83870968 | EL18: 861 | EO18: 2027 | EP18: 1944 | EQ18: 976 | ER18: 202 | ES18: 1513 | ET18: 1829 | EU18: 1511 | EV18: 1713 | EW18: 719 | EX18: 1750 | EY18: 2957 | EZ18: 145 | FA18: -64.83870968 | FB18: 861 | FE18: 2028 | FF18: 1944 | FG18: 976 | FH18: 202 | FI18: 1513 | FJ18: 1829 | FK18: 1511 | FL18: 1713 | FM18: 719 | FN18: 1750 | FO18: 2957 | FP18: 145 | FQ18: -64.83870968 | FR18: 861 | FU18: 2029 | FV18: 1944 | FW18: 976 | FX18: 202 | FY18: 1513 | FZ18: 1829 | GA18: 1511 | GB18: 1713 | GC18: 719 | GD18: 1750 | GE18: 2957 | GF18: 145 | GG18: -64.83870968 | GH18: 861 | GK18: 2030 | GL18: 1944 | GM18: 976 | GN18: 202 | GO18: 1513 | GP18: 1829 | GQ18: 1511 | GR18: 1713 | GS18: 719 | GT18: 1750 | GU18: 2957 | GV18: 145 | GW18: -64.83870968 | GX18: 861 | HA18: 2031 | HB18: 1944 | HC18: 977 | HD18: 118 | HE18: 1513 | HF18: 1860 | HG18: 1467 | HH18: 1844 | HI18: 642 | HJ18: 1747 | HK18: 3001 | HL18: 146 | HM18: -70.64516129 | HN18: 882
A19: 2018 | B19: 1945 | C19: 523 | D19: 4 | E19: 1242 | F19: 2991 | G19: 3123 | H19: 2063 | I19: 1249 | J19: 0 | K19: 0 | L19: 426 | M19: -227.4193548 | N19: -350 | O19: 909.5704338 | Q19: 2019 | R19: 1945 | S19: 478 | T19: -68 | U19: 1242 | V19: 2981 | W19: 3115 | X19: 1978 | Y19: 1251.5 | Z19: 0 | AA19: 0 | AB19: 443 | AC19: -118.9354839 | AD19: -287 | AE19: 907.1910959 | AG19: 2020 | AH19: 1945 | AI19: 0 | AJ19: 17 | AK19: 1354 | AL19: 3233 | AM19: 2815 | AN19: 2450 | AO19: 1304 | AP19: 0 | AQ19: 0 | AR19: 421 | AS19: -402.1290323 | AT19: 352 | AW19: 2021 | AX19: 1945 | AY19: 0 | AZ19: 17 | BA19: 1354 | BB19: 3233 | BC19: 2815 | BD19: 2450 | BE19: 1304 | BF19: 0 | BG19: 0 | BH19: 421 | BI19: -402.1290323 | BJ19: 352 | BM19: 2022 | BN19: 1945 | BO19: 0 | BP19: 17 | BQ19: 1354 | BR19: 3233 | BS19: 2815 | BT19: 2450 | BU19: 1304 | BV19: 0 | BW19: 0 | BX19: 421 | BY19: -402.1290323 | BZ19: 352 | CC19: 2023 | CD19: 1945 | CE19: 0 | CF19: 17 | CG19: 1354 | CH19: 3233 | CI19: 2815 | CJ19: 2450 | CK19: 1304 | CL19: 0 | CM19: 0 | CN19: 421 | CO19: -402.1290323 | CP19: 352 | CS19: 2024 | CT19: 1945 | CU19: 0 | CV19: 17 | CW19: 1354 | CX19: 3233 | CY19: 2815 | CZ19: 2450 | DA19: 1256.5 | DB19: 0 | DC19: 0 | DD19: 421 | DE19: -402.1290323 | DF19: 352 | DI19: 2025 | DJ19: 1945 | DK19: 0 | DL19: 17 | DM19: 1354 | DN19: 3233 | DO19: 2815 | DP19: 2450 | DQ19: 1304 | DR19: 0 | DS19: 0 | DT19: 421 | DU19: -402.1290323 | DV19: 352 | DY19: 2026 | DZ19: 1945 | EA19: 0 | EB19: 17 | EC19: 1354 | ED19: 3233 | EE19: 2815 | EF19: 2450 | EG19: 1304 | EH19: 0 | EI19: 0 | EJ19: 421 | EK19: -402.1290323 | EL19: 352 | EO19: 2027 | EP19: 1945 | EQ19: 0 | ER19: 17 | ES19: 1354 | ET19: 3233 | EU19: 2815 | EV19: 2450 | EW19: 1304 | EX19: 0 | EY19: 0 | EZ19: 421 | FA19: -402.1290323 | FB19: 352 | FE19: 2028 | FF19: 1945 | FG19: 0 | FH19: 17 | FI19: 1354 | FJ19: 3233 | FK19: 2815 | FL19: 2450 | FM19: 1304 | FN19: 0 | FO19: 0 | FP19: 421 | FQ19: -402.1290323 | FR19: 352 | FU19: 2029 | FV19: 1945 | FW19: 0 | FX19: 17 | FY19: 1354 | FZ19: 3233 | GA19: 2815 | GB19: 2450 | GC19: 1304 | GD19: 0 | GE19: 0 | GF19: 421 | GG19: -402.1290323 | GH19: 352 | GK19: 2030 | GL19: 1945 | GM19: 0 | GN19: 17 | GO19: 1354 | GP19: 3233 | GQ19: 2815 | GR19: 2450 | GS19: 1304 | GT19: 0 | GU19: 0 | GV19: 421 | GW19: -402.1290323 | GX19: 352 | HA19: 2031 | HB19: 1945 | HC19: 0 | HD19: 16 | HE19: 1354 | HF19: 3255 | HG19: 2837 | HH19: 1751 | HI19: 1347 | HJ19: 0 | HK19: 0 | HL19: 217 | HM19: -548.8064516 | HN19: 317
A20: 2018 | B20: 1946 | C20: 725 | D20: 190 | E20: 990 | F20: 365 | G20: 0 | H20: 0 | I20: 0 | J20: 0 | K20: 0 | L20: 0 | M20: 0 | N20: 279 | O20: 215.2271689 | Q20: 2019 | R20: 1946 | S20: 719 | T20: 291 | U20: 1024 | V20: 365 | W20: 0 | X20: 0 | Y20: 0 | Z20: 0 | AA20: 0 | AB20: 0 | AC20: 0 | AD20: 292 | AE20: 226.9866438 | AG20: 2020 | AH20: 1946 | AI20: 319 | AJ20: 6 | AK20: 1066 | AL20: 469 | AM20: 0 | AN20: 0 | AO20: 0 | AP20: 0 | AQ20: 0 | AR20: 0 | AS20: 0 | AT20: 521 | AW20: 2021 | AX20: 1946 | AY20: 319 | AZ20: 6 | BA20: 1066 | BB20: 469 | BC20: 0 | BD20: 0 | BE20: 0 | BF20: 0 | BG20: 0 | BH20: 0 | BI20: 0 | BJ20: 521 | BM20: 2022 | BN20: 1946 | BO20: 319 | BP20: 6 | BQ20: 1066 | BR20: 469 | BS20: 0 | BT20: 0 | BU20: 0 | BV20: 0 | BW20: 0 | BX20: 0 | BY20: 0 | BZ20: 521 | CC20: 2023 | CD20: 1946 | CE20: 319 | CF20: 6 | CG20: 1066 | CH20: 469 | CI20: 0 | CJ20: 0 | CK20: 0 | CL20: 0 | CM20: 0 | CN20: 0 | CO20: 0 | CP20: 521 | CS20: 2024 | CT20: 1946 | CU20: 319 | CV20: 6 | CW20: 1066 | CX20: 469 | CY20: 0 | CZ20: 0 | DA20: 0 | DB20: 0 | DC20: 0 | DD20: 0 | DE20: 0 | DF20: 521 | DI20: 2025 | DJ20: 1946 | DK20: 319 | DL20: 6 | DM20: 1066 | DN20: 469 | DO20: 0 | DP20: 0 | DQ20: 0 | DR20: 0 | DS20: 0 | DT20: 0 | DU20: 0 | DV20: 521 | DY20: 2026 | DZ20: 1946 | EA20: 319 | EB20: 6 | EC20: 1066 | ED20: 469 | EE20: 0 | EF20: 0 | EG20: 0 | EH20: 0 | EI20: 0 | EJ20: 0 | EK20: 0 | EL20: 521 | EO20: 2027 | EP20: 1946 | EQ20: 319 | ER20: 6 | ES20: 1066 | ET20: 469 | EU20: 0 | EV20: 0 | EW20: 0 | EX20: 0 | EY20: 0 | EZ20: 0 | FA20: 0 | FB20: 521 | FE20: 2028 | FF20: 1946 | FG20: 319 | FH20: 6 | FI20: 1066 | FJ20: 469 | FK20: 0 | FL20: 0 | FM20: 0 | FN20: 0 | FO20: 0 | FP20: 0 | FQ20: 0 | FR20: 521 | FU20: 2029 | FV20: 1946 | FW20: 319 | FX20: 6 | FY20: 1066 | FZ20: 469 | GA20: 0 | GB20: 0 | GC20: 0 | GD20: 0 | GE20: 0 | GF20: 0 | GG20: 0 | GH20: 521 | GK20: 2030 | GL20: 1946 | GM20: 319 | GN20: 6 | GO20: 1066 | GP20: 469 | GQ20: 0 | GR20: 0 | GS20: 0 | GT20: 0 | GU20: 0 | GV20: 0 | GW20: 0 | GX20: 521 | HA20: 2031 | HB20: 1946 | HC20: 346 | HD20: -154 | HE20: 1018 | HF20: 568 | HG20: 0 | HH20: 0 | HI20: 0 | HJ20: 0 | HK20: 0 | HL20: 0 | HM20: 0 | HN20: 662
A21: 2018 | B21: 1947 | C21: 1344 | D21: 311 | E21: 0 | F21: 0 | G21: 0 | H21: 0 | I21: 0 | J21: 0 | K21: 0 | L21: 0 | M21: 0 | N21: 553 | O21: 185.1971461 | Q21: 2019 | R21: 1947 | S21: 1344 | T21: 311 | U21: 0 | V21: 0 | W21: 0 | X21: 0 | Y21: 0 | Z21: 0 | AA21: 0 | AB21: 0 | AC21: 0 | AD21: 567 | AE21: 186.3478311 | AG21: 2020 | AH21: 1947 | AI21: 1035 | AJ21: 0 | AK21: 0 | AL21: 0 | AM21: 0 | AN21: 0 | AO21: 0 | AP21: 0 | AQ21: 0 | AR21: 0 | AS21: 0 | AT21: 740 | AW21: 2021 | AX21: 1947 | AY21: 1035 | AZ21: 0 | BA21: 0 | BB21: 0 | BC21: 0 | BD21: 0 | BE21: 0 | BF21: 0 | BG21: 0 | BH21: 0 | BI21: 0 | BJ21: 740 | BM21: 2022 | BN21: 1947 | BO21: 1035 | BP21: 0 | BQ21: 0 | BR21: 0 | BS21: 0 | BT21: 0 | BU21: 0 | BV21: 0 | BW21: 0 | BX21: 0 | BY21: 0 | BZ21: 740 | CC21: 2023 | CD21: 1947 | CE21: 1035 | CF21: 0 | CG21: 0 | CH21: 0 | CI21: 0 | CJ21: 0 | CK21: 0 | CL21: 0 | CM21: 0 | CN21: 0 | CO21: 0 | CP21: 740 | CS21: 2024 | CT21: 1947 | CU21: 1035 | CV21: 0 | CW21: 0 | CX21: 0 | CY21: 0 | CZ21: 0 | DA21: 0 | DB21: 0 | DC21: 0 | DD21: 0 | DE21: 0 | DF21: 740 | DI21: 2025 | DJ21: 1947 | DK21: 1035 | DL21: 0 | DM21: 0 | DN21: 0 | DO21: 0 | DP21: 0 | DQ21: 0 | DR21: 0 | DS21: 0 | DT21: 0 | DU21: 0 | DV21: 740 | DY21: 2026 | DZ21: 1947 | EA21: 1035 | EB21: 0 | EC21: 0 | ED21: 0 | EE21: 0 | EF21: 0 | EG21: 0 | EH21: 0 | EI21: 0 | EJ21: 0 | EK21: 0 | EL21: 740 | EO21: 2027 | EP21: 1947 | EQ21: 1035 | ER21: 0 | ES21: 0 | ET21: 0 | EU21: 0 | EV21: 0 | EW21: 0 | EX21: 0 | EY21: 0 | EZ21: 0 | FA21: 0 | FB21: 740 | FE21: 2028 | FF21: 1947 | FG21: 1035 | FH21: 0 | FI21: 0 | FJ21: 0 | FK21: 0 | FL21: 0 | FM21: 0 | FN21: 0 | FO21: 0 | FP21: 0 | FQ21: 0 | FR21: 740 | FU21: 2029 | FV21: 1947 | FW21: 1035 | FX21: 0 | FY21: 0 | FZ21: 0 | GA21: 0 | GB21: 0 | GC21: 0 | GD21: 0 | GE21: 0 | GF21: 0 | GG21: 0 | GH21: 740 | GK21: 2030 | GL21: 1947 | GM21: 1035 | GN21: 0 | GO21: 0 | GP21: 0 | GQ21: 0 | GR21: 0 | GS21: 0 | GT21: 0 | GU21: 0 | GV21: 0 | GW21: 0 | GX21: 740 | HA21: 2031 | HB21: 1947 | HC21: 1035 | HD21: 0 | HE21: 0 | HF21: 0 | HG21: 0 | HH21: 0 | HI21: 0 | HJ21: 0 | HK21: 0 | HL21: 0 | HM21: 0 | HN21: 847
A22: 2018 | B22: 1948 | C22: 0 | D22: 0 | E22: 0 | F22: 0 | G22: 0 | H22: 0 | I22: 0 | J22: 0 | K22: 0 | L22: 0 | M22: 0 | N22: 0 | O22: 0 | Q22: 2019 | R22: 1948 | S22: 0 | T22: 0 | U22: 0 | V22: 0 | W22: 0 | X22: 0 | Y22: 0 | Z22: 0 | AA22: 0 | AB22: 0 | AC22: 0 | AD22: 0 | AE22: 0 | AG22: 2020 | AH22: 1948 | AI22: 0 | AJ22: 0 | AK22: 0 | AL22: 0 | AM22: 0 | AN22: 0 | AO22: 0 | AP22: 0 | AQ22: 0 | AR22: 0 | AS22: 0 | AT22: 181 | AW22: 2021 | AX22: 1948 | AY22: 0 | AZ22: 0 | BA22: 0 | BB22: 0 | BC22: 0 | BD22: 0 | BE22: 0 | BF22: 0 | BG22: 0 | BH22: 0 | BI22: 0 | BJ22: 181 | BM22: 2022 | BN22: 1948 | BO22: 0 | BP22: 0 | BQ22: 0 | BR22: 0 | BS22: 0 | BT22: 0 | BU22: 0 | BV22: 0 | BW22: 0 | BX22: 0 | BY22: 0 | BZ22: 181 | CC22: 2023 | CD22: 1948 | CE22: 0 | CF22: 0 | CG22: 0 | CH22: 0 | CI22: 0 | CJ22: 0 | CK22: 0 | CL22: 0 | CM22: 0 | CN22: 0 | CO22: 0 | CP22: 181 | CS22: 2024 | CT22: 1948 | CU22: 0 | CV22: 0 | CW22: 0 | CX22: 0 | CY22: 0 | CZ22: 0 | DA22: 0 | DB22: 0 | DC22: 0 | DD22: 0 | DE22: 0 | DF22: 181 | DI22: 2025 | DJ22: 1948 | DK22: 0 | DL22: 0 | DM22: 0 | DN22: 0 | DO22: 0 | DP22: 0 | DQ22: 0 | DR22: 0 | DS22: 0 | DT22: 0 | DU22: 0 | DV22: 181 | DY22: 2026 | DZ22: 1948 | EA22: 0 | EB22: 0 | EC22: 0 | ED22: 0 | EE22: 0 | EF22: 0 | EG22: 0 | EH22: 0 | EI22: 0 | EJ22: 0 | EK22: 0 | EL22: 181 | EO22: 2027 | EP22: 1948 | EQ22: 0 | ER22: 0 | ES22: 0 | ET22: 0 | EU22: 0 | EV22: 0 | EW22: 0 | EX22: 0 | EY22: 0 | EZ22: 0 | FA22: 0 | FB22: 181 | FE22: 2028 | FF22: 1948 | FG22: 0 | FH22: 0 | FI22: 0 | FJ22: 0 | FK22: 0 | FL22: 0 | FM22: 0 | FN22: 0 | FO22: 0 | FP22: 0 | FQ22: 0 | FR22: 181 | FU22: 2029 | FV22: 1948 | FW22: 0 | FX22: 0 | FY22: 0 | FZ22: 0 | GA22: 0 | GB22: 0 | GC22: 0 | GD22: 0 | GE22: 0 | GF22: 0 | GG22: 0 | GH22: 181 | GK22: 2030 | GL22: 1948 | GM22: 0 | GN22: 0 | GO22: 0 | GP22: 0 | GQ22: 0 | GR22: 0 | GS22: 0 | GT22: 0 | GU22: 0 | GV22: 0 | GW22: 0 | GX22: 181 | HA22: 2031 | HB22: 1948 | HC22: 0 | HD22: 0 | HE22: 0 | HF22: 0 | HG22: 0 | HH22: 0 | HI22: 0 | HJ22: 0 | HK22: 0 | HL22: 0 | HM22: 0 | HN22: 340
A23: 2018 | B23: 1949 | C23: 775 | D23: 611 | E23: 403 | F23: 0 | G23: 143 | H23: 0 | I23: 0 | J23: 0 | K23: 0 | L23: -80 | M23: -180.8709677 | N23: -80 | O23: 132.5765982 | Q23: 2019 | R23: 1949 | S23: 775 | T23: 611 | U23: 403 | V23: 0 | W23: 134 | X23: 0 | Y23: 0 | Z23: 0 | AA23: 0 | AB23: -56 | AC23: -130.1290323 | AD23: -5 | AE23: 144.398516 | AG23: 2020 | AH23: 1949 | AI23: 642 | AJ23: 0 | AK23: 920 | AL23: 0 | AM23: 1164 | AN23: 0 | AO23: 0 | AP23: 0 | AQ23: 0 | AR23: 304 | AS23: 16.03225806 | AT23: 532 | AW23: 2021 | AX23: 1949 | AY23: 642 | AZ23: 0 | BA23: 920 | BB23: 0 | BC23: 1164 | BD23: 0 | BE23: 0 | BF23: 0 | BG23: 0 | BH23: 304 | BI23: 16.03225806 | BJ23: 532 | BM23: 2022 | BN23: 1949 | BO23: 642 | BP23: 0 | BQ23: 920 | BR23: 0 | BS23: 1164 | BT23: 0 | BU23: 0 | BV23: 0 | BW23: 0 | BX23: 304 | BY23: 16.03225806 | BZ23: 532 | CC23: 2023 | CD23: 1949 | CE23: 642 | CF23: 0 | CG23: 920 | CH23: 0 | CI23: 1164 | CJ23: 0 | CK23: 0 | CL23: 0 | CM23: 0 | CN23: 304 | CO23: 16.03225806 | CP23: 532 | CS23: 2024 | CT23: 1949 | CU23: 642 | CV23: 0 | CW23: 920 | CX23: 0 | CY23: 1164 | CZ23: 0 | DA23: 0 | DB23: 0 | DC23: 0 | DD23: 304 | DE23: 16.03225806 | DF23: 532 | DI23: 2025 | DJ23: 1949 | DK23: 642 | DL23: 0 | DM23: 920 | DN23: 0 | DO23: 1164 | DP23: 0 | DQ23: 0 | DR23: 0 | DS23: 0 | DT23: 304 | DU23: 16.03225806 | DV23: 532 | DY23: 2026 | DZ23: 1949 | EA23: 642 | EB23: 0 | EC23: 920 | ED23: 0 | EE23: 1164 | EF23: 0 | EG23: 0 | EH23: 0 | EI23: 0 | EJ23: 304 | EK23: 16.03225806 | EL23: 532 | EO23: 2027 | EP23: 1949 | EQ23: 642 | ER23: 0 | ES23: 920 | ET23: 0 | EU23: 1164 | EV23: 0 | EW23: 0 | EX23: 0 | EY23: 0 | EZ23: 304 | FA23: 16.03225806 | FB23: 532 | FE23: 2028 | FF23: 1949 | FG23: 642 | FH23: 0 | FI23: 920 | FJ23: 0 | FK23: 1164 | FL23: 0 | FM23: 0 | FN23: 0 | FO23: 0 | FP23: 304 | FQ23: 16.03225806 | FR23: 532 | FU23: 2029 | FV23: 1949 | FW23: 642 | FX23: 0 | FY23: 920 | FZ23: 0 | GA23: 1164 | GB23: 0 | GC23: 0 | GD23: 0 | GE23: 0 | GF23: 304 | GG23: 16.03225806 | GH23: 532 | GK23: 2030 | GL23: 1949 | GM23: 642 | GN23: 0 | GO23: 920 | GP23: 0 | GQ23: 1164 | GR23: 0 | GS23: 0 | GT23: 0 | GU23: 0 | GV23: 304 | GW23: 16.03225806 | GX23: 532 | HA23: 2031 | HB23: 1949 | HC23: 642 | HD23: 0 | HE23: 920 | HF23: 0 | HG23: 1023 | HH23: 0 | HI23: 0 | HJ23: 0 | HK23: 0 | HL23: 91 | HM23: -138.1290323 | HN23: 579
A24: 2018 | B24: 1950 | C24: 1129 | D24: 818 | E24: 1071 | F24: 0 | G24: 0 | H24: 0 | I24: 0 | J24: 0 | K24: 0 | L24: 0 | M24: 0 | N24: 138 | O24: 265.5180365 | Q24: 2019 | R24: 1950 | S24: 1046 | T24: 852 | U24: 1127 | V24: 0 | W24: 0 | X24: 0 | Y24: 0 | Z24: 0 | AA24: 0 | AB24: 0 | AC24: 0 | AD24: 153 | AE24: 267.2561644 | AG24: 2020 | AH24: 1950 | AI24: 535 | AJ24: 754 | AK24: 772 | AL24: 0 | AM24: 0 | AN24: 0 | AO24: 0 | AP24: 0 | AQ24: 0 | AR24: 0 | AS24: 0 | AT24: 551 | AW24: 2021 | AX24: 1950 | AY24: 535 | AZ24: 754 | BA24: 772 | BB24: 0 | BC24: 0 | BD24: 0 | BE24: 0 | BF24: 0 | BG24: 0 | BH24: 0 | BI24: 0 | BJ24: 551 | BM24: 2022 | BN24: 1950 | BO24: 535 | BP24: 754 | BQ24: 772 | BR24: 0 | BS24: 0 | BT24: 0 | BU24: 0 | BV24: 0 | BW24: 0 | BX24: 0 | BY24: 0 | BZ24: 551 | CC24: 2023 | CD24: 1950 | CE24: 535 | CF24: 754 | CG24: 772 | CH24: 0 | CI24: 0 | CJ24: 0 | CK24: 0 | CL24: 0 | CM24: 0 | CN24: 0 | CO24: 0 | CP24: 551 | CS24: 2024 | CT24: 1950 | CU24: 535 | CV24: 754 | CW24: 772 | CX24: 0 | CY24: 0 | CZ24: 0 | DA24: 0 | DB24: 0 | DC24: 0 | DD24: 0 | DE24: 0 | DF24: 551 | DI24: 2025 | DJ24: 1950 | DK24: 535 | DL24: 754 | DM24: 772 | DN24: 0 | DO24: 0 | DP24: 0 | DQ24: 0 | DR24: 0 | DS24: 0 | DT24: 0 | DU24: 0 | DV24: 551 | DY24: 2026 | DZ24: 1950 | EA24: 535 | EB24: 754 | EC24: 772 | ED24: 0 | EE24: 0 | EF24: 0 | EG24: 0 | EH24: 0 | EI24: 0 | EJ24: 0 | EK24: 0 | EL24: 551 | EO24: 2027 | EP24: 1950 | EQ24: 535 | ER24: 754 | ES24: 772 | ET24: 0 | EU24: 0 | EV24: 0 | EW24: 0 | EX24: 0 | EY24: 0 | EZ24: 0 | FA24: 0 | FB24: 551 | FE24: 2028 | FF24: 1950 | FG24: 535 | FH24: 754 | FI24: 772 | FJ24: 0 | FK24: 0 | FL24: 0 | FM24: 0 | FN24: 0 | FO24: 0 | FP24: 0 | FQ24: 0 | FR24: 551 | FU24: 2029 | FV24: 1950 | FW24: 535 | FX24: 754 | FY24: 772 | FZ24: 0 | GA24: 0 | GB24: 0 | GC24: 0 | GD24: 0 | GE24: 0 | GF24: 0 | GG24: 0 | GH24: 551 | GK24: 2030 | GL24: 1950 | GM24: 535 | GN24: 754 | GO24: 772 | GP24: 0 | GQ24: 0 | GR24: 0 | GS24: 0 | GT24: 0 | GU24: 0 | GV24: 0 | GW24: 0 | GX24: 551 | HA24: 2031 | HB24: 1950 | HC24: 558 | HD24: 578 | HE24: 902 | HF24: 0 | HG24: 0 | HH24: 0 | HI24: 0 | HJ24: 0 | HK24: 0 | HL24: 0 | HM24: 0 | HN24: 689
A25: 2018 | B25: 1951 | C25: 88 | D25: 0 | E25: 0 | F25: 0 | G25: 0 | H25: 0 | I25: 0 | J25: 0 | K25: 0 | L25: 0 | M25: 0 | N25: 492 | O25: 47.91232877 | Q25: 2019 | R25: 1951 | S25: 88 | T25: 0 | U25: 0 | V25: 0 | W25: 0 | X25: 0 | Y25: 0 | Z25: 0 | AA25: 0 | AB25: 0 | AC25: 0 | AD25: 511 | AE25: 49.4739726 | AG25: 2020 | AH25: 1951 | AI25: 0 | AJ25: 0 | AK25: 0 | AL25: 0 | AM25: 0 | AN25: 0 | AO25: 0 | AP25: 0 | AQ25: 0 | AR25: 0 | AS25: 0 | AT25: 702 | AW25: 2021 | AX25: 1951 | AY25: 0 | AZ25: 0 | BA25: 0 | BB25: 0 | BC25: 0 | BD25: 0 | BE25: 0 | BF25: 0 | BG25: 0 | BH25: 0 | BI25: 0 | BJ25: 702 | BM25: 2022 | BN25: 1951 | BO25: 0 | BP25: 0 | BQ25: 0 | BR25: 0 | BS25: 0 | BT25: 0 | BU25: 0 | BV25: 0 | BW25: 0 | BX25: 0 | BY25: 0 | BZ25: 702 | CC25: 2023 | CD25: 1951 | CE25: 0 | CF25: 0 | CG25: 0 | CH25: 0 | CI25: 0 | CJ25: 0 | CK25: 0 | CL25: 0 | CM25: 0 | CN25: 0 | CO25: 0 | CP25: 702 | CS25: 2024 | CT25: 1951 | CU25: 0 | CV25: 0 | CW25: 0 | CX25: 0 | CY25: 0 | CZ25: 0 | DA25: 0 | DB25: 0 | DC25: 0 | DD25: 0 | DE25: 0 | DF25: 702 | DI25: 2025 | DJ25: 1951 | DK25: 0 | DL25: 0 | DM25: 0 | DN25: 0 | DO25: 0 | DP25: 0 | DQ25: 0 | DR25: 0 | DS25: 0 | DT25: 0 | DU25: 0 | DV25: 702 | DY25: 2026 | DZ25: 1951 | EA25: 0 | EB25: 0 | EC25: 0 | ED25: 0 | EE25: 0 | EF25: 0 | EG25: 0 | EH25: 0 | EI25: 0 | EJ25: 0 | EK25: 0 | EL25: 702 | EO25: 2027 | EP25: 1951 | EQ25: 0 | ER25: 0 | ES25: 0 | ET25: 0 | EU25: 0 | EV25: 0 | EW25: 0 | EX25: 0 | EY25: 0 | EZ25: 0 | FA25: 0 | FB25: 702 | FE25: 2028 | FF25: 1951 | FG25: 0 | FH25: 0 | FI25: 0 | FJ25: 0 | FK25: 0 | FL25: 0 | FM25: 0 | FN25: 0 | FO25: 0 | FP25: 0 | FQ25: 0 | FR25: 702 | FU25: 2029 | FV25: 1951 | FW25: 0 | FX25: 0 | FY25: 0 | FZ25: 0 | GA25: 0 | GB25: 0 | GC25: 0 | GD25: 0 | GE25: 0 | GF25: 0 | GG25: 0 | GH25: 702 | GK25: 2030 | GL25: 1951 | GM25: 0 | GN25: 0 | GO25: 0 | GP25: 0 | GQ25: 0 | GR25: 0 | GS25: 0 | GT25: 0 | GU25: 0 | GV25: 0 | GW25: 0 | GX25: 702 | HA25: 2031 | HB25: 1951 | HC25: 0 | HD25: 0 | HE25: 0 | HF25: 0 | HG25: 0 | HH25: 0 | HI25: 0 | HJ25: 0 | HK25: 0 | HL25: 0 | HM25: 0 | HN25: 834
A26: 2018 | B26: 1952 | C26: 0 | D26: 0 | E26: 0 | F26: 0 | G26: 0 | H26: 0 | I26: 0 | J26: 0 | K26: 0 | L26: 0 | M26: 0 | N26: 1314 | O26: 108 | Q26: 2019 | R26: 1952 | S26: 0 | T26: 0 | U26: 0 | V26: 0 | W26: 0 | X26: 0 | Y26: 0 | Z26: 0 | AA26: 0 | AB26: 0 | AC26: 0 | AD26: 1265 | AE26: 103.9726027 | AG26: 2020 | AH26: 1952 | AI26: 0 | AJ26: 0 | AK26: 0 | AL26: 0 | AM26: 0 | AN26: 0 | AO26: 0 | AP26: 0 | AQ26: 0 | AR26: 0 | AS26: 0 | AT26: 1283 | AW26: 2021 | AX26: 1952 | AY26: 0 | AZ26: 0 | BA26: 0 | BB26: 0 | BC26: 0 | BD26: 0 | BE26: 0 | BF26: 0 | BG26: 0 | BH26: 0 | BI26: 0 | BJ26: 1283 | BM26: 2022 | BN26: 1952 | BO26: 0 | BP26: 0 | BQ26: 0 | BR26: 0 | BS26: 0 | BT26: 0 | BU26: 0 | BV26: 0 | BW26: 0 | BX26: 0 | BY26: 0 | BZ26: 1283 | CC26: 2023 | CD26: 1952 | CE26: 0 | CF26: 0 | CG26: 0 | CH26: 0 | CI26: 0 | CJ26: 0 | CK26: 0 | CL26: 0 | CM26: 0 | CN26: 0 | CO26: 0 | CP26: 1283 | CS26: 2024 | CT26: 1952 | CU26: 0 | CV26: 0 | CW26: 0 | CX26: 0 | CY26: 0 | CZ26: 0 | DA26: 0 | DB26: 0 | DC26: 0 | DD26: 0 | DE26: 0 | DF26: 1283 | DI26: 2025 | DJ26: 1952 | DK26: 0 | DL26: 0 | DM26: 0 | DN26: 0 | DO26: 0 | DP26: 0 | DQ26: 0 | DR26: 0 | DS26: 0 | DT26: 0 | DU26: 0 | DV26: 1283 | DY26: 2026 | DZ26: 1952 | EA26: 0 | EB26: 0 | EC26: 0 | ED26: 0 | EE26: 0 | EF26: 0 | EG26: 0 | EH26: 0 | EI26: 0 | EJ26: 0 | EK26: 0 | EL26: 1283 | EO26: 2027 | EP26: 1952 | EQ26: 0 | ER26: 0 | ES26: 0 | ET26: 0 | EU26: 0 | EV26: 0 | EW26: 0 | EX26: 0 | EY26: 0 | EZ26: 0 | FA26: 0 | FB26: 1283 | FE26: 2028 | FF26: 1952 | FG26: 0 | FH26: 0 | FI26: 0 | FJ26: 0 | FK26: 0 | FL26: 0 | FM26: 0 | FN26: 0 | FO26: 0 | FP26: 0 | FQ26: 0 | FR26: 1283 | FU26: 2029 | FV26: 1952 | FW26: 0 | FX26: 0 | FY26: 0 | FZ26: 0 | GA26: 0 | GB26: 0 | GC26: 0 | GD26: 0 | GE26: 0 | GF26: 0 | GG26: 0 | GH26: 1283 | GK26: 2030 | GL26: 1952 | GM26: 0 | GN26: 0 | GO26: 0 | GP26: 0 | GQ26: 0 | GR26: 0 | GS26: 0 | GT26: 0 | GU26: 0 | GV26: 0 | GW26: 0 | GX26: 1283 | HA26: 2031 | HB26: 1952 | HC26: 0 | HD26: 0 | HE26: 0 | HF26: 0 | HG26: 0 | HH26: 0 | HI26: 0 | HJ26: 0 | HK26: 0 | HL26: 0 | HM26: 0 | HN26: 1416
A27: 2018 | B27: 1953 | C27: 1234 | D27: 645 | E27: 1727 | F27: 675 | G27: 0 | H27: 0 | I27: 0 | J27: 0 | K27: 0 | L27: 0 | M27: 0 | N27: 443 | O27: 398.3092466 | Q27: 2019 | R27: 1953 | S27: 1234 | T27: 645 | U27: 1727 | V27: 774 | W27: 0 | X27: 0 | Y27: 0 | Z27: 0 | AA27: 0 | AB27: 0 | AC27: 0 | AD27: 452 | AE27: 407.4571918 | AG27: 2020 | AH27: 1953 | AI27: 1043 | AJ27: 264 | AK27: 1357 | AL27: 1707 | AM27: 0 | AN27: 0 | AO27: 0 | AP27: 0 | AQ27: 0 | AR27: 0 | AS27: 0 | AT27: 681 | AW27: 2021 | AX27: 1953 | AY27: 1043 | AZ27: 264 | BA27: 1357 | BB27: 1707 | BC27: 0 | BD27: 0 | BE27: 0 | BF27: 0 | BG27: 0 | BH27: 0 | BI27: 0 | BJ27: 681 | BM27: 2022 | BN27: 1953 | BO27: 1043 | BP27: 264 | BQ27: 1357 | BR27: 1707 | BS27: 0 | BT27: 0 | BU27: 0 | BV27: 0 | BW27: 0 | BX27: 0 | BY27: 0 | BZ27: 681 | CC27: 2023 | CD27: 1953 | CE27: 1043 | CF27: 264 | CG27: 1357 | CH27: 1707 | CI27: 0 | CJ27: 0 | CK27: 0 | CL27: 0 | CM27: 0 | CN27: 0 | CO27: 0 | CP27: 681 | CS27: 2024 | CT27: 1953 | CU27: 1043 | CV27: 264 | CW27: 1357 | CX27: 1707 | CY27: 0 | CZ27: 0 | DA27: 0 | DB27: 0 | DC27: 0 | DD27: 0 | DE27: 0 | DF27: 681 | DI27: 2025 | DJ27: 1953 | DK27: 1043 | DL27: 264 | DM27: 1357 | DN27: 1707 | DO27: 0 | DP27: 0 | DQ27: 0 | DR27: 0 | DS27: 0 | DT27: 0 | DU27: 0 | DV27: 681 | DY27: 2026 | DZ27: 1953 | EA27: 1043 | EB27: 264 | EC27: 1357 | ED27: 1707 | EE27: 0 | EF27: 0 | EG27: 0 | EH27: 0 | EI27: 0 | EJ27: 0 | EK27: 0 | EL27: 681 | EO27: 2027 | EP27: 1953 | EQ27: 1043 | ER27: 264 | ES27: 1357 | ET27: 1707 | EU27: 0 | EV27: 0 | EW27: 0 | EX27: 0 | EY27: 0 | EZ27: 0 | FA27: 0 | FB27: 681 | FE27: 2028 | FF27: 1953 | FG27: 1043 | FH27: 264 | FI27: 1357 | FJ27: 1707 | FK27: 0 | FL27: 0 | FM27: 0 | FN27: 0 | FO27: 0 | FP27: 0 | FQ27: 0 | FR27: 681 | FU27: 2029 | FV27: 1953 | FW27: 1043 | FX27: 264 | FY27: 1357 | FZ27: 1707 | GA27: 0 | GB27: 0 | GC27: 0 | GD27: 0 | GE27: 0 | GF27: 0 | GG27: 0 | GH27: 681 | GK27: 2030 | GL27: 1953 | GM27: 1043 | GN27: 264 | GO27: 1357 | GP27: 1707 | GQ27: 0 | GR27: 0 | GS27: 0 | GT27: 0 | GU27: 0 | GV27: 0 | GW27: 0 | GX27: 681 | HA27: 2031 | HB27: 1953 | HC27: 1044 | HD27: 180 | HE27: 1357 | HF27: 915 | HG27: 0 | HH27: 0 | HI27: 0 | HJ27: 0 | HK27: 0 | HL27: 0 | HM27: 0 | HN27: 813
A28: 2018 | B28: 1954 | C28: 850 | D28: 299 | E28: 0 | F28: 0 | G28: 0 | H28: 0 | I28: 0 | J28: 0 | K28: 0 | L28: 0 | M28: 0 | N28: 0 | O28: 96.80125571 | Q28: 2019 | R28: 1954 | S28: 850 | T28: 299 | U28: 0 | V28: 0 | W28: 0 | X28: 0 | Y28: 0 | Z28: 0 | AA28: 0 | AB28: 0 | AC28: 0 | AD28: 0 | AE28: 96.80125571 | AG28: 2020 | AH28: 1954 | AI28: 714 | AJ28: 0 | AK28: 104 | AL28: 0 | AM28: 0 | AN28: 0 | AO28: 0 | AP28: 0 | AQ28: 0 | AR28: 0 | AS28: 0 | AT28: 0 | AW28: 2021 | AX28: 1954 | AY28: 714 | AZ28: 0 | BA28: 104 | BB28: 0 | BC28: 0 | BD28: 0 | BE28: 0 | BF28: 0 | BG28: 0 | BH28: 0 | BI28: 0 | BJ28: 0 | BM28: 2022 | BN28: 1954 | BO28: 714 | BP28: 0 | BQ28: 104 | BR28: 0 | BS28: 0 | BT28: 0 | BU28: 0 | BV28: 0 | BW28: 0 | BX28: 0 | BY28: 0 | BZ28: 0 | CC28: 2023 | CD28: 1954 | CE28: 714 | CF28: 0 | CG28: 104 | CH28: 0 | CI28: 0 | CJ28: 0 | CK28: 0 | CL28: 0 | CM28: 0 | CN28: 0 | CO28: 0 | CP28: 0 | CS28: 2024 | CT28: 1954 | CU28: 714 | CV28: 0 | CW28: 104 | CX28: 0 | CY28: 0 | CZ28: 0 | DA28: 0 | DB28: 0 | DC28: 0 | DD28: 0 | DE28: 0 | DF28: 0 | DI28: 2025 | DJ28: 1954 | DK28: 714 | DL28: 0 | DM28: 104 | DN28: 0 | DO28: 0 | DP28: 0 | DQ28: 0 | DR28: 0 | DS28: 0 | DT28: 0 | DU28: 0 | DV28: 0 | DY28: 2026 | DZ28: 1954 | EA28: 714 | EB28: 0 | EC28: 104 | ED28: 0 | EE28: 0 | EF28: 0 | EG28: 0 | EH28: 0 | EI28: 0 | EJ28: 0 | EK28: 0 | EL28: 0 | EO28: 2027 | EP28: 1954 | EQ28: 714 | ER28: 0 | ES28: 104 | ET28: 0 | EU28: 0 | EV28: 0 | EW28: 0 | EX28: 0 | EY28: 0 | EZ28: 0 | FA28: 0 | FB28: 0 | FE28: 2028 | FF28: 1954 | FG28: 714 | FH28: 0 | FI28: 104 | FJ28: 0 | FK28: 0 | FL28: 0 | FM28: 0 | FN28: 0 | FO28: 0 | FP28: 0 | FQ28: 0 | FR28: 0 | FU28: 2029 | FV28: 1954 | FW28: 714 | FX28: 0 | FY28: 104 | FZ28: 0 | GA28: 0 | GB28: 0 | GC28: 0 | GD28: 0 | GE28: 0 | GF28: 0 | GG28: 0 | GH28: 0 | GK28: 2030 | GL28: 1954 | GM28: 714 | GN28: 0 | GO28: 104 | GP28: 0 | GQ28: 0 | GR28: 0 | GS28: 0 | GT28: 0 | GU28: 0 | GV28: 0 | GW28: 0 | GX28: 0 | HA28: 2031 | HB28: 1954 | HC28: 714 | HD28: 0 | HE28: 104 | HF28: 0 | HG28: 0 | HH28: 0 | HI28: 0 | HJ28: 0 | HK28: 0 | HL28: 0 | HM28: 0 | HN28: 0
A29: 2018 | B29: 1955 | C29: 745 | D29: 0 | E29: 0 | F29: 961 | G29: 690 | H29: 1235 | I29: 176.5 | J29: 0 | K29: 0 | L29: 0 | M29: 0 | N29: 696 | O29: 374.2864155 | Q29: 2019 | R29: 1955 | S29: 745 | T29: 0 | U29: 0 | V29: 961 | W29: 690 | X29: 1230 | Y29: 243.5 | Z29: 0 | AA29: 0 | AB29: 0 | AC29: 0 | AD29: 708 | AE29: 380.3554795 | AG29: 2020 | AH29: 1955 | AI29: 611 | AJ29: 0 | AK29: 0 | AL29: 843 | AM29: 982 | AN29: 996 | AO29: 54.5 | AP29: 0 | AQ29: 0 | AR29: 0 | AS29: 0 | AT29: 926 | AW29: 2021 | AX29: 1955 | AY29: 611 | AZ29: 0 | BA29: 0 | BB29: 843 | BC29: 982 | BD29: 996 | BE29: 54.5 | BF29: 0 | BG29: 0 | BH29: 0 | BI29: 0 | BJ29: 926 | BM29: 2022 | BN29: 1955 | BO29: 611 | BP29: 0 | BQ29: 0 | BR29: 843 | BS29: 982 | BT29: 996 | BU29: 54.5 | BV29: 0 | BW29: 0 | BX29: 0 | BY29: 0 | BZ29: 926 | CC29: 2023 | CD29: 1955 | CE29: 611 | CF29: 0 | CG29: 0 | CH29: 843 | CI29: 982 | CJ29: 996 | CK29: 54.5 | CL29: 0 | CM29: 0 | CN29: 0 | CO29: 0 | CP29: 926 | CS29: 2024 | CT29: 1955 | CU29: 611 | CV29: 0 | CW29: 0 | CX29: 843 | CY29: 982 | CZ29: 996 | DA29: 0 | DB29: 0 | DC29: 0 | DD29: 0 | DE29: 0 | DF29: 926 | DI29: 2025 | DJ29: 1955 | DK29: 611 | DL29: 0 | DM29: 0 | DN29: 843 | DO29: 982 | DP29: 996 | DQ29: 54.5 | DR29: 0 | DS29: 0 | DT29: 0 | DU29: 0 | DV29: 926 | DY29: 2026 | DZ29: 1955 | EA29: 611 | EB29: 0 | EC29: 0 | ED29: 843 | EE29: 982 | EF29: 996 | EG29: 54.5 | EH29: 0 | EI29: 0 | EJ29: 0 | EK29: 0 | EL29: 926 | EO29: 2027 | EP29: 1955 | EQ29: 611 | ER29: 0 | ES29: 0 | ET29: 843 | EU29: 982 | EV29: 996 | EW29: 54.5 | EX29: 0 | EY29: 0 | EZ29: 0 | FA29: 0 | FB29: 926 | FE29: 2028 | FF29: 1955 | FG29: 611 | FH29: 0 | FI29: 0 | FJ29: 843 | FK29: 982 | FL29: 996 | FM29: 54.5 | FN29: 0 | FO29: 0 | FP29: 0 | FQ29: 0 | FR29: 926 | FU29: 2029 | FV29: 1955 | FW29: 611 | FX29: 0 | FY29: 0 | FZ29: 843 | GA29: 982 | GB29: 996 | GC29: 54.5 | GD29: 0 | GE29: 0 | GF29: 0 | GG29: 0 | GH29: 926 | GK29: 2030 | GL29: 1955 | GM29: 611 | GN29: 0 | GO29: 0 | GP29: 843 | GQ29: 982 | GR29: 996 | GS29: 54.5 | GT29: 0 | GU29: 0 | GV29: 0 | GW29: 0 | GX29: 926 | HA29: 2031 | HB29: 1955 | HC29: 611 | HD29: 0 | HE29: 0 | HF29: 897 | HG29: 1006 | HH29: 1043 | HI29: -52.5 | HJ29: 0 | HK29: 0 | HL29: 0 | HM29: 0 | HN29: 1040
A30: 2018 | B30: 1956 | C30: 572 | D30: 0 | E30: 0 | F30: 0 | G30: 0 | H30: 0 | I30: 0 | J30: 0 | K30: 0 | L30: 0 | M30: 0 | N30: 421 | O30: 83.18356164 | Q30: 2019 | R30: 1956 | S30: 572 | T30: 0 | U30: 0 | V30: 0 | W30: 0 | X30: 0 | Y30: 0 | Z30: 0 | AA30: 0 | AB30: 0 | AC30: 0 | AD30: 434 | AE30: 84.25205479 | AG30: 2020 | AH30: 1956 | AI30: 477 | AJ30: 0 | AK30: 0 | AL30: 0 | AM30: 0 | AN30: 0 | AO30: 0 | AP30: 0 | AQ30: 0 | AR30: 0 | AS30: 0 | AT30: 645 | AW30: 2021 | AX30: 1956 | AY30: 477 | AZ30: 0 | BA30: 0 | BB30: 0 | BC30: 0 | BD30: 0 | BE30: 0 | BF30: 0 | BG30: 0 | BH30: 0 | BI30: 0 | BJ30: 645 | BM30: 2022 | BN30: 1956 | BO30: 477 | BP30: 0 | BQ30: 0 | BR30: 0 | BS30: 0 | BT30: 0 | BU30: 0 | BV30: 0 | BW30: 0 | BX30: 0 | BY30: 0 | BZ30: 645 | CC30: 2023 | CD30: 1956 | CE30: 477 | CF30: 0 | CG30: 0 | CH30: 0 | CI30: 0 | CJ30: 0 | CK30: 0 | CL30: 0 | CM30: 0 | CN30: 0 | CO30: 0 | CP30: 645 | CS30: 2024 | CT30: 1956 | CU30: 477 | CV30: 0 | CW30: 0 | CX30: 0 | CY30: 0 | CZ30: 0 | DA30: 0 | DB30: 0 | DC30: 0 | DD30: 0 | DE30: 0 | DF30: 645 | DI30: 2025 | DJ30: 1956 | DK30: 477 | DL30: 0 | DM30: 0 | DN30: 0 | DO30: 0 | DP30: 0 | DQ30: 0 | DR30: 0 | DS30: 0 | DT30: 0 | DU30: 0 | DV30: 645 | DY30: 2026 | DZ30: 1956 | EA30: 477 | EB30: 0 | EC30: 0 | ED30: 0 | EE30: 0 | EF30: 0 | EG30: 0 | EH30: 0 | EI30: 0 | EJ30: 0 | EK30: 0 | EL30: 645 | EO30: 2027 | EP30: 1956 | EQ30: 477 | ER30: 0 | ES30: 0 | ET30: 0 | EU30: 0 | EV30: 0 | EW30: 0 | EX30: 0 | EY30: 0 | EZ30: 0 | FA30: 0 | FB30: 645 | FE30: 2028 | FF30: 1956 | FG30: 477 | FH30: 0 | FI30: 0 | FJ30: 0 | FK30: 0 | FL30: 0 | FM30: 0 | FN30: 0 | FO30: 0 | FP30: 0 | FQ30: 0 | FR30: 645 | FU30: 2029 | FV30: 1956 | FW30: 477 | FX30: 0 | FY30: 0 | FZ30: 0 | GA30: 0 | GB30: 0 | GC30: 0 | GD30: 0 | GE30: 0 | GF30: 0 | GG30: 0 | GH30: 645 | GK30: 2030 | GL30: 1956 | GM30: 477 | GN30: 0 | GO30: 0 | GP30: 0 | GQ30: 0 | GR30: 0 | GS30: 0 | GT30: 0 | GU30: 0 | GV30: 0 | GW30: 0 | GX30: 645 | HA30: 2031 | HB30: 1956 | HC30: 477 | HD30: 0 | HE30: 0 | HF30: 0 | HG30: 0 | HH30: 0 | HI30: 0 | HJ30: 0 | HK30: 0 | HL30: 0 | HM30: 0 | HN30: 774
A31: 2018 | B31: 1957 | C31: 622 | D31: 638 | E31: 0 | F31: 0 | G31: 192 | H31: 0 | I31: 0 | J31: 0 | K31: 0 | L31: 0 | M31: -50.48387097 | N31: 479 | O31: 155.1495434 | Q31: 2019 | R31: 1957 | S31: 622 | T31: 638 | U31: 0 | V31: 0 | W31: 183 | X31: 0 | Y31: 0 | Z31: 0 | AA31: 0 | AB31: 0 | AC31: 0 | AD31: 485 | AE31: 159.2399543 | AG31: 2020 | AH31: 1957 | AI31: 495 | AJ31: 0 | AK31: 0 | AL31: 0 | AM31: 1339 | AN31: 0 | AO31: 0 | AP31: 0 | AQ31: 0 | AR31: 0 | AS31: -65.16129032 | AT31: 759 | AW31: 2021 | AX31: 1957 | AY31: 495 | AZ31: 0 | BA31: 0 | BB31: 0 | BC31: 1339 | BD31: 0 | BE31: 0 | BF31: 0 | BG31: 0 | BH31: 0 | BI31: -65.16129032 | BJ31: 759 | BM31: 2022 | BN31: 1957 | BO31: 495 | BP31: 0 | BQ31: 0 | BR31: 0 | BS31: 1339 | BT31: 0 | BU31: 0 | BV31: 0 | BW31: 0 | BX31: 0 | BY31: -65.16129032 | BZ31: 759 | CC31: 2023 | CD31: 1957 | CE31: 495 | CF31: 0 | CG31: 0 | CH31: 0 | CI31: 1339 | CJ31: 0 | CK31: 0 | CL31: 0 | CM31: 0 | CN31: 0 | CO31: -65.16129032 | CP31: 759 | CS31: 2024 | CT31: 1957 | CU31: 495 | CV31: 0 | CW31: 0 | CX31: 0 | CY31: 1339 | CZ31: 0 | DA31: 0 | DB31: 0 | DC31: 0 | DD31: 0 | DE31: -65.16129032 | DF31: 759 | DI31: 2025 | DJ31: 1957 | DK31: 495 | DL31: 0 | DM31: 0 | DN31: 0 | DO31: 1339 | DP31: 0 | DQ31: 0 | DR31: 0 | DS31: 0 | DT31: 0 | DU31: -65.16129032 | DV31: 759 | DY31: 2026 | DZ31: 1957 | EA31: 495 | EB31: 0 | EC31: 0 | ED31: 0 | EE31: 1339 | EF31: 0 | EG31: 0 | EH31: 0 | EI31: 0 | EJ31: 0 | EK31: -65.16129032 | EL31: 759 | EO31: 2027 | EP31: 1957 | EQ31: 495 | ER31: 0 | ES31: 0 | ET31: 0 | EU31: 1339 | EV31: 0 | EW31: 0 | EX31: 0 | EY31: 0 | EZ31: 0 | FA31: -65.16129032 | FB31: 759 | FE31: 2028 | FF31: 1957 | FG31: 495 | FH31: 0 | FI31: 0 | FJ31: 0 | FK31: 1339 | FL31: 0 | FM31: 0 | FN31: 0 | FO31: 0 | FP31: 0 | FQ31: -65.16129032 | FR31: 759 | FU31: 2029 | FV31: 1957 | FW31: 495 | FX31: 0 | FY31: 0 | FZ31: 0 | GA31: 1339 | GB31: 0 | GC31: 0 | GD31: 0 | GE31: 0 | GF31: 0 | GG31: -65.16129032 | GH31: 759 | GK31: 2030 | GL31: 1957 | GM31: 495 | GN31: 0 | GO31: 0 | GP31: 0 | GQ31: 1339 | GR31: 0 | GS31: 0 | GT31: 0 | GU31: 0 | GV31: 0 | GW31: -65.16129032 | GX31: 759 | HA31: 2031 | HB31: 1957 | HC31: 495 | HD31: 0 | HE31: 0 | HF31: 0 | HG31: 1690 | HH31: 0 | HI31: 0 | HJ31: 0 | HK31: 0 | HL31: 0 | HM31: -35.32258065 | HN31: 897
A32: 2018 | B32: 1958 | C32: 1306 | D32: 324 | E32: 1438 | F32: 0 | G32: 0 | H32: 0 | I32: 0 | J32: 0 | K32: 0 | L32: 0 | M32: -61.4516129 | N32: 814 | O32: 321.4041096 | Q32: 2019 | R32: 1958 | S32: 1306 | T32: 324 | U32: 1434 | V32: 0 | W32: 0 | X32: 0 | Y32: 0 | Z32: 0 | AA32: 0 | AB32: 0 | AC32: -17.41935484 | AD32: 810 | AE32: 324.4753425 | AG32: 2020 | AH32: 1958 | AI32: 895 | AJ32: 0 | AK32: 938 | AL32: 0 | AM32: 0 | AN32: 0 | AO32: 0 | AP32: 0 | AQ32: 0 | AR32: 0 | AS32: -72.58064516 | AT32: 955 | AW32: 2021 | AX32: 1958 | AY32: 895 | AZ32: 0 | BA32: 938 | BB32: 0 | BC32: 0 | BD32: 0 | BE32: 0 | BF32: 0 | BG32: 0 | BH32: 0 | BI32: -72.58064516 | BJ32: 955 | BM32: 2022 | BN32: 1958 | BO32: 895 | BP32: 0 | BQ32: 938 | BR32: 0 | BS32: 0 | BT32: 0 | BU32: 0 | BV32: 0 | BW32: 0 | BX32: 0 | BY32: -72.58064516 | BZ32: 955 | CC32: 2023 | CD32: 1958 | CE32: 895 | CF32: 0 | CG32: 938 | CH32: 0 | CI32: 0 | CJ32: 0 | CK32: 0 | CL32: 0 | CM32: 0 | CN32: 0 | CO32: -72.58064516 | CP32: 955 | CS32: 2024 | CT32: 1958 | CU32: 895 | CV32: 0 | CW32: 938 | CX32: 0 | CY32: 0 | CZ32: 0 | DA32: 0 | DB32: 0 | DC32: 0 | DD32: 0 | DE32: -72.58064516 | DF32: 955 | DI32: 2025 | DJ32: 1958 | DK32: 895 | DL32: 0 | DM32: 938 | DN32: 0 | DO32: 0 | DP32: 0 | DQ32: 0 | DR32: 0 | DS32: 0 | DT32: 0 | DU32: -72.58064516 | DV32: 955 | DY32: 2026 | DZ32: 1958 | EA32: 895 | EB32: 0 | EC32: 938 | ED32: 0 | EE32: 0 | EF32: 0 | EG32: 0 | EH32: 0 | EI32: 0 | EJ32: 0 | EK32: -72.58064516 | EL32: 955 | EO32: 2027 | EP32: 1958 | EQ32: 895 | ER32: 0 | ES32: 938 | ET32: 0 | EU32: 0 | EV32: 0 | EW32: 0 | EX32: 0 | EY32: 0 | EZ32: 0 | FA32: -72.58064516 | FB32: 955 | FE32: 2028 | FF32: 1958 | FG32: 895 | FH32: 0 | FI32: 938 | FJ32: 0 | FK32: 0 | FL32: 0 | FM32: 0 | FN32: 0 | FO32: 0 | FP32: 0 | FQ32: -72.58064516 | FR32: 955 | FU32: 2029 | FV32: 1958 | FW32: 895 | FX32: 0 | FY32: 938 | FZ32: 0 | GA32: 0 | GB32: 0 | GC32: 0 | GD32: 0 | GE32: 0 | GF32: 0 | GG32: -72.58064516 | GH32: 955 | GK32: 2030 | GL32: 1958 | GM32: 895 | GN32: 0 | GO32: 938 | GP32: 0 | GQ32: 0 | GR32: 0 | GS32: 0 | GT32: 0 | GU32: 0 | GV32: 0 | GW32: -72.58064516 | GX32: 955 | HA32: 2031 | HB32: 1958 | HC32: 895 | HD32: 0 | HE32: 985 | HF32: 0 | HG32: 0 | HH32: 0 | HI32: 0 | HJ32: 0 | HK32: 0 | HL32: -116 | HM32: -85.64516129 | HN32: 1024
A33: 2018 | B33: 1959 | C33: 1000 | D33: 0 | E33: 0 | F33: 0 | G33: 0 | H33: 0 | I33: 0 | J33: 0 | K33: 0 | L33: 0 | M33: 0 | N33: 0 | O33: 84.93150685 | Q33: 2019 | R33: 1959 | S33: 1000 | T33: 0 | U33: 0 | V33: 0 | W33: 0 | X33: 0 | Y33: 0 | Z33: 0 | AA33: 0 | AB33: 0 | AC33: 0 | AD33: 0 | AE33: 84.93150685 | AG33: 2020 | AH33: 1959 | AI33: 819 | AJ33: 0 | AK33: 0 | AL33: 0 | AM33: 0 | AN33: 0 | AO33: 0 | AP33: 0 | AQ33: 0 | AR33: 0 | AS33: 0 | AT33: 0 | AW33: 2021 | AX33: 1959 | AY33: 819 | AZ33: 0 | BA33: 0 | BB33: 0 | BC33: 0 | BD33: 0 | BE33: 0 | BF33: 0 | BG33: 0 | BH33: 0 | BI33: 0 | BJ33: 0 | BM33: 2022 | BN33: 1959 | BO33: 819 | BP33: 0 | BQ33: 0 | BR33: 0 | BS33: 0 | BT33: 0 | BU33: 0 | BV33: 0 | BW33: 0 | BX33: 0 | BY33: 0 | BZ33: 0 | CC33: 2023 | CD33: 1959 | CE33: 819 | CF33: 0 | CG33: 0 | CH33: 0 | CI33: 0 | CJ33: 0 | CK33: 0 | CL33: 0 | CM33: 0 | CN33: 0 | CO33: 0 | CP33: 0 | CS33: 2024 | CT33: 1959 | CU33: 819 | CV33: 0 | CW33: 0 | CX33: 0 | CY33: 0 | CZ33: 0 | DA33: 0 | DB33: 0 | DC33: 0 | DD33: 0 | DE33: 0 | DF33: 0 | DI33: 2025 | DJ33: 1959 | DK33: 819 | DL33: 0 | DM33: 0 | DN33: 0 | DO33: 0 | DP33: 0 | DQ33: 0 | DR33: 0 | DS33: 0 | DT33: 0 | DU33: 0 | DV33: 0 | DY33: 2026 | DZ33: 1959 | EA33: 819 | EB33: 0 | EC33: 0 | ED33: 0 | EE33: 0 | EF33: 0 | EG33: 0 | EH33: 0 | EI33: 0 | EJ33: 0 | EK33: 0 | EL33: 0 | EO33: 2027 | EP33: 1959 | EQ33: 819 | ER33: 0 | ES33: 0 | ET33: 0 | EU33: 0 | EV33: 0 | EW33: 0 | EX33: 0 | EY33: 0 | EZ33: 0 | FA33: 0 | FB33: 0 | FE33: 2028 | FF33: 1959 | FG33: 819 | FH33: 0 | FI33: 0 | FJ33: 0 | FK33: 0 | FL33: 0 | FM33: 0 | FN33: 0 | FO33: 0 | FP33: 0 | FQ33: 0 | FR33: 0 | FU33: 2029 | FV33: 1959 | FW33: 819 | FX33: 0 | FY33: 0 | FZ33: 0 | GA33: 0 | GB33: 0 | GC33: 0 | GD33: 0 | GE33: 0 | GF33: 0 | GG33: 0 | GH33: 0 | GK33: 2030 | GL33: 1959 | GM33: 819 | GN33: 0 | GO33: 0 | GP33: 0 | GQ33: 0 | GR33: 0 | GS33: 0 | GT33: 0 | GU33: 0 | GV33: 0 | GW33: 0 | GX33: 0 | HA33: 2031 | HB33: 1959 | HC33: 819 | HD33: 0 | HE33: 0 | HF33: 0 | HG33: 0 | HH33: 0 | HI33: 0 | HJ33: 0 | HK33: 0 | HL33: 0 | HM33: 0 | HN33: 0
A34: 2018 | B34: 1960 | C34: 0 | D34: 0 | E34: 0 | F34: 0 | G34: 0 | H34: 0 | I34: 0 | J34: 0 | K34: 0 | L34: -267 | M34: 0 | N34: 875 | O34: 49.24109589 | Q34: 2019 | R34: 1960 | S34: 0 | T34: 0 | U34: 0 | V34: 0 | W34: 0 | X34: 0 | Y34: 0 | Z34: 0 | AA34: 0 | AB34: -296 | AC34: 0 | AD34: 887 | AE34: 47.76438356 | AG34: 2020 | AH34: 1960 | AI34: 0 | AJ34: 0 | AK34: 0 | AL34: 0 | AM34: 0 | AN34: 0 | AO34: 0 | AP34: 0 | AQ34: 0 | AR34: -300 | AS34: 0 | AT34: 994 | AW34: 2021 | AX34: 1960 | AY34: 0 | AZ34: 0 | BA34: 0 | BB34: 0 | BC34: 0 | BD34: 0 | BE34: 0 | BF34: 0 | BG34: 0 | BH34: -300 | BI34: 0 | BJ34: 994 | BM34: 2022 | BN34: 1960 | BO34: 0 | BP34: 0 | BQ34: 0 | BR34: 0 | BS34: 0 | BT34: 0 | BU34: 0 | BV34: 0 | BW34: 0 | BX34: -300 | BY34: 0 | BZ34: 994 | CC34: 2023 | CD34: 1960 | CE34: 0 | CF34: 0 | CG34: 0 | CH34: 0 | CI34: 0 | CJ34: 0 | CK34: 0 | CL34: 0 | CM34: 0 | CN34: -300 | CO34: 0 | CP34: 994 | CS34: 2024 | CT34: 1960 | CU34: 0 | CV34: 0 | CW34: 0 | CX34: 0 | CY34: 0 | CZ34: 0 | DA34: 0 | DB34: 0 | DC34: 0 | DD34: -300 | DE34: 0 | DF34: 994 | DI34: 2025 | DJ34: 1960 | DK34: 0 | DL34: 0 | DM34: 0 | DN34: 0 | DO34: 0 | DP34: 0 | DQ34: 0 | DR34: 0 | DS34: 0 | DT34: -300 | DU34: 0 | DV34: 994 | DY34: 2026 | DZ34: 1960 | EA34: 0 | EB34: 0 | EC34: 0 | ED34: 0 | EE34: 0 | EF34: 0 | EG34: 0 | EH34: 0 | EI34: 0 | EJ34: -300 | EK34: 0 | EL34: 994 | EO34: 2027 | EP34: 1960 | EQ34: 0 | ER34: 0 | ES34: 0 | ET34: 0 | EU34: 0 | EV34: 0 | EW34: 0 | EX34: 0 | EY34: 0 | EZ34: -300 | FA34: 0 | FB34: 994 | FE34: 2028 | FF34: 1960 | FG34: 0 | FH34: 0 | FI34: 0 | FJ34: 0 | FK34: 0 | FL34: 0 | FM34: 0 | FN34: 0 | FO34: 0 | FP34: -300 | FQ34: 0 | FR34: 994 | FU34: 2029 | FV34: 1960 | FW34: 0 | FX34: 0 | FY34: 0 | FZ34: 0 | GA34: 0 | GB34: 0 | GC34: 0 | GD34: 0 | GE34: 0 | GF34: -300 | GG34: 0 | GH34: 994 | GK34: 2030 | GL34: 1960 | GM34: 0 | GN34: 0 | GO34: 0 | GP34: 0 | GQ34: 0 | GR34: 0 | GS34: 0 | GT34: 0 | GU34: 0 | GV34: -300 | GW34: 0 | GX34: 994 | HA34: 2031 | HB34: 1960 | HC34: 0 | HD34: 0 | HE34: 0 | HF34: 0 | HG34: 0 | HH34: 0 | HI34: 0 | HJ34: 0 | HK34: 0 | HL34: -285 | HM34: 0 | HN34: 1109
A35: 2018 | B35: 1961 | C35: 874 | D35: 440 | E35: 110 | F35: 0 | G35: 0 | H35: 0 | I35: 0 | J35: 0 | K35: 0 | L35: -225 | M35: -108.8709677 | N35: 641 | O35: 144.1159817 | Q35: 2019 | R35: 1961 | S35: 874 | T35: 440 | U35: 110 | V35: 0 | W35: 0 | X35: 0 | Y35: 0 | Z35: 0 | AA35: 0 | AB35: -238 | AC35: -105.9677419 | AD35: 647 | AE35: 143.7515982 | AG35: 2020 | AH35: 1961 | AI35: 604 | AJ35: 0 | AK35: 628 | AL35: 0 | AM35: 0 | AN35: 0 | AO35: 0 | AP35: 0 | AQ35: 0 | AR35: -175 | AS35: -107.4193548 | AT35: 846 | AW35: 2021 | AX35: 1961 | AY35: 604 | AZ35: 0 | BA35: 628 | BB35: 0 | BC35: 0 | BD35: 0 | BE35: 0 | BF35: 0 | BG35: 0 | BH35: -175 | BI35: -107.4193548 | BJ35: 846 | BM35: 2022 | BN35: 1961 | BO35: 604 | BP35: 0 | BQ35: 628 | BR35: 0 | BS35: 0 | BT35: 0 | BU35: 0 | BV35: 0 | BW35: 0 | BX35: -175 | BY35: -107.4193548 | BZ35: 846 | CC35: 2023 | CD35: 1961 | CE35: 604 | CF35: 0 | CG35: 628 | CH35: 0 | CI35: 0 | CJ35: 0 | CK35: 0 | CL35: 0 | CM35: 0 | CN35: -175 | CO35: -107.4193548 | CP35: 846 | CS35: 2024 | CT35: 1961 | CU35: 604 | CV35: 0 | CW35: 628 | CX35: 0 | CY35: 0 | CZ35: 0 | DA35: 0 | DB35: 0 | DC35: 0 | DD35: -175 | DE35: -107.4193548 | DF35: 846 | DI35: 2025 | DJ35: 1961 | DK35: 604 | DL35: 0 | DM35: 628 | DN35: 0 | DO35: 0 | DP35: 0 | DQ35: 0 | DR35: 0 | DS35: 0 | DT35: -175 | DU35: -107.4193548 | DV35: 846 | DY35: 2026 | DZ35: 1961 | EA35: 604 | EB35: 0 | EC35: 628 | ED35: 0 | EE35: 0 | EF35: 0 | EG35: 0 | EH35: 0 | EI35: 0 | EJ35: -175 | EK35: -107.4193548 | EL35: 846 | EO35: 2027 | EP35: 1961 | EQ35: 604 | ER35: 0 | ES35: 628 | ET35: 0 | EU35: 0 | EV35: 0 | EW35: 0 | EX35: 0 | EY35: 0 | EZ35: -175 | FA35: -107.4193548 | FB35: 846 | FE35: 2028 | FF35: 1961 | FG35: 604 | FH35: 0 | FI35: 628 | FJ35: 0 | FK35: 0 | FL35: 0 | FM35: 0 | FN35: 0 | FO35: 0 | FP35: -175 | FQ35: -107.4193548 | FR35: 846 | FU35: 2029 | FV35: 1961 | FW35: 604 | FX35: 0 | FY35: 628 | FZ35: 0 | GA35: 0 | GB35: 0 | GC35: 0 | GD35: 0 | GE35: 0 | GF35: -175 | GG35: -107.4193548 | GH35: 846 | GK35: 2030 | GL35: 1961 | GM35: 604 | GN35: 0 | GO35: 628 | GP35: 0 | GQ35: 0 | GR35: 0 | GS35: 0 | GT35: 0 | GU35: 0 | GV35: -175 | GW35: -107.4193548 | GX35: 846 | HA35: 2031 | HB35: 1961 | HC35: 604 | HD35: 0 | HE35: 628 | HF35: 0 | HG35: 0 | HH35: 0 | HI35: 0 | HJ35: 0 | HK35: 0 | HL35: -344 | HM35: -119.516129 | HN35: 935
A36: 2018 | B36: 1962 | C36: 1450 | D36: 368 | E36: 448 | F36: 0 | G36: 0 | H36: 778 | I36: 0 | J36: 0 | K36: 0 | L36: 0 | M36: 0 | N36: 1057 | O36: 344.3531963 | Q36: 2019 | R36: 1962 | S36: 1450 | T36: 418 | U36: 586 | V36: 0 | W36: 0 | X36: 778 | Y36: 0 | Z36: 0 | AA36: 0 | AB36: 0 | AC36: 0 | AD36: 1067 | AE36: 361.0109589 | AG36: 2020 | AH36: 1962 | AI36: 977 | AJ36: 0 | AK36: 1101 | AL36: 0 | AM36: 0 | AN36: 619 | AO36: 0 | AP36: 0 | AQ36: 0 | AR36: 0 | AS36: 0 | AT36: 1230 | AW36: 2021 | AX36: 1962 | AY36: 977 | AZ36: 0 | BA36: 1101 | BB36: 0 | BC36: 0 | BD36: 619 | BE36: 0 | BF36: 0 | BG36: 0 | BH36: 0 | BI36: 0 | BJ36: 1230 | BM36: 2022 | BN36: 1962 | BO36: 977 | BP36: 0 | BQ36: 1101 | BR36: 0 | BS36: 0 | BT36: 619 | BU36: 0 | BV36: 0 | BW36: 0 | BX36: 0 | BY36: 0 | BZ36: 1230 | CC36: 2023 | CD36: 1962 | CE36: 977 | CF36: 0 | CG36: 1101 | CH36: 0 | CI36: 0 | CJ36: 619 | CK36: 0 | CL36: 0 | CM36: 0 | CN36: 0 | CO36: 0 | CP36: 1230 | CS36: 2024 | CT36: 1962 | CU36: 977 | CV36: 0 | CW36: 1101 | CX36: 0 | CY36: 0 | CZ36: 619 | DA36: 0 | DB36: 0 | DC36: 0 | DD36: 0 | DE36: 0 | DF36: 1230 | DI36: 2025 | DJ36: 1962 | DK36: 977 | DL36: 0 | DM36: 1101 | DN36: 0 | DO36: 0 | DP36: 619 | DQ36: 0 | DR36: 0 | DS36: 0 | DT36: 0 | DU36: 0 | DV36: 1230 | DY36: 2026 | DZ36: 1962 | EA36: 977 | EB36: 0 | EC36: 1101 | ED36: 0 | EE36: 0 | EF36: 619 | EG36: 0 | EH36: 0 | EI36: 0 | EJ36: 0 | EK36: 0 | EL36: 1230 | EO36: 2027 | EP36: 1962 | EQ36: 977 | ER36: 0 | ES36: 1101 | ET36: 0 | EU36: 0 | EV36: 619 | EW36: 0 | EX36: 0 | EY36: 0 | EZ36: 0 | FA36: 0 | FB36: 1230 | FE36: 2028 | FF36: 1962 | FG36: 977 | FH36: 0 | FI36: 1101 | FJ36: 0 | FK36: 0 | FL36: 619 | FM36: 0 | FN36: 0 | FO36: 0 | FP36: 0 | FQ36: 0 | FR36: 1230 | FU36: 2029 | FV36: 1962 | FW36: 977 | FX36: 0 | FY36: 1101 | FZ36: 0 | GA36: 0 | GB36: 619 | GC36: 0 | GD36: 0 | GE36: 0 | GF36: 0 | GG36: 0 | GH36: 1230 | GK36: 2030 | GL36: 1962 | GM36: 977 | GN36: 0 | GO36: 1101 | GP36: 0 | GQ36: 0 | GR36: 619 | GS36: 0 | GT36: 0 | GU36: 0 | GV36: 0 | GW36: 0 | GX36: 1230 | HA36: 2031 | HB36: 1962 | HC36: 977 | HD36: 0 | HE36: 1101 | HF36: 0 | HG36: 0 | HH36: 403 | HI36: 0 | HJ36: 0 | HK36: 0 | HL36: -5 | HM36: 0 | HN36: 1384
A37: 2018 | B37: 1963 | C37: 292 | D37: 0 | E37: 0 | F37: 0 | G37: 0 | H37: 0 | I37: 44.5 | J37: 0 | K37: 0 | L37: 0 | M37: 0 | N37: 177 | O37: 43.00547945 | Q37: 2019 | R37: 1963 | S37: 292 | T37: 0 | U37: 0 | V37: 0 | W37: 0 | X37: 0 | Y37: 44.5 | Z37: 0 | AA37: 0 | AB37: 0 | AC37: 0 | AD37: 188 | AE37: 43.90958904 | AG37: 2020 | AH37: 1963 | AI37: 335 | AJ37: 0 | AK37: 0 | AL37: 0 | AM37: 45 | AN37: 377 | AO37: 1 | AP37: 0 | AQ37: 0 | AR37: 0 | AS37: 0 | AT37: 440 | AW37: 2021 | AX37: 1963 | AY37: 335 | AZ37: 0 | BA37: 0 | BB37: 0 | BC37: 45 | BD37: 377 | BE37: 1 | BF37: 0 | BG37: 0 | BH37: 0 | BI37: 0 | BJ37: 440 | BM37: 2022 | BN37: 1963 | BO37: 335 | BP37: 0 | BQ37: 0 | BR37: 0 | BS37: 45 | BT37: 377 | BU37: 1 | BV37: 0 | BW37: 0 | BX37: 0 | BY37: 0 | BZ37: 440 | CC37: 2023 | CD37: 1963 | CE37: 335 | CF37: 0 | CG37: 0 | CH37: 0 | CI37: 45 | CJ37: 377 | CK37: 1 | CL37: 0 | CM37: 0 | CN37: 0 | CO37: 0 | CP37: 440 | CS37: 2024 | CT37: 1963 | CU37: 335 | CV37: 0 | CW37: 0 | CX37: 0 | CY37: 45 | CZ37: 377 | DA37: 0 | DB37: 0 | DC37: 0 | DD37: 0 | DE37: 0 | DF37: 440 | DI37: 2025 | DJ37: 1963 | DK37: 335 | DL37: 0 | DM37: 0 | DN37: 0 | DO37: 45 | DP37: 377 | DQ37: 1 | DR37: 0 | DS37: 0 | DT37: 0 | DU37: 0 | DV37: 440 | DY37: 2026 | DZ37: 1963 | EA37: 335 | EB37: 0 | EC37: 0 | ED37: 0 | EE37: 45 | EF37: 377 | EG37: 1 | EH37: 0 | EI37: 0 | EJ37: 0 | EK37: 0 | EL37: 440 | EO37: 2027 | EP37: 1963 | EQ37: 335 | ER37: 0 | ES37: 0 | ET37: 0 | EU37: 45 | EV37: 377 | EW37: 1 | EX37: 0 | EY37: 0 | EZ37: 0 | FA37: 0 | FB37: 440 | FE37: 2028 | FF37: 1963 | FG37: 335 | FH37: 0 | FI37: 0 | FJ37: 0 | FK37: 45 | FL37: 377 | FM37: 1 | FN37: 0 | FO37: 0 | FP37: 0 | FQ37: 0 | FR37: 440 | FU37: 2029 | FV37: 1963 | FW37: 335 | FX37: 0 | FY37: 0 | FZ37: 0 | GA37: 45 | GB37: 377 | GC37: 1 | GD37: 0 | GE37: 0 | GF37: 0 | GG37: 0 | GH37: 440 | GK37: 2030 | GL37: 1963 | GM37: 335 | GN37: 0 | GO37: 0 | GP37: 0 | GQ37: 45 | GR37: 377 | GS37: 1 | GT37: 0 | GU37: 0 | GV37: 0 | GW37: 0 | GX37: 440 | HA37: 2031 | HB37: 1963 | HC37: 333 | HD37: 0 | HE37: 0 | HF37: 0 | HG37: 0 | HH37: 0 | HI37: 60 | HJ37: 0 | HK37: 0 | HL37: 0 | HM37: 0 | HN37: 579
A38: 2018 | B38: 1964 | C38: 1329 | D38: 693 | E38: 152 | F38: 834 | G38: 457 | H38: 149 | I38: 0 | J38: 0 | K38: 0 | L38: 0 | M38: 0 | N38: 0 | O38: 301.3497717 | Q38: 2019 | R38: 1964 | S38: 1329 | T38: 693 | U38: 152 | V38: 834 | W38: 457 | X38: 169 | Y38: 0 | Z38: 0 | AA38: 0 | AB38: 0 | AC38: 0 | AD38: 0 | AE38: 303.0461187 | AG38: 2020 | AH38: 1964 | AI38: 906 | AJ38: 122 | AK38: 670 | AL38: 812 | AM38: 472 | AN38: 302 | AO38: 0 | AP38: 0 | AQ38: 0 | AR38: 0 | AS38: 0 | AT38: 0 | AW38: 2021 | AX38: 1964 | AY38: 906 | AZ38: 122 | BA38: 670 | BB38: 812 | BC38: 472 | BD38: 302 | BE38: 0 | BF38: 0 | BG38: 0 | BH38: 0 | BI38: 0 | BJ38: 0 | BM38: 2022 | BN38: 1964 | BO38: 906 | BP38: 122 | BQ38: 670 | BR38: 812 | BS38: 472 | BT38: 302 | BU38: 0 | BV38: 0 | BW38: 0 | BX38: 0 | BY38: 0 | BZ38: 0 | CC38: 2023 | CD38: 1964 | CE38: 906 | CF38: 122 | CG38: 670 | CH38: 812 | CI38: 472 | CJ38: 302 | CK38: 0 | CL38: 0 | CM38: 0 | CN38: 0 | CO38: 0 | CP38: 0 | CS38: 2024 | CT38: 1964 | CU38: 906 | CV38: 122 | CW38: 670 | CX38: 812 | CY38: 472 | CZ38: 302 | DA38: 0 | DB38: 0 | DC38: 0 | DD38: 0 | DE38: 0 | DF38: 0 | DI38: 2025 | DJ38: 1964 | DK38: 906 | DL38: 122 | DM38: 670 | DN38: 812 | DO38: 472 | DP38: 302 | DQ38: 0 | DR38: 0 | DS38: 0 | DT38: 0 | DU38: 0 | DV38: 0 | DY38: 2026 | DZ38: 1964 | EA38: 906 | EB38: 122 | EC38: 670 | ED38: 812 | EE38: 472 | EF38: 302 | EG38: 0 | EH38: 0 | EI38: 0 | EJ38: 0 | EK38: 0 | EL38: 0 | EO38: 2027 | EP38: 1964 | EQ38: 906 | ER38: 122 | ES38: 670 | ET38: 812 | EU38: 472 | EV38: 302 | EW38: 0 | EX38: 0 | EY38: 0 | EZ38: 0 | FA38: 0 | FB38: 0 | FE38: 2028 | FF38: 1964 | FG38: 906 | FH38: 122 | FI38: 670 | FJ38: 812 | FK38: 472 | FL38: 302 | FM38: 0 | FN38: 0 | FO38: 0 | FP38: 0 | FQ38: 0 | FR38: 0 | FU38: 2029 | FV38: 1964 | FW38: 906 | FX38: 122 | FY38: 670 | FZ38: 812 | GA38: 472 | GB38: 302 | GC38: 0 | GD38: 0 | GE38: 0 | GF38: 0 | GG38: 0 | GH38: 0 | GK38: 2030 | GL38: 1964 | GM38: 906 | GN38: 122 | GO38: 670 | GP38: 812 | GQ38: 472 | GR38: 302 | GS38: 0 | GT38: 0 | GU38: 0 | GV38: 0 | GW38: 0 | GX38: 0 | HA38: 2031 | HB38: 1964 | HC38: 906 | HD38: 37 | HE38: 670 | HF38: 866 | HG38: 472 | HH38: 162 | HI38: 0 | HJ38: 0 | HK38: 0 | HL38: 0 | HM38: 0 | HN38: 0
A39: 2018 | B39: 1965 | C39: 6 | D39: 0 | E39: 0 | F39: 0 | G39: 0 | H39: 0 | I39: 0 | J39: 0 | K39: 0 | L39: 0 | M39: 0 | N39: 794 | O39: 65.76986301 | Q39: 2019 | R39: 1965 | S39: 6 | T39: 0 | U39: 0 | V39: 0 | W39: 0 | X39: 0 | Y39: 0 | Z39: 0 | AA39: 0 | AB39: 0 | AC39: 0 | AD39: 813 | AE39: 67.33150685 | AG39: 2020 | AH39: 1965 | AI39: 0 | AJ39: 0 | AK39: 0 | AL39: 0 | AM39: 0 | AN39: 0 | AO39: 0 | AP39: 0 | AQ39: 0 | AR39: 0 | AS39: 0 | AT39: 1059 | AW39: 2021 | AX39: 1965 | AY39: 0 | AZ39: 0 | BA39: 0 | BB39: 0 | BC39: 0 | BD39: 0 | BE39: 0 | BF39: 0 | BG39: 0 | BH39: 0 | BI39: 0 | BJ39: 1059 | BM39: 2022 | BN39: 1965 | BO39: 0 | BP39: 0 | BQ39: 0 | BR39: 0 | BS39: 0 | BT39: 0 | BU39: 0 | BV39: 0 | BW39: 0 | BX39: 0 | BY39: 0 | BZ39: 1059 | CC39: 2023 | CD39: 1965 | CE39: 0 | CF39: 0 | CG39: 0 | CH39: 0 | CI39: 0 | CJ39: 0 | CK39: 0 | CL39: 0 | CM39: 0 | CN39: 0 | CO39: 0 | CP39: 1059 | CS39: 2024 | CT39: 1965 | CU39: 0 | CV39: 0 | CW39: 0 | CX39: 0 | CY39: 0 | CZ39: 0 | DA39: 0 | DB39: 0 | DC39: 0 | DD39: 0 | DE39: 0 | DF39: 1059 | DI39: 2025 | DJ39: 1965 | DK39: 0 | DL39: 0 | DM39: 0 | DN39: 0 | DO39: 0 | DP39: 0 | DQ39: 0 | DR39: 0 | DS39: 0 | DT39: 0 | DU39: 0 | DV39: 1059 | DY39: 2026 | DZ39: 1965 | EA39: 0 | EB39: 0 | EC39: 0 | ED39: 0 | EE39: 0 | EF39: 0 | EG39: 0 | EH39: 0 | EI39: 0 | EJ39: 0 | EK39: 0 | EL39: 1059 | EO39: 2027 | EP39: 1965 | EQ39: 0 | ER39: 0 | ES39: 0 | ET39: 0 | EU39: 0 | EV39: 0 | EW39: 0 | EX39: 0 | EY39: 0 | EZ39: 0 | FA39: 0 | FB39: 1059 | FE39: 2028 | FF39: 1965 | FG39: 0 | FH39: 0 | FI39: 0 | FJ39: 0 | FK39: 0 | FL39: 0 | FM39: 0 | FN39: 0 | FO39: 0 | FP39: 0 | FQ39: 0 | FR39: 1059 | FU39: 2029 | FV39: 1965 | FW39: 0 | FX39: 0 | FY39: 0 | FZ39: 0 | GA39: 0 | GB39: 0 | GC39: 0 | GD39: 0 | GE39: 0 | GF39: 0 | GG39: 0 | GH39: 1059 | GK39: 2030 | GL39: 1965 | GM39: 0 | GN39: 0 | GO39: 0 | GP39: 0 | GQ39: 0 | GR39: 0 | GS39: 0 | GT39: 0 | GU39: 0 | GV39: 0 | GW39: 0 | GX39: 1059 | HA39: 2031 | HB39: 1965 | HC39: 0 | HD39: 0 | HE39: 0 | HF39: 0 | HG39: 0 | HH39: 0 | HI39: 0 | HJ39: 0 | HK39: 0 | HL39: 0 | HM39: 0 | HN39: 1164
A40: 2018 | B40: 1966 | C40: 565 | D40: 378 | E40: 0 | F40: 0 | G40: 0 | H40: 425 | I40: 0 | J40: 0 | K40: 0 | L40: 0 | M40: 0 | N40: 755 | O40: 177.2001142 | Q40: 2019 | R40: 1966 | S40: 565 | T40: 378 | U40: 0 | V40: 0 | W40: 0 | X40: 425 | Y40: 0 | Z40: 0 | AA40: 0 | AB40: 0 | AC40: 0 | AD40: 767 | AE40: 178.1864155 | AG40: 2020 | AH40: 1966 | AI40: 429 | AJ40: 0 | AK40: 249 | AL40: 0 | AM40: 0 | AN40: 497 | AO40: 0 | AP40: 0 | AQ40: 0 | AR40: 0 | AS40: 0 | AT40: 759 | AW40: 2021 | AX40: 1966 | AY40: 429 | AZ40: 0 | BA40: 249 | BB40: 0 | BC40: 0 | BD40: 497 | BE40: 0 | BF40: 0 | BG40: 0 | BH40: 0 | BI40: 0 | BJ40: 759 | BM40: 2022 | BN40: 1966 | BO40: 429 | BP40: 0 | BQ40: 249 | BR40: 0 | BS40: 0 | BT40: 497 | BU40: 0 | BV40: 0 | BW40: 0 | BX40: 0 | BY40: 0 | BZ40: 759 | CC40: 2023 | CD40: 1966 | CE40: 429 | CF40: 0 | CG40: 249 | CH40: 0 | CI40: 0 | CJ40: 497 | CK40: 0 | CL40: 0 | CM40: 0 | CN40: 0 | CO40: 0 | CP40: 759 | CS40: 2024 | CT40: 1966 | CU40: 429 | CV40: 0 | CW40: 249 | CX40: 0 | CY40: 0 | CZ40: 497 | DA40: 0 | DB40: 0 | DC40: 0 | DD40: 0 | DE40: 0 | DF40: 759 | DI40: 2025 | DJ40: 1966 | DK40: 429 | DL40: 0 | DM40: 249 | DN40: 0 | DO40: 0 | DP40: 497 | DQ40: 0 | DR40: 0 | DS40: 0 | DT40: 0 | DU40: 0 | DV40: 759 | DY40: 2026 | DZ40: 1966 | EA40: 429 | EB40: 0 | EC40: 249 | ED40: 0 | EE40: 0 | EF40: 497 | EG40: 0 | EH40: 0 | EI40: 0 | EJ40: 0 | EK40: 0 | EL40: 759 | EO40: 2027 | EP40: 1966 | EQ40: 429 | ER40: 0 | ES40: 249 | ET40: 0 | EU40: 0 | EV40: 497 | EW40: 0 | EX40: 0 | EY40: 0 | EZ40: 0 | FA40: 0 | FB40: 759 | FE40: 2028 | FF40: 1966 | FG40: 429 | FH40: 0 | FI40: 249 | FJ40: 0 | FK40: 0 | FL40: 497 | FM40: 0 | FN40: 0 | FO40: 0 | FP40: 0 | FQ40: 0 | FR40: 759 | FU40: 2029 | FV40: 1966 | FW40: 429 | FX40: 0 | FY40: 249 | FZ40: 0 | GA40: 0 | GB40: 497 | GC40: 0 | GD40: 0 | GE40: 0 | GF40: 0 | GG40: 0 | GH40: 759 | GK40: 2030 | GL40: 1966 | GM40: 429 | GN40: 0 | GO40: 249 | GP40: 0 | GQ40: 0 | GR40: 497 | GS40: 0 | GT40: 0 | GU40: 0 | GV40: 0 | GW40: 0 | GX40: 759 | HA40: 2031 | HB40: 1966 | HC40: 429 | HD40: 0 | HE40: 249 | HF40: 0 | HG40: 0 | HH40: 497 | HI40: 0 | HJ40: 0 | HK40: 0 | HL40: 0 | HM40: 0 | HN40: 895
A41: 2018 | B41: 1967 | C41: 1225 | D41: 665 | E41: 0 | F41: 0 | G41: 0 | H41: 0 | I41: 501 | J41: 0 | K41: 0 | L41: 0 | M41: 0 | N41: 275 | O41: 222.5553653 | Q41: 2019 | R41: 1967 | S41: 1225 | T41: 711 | U41: 0 | V41: 0 | W41: 0 | X41: 0 | Y41: 502.5 | Z41: 0 | AA41: 0 | AB41: 0 | AC41: 0 | AD41: 284 | AE41: 227.2044521 | AG41: 2020 | AH41: 1967 | AI41: 912 | AJ41: 81 | AK41: 250 | AL41: 0 | AM41: 0 | AN41: 0 | AO41: 326 | AP41: 0 | AQ41: 0 | AR41: 0 | AS41: 0 | AT41: 496 | AW41: 2021 | AX41: 1967 | AY41: 912 | AZ41: 81 | BA41: 250 | BB41: 0 | BC41: 0 | BD41: 0 | BE41: 326 | BF41: 0 | BG41: 0 | BH41: 0 | BI41: 0 | BJ41: 496 | BM41: 2022 | BN41: 1967 | BO41: 912 | BP41: 81 | BQ41: 250 | BR41: 0 | BS41: 0 | BT41: 0 | BU41: 326 | BV41: 0 | BW41: 0 | BX41: 0 | BY41: 0 | BZ41: 496 | CC41: 2023 | CD41: 1967 | CE41: 912 | CF41: 81 | CG41: 250 | CH41: 0 | CI41: 0 | CJ41: 0 | CK41: 326 | CL41: 0 | CM41: 0 | CN41: 0 | CO41: 0 | CP41: 496 | CS41: 2024 | CT41: 1967 | CU41: 912 | CV41: 81 | CW41: 250 | CX41: 0 | CY41: 0 | CZ41: 0 | DA41: 326 | DB41: 0 | DC41: 0 | DD41: 0 | DE41: 0 | DF41: 496 | DI41: 2025 | DJ41: 1967 | DK41: 912 | DL41: 81 | DM41: 250 | DN41: 0 | DO41: 0 | DP41: 0 | DQ41: 326 | DR41: 0 | DS41: 0 | DT41: 0 | DU41: 0 | DV41: 496 | DY41: 2026 | DZ41: 1967 | EA41: 912 | EB41: 81 | EC41: 250 | ED41: 0 | EE41: 0 | EF41: 0 | EG41: 326 | EH41: 0 | EI41: 0 | EJ41: 0 | EK41: 0 | EL41: 496 | EO41: 2027 | EP41: 1967 | EQ41: 912 | ER41: 81 | ES41: 250 | ET41: 0 | EU41: 0 | EV41: 0 | EW41: 326 | EX41: 0 | EY41: 0 | EZ41: 0 | FA41: 0 | FB41: 496 | FE41: 2028 | FF41: 1967 | FG41: 912 | FH41: 81 | FI41: 250 | FJ41: 0 | FK41: 0 | FL41: 0 | FM41: 326 | FN41: 0 | FO41: 0 | FP41: 0 | FQ41: 0 | FR41: 496 | FU41: 2029 | FV41: 1967 | FW41: 912 | FX41: 81 | FY41: 250 | FZ41: 0 | GA41: 0 | GB41: 0 | GC41: 326 | GD41: 0 | GE41: 0 | GF41: 0 | GG41: 0 | GH41: 496 | GK41: 2030 | GL41: 1967 | GM41: 912 | GN41: 81 | GO41: 250 | GP41: 0 | GQ41: 0 | GR41: 0 | GS41: 326 | GT41: 0 | GU41: 0 | GV41: 0 | GW41: 0 | GX41: 496 | HA41: 2031 | HB41: 1967 | HC41: 910 | HD41: 0 | HE41: 250 | HF41: 0 | HG41: 0 | HH41: 0 | HI41: 361 | HJ41: 0 | HK41: 0 | HL41: 0 | HM41: 0 | HN41: 635
A42: 2018 | B42: 1968 | C42: 742 | D42: 50 | E42: 0 | F42: 0 | G42: 0 | H42: 0 | I42: -11 | J42: 133 | K42: 0 | L42: 0 | M42: 0 | N42: 0 | O42: 77.52625571 | Q42: 2019 | R42: 1968 | S42: 742 | T42: 50 | U42: 0 | V42: 0 | W42: 0 | X42: 0 | Y42: -9 | Z42: 207 | AA42: 0 | AB42: 0 | AC42: 0 | AD42: 0 | AE42: 83.97557078 | AG42: 2020 | AH42: 1968 | AI42: 618 | AJ42: 0 | AK42: 259 | AL42: 0 | AM42: 0 | AN42: 0 | AO42: 125.5 | AP42: 165 | AQ42: 0 | AR42: 0 | AS42: 0 | AT42: 0 | AW42: 2021 | AX42: 1968 | AY42: 618 | AZ42: 0 | BA42: 259 | BB42: 0 | BC42: 0 | BD42: 0 | BE42: 125.5 | BF42: 165 | BG42: 0 | BH42: 0 | BI42: 0 | BJ42: 0 | BM42: 2022 | BN42: 1968 | BO42: 618 | BP42: 0 | BQ42: 259 | BR42: 0 | BS42: 0 | BT42: 0 | BU42: 125.5 | BV42: 165 | BW42: 0 | BX42: 0 | BY42: 0 | BZ42: 0 | CC42: 2023 | CD42: 1968 | CE42: 618 | CF42: 0 | CG42: 259 | CH42: 0 | CI42: 0 | CJ42: 0 | CK42: 125.5 | CL42: 165 | CM42: 0 | CN42: 0 | CO42: 0 | CP42: 0 | CS42: 2024 | CT42: 1968 | CU42: 618 | CV42: 0 | CW42: 259 | CX42: 0 | CY42: 0 | CZ42: 0 | DA42: -102.5 | DB42: 165 | DC42: 0 | DD42: 0 | DE42: 0 | DF42: 0 | DI42: 2025 | DJ42: 1968 | DK42: 618 | DL42: 0 | DM42: 259 | DN42: 0 | DO42: 0 | DP42: 0 | DQ42: 125.5 | DR42: 165 | DS42: 0 | DT42: 0 | DU42: 0 | DV42: 0 | DY42: 2026 | DZ42: 1968 | EA42: 618 | EB42: 0 | EC42: 259 | ED42: 0 | EE42: 0 | EF42: 0 | EG42: 125.5 | EH42: 165 | EI42: 0 | EJ42: 0 | EK42: 0 | EL42: 0 | EO42: 2027 | EP42: 1968 | EQ42: 618 | ER42: 0 | ES42: 259 | ET42: 0 | EU42: 0 | EV42: 0 | EW42: 125.5 | EX42: 165 | EY42: 0 | EZ42: 0 | FA42: 0 | FB42: 0 | FE42: 2028 | FF42: 1968 | FG42: 618 | FH42: 0 | FI42: 259 | FJ42: 0 | FK42: 0 | FL42: 0 | FM42: 125.5 | FN42: 165 | FO42: 0 | FP42: 0 | FQ42: 0 | FR42: 0 | FU42: 2029 | FV42: 1968 | FW42: 618 | FX42: 0 | FY42: 259 | FZ42: 0 | GA42: 0 | GB42: 0 | GC42: 125.5 | GD42: 165 | GE42: 0 | GF42: 0 | GG42: 0 | GH42: 0 | GK42: 2030 | GL42: 1968 | GM42: 618 | GN42: 0 | GO42: 259 | GP42: 0 | GQ42: 0 | GR42: 0 | GS42: 125.5 | GT42: 165 | GU42: 0 | GV42: 0 | GW42: 0 | GX42: 0 | HA42: 2031 | HB42: 1968 | HC42: 618 | HD42: 0 | HE42: 259 | HF42: 0 | HG42: 0 | HH42: 0 | HI42: 33.5 | HJ42: 166 | HK42: 0 | HL42: 0 | HM42: 0 | HN42: 0
A43: 2018 | B43: 1969 | C43: 0 | D43: 0 | E43: 0 | F43: 0 | G43: 0 | H43: 0 | I43: 0 | J43: 0 | K43: 0 | L43: -231 | M43: 0 | N43: 708 | O43: 38.57260274 | Q43: 2019 | R43: 1969 | S43: 0 | T43: 0 | U43: 0 | V43: 0 | W43: 0 | X43: 0 | Y43: 0 | Z43: 0 | AA43: 0 | AB43: -243 | AC43: 0 | AD43: 714 | AE43: 38.04657534 | AG43: 2020 | AH43: 1969 | AI43: 0 | AJ43: 0 | AK43: 0 | AL43: 0 | AM43: 0 | AN43: 0 | AO43: 0 | AP43: 0 | AQ43: 0 | AR43: -181 | AS43: 0 | AT43: 745 | AW43: 2021 | AX43: 1969 | AY43: 0 | AZ43: 0 | BA43: 0 | BB43: 0 | BC43: 0 | BD43: 0 | BE43: 0 | BF43: 0 | BG43: 0 | BH43: -181 | BI43: 0 | BJ43: 745 | BM43: 2022 | BN43: 1969 | BO43: 0 | BP43: 0 | BQ43: 0 | BR43: 0 | BS43: 0 | BT43: 0 | BU43: 0 | BV43: 0 | BW43: 0 | BX43: -181 | BY43: 0 | BZ43: 745 | CC43: 2023 | CD43: 1969 | CE43: 0 | CF43: 0 | CG43: 0 | CH43: 0 | CI43: 0 | CJ43: 0 | CK43: 0 | CL43: 0 | CM43: 0 | CN43: -181 | CO43: 0 | CP43: 745 | CS43: 2024 | CT43: 1969 | CU43: 0 | CV43: 0 | CW43: 0 | CX43: 0 | CY43: 0 | CZ43: 0 | DA43: 0 | DB43: 0 | DC43: 0 | DD43: -181 | DE43: 0 | DF43: 745 | DI43: 2025 | DJ43: 1969 | DK43: 0 | DL43: 0 | DM43: 0 | DN43: 0 | DO43: 0 | DP43: 0 | DQ43: 0 | DR43: 0 | DS43: 0 | DT43: -181 | DU43: 0 | DV43: 745 | DY43: 2026 | DZ43: 1969 | EA43: 0 | EB43: 0 | EC43: 0 | ED43: 0 | EE43: 0 | EF43: 0 | EG43: 0 | EH43: 0 | EI43: 0 | EJ43: -181 | EK43: 0 | EL43: 745 | EO43: 2027 | EP43: 1969 | EQ43: 0 | ER43: 0 | ES43: 0 | ET43: 0 | EU43: 0 | EV43: 0 | EW43: 0 | EX43: 0 | EY43: 0 | EZ43: -181 | FA43: 0 | FB43: 745 | FE43: 2028 | FF43: 1969 | FG43: 0 | FH43: 0 | FI43: 0 | FJ43: 0 | FK43: 0 | FL43: 0 | FM43: 0 | FN43: 0 | FO43: 0 | FP43: -181 | FQ43: 0 | FR43: 745 | FU43: 2029 | FV43: 1969 | FW43: 0 | FX43: 0 | FY43: 0 | FZ43: 0 | GA43: 0 | GB43: 0 | GC43: 0 | GD43: 0 | GE43: 0 | GF43: -181 | GG43: 0 | GH43: 745 | GK43: 2030 | GL43: 1969 | GM43: 0 | GN43: 0 | GO43: 0 | GP43: 0 | GQ43: 0 | GR43: 0 | GS43: 0 | GT43: 0 | GU43: 0 | GV43: -181 | GW43: 0 | GX43: 745 | HA43: 2031 | HB43: 1969 | HC43: 0 | HD43: 0 | HE43: 0 | HF43: 0 | HG43: 0 | HH43: 0 | HI43: 0 | HJ43: 0 | HK43: 0 | HL43: -195 | HM43: 0 | HN43: 893
A44: 2018 | B44: 1970 | C44: 820 | D44: 209 | E44: 1049 | F44: 0 | G44: 0 | H44: 0 | I44: -170.5 | J44: 0 | K44: 0 | L44: 0 | M44: -31.4516129 | N44: 796 | O44: 224.678653 | Q44: 2019 | R44: 1970 | S44: 820 | T44: 209 | U44: 1049 | V44: 0 | W44: 0 | X44: 0 | Y44: -161 | Z44: 0 | AA44: 0 | AB44: 0 | AC44: -34.35483871 | AD44: 806 | AE44: 226.0348174 | AG44: 2020 | AH44: 1970 | AI44: 796 | AJ44: 0 | AK44: 1261 | AL44: 0 | AM44: 0 | AN44: 0 | AO44: -127 | AP44: 0 | AQ44: 0 | AR44: 0 | AS44: -28.06451613 | AT44: 999 | AW44: 2021 | AX44: 1970 | AY44: 796 | AZ44: 0 | BA44: 1261 | BB44: 0 | BC44: 0 | BD44: 0 | BE44: -127 | BF44: 0 | BG44: 0 | BH44: 0 | BI44: -28.06451613 | BJ44: 999 | BM44: 2022 | BN44: 1970 | BO44: 796 | BP44: 0 | BQ44: 1261 | BR44: 0 | BS44: 0 | BT44: 0 | BU44: -127 | BV44: 0 | BW44: 0 | BX44: 0 | BY44: -28.06451613 | BZ44: 999 | CC44: 2023 | CD44: 1970 | CE44: 796 | CF44: 0 | CG44: 1261 | CH44: 0 | CI44: 0 | CJ44: 0 | CK44: -127 | CL44: 0 | CM44: 0 | CN44: 0 | CO44: -28.06451613 | CP44: 999 | CS44: 2024 | CT44: 1970 | CU44: 796 | CV44: 0 | CW44: 1261 | CX44: 0 | CY44: 0 | CZ44: 0 | DA44: -127 | DB44: 0 | DC44: 0 | DD44: 0 | DE44: -28.06451613 | DF44: 999 | DI44: 2025 | DJ44: 1970 | DK44: 796 | DL44: 0 | DM44: 1261 | DN44: 0 | DO44: 0 | DP44: 0 | DQ44: -127 | DR44: 0 | DS44: 0 | DT44: 0 | DU44: -28.06451613 | DV44: 999 | DY44: 2026 | DZ44: 1970 | EA44: 796 | EB44: 0 | EC44: 1261 | ED44: 0 | EE44: 0 | EF44: 0 | EG44: -127 | EH44: 0 | EI44: 0 | EJ44: 0 | EK44: -28.06451613 | EL44: 999 | EO44: 2027 | EP44: 1970 | EQ44: 796 | ER44: 0 | ES44: 1261 | ET44: 0 | EU44: 0 | EV44: 0 | EW44: -127 | EX44: 0 | EY44: 0 | EZ44: 0 | FA44: -28.06451613 | FB44: 999 | FE44: 2028 | FF44: 1970 | FG44: 796 | FH44: 0 | FI44: 1261 | FJ44: 0 | FK44: 0 | FL44: 0 | FM44: -127 | FN44: 0 | FO44: 0 | FP44: 0 | FQ44: -28.06451613 | FR44: 999 | FU44: 2029 | FV44: 1970 | FW44: 796 | FX44: 0 | FY44: 1261 | FZ44: 0 | GA44: 0 | GB44: 0 | GC44: -127 | GD44: 0 | GE44: 0 | GF44: 0 | GG44: -28.06451613 | GH44: 999 | GK44: 2030 | GL44: 1970 | GM44: 796 | GN44: 0 | GO44: 1261 | GP44: 0 | GQ44: 0 | GR44: 0 | GS44: -127 | GT44: 0 | GU44: 0 | GV44: 0 | GW44: -28.06451613 | GX44: 999 | HA44: 2031 | HB44: 1970 | HC44: 796 | HD44: 0 | HE44: 1274 | HF44: 0 | HG44: 0 | HH44: 0 | HI44: -176 | HJ44: 0 | HK44: 0 | HL44: 0 | HM44: -79.35483871 | HN44: 1114
A45: 2018 | B45: 1971 | C45: 1272 | D45: 602 | E45: 467 | F45: 0 | G45: 0 | H45: 0 | I45: 0 | J45: 0 | K45: 0 | L45: 0 | M45: 0 | N45: 192 | O45: 213.0248858 | Q45: 2019 | R45: 1971 | S45: 1272 | T45: 602 | U45: 467 | V45: 0 | W45: 0 | X45: 0 | Y45: 0 | Z45: 0 | AA45: 0 | AB45: 0 | AC45: 0 | AD45: 206 | AE45: 214.1755708 | AG45: 2020 | AH45: 1971 | AI45: 917 | AJ45: 165 | AK45: 705 | AL45: 0 | AM45: 0 | AN45: 0 | AO45: 0 | AP45: 0 | AQ45: 0 | AR45: 0 | AS45: 0 | AT45: 418 | AW45: 2021 | AX45: 1971 | AY45: 917 | AZ45: 165 | BA45: 705 | BB45: 0 | BC45: 0 | BD45: 0 | BE45: 0 | BF45: 0 | BG45: 0 | BH45: 0 | BI45: 0 | BJ45: 418 | BM45: 2022 | BN45: 1971 | BO45: 917 | BP45: 165 | BQ45: 705 | BR45: 0 | BS45: 0 | BT45: 0 | BU45: 0 | BV45: 0 | BW45: 0 | BX45: 0 | BY45: 0 | BZ45: 418 | CC45: 2023 | CD45: 1971 | CE45: 917 | CF45: 165 | CG45: 705 | CH45: 0 | CI45: 0 | CJ45: 0 | CK45: 0 | CL45: 0 | CM45: 0 | CN45: 0 | CO45: 0 | CP45: 418 | CS45: 2024 | CT45: 1971 | CU45: 917 | CV45: 165 | CW45: 705 | CX45: 0 | CY45: 0 | CZ45: 0 | DA45: 0 | DB45: 0 | DC45: 0 | DD45: 0 | DE45: 0 | DF45: 418 | DI45: 2025 | DJ45: 1971 | DK45: 917 | DL45: 165 | DM45: 705 | DN45: 0 | DO45: 0 | DP45: 0 | DQ45: 0 | DR45: 0 | DS45: 0 | DT45: 0 | DU45: 0 | DV45: 418 | DY45: 2026 | DZ45: 1971 | EA45: 917 | EB45: 165 | EC45: 705 | ED45: 0 | EE45: 0 | EF45: 0 | EG45: 0 | EH45: 0 | EI45: 0 | EJ45: 0 | EK45: 0 | EL45: 418 | EO45: 2027 | EP45: 1971 | EQ45: 917 | ER45: 165 | ES45: 705 | ET45: 0 | EU45: 0 | EV45: 0 | EW45: 0 | EX45: 0 | EY45: 0 | EZ45: 0 | FA45: 0 | FB45: 418 | FE45: 2028 | FF45: 1971 | FG45: 917 | FH45: 165 | FI45: 705 | FJ45: 0 | FK45: 0 | FL45: 0 | FM45: 0 | FN45: 0 | FO45: 0 | FP45: 0 | FQ45: 0 | FR45: 418 | FU45: 2029 | FV45: 1971 | FW45: 917 | FX45: 165 | FY45: 705 | FZ45: 0 | GA45: 0 | GB45: 0 | GC45: 0 | GD45: 0 | GE45: 0 | GF45: 0 | GG45: 0 | GH45: 418 | GK45: 2030 | GL45: 1971 | GM45: 917 | GN45: 165 | GO45: 705 | GP45: 0 | GQ45: 0 | GR45: 0 | GS45: 0 | GT45: 0 | GU45: 0 | GV45: 0 | GW45: 0 | GX45: 418 | HA45: 2031 | HB45: 1971 | HC45: 928 | HD45: 77 | HE45: 720 | HF45: 0 | HG45: 0 | HH45: 0 | HI45: 0 | HJ45: 0 | HK45: 0 | HL45: 0 | HM45: 0 | HN45: 539
A46: 2018 | B46: 1972 | C46: 586 | D46: 482 | E46: 0 | F46: 0 | G46: 0 | H46: 0 | I46: 0 | J46: 0 | K46: 0 | L46: 0 | M46: 0 | N46: 0 | O46: 89.4413242 | Q46: 2019 | R46: 1972 | S46: 586 | T46: 482 | U46: 0 | V46: 0 | W46: 0 | X46: 0 | Y46: 0 | Z46: 0 | AA46: 0 | AB46: 0 | AC46: 0 | AD46: 0 | AE46: 89.4413242 | AG46: 2020 | AH46: 1972 | AI46: 447 | AJ46: 0 | AK46: 35 | AL46: 0 | AM46: 0 | AN46: 0 | AO46: 0 | AP46: 0 | AQ46: 0 | AR46: 0 | AS46: 0 | AT46: 120 | AW46: 2021 | AX46: 1972 | AY46: 447 | AZ46: 0 | BA46: 35 | BB46: 0 | BC46: 0 | BD46: 0 | BE46: 0 | BF46: 0 | BG46: 0 | BH46: 0 | BI46: 0 | BJ46: 120 | BM46: 2022 | BN46: 1972 | BO46: 447 | BP46: 0 | BQ46: 35 | BR46: 0 | BS46: 0 | BT46: 0 | BU46: 0 | BV46: 0 | BW46: 0 | BX46: 0 | BY46: 0 | BZ46: 120 | CC46: 2023 | CD46: 1972 | CE46: 447 | CF46: 0 | CG46: 35 | CH46: 0 | CI46: 0 | CJ46: 0 | CK46: 0 | CL46: 0 | CM46: 0 | CN46: 0 | CO46: 0 | CP46: 120 | CS46: 2024 | CT46: 1972 | CU46: 447 | CV46: 0 | CW46: 35 | CX46: 0 | CY46: 0 | CZ46: 0 | DA46: 0 | DB46: 0 | DC46: 0 | DD46: 0 | DE46: 0 | DF46: 120 | DI46: 2025 | DJ46: 1972 | DK46: 447 | DL46: 0 | DM46: 35 | DN46: 0 | DO46: 0 | DP46: 0 | DQ46: 0 | DR46: 0 | DS46: 0 | DT46: 0 | DU46: 0 | DV46: 120 | DY46: 2026 | DZ46: 1972 | EA46: 447 | EB46: 0 | EC46: 35 | ED46: 0 | EE46: 0 | EF46: 0 | EG46: 0 | EH46: 0 | EI46: 0 | EJ46: 0 | EK46: 0 | EL46: 120 | EO46: 2027 | EP46: 1972 | EQ46: 447 | ER46: 0 | ES46: 35 | ET46: 0 | EU46: 0 | EV46: 0 | EW46: 0 | EX46: 0 | EY46: 0 | EZ46: 0 | FA46: 0 | FB46: 120 | FE46: 2028 | FF46: 1972 | FG46: 447 | FH46: 0 | FI46: 35 | FJ46: 0 | FK46: 0 | FL46: 0 | FM46: 0 | FN46: 0 | FO46: 0 | FP46: 0 | FQ46: 0 | FR46: 120 | FU46: 2029 | FV46: 1972 | FW46: 447 | FX46: 0 | FY46: 35 | FZ46: 0 | GA46: 0 | GB46: 0 | GC46: 0 | GD46: 0 | GE46: 0 | GF46: 0 | GG46: 0 | GH46: 120 | GK46: 2030 | GL46: 1972 | GM46: 447 | GN46: 0 | GO46: 35 | GP46: 0 | GQ46: 0 | GR46: 0 | GS46: 0 | GT46: 0 | GU46: 0 | GV46: 0 | GW46: 0 | GX46: 120 | HA46: 2031 | HB46: 1972 | HC46: 447 | HD46: 0 | HE46: 35 | HF46: 0 | HG46: 0 | HH46: 0 | HI46: 0 | HJ46: 0 | HK46: 0 | HL46: 0 | HM46: 0 | HN46: 276
A47: 2018 | B47: 1973 | C47: 621 | D47: 344 | E47: 0 | F47: 0 | G47: 747 | H47: 769 | I47: 897 | J47: 0 | K47: 1875 | L47: -155 | M47: -65.96774194 | N47: -17 | O47: 411.2555936 | Q47: 2019 | R47: 1973 | S47: 621 | T47: 344 | U47: 0 | V47: 0 | W47: 747 | X47: 780 | Y47: 940 | Z47: 0 | AA47: 1899 | AB47: -122 | AC47: 16 | AD47: -111 | AE47: 419.73379 | AG47: 2020 | AH47: 1973 | AI47: 519 | AJ47: 0 | AK47: 527 | AL47: 0 | AM47: 1063 | AN47: 314 | AO47: 695.5 | AP47: 58 | AQ47: 1227 | AR47: -111 | AS47: -60.03225806 | AT47: 195 | AW47: 2021 | AX47: 1973 | AY47: 519 | AZ47: 0 | BA47: 527 | BB47: 0 | BC47: 1063 | BD47: 314 | BE47: 695.5 | BF47: 58 | BG47: 1227 | BH47: -111 | BI47: -60.03225806 | BJ47: 195 | BM47: 2022 | BN47: 1973 | BO47: 519 | BP47: 0 | BQ47: 527 | BR47: 0 | BS47: 1063 | BT47: 314 | BU47: 695.5 | BV47: 58 | BW47: 1227 | BX47: -111 | BY47: -60.03225806 | BZ47: 195 | CC47: 2023 | CD47: 1973 | CE47: 519 | CF47: 0 | CG47: 527 | CH47: 0 | CI47: 1063 | CJ47: 314 | CK47: 695.5 | CL47: 58 | CM47: 1227 | CN47: -111 | CO47: -60.03225806 | CP47: 195 | CS47: 2024 | CT47: 1973 | CU47: 519 | CV47: 0 | CW47: 527 | CX47: 0 | CY47: 1063 | CZ47: 314 | DA47: -67 | DB47: 58 | DC47: 1227 | DD47: -111 | DE47: -60.03225806 | DF47: 195 | DI47: 2025 | DJ47: 1973 | DK47: 519 | DL47: 0 | DM47: 527 | DN47: 0 | DO47: 1063 | DP47: 314 | DQ47: 695.5 | DR47: 58 | DS47: 1227 | DT47: -111 | DU47: -60.03225806 | DV47: 195 | DY47: 2026 | DZ47: 1973 | EA47: 519 | EB47: 0 | EC47: 527 | ED47: 0 | EE47: 1063 | EF47: 314 | EG47: 695.5 | EH47: 58 | EI47: 1227 | EJ47: -111 | EK47: -60.03225806 | EL47: 195 | EO47: 2027 | EP47: 1973 | EQ47: 519 | ER47: 0 | ES47: 527 | ET47: 0 | EU47: 1063 | EV47: 314 | EW47: 695.5 | EX47: 58 | EY47: 1227 | EZ47: -111 | FA47: -60.03225806 | FB47: 195 | FE47: 2028 | FF47: 1973 | FG47: 519 | FH47: 0 | FI47: 527 | FJ47: 0 | FK47: 1063 | FL47: 314 | FM47: 695.5 | FN47: 58 | FO47: 1227 | FP47: -111 | FQ47: -60.03225806 | FR47: 195 | FU47: 2029 | FV47: 1973 | FW47: 519 | FX47: 0 | FY47: 527 | FZ47: 0 | GA47: 1063 | GB47: 314 | GC47: 695.5 | GD47: 58 | GE47: 1227 | GF47: -111 | GG47: -60.03225806 | GH47: 195 | GK47: 2030 | GL47: 1973 | GM47: 519 | GN47: 0 | GO47: 527 | GP47: 0 | GQ47: 1063 | GR47: 314 | GS47: 695.5 | GT47: 58 | GU47: 1227 | GV47: -111 | GW47: -60.03225806 | GX47: 195 | HA47: 2031 | HB47: 1973 | HC47: 519 | HD47: 0 | HE47: 527 | HF47: 0 | HG47: 1063 | HH47: 424 | HI47: 644.5 | HJ47: 62 | HK47: 1326 | HL47: -104 | HM47: -52.48387097 | HN47: 176
A48: 2018 | B48: 1974 | C48: 727 | D48: 805 | E48: 0 | F48: 0 | G48: 0 | H48: 0 | I48: 0 | J48: 0 | K48: 0 | L48: 0 | M48: 0 | N48: 60 | O48: 132.9329909 | Q48: 2019 | R48: 1974 | S48: 720 | T48: 811 | U48: 0 | V48: 0 | W48: 0 | X48: 0 | Y48: 0 | Z48: 0 | AA48: 0 | AB48: 0 | AC48: 0 | AD48: 73 | AE48: 133.9007991 | AG48: 2020 | AH48: 1974 | AI48: 278 | AJ48: 261 | AK48: 0 | AL48: 0 | AM48: 0 | AN48: 0 | AO48: 0 | AP48: 0 | AQ48: 0 | AR48: 0 | AS48: 0 | AT48: 222 | AW48: 2021 | AX48: 1974 | AY48: 278 | AZ48: 261 | BA48: 0 | BB48: 0 | BC48: 0 | BD48: 0 | BE48: 0 | BF48: 0 | BG48: 0 | BH48: 0 | BI48: 0 | BJ48: 222 | BM48: 2022 | BN48: 1974 | BO48: 278 | BP48: 261 | BQ48: 0 | BR48: 0 | BS48: 0 | BT48: 0 | BU48: 0 | BV48: 0 | BW48: 0 | BX48: 0 | BY48: 0 | BZ48: 222 | CC48: 2023 | CD48: 1974 | CE48: 278 | CF48: 261 | CG48: 0 | CH48: 0 | CI48: 0 | CJ48: 0 | CK48: 0 | CL48: 0 | CM48: 0 | CN48: 0 | CO48: 0 | CP48: 222 | CS48: 2024 | CT48: 1974 | CU48: 278 | CV48: 261 | CW48: 0 | CX48: 0 | CY48: 0 | CZ48: 0 | DA48: 0 | DB48: 0 | DC48: 0 | DD48: 0 | DE48: 0 | DF48: 222 | DI48: 2025 | DJ48: 1974 | DK48: 278 | DL48: 261 | DM48: 0 | DN48: 0 | DO48: 0 | DP48: 0 | DQ48: 0 | DR48: 0 | DS48: 0 | DT48: 0 | DU48: 0 | DV48: 222 | DY48: 2026 | DZ48: 1974 | EA48: 278 | EB48: 261 | EC48: 0 | ED48: 0 | EE48: 0 | EF48: 0 | EG48: 0 | EH48: 0 | EI48: 0 | EJ48: 0 | EK48: 0 | EL48: 222 | EO48: 2027 | EP48: 1974 | EQ48: 278 | ER48: 261 | ES48: 0 | ET48: 0 | EU48: 0 | EV48: 0 | EW48: 0 | EX48: 0 | EY48: 0 | EZ48: 0 | FA48: 0 | FB48: 222 | FE48: 2028 | FF48: 1974 | FG48: 278 | FH48: 261 | FI48: 0 | FJ48: 0 | FK48: 0 | FL48: 0 | FM48: 0 | FN48: 0 | FO48: 0 | FP48: 0 | FQ48: 0 | FR48: 222 | FU48: 2029 | FV48: 1974 | FW48: 278 | FX48: 261 | FY48: 0 | FZ48: 0 | GA48: 0 | GB48: 0 | GC48: 0 | GD48: 0 | GE48: 0 | GF48: 0 | GG48: 0 | GH48: 222 | GK48: 2030 | GL48: 1974 | GM48: 278 | GN48: 261 | GO48: 0 | GP48: 0 | GQ48: 0 | GR48: 0 | GS48: 0 | GT48: 0 | GU48: 0 | GV48: 0 | GW48: 0 | GX48: 222 | HA48: 2031 | HB48: 1974 | HC48: 270 | HD48: 45 | HE48: 0 | HF48: 0 | HG48: 0 | HH48: 0 | HI48: 0 | HJ48: 0 | HK48: 0 | HL48: 0 | HM48: 0 | HN48: 391
A49: 2018 | B49: 1975 | C49: 1413 | D49: 413 | E49: 1251 | F49: 0 | G49: 0 | H49: 0 | I49: 0 | J49: 0 | K49: 0 | L49: 0 | M49: 0 | N49: 0 | O49: 260.2498858 | Q49: 2019 | R49: 1975 | S49: 1413 | T49: 413 | U49: 1251 | V49: 0 | W49: 0 | X49: 0 | Y49: 0 | Z49: 0 | AA49: 0 | AB49: 0 | AC49: 0 | AD49: 0 | AE49: 260.2498858 | AG49: 2020 | AH49: 1975 | AI49: 1032 | AJ49: 129 | AK49: 1358 | AL49: 0 | AM49: 0 | AN49: 0 | AO49: 0 | AP49: 0 | AQ49: 0 | AR49: 0 | AS49: 0 | AT49: 100 | AW49: 2021 | AX49: 1975 | AY49: 1032 | AZ49: 129 | BA49: 1358 | BB49: 0 | BC49: 0 | BD49: 0 | BE49: 0 | BF49: 0 | BG49: 0 | BH49: 0 | BI49: 0 | BJ49: 100 | BM49: 2022 | BN49: 1975 | BO49: 1032 | BP49: 129 | BQ49: 1358 | BR49: 0 | BS49: 0 | BT49: 0 | BU49: 0 | BV49: 0 | BW49: 0 | BX49: 0 | BY49: 0 | BZ49: 100 | CC49: 2023 | CD49: 1975 | CE49: 1032 | CF49: 129 | CG49: 1358 | CH49: 0 | CI49: 0 | CJ49: 0 | CK49: 0 | CL49: 0 | CM49: 0 | CN49: 0 | CO49: 0 | CP49: 100 | CS49: 2024 | CT49: 1975 | CU49: 1032 | CV49: 129 | CW49: 1358 | CX49: 0 | CY49: 0 | CZ49: 0 | DA49: 0 | DB49: 0 | DC49: 0 | DD49: 0 | DE49: 0 | DF49: 100 | DI49: 2025 | DJ49: 1975 | DK49: 1032 | DL49: 129 | DM49: 1358 | DN49: 0 | DO49: 0 | DP49: 0 | DQ49: 0 | DR49: 0 | DS49: 0 | DT49: 0 | DU49: 0 | DV49: 100 | DY49: 2026 | DZ49: 1975 | EA49: 1032 | EB49: 129 | EC49: 1358 | ED49: 0 | EE49: 0 | EF49: 0 | EG49: 0 | EH49: 0 | EI49: 0 | EJ49: 0 | EK49: 0 | EL49: 100 | EO49: 2027 | EP49: 1975 | EQ49: 1032 | ER49: 129 | ES49: 1358 | ET49: 0 | EU49: 0 | EV49: 0 | EW49: 0 | EX49: 0 | EY49: 0 | EZ49: 0 | FA49: 0 | FB49: 100 | FE49: 2028 | FF49: 1975 | FG49: 1032 | FH49: 129 | FI49: 1358 | FJ49: 0 | FK49: 0 | FL49: 0 | FM49: 0 | FN49: 0 | FO49: 0 | FP49: 0 | FQ49: 0 | FR49: 100 | FU49: 2029 | FV49: 1975 | FW49: 1032 | FX49: 129 | FY49: 1358 | FZ49: 0 | GA49: 0 | GB49: 0 | GC49: 0 | GD49: 0 | GE49: 0 | GF49: 0 | GG49: 0 | GH49: 100 | GK49: 2030 | GL49: 1975 | GM49: 1032 | GN49: 129 | GO49: 1358 | GP49: 0 | GQ49: 0 | GR49: 0 | GS49: 0 | GT49: 0 | GU49: 0 | GV49: 0 | GW49: 0 | GX49: 100 | HA49: 2031 | HB49: 1975 | HC49: 1037 | HD49: 44 | HE49: 1358 | HF49: 0 | HG49: 0 | HH49: 0 | HI49: 0 | HJ49: 0 | HK49: 0 | HL49: 0 | HM49: 0 | HN49: 273
A50: 2018 | B50: 1976 | C50: 0 | D50: 0 | E50: 0 | F50: 0 | G50: 0 | H50: 0 | I50: 0 | J50: 0 | K50: 0 | L50: 0 | M50: 0 | N50: 0 | O50: 0 | Q50: 2019 | R50: 1976 | S50: 0 | T50: 0 | U50: 0 | V50: 0 | W50: 0 | X50: 0 | Y50: 0 | Z50: 0 | AA50: 0 | AB50: 0 | AC50: 0 | AD50: 0 | AE50: 0 | AG50: 2020 | AH50: 1976 | AI50: 0 | AJ50: 0 | AK50: 0 | AL50: 0 | AM50: 0 | AN50: 0 | AO50: 0 | AP50: 0 | AQ50: 0 | AR50: 0 | AS50: 0 | AT50: 0 | AW50: 2021 | AX50: 1976 | AY50: 0 | AZ50: 0 | BA50: 0 | BB50: 0 | BC50: 0 | BD50: 0 | BE50: 0 | BF50: 0 | BG50: 0 | BH50: 0 | BI50: 0 | BJ50: 0 | BM50: 2022 | BN50: 1976 | BO50: 0 | BP50: 0 | BQ50: 0 | BR50: 0 | BS50: 0 | BT50: 0 | BU50: 0 | BV50: 0 | BW50: 0 | BX50: 0 | BY50: 0 | BZ50: 0 | CC50: 2023 | CD50: 1976 | CE50: 0 | CF50: 0 | CG50: 0 | CH50: 0 | CI50: 0 | CJ50: 0 | CK50: 0 | CL50: 0 | CM50: 0 | CN50: 0 | CO50: 0 | CP50: 0 | CS50: 2024 | CT50: 1976 | CU50: 0 | CV50: 0 | CW50: 0 | CX50: 0 | CY50: 0 | CZ50: 0 | DA50: 0 | DB50: 0 | DC50: 0 | DD50: 0 | DE50: 0 | DF50: 0 | DI50: 2025 | DJ50: 1976 | DK50: 0 | DL50: 0 | DM50: 0 | DN50: 0 | DO50: 0 | DP50: 0 | DQ50: 0 | DR50: 0 | DS50: 0 | DT50: 0 | DU50: 0 | DV50: 0 | DY50: 2026 | DZ50: 1976 | EA50: 0 | EB50: 0 | EC50: 0 | ED50: 0 | EE50: 0 | EF50: 0 | EG50: 0 | EH50: 0 | EI50: 0 | EJ50: 0 | EK50: 0 | EL50: 0 | EO50: 2027 | EP50: 1976 | EQ50: 0 | ER50: 0 | ES50: 0 | ET50: 0 | EU50: 0 | EV50: 0 | EW50: 0 | EX50: 0 | EY50: 0 | EZ50: 0 | FA50: 0 | FB50: 0 | FE50: 2028 | FF50: 1976 | FG50: 0 | FH50: 0 | FI50: 0 | FJ50: 0 | FK50: 0 | FL50: 0 | FM50: 0 | FN50: 0 | FO50: 0 | FP50: 0 | FQ50: 0 | FR50: 0 | FU50: 2029 | FV50: 1976 | FW50: 0 | FX50: 0 | FY50: 0 | FZ50: 0 | GA50: 0 | GB50: 0 | GC50: 0 | GD50: 0 | GE50: 0 | GF50: 0 | GG50: 0 | GH50: 0 | GK50: 2030 | GL50: 1976 | GM50: 0 | GN50: 0 | GO50: 0 | GP50: 0 | GQ50: 0 | GR50: 0 | GS50: 0 | GT50: 0 | GU50: 0 | GV50: 0 | GW50: 0 | GX50: 0 | HA50: 2031 | HB50: 1976 | HC50: 0 | HD50: 0 | HE50: 0 | HF50: 0 | HG50: 0 | HH50: 0 | HI50: 0 | HJ50: 0 | HK50: 0 | HL50: 0 | HM50: 0 | HN50: 0
A51: 2018 | B51: 1977 | C51: 540 | D51: 287 | E51: 1360 | F51: 1628 | G51: 1128 | H51: 1359 | I51: 1138 | J51: 2075 | K51: 3137 | L51: 364 | M51: -274.8709677 | N51: 1158 | O51: 1155.409132 | Q51: 2019 | R51: 1977 | S51: 540 | T51: 287 | U51: 1360 | V51: 1628 | W51: 1128 | X51: 1358 | Y51: 1139.5 | Z51: 2075 | AA51: 3144 | AB51: 362 | AC51: -111.8387097 | AD51: 1164 | AE51: 1170.192808 | AG51: 2020 | AH51: 1977 | AI51: 399 | AJ51: 0 | AK51: 1362 | AL51: 1623 | AM51: 1057 | AN51: 1324 | AO51: 887.5 | AP51: 1805 | AQ51: 3394 | AR51: 215 | AS51: -276.8709677 | AT51: 1357 | AW51: 2021 | AX51: 1977 | AY51: 399 | AZ51: 0 | BA51: 1362 | BB51: 1623 | BC51: 1057 | BD51: 1324 | BE51: 887.5 | BF51: 1805 | BG51: 3394 | BH51: 215 | BI51: -276.8709677 | BJ51: 1357 | BM51: 2022 | BN51: 1977 | BO51: 399 | BP51: 0 | BQ51: 1362 | BR51: 1623 | BS51: 1057 | BT51: 1324 | BU51: 887.5 | BV51: 1805 | BW51: 3394 | BX51: 215 | BY51: -276.8709677 | BZ51: 1357 | CC51: 2023 | CD51: 1977 | CE51: 399 | CF51: 0 | CG51: 1362 | CH51: 1623 | CI51: 1057 | CJ51: 1324 | CK51: 887.5 | CL51: 1805 | CM51: 3394 | CN51: 215 | CO51: -276.8709677 | CP51: 1357 | CS51: 2024 | CT51: 1977 | CU51: 399 | CV51: 0 | CW51: 1362 | CX51: 1623 | CY51: 1057 | CZ51: 1324 | DA51: 220.5 | DB51: 1805 | DC51: 3394 | DD51: 215 | DE51: -276.8709677 | DF51: 1357 | DI51: 2025 | DJ51: 1977 | DK51: 399 | DL51: 0 | DM51: 1362 | DN51: 1623 | DO51: 1057 | DP51: 1324 | DQ51: 887.5 | DR51: 1805 | DS51: 3394 | DT51: 215 | DU51: -276.8709677 | DV51: 1357 | DY51: 2026 | DZ51: 1977 | EA51: 399 | EB51: 0 | EC51: 1362 | ED51: 1623 | EE51: 1057 | EF51: 1324 | EG51: 887.5 | EH51: 1805 | EI51: 3394 | EJ51: 215 | EK51: -276.8709677 | EL51: 1357 | EO51: 2027 | EP51: 1977 | EQ51: 399 | ER51: 0 | ES51: 1362 | ET51: 1623 | EU51: 1057 | EV51: 1324 | EW51: 887.5 | EX51: 1805 | EY51: 3394 | EZ51: 215 | FA51: -276.8709677 | FB51: 1357 | FE51: 2028 | FF51: 1977 | FG51: 399 | FH51: 0 | FI51: 1362 | FJ51: 1623 | FK51: 1057 | FL51: 1324 | FM51: 887.5 | FN51: 1805 | FO51: 3394 | FP51: 215 | FQ51: -276.8709677 | FR51: 1357 | FU51: 2029 | FV51: 1977 | FW51: 399 | FX51: 0 | FY51: 1362 | FZ51: 1623 | GA51: 1057 | GB51: 1324 | GC51: 887.5 | GD51: 1805 | GE51: 3394 | GF51: 215 | GG51: -276.8709677 | GH51: 1357 | GK51: 2030 | GL51: 1977 | GM51: 399 | GN51: 0 | GO51: 1362 | GP51: 1623 | GQ51: 1057 | GR51: 1324 | GS51: 887.5 | GT51: 1805 | GU51: 3394 | GV51: 215 | GW51: -276.8709677 | GX51: 1357 | HA51: 2031 | HB51: 1977 | HC51: 399 | HD51: 0 | HE51: 1362 | HF51: 1677 | HG51: 1054 | HH51: 1417 | HI51: 864.5 | HJ51: 1907 | HK51: 3426 | HL51: 222 | HM51: -275.0645161 | HN51: 1397
A52: 2018 | B52: 1978 | C52: 970 | D52: -240 | E52: 19 | F52: 0 | G52: 0 | H52: 851 | I52: 0 | J52: 0 | K52: 0 | L52: 0 | M52: -6.774193548 | N52: 0 | O52: 135.8480594 | Q52: 2019 | R52: 1978 | S52: 918 | T52: -304 | U52: 121 | V52: 0 | W52: 0 | X52: 881 | Y52: 0 | Z52: 0 | AA52: 0 | AB52: 0 | AC52: -7.741935484 | AD52: 0 | AE52: 137.2893836 | AG52: 2020 | AH52: 1978 | AI52: 679 | AJ52: 195 | AK52: 0 | AL52: 0 | AM52: 23 | AN52: 776 | AO52: 0 | AP52: 0 | AQ52: 0 | AR52: 0 | AS52: -7.741935484 | AT52: 0 | AW52: 2021 | AX52: 1978 | AY52: 679 | AZ52: 195 | BA52: 0 | BB52: 0 | BC52: 23 | BD52: 776 | BE52: 0 | BF52: 0 | BG52: 0 | BH52: 0 | BI52: -7.741935484 | BJ52: 0 | BM52: 2022 | BN52: 1978 | BO52: 679 | BP52: 195 | BQ52: 0 | BR52: 0 | BS52: 23 | BT52: 776 | BU52: 0 | BV52: 0 | BW52: 0 | BX52: 0 | BY52: -7.741935484 | BZ52: 0 | CC52: 2023 | CD52: 1978 | CE52: 679 | CF52: 195 | CG52: 0 | CH52: 0 | CI52: 23 | CJ52: 776 | CK52: 0 | CL52: 0 | CM52: 0 | CN52: 0 | CO52: -7.741935484 | CP52: 0 | CS52: 2024 | CT52: 1978 | CU52: 679 | CV52: 195 | CW52: 0 | CX52: 0 | CY52: 23 | CZ52: 776 | DA52: 0 | DB52: 0 | DC52: 0 | DD52: 0 | DE52: -7.741935484 | DF52: 0 | DI52: 2025 | DJ52: 1978 | DK52: 679 | DL52: 195 | DM52: 0 | DN52: 0 | DO52: 23 | DP52: 776 | DQ52: 0 | DR52: 0 | DS52: 0 | DT52: 0 | DU52: -7.741935484 | DV52: 0 | DY52: 2026 | DZ52: 1978 | EA52: 679 | EB52: 195 | EC52: 0 | ED52: 0 | EE52: 23 | EF52: 776 | EG52: 0 | EH52: 0 | EI52: 0 | EJ52: 0 | EK52: -7.741935484 | EL52: 0 | EO52: 2027 | EP52: 1978 | EQ52: 679 | ER52: 195 | ES52: 0 | ET52: 0 | EU52: 23 | EV52: 776 | EW52: 0 | EX52: 0 | EY52: 0 | EZ52: 0 | FA52: -7.741935484 | FB52: 0 | FE52: 2028 | FF52: 1978 | FG52: 679 | FH52: 195 | FI52: 0 | FJ52: 0 | FK52: 23 | FL52: 776 | FM52: 0 | FN52: 0 | FO52: 0 | FP52: 0 | FQ52: -7.741935484 | FR52: 0 | FU52: 2029 | FV52: 1978 | FW52: 679 | FX52: 195 | FY52: 0 | FZ52: 0 | GA52: 23 | GB52: 776 | GC52: 0 | GD52: 0 | GE52: 0 | GF52: 0 | GG52: -7.741935484 | GH52: 0 | GK52: 2030 | GL52: 1978 | GM52: 679 | GN52: 195 | GO52: 0 | GP52: 0 | GQ52: 23 | GR52: 776 | GS52: 0 | GT52: 0 | GU52: 0 | GV52: 0 | GW52: -7.741935484 | GX52: 0 | HA52: 2031 | HB52: 1978 | HC52: 677 | HD52: 161 | HE52: -66 | HF52: 0 | HG52: 564 | HH52: 0 | HI52: 0 | HJ52: 0 | HK52: 0 | HL52: 0 | HM52: -3.870967742 | HN52: 0
A53: 2018 | B53: 1979 | C53: 183 | D53: 591 | E53: 1440 | F53: 1013 | G53: 826 | H53: 0 | I53: 348.5 | J53: 0 | K53: -378 | L53: 1013 | M53: -84.06451613 | N53: -232 | O53: 393.2893836 | Q53: 2019 | R53: 1979 | S53: 183 | T53: 815 | U53: 1559 | V53: 1010 | W53: 821 | X53: 0 | Y53: 365.5 | Z53: 0 | AA53: -372 | AB53: 1056 | AC53: -23.22580645 | AD53: -226 | AE53: 432.3971461 | AG53: 2020 | AH53: 1979 | AI53: 5 | AJ53: 5 | AK53: 1540 | AL53: 2002 | AM53: 425 | AN53: 0 | AO53: 352.5 | AP53: 0 | AQ53: -311 | AR53: 559 | AS53: 22.12903226 | AT53: 177 | AW53: 2021 | AX53: 1979 | AY53: 5 | AZ53: 5 | BA53: 1540 | BB53: 2002 | BC53: 425 | BD53: 0 | BE53: 352.5 | BF53: 0 | BG53: -311 | BH53: 559 | BI53: 22.12903226 | BJ53: 177 | BM53: 2022 | BN53: 1979 | BO53: 5 | BP53: 5 | BQ53: 1540 | BR53: 2002 | BS53: 425 | BT53: 0 | BU53: 352.5 | BV53: 0 | BW53: -311 | BX53: 559 | BY53: 22.12903226 | BZ53: 177 | CC53: 2023 | CD53: 1979 | CE53: 5 | CF53: 5 | CG53: 1540 | CH53: 2002 | CI53: 425 | CJ53: 0 | CK53: 352.5 | CL53: 0 | CM53: -311 | CN53: 559 | CO53: 22.12903226 | CP53: 177 | CS53: 2024 | CT53: 1979 | CU53: 5 | CV53: 5 | CW53: 1540 | CX53: 2002 | CY53: 425 | CZ53: 0 | DA53: 352.5 | DB53: 0 | DC53: -311 | DD53: 559 | DE53: 22.12903226 | DF53: 177 | DI53: 2025 | DJ53: 1979 | DK53: 5 | DL53: 5 | DM53: 1540 | DN53: 2002 | DO53: 425 | DP53: 0 | DQ53: 352.5 | DR53: 0 | DS53: -311 | DT53: 559 | DU53: 22.12903226 | DV53: 177 | DY53: 2026 | DZ53: 1979 | EA53: 5 | EB53: 5 | EC53: 1540 | ED53: 2002 | EE53: 425 | EF53: 0 | EG53: 352.5 | EH53: 0 | EI53: -311 | EJ53: 559 | EK53: 22.12903226 | EL53: 177 | EO53: 2027 | EP53: 1979 | EQ53: 5 | ER53: 5 | ES53: 1540 | ET53: 2002 | EU53: 425 | EV53: 0 | EW53: 352.5 | EX53: 0 | EY53: -311 | EZ53: 559 | FA53: 22.12903226 | FB53: 177 | FE53: 2028 | FF53: 1979 | FG53: 5 | FH53: 5 | FI53: 1540 | FJ53: 2002 | FK53: 425 | FL53: 0 | FM53: 352.5 | FN53: 0 | FO53: -311 | FP53: 559 | FQ53: 22.12903226 | FR53: 177 | FU53: 2029 | FV53: 1979 | FW53: 5 | FX53: 5 | FY53: 1540 | FZ53: 2002 | GA53: 425 | GB53: 0 | GC53: 352.5 | GD53: 0 | GE53: -311 | GF53: 559 | GG53: 22.12903226 | GH53: 177 | GK53: 2030 | GL53: 1979 | GM53: 5 | GN53: 5 | GO53: 1540 | GP53: 2002 | GQ53: 425 | GR53: 0 | GS53: 352.5 | GT53: 0 | GU53: -311 | GV53: 559 | GW53: 22.12903226 | GX53: 177 | HA53: 2031 | HB53: 1979 | HC53: 266 | HD53: 0 | HE53: 1456 | HF53: 1605 | HG53: 203 | HH53: 0 | HI53: 48 | HJ53: 0 | HK53: -374 | HL53: 310 | HM53: 25.09677419 | HN53: 339
A54: 2018 | B54: 1980 | C54: 931 | D54: 780 | E54: 1888 | F54: 1805 | G54: 617 | H54: 1275 | I54: 0 | J54: 0 | K54: 0 | L54: -225 | M54: -137.0322581 | N54: 0 | O54: 581.6476027 | Q54: 2019 | R54: 1980 | S54: 885 | T54: 932 | U54: 1685 | V54: 1805 | W54: 617 | X54: 1190 | Y54: 0 | Z54: 0 | AA54: 0 | AB54: -235 | AC54: -130.1612903 | AD54: 0 | AE54: 565.5349315 | AG54: 2020 | AH54: 1980 | AI54: 737 | AJ54: 611 | AK54: 1876 | AL54: 1230 | AM54: 952 | AN54: 890 | AO54: 0 | AP54: 0 | AQ54: 0 | AR54: -205 | AS54: -168.1612903 | AT54: 31 | AW54: 2021 | AX54: 1980 | AY54: 737 | AZ54: 611 | BA54: 1876 | BB54: 1230 | BC54: 952 | BD54: 890 | BE54: 0 | BF54: 0 | BG54: 0 | BH54: -205 | BI54: -168.1612903 | BJ54: 31 | BM54: 2022 | BN54: 1980 | BO54: 737 | BP54: 611 | BQ54: 1876 | BR54: 1230 | BS54: 952 | BT54: 890 | BU54: 0 | BV54: 0 | BW54: 0 | BX54: -205 | BY54: -168.1612903 | BZ54: 31 | CC54: 2023 | CD54: 1980 | CE54: 737 | CF54: 611 | CG54: 1876 | CH54: 1230 | CI54: 952 | CJ54: 890 | CK54: 0 | CL54: 0 | CM54: 0 | CN54: -205 | CO54: -168.1612903 | CP54: 31 | CS54: 2024 | CT54: 1980 | CU54: 737 | CV54: 611 | CW54: 1876 | CX54: 1230 | CY54: 952 | CZ54: 890 | DA54: 0 | DB54: 0 | DC54: 0 | DD54: -205 | DE54: -168.1612903 | DF54: 31 | DI54: 2025 | DJ54: 1980 | DK54: 737 | DL54: 611 | DM54: 1876 | DN54: 1230 | DO54: 952 | DP54: 890 | DQ54: 0 | DR54: 0 | DS54: 0 | DT54: -205 | DU54: -168.1612903 | DV54: 31 | DY54: 2026 | DZ54: 1980 | EA54: 737 | EB54: 611 | EC54: 1876 | ED54: 1230 | EE54: 952 | EF54: 890 | EG54: 0 | EH54: 0 | EI54: 0 | EJ54: -205 | EK54: -168.1612903 | EL54: 31 | EO54: 2027 | EP54: 1980 | EQ54: 737 | ER54: 611 | ES54: 1876 | ET54: 1230 | EU54: 952 | EV54: 890 | EW54: 0 | EX54: 0 | EY54: 0 | EZ54: -205 | FA54: -168.1612903 | FB54: 31 | FE54: 2028 | FF54: 1980 | FG54: 737 | FH54: 611 | FI54: 1876 | FJ54: 1230 | FK54: 952 | FL54: 890 | FM54: 0 | FN54: 0 | FO54: 0 | FP54: -205 | FQ54: -168.1612903 | FR54: 31 | FU54: 2029 | FV54: 1980 | FW54: 737 | FX54: 611 | FY54: 1876 | FZ54: 1230 | GA54: 952 | GB54: 890 | GC54: 0 | GD54: 0 | GE54: 0 | GF54: -205 | GG54: -168.1612903 | GH54: 31 | GK54: 2030 | GL54: 1980 | GM54: 737 | GN54: 611 | GO54: 1876 | GP54: 1230 | GQ54: 952 | GR54: 890 | GS54: 0 | GT54: 0 | GU54: 0 | GV54: -205 | GW54: -168.1612903 | GX54: 31 | HA54: 2031 | HB54: 1980 | HC54: 753 | HD54: 409 | HE54: 1747 | HF54: 1376 | HG54: 1179 | HH54: 691 | HI54: 0 | HJ54: 0 | HK54: 0 | HL54: -446 | HM54: -277.2258065 | HN54: 117
A55: 2018 | B55: 1981 | C55: 966 | D55: 723 | E55: 0 | F55: 0 | G55: 0 | H55: 0 | I55: 977.5 | J55: 0 | K55: 0 | L55: 0 | M55: 0 | N55: 267 | O55: 243.8386986 | Q55: 2019 | R55: 1981 | S55: 966 | T55: 780 | U55: 0 | V55: 0 | W55: 0 | X55: 0 | Y55: 974 | Z55: 0 | AA55: 0 | AB55: 0 | AC55: 0 | AD55: 279 | AE55: 249.2287671 | AG55: 2020 | AH55: 1981 | AI55: 415 | AJ55: 172 | AK55: 0 | AL55: 0 | AM55: 0 | AN55: 488 | AO55: 462 | AP55: 0 | AQ55: 0 | AR55: 0 | AS55: 0 | AT55: 482 | AW55: 2021 | AX55: 1981 | AY55: 415 | AZ55: 172 | BA55: 0 | BB55: 0 | BC55: 0 | BD55: 488 | BE55: 462 | BF55: 0 | BG55: 0 | BH55: 0 | BI55: 0 | BJ55: 482 | BM55: 2022 | BN55: 1981 | BO55: 415 | BP55: 172 | BQ55: 0 | BR55: 0 | BS55: 0 | BT55: 488 | BU55: 462 | BV55: 0 | BW55: 0 | BX55: 0 | BY55: 0 | BZ55: 482 | CC55: 2023 | CD55: 1981 | CE55: 415 | CF55: 172 | CG55: 0 | CH55: 0 | CI55: 0 | CJ55: 488 | CK55: 462 | CL55: 0 | CM55: 0 | CN55: 0 | CO55: 0 | CP55: 482 | CS55: 2024 | CT55: 1981 | CU55: 415 | CV55: 172 | CW55: 0 | CX55: 0 | CY55: 0 | CZ55: 488 | DA55: 190.5 | DB55: 0 | DC55: 0 | DD55: 0 | DE55: 0 | DF55: 482 | DI55: 2025 | DJ55: 1981 | DK55: 415 | DL55: 172 | DM55: 0 | DN55: 0 | DO55: 0 | DP55: 488 | DQ55: 462 | DR55: 0 | DS55: 0 | DT55: 0 | DU55: 0 | DV55: 482 | DY55: 2026 | DZ55: 1981 | EA55: 415 | EB55: 172 | EC55: 0 | ED55: 0 | EE55: 0 | EF55: 488 | EG55: 462 | EH55: 0 | EI55: 0 | EJ55: 0 | EK55: 0 | EL55: 482 | EO55: 2027 | EP55: 1981 | EQ55: 415 | ER55: 172 | ES55: 0 | ET55: 0 | EU55: 0 | EV55: 488 | EW55: 462 | EX55: 0 | EY55: 0 | EZ55: 0 | FA55: 0 | FB55: 482 | FE55: 2028 | FF55: 1981 | FG55: 415 | FH55: 172 | FI55: 0 | FJ55: 0 | FK55: 0 | FL55: 488 | FM55: 462 | FN55: 0 | FO55: 0 | FP55: 0 | FQ55: 0 | FR55: 482 | FU55: 2029 | FV55: 1981 | FW55: 415 | FX55: 172 | FY55: 0 | FZ55: 0 | GA55: 0 | GB55: 488 | GC55: 462 | GD55: 0 | GE55: 0 | GF55: 0 | GG55: 0 | GH55: 482 | GK55: 2030 | GL55: 1981 | GM55: 415 | GN55: 172 | GO55: 0 | GP55: 0 | GQ55: 0 | GR55: 488 | GS55: 462 | GT55: 0 | GU55: 0 | GV55: 0 | GW55: 0 | GX55: 482 | HA55: 2031 | HB55: 1981 | HC55: 422 | HD55: 259 | HE55: 0 | HF55: 0 | HG55: 0 | HH55: 0 | HI55: 806.5 | HJ55: 0 | HK55: 0 | HL55: 0 | HM55: 0 | HN55: 633
A56: 2018 | B56: 1982 | C56: 965 | D56: 0 | E56: 0 | F56: 0 | G56: 0 | H56: 0 | I56: 0 | J56: 0 | K56: 0 | L56: 0 | M56: 0 | N56: 0 | O56: 81.95890411 | Q56: 2019 | R56: 1982 | S56: 965 | T56: 0 | U56: 0 | V56: 0 | W56: 0 | X56: 0 | Y56: 0 | Z56: 0 | AA56: 0 | AB56: 0 | AC56: 0 | AD56: 0 | AE56: 81.95890411 | AG56: 2020 | AH56: 1982 | AI56: 765 | AJ56: 0 | AK56: 506 | AL56: 0 | AM56: 0 | AN56: 0 | AO56: 0 | AP56: 0 | AQ56: 0 | AR56: 0 | AS56: 0 | AT56: 0 | AW56: 2021 | AX56: 1982 | AY56: 765 | AZ56: 0 | BA56: 506 | BB56: 0 | BC56: 0 | BD56: 0 | BE56: 0 | BF56: 0 | BG56: 0 | BH56: 0 | BI56: 0 | BJ56: 0 | BM56: 2022 | BN56: 1982 | BO56: 765 | BP56: 0 | BQ56: 506 | BR56: 0 | BS56: 0 | BT56: 0 | BU56: 0 | BV56: 0 | BW56: 0 | BX56: 0 | BY56: 0 | BZ56: 0 | CC56: 2023 | CD56: 1982 | CE56: 765 | CF56: 0 | CG56: 506 | CH56: 0 | CI56: 0 | CJ56: 0 | CK56: 0 | CL56: 0 | CM56: 0 | CN56: 0 | CO56: 0 | CP56: 0 | CS56: 2024 | CT56: 1982 | CU56: 765 | CV56: 0 | CW56: 506 | CX56: 0 | CY56: 0 | CZ56: 0 | DA56: 0 | DB56: 0 | DC56: 0 | DD56: 0 | DE56: 0 | DF56: 0 | DI56: 2025 | DJ56: 1982 | DK56: 765 | DL56: 0 | DM56: 506 | DN56: 0 | DO56: 0 | DP56: 0 | DQ56: 0 | DR56: 0 | DS56: 0 | DT56: 0 | DU56: 0 | DV56: 0 | DY56: 2026 | DZ56: 1982 | EA56: 765 | EB56: 0 | EC56: 506 | ED56: 0 | EE56: 0 | EF56: 0 | EG56: 0 | EH56: 0 | EI56: 0 | EJ56: 0 | EK56: 0 | EL56: 0 | EO56: 2027 | EP56: 1982 | EQ56: 765 | ER56: 0 | ES56: 506 | ET56: 0 | EU56: 0 | EV56: 0 | EW56: 0 | EX56: 0 | EY56: 0 | EZ56: 0 | FA56: 0 | FB56: 0 | FE56: 2028 | FF56: 1982 | FG56: 765 | FH56: 0 | FI56: 506 | FJ56: 0 | FK56: 0 | FL56: 0 | FM56: 0 | FN56: 0 | FO56: 0 | FP56: 0 | FQ56: 0 | FR56: 0 | FU56: 2029 | FV56: 1982 | FW56: 765 | FX56: 0 | FY56: 506 | FZ56: 0 | GA56: 0 | GB56: 0 | GC56: 0 | GD56: 0 | GE56: 0 | GF56: 0 | GG56: 0 | GH56: 0 | GK56: 2030 | GL56: 1982 | GM56: 765 | GN56: 0 | GO56: 506 | GP56: 0 | GQ56: 0 | GR56: 0 | GS56: 0 | GT56: 0 | GU56: 0 | GV56: 0 | GW56: 0 | GX56: 0 | HA56: 2031 | HB56: 1982 | HC56: 765 | HD56: 0 | HE56: 506 | HF56: 0 | HG56: 0 | HH56: 0 | HI56: 0 | HJ56: 0 | HK56: 0 | HL56: 0 | HM56: 0 | HN56: 0
A57: 2018 | B57: 1983 | C57: 0 | D57: 0 | E57: 0 | F57: 0 | G57: 0 | H57: 0 | I57: 0 | J57: 0 | K57: 0 | L57: 0 | M57: 0 | N57: 0 | O57: 0 | Q57: 2019 | R57: 1983 | S57: 0 | T57: 0 | U57: 0 | V57: 0 | W57: 0 | X57: 0 | Y57: 0 | Z57: 0 | AA57: 0 | AB57: 0 | AC57: 0 | AD57: 0 | AE57: 0 | AG57: 2020 | AH57: 1983 | AI57: 0 | AJ57: 0 | AK57: 0 | AL57: 0 | AM57: 0 | AN57: 0 | AO57: 0 | AP57: 0 | AQ57: 0 | AR57: 0 | AS57: 0 | AT57: 225 | AW57: 2021 | AX57: 1983 | AY57: 0 | AZ57: 0 | BA57: 0 | BB57: 0 | BC57: 0 | BD57: 0 | BE57: 0 | BF57: 0 | BG57: 0 | BH57: 0 | BI57: 0 | BJ57: 225 | BM57: 2022 | BN57: 1983 | BO57: 0 | BP57: 0 | BQ57: 0 | BR57: 0 | BS57: 0 | BT57: 0 | BU57: 0 | BV57: 0 | BW57: 0 | BX57: 0 | BY57: 0 | BZ57: 225 | CC57: 2023 | CD57: 1983 | CE57: 0 | CF57: 0 | CG57: 0 | CH57: 0 | CI57: 0 | CJ57: 0 | CK57: 0 | CL57: 0 | CM57: 0 | CN57: 0 | CO57: 0 | CP57: 225 | CS57: 2024 | CT57: 1983 | CU57: 0 | CV57: 0 | CW57: 0 | CX57: 0 | CY57: 0 | CZ57: 0 | DA57: 0 | DB57: 0 | DC57: 0 | DD57: 0 | DE57: 0 | DF57: 225 | DI57: 2025 | DJ57: 1983 | DK57: 0 | DL57: 0 | DM57: 0 | DN57: 0 | DO57: 0 | DP57: 0 | DQ57: 0 | DR57: 0 | DS57: 0 | DT57: 0 | DU57: 0 | DV57: 225 | DY57: 2026 | DZ57: 1983 | EA57: 0 | EB57: 0 | EC57: 0 | ED57: 0 | EE57: 0 | EF57: 0 | EG57: 0 | EH57: 0 | EI57: 0 | EJ57: 0 | EK57: 0 | EL57: 225 | EO57: 2027 | EP57: 1983 | EQ57: 0 | ER57: 0 | ES57: 0 | ET57: 0 | EU57: 0 | EV57: 0 | EW57: 0 | EX57: 0 | EY57: 0 | EZ57: 0 | FA57: 0 | FB57: 225 | FE57: 2028 | FF57: 1983 | FG57: 0 | FH57: 0 | FI57: 0 | FJ57: 0 | FK57: 0 | FL57: 0 | FM57: 0 | FN57: 0 | FO57: 0 | FP57: 0 | FQ57: 0 | FR57: 225 | FU57: 2029 | FV57: 1983 | FW57: 0 | FX57: 0 | FY57: 0 | FZ57: 0 | GA57: 0 | GB57: 0 | GC57: 0 | GD57: 0 | GE57: 0 | GF57: 0 | GG57: 0 | GH57: 225 | GK57: 2030 | GL57: 1983 | GM57: 0 | GN57: 0 | GO57: 0 | GP57: 0 | GQ57: 0 | GR57: 0 | GS57: 0 | GT57: 0 | GU57: 0 | GV57: 0 | GW57: 0 | GX57: 225 | HA57: 2031 | HB57: 1983 | HC57: 0 | HD57: 0 | HE57: 0 | HF57: 0 | HG57: 0 | HH57: 0 | HI57: 0 | HJ57: 0 | HK57: 0 | HL57: 0 | HM57: 0 | HN57: 401
A58: 2018 | B58: 1984 | C58: 789 | D58: 0 | E58: 0 | F58: 0 | G58: 0 | H58: 0 | I58: 0 | J58: 0 | K58: 0 | L58: 0 | M58: 0 | N58: 0 | O58: 67.0109589 | Q58: 2019 | R58: 1984 | S58: 789 | T58: 0 | U58: 0 | V58: 0 | W58: 0 | X58: 0 | Y58: 0 | Z58: 0 | AA58: 0 | AB58: 0 | AC58: 0 | AD58: 0 | AE58: 67.0109589 | AG58: 2020 | AH58: 1984 | AI58: 650 | AJ58: 0 | AK58: 0 | AL58: 0 | AM58: 0 | AN58: 0 | AO58: 0 | AP58: 0 | AQ58: 0 | AR58: 0 | AS58: 0 | AT58: 214 | AW58: 2021 | AX58: 1984 | AY58: 650 | AZ58: 0 | BA58: 0 | BB58: 0 | BC58: 0 | BD58: 0 | BE58: 0 | BF58: 0 | BG58: 0 | BH58: 0 | BI58: 0 | BJ58: 214 | BM58: 2022 | BN58: 1984 | BO58: 650 | BP58: 0 | BQ58: 0 | BR58: 0 | BS58: 0 | BT58: 0 | BU58: 0 | BV58: 0 | BW58: 0 | BX58: 0 | BY58: 0 | BZ58: 214 | CC58: 2023 | CD58: 1984 | CE58: 650 | CF58: 0 | CG58: 0 | CH58: 0 | CI58: 0 | CJ58: 0 | CK58: 0 | CL58: 0 | CM58: 0 | CN58: 0 | CO58: 0 | CP58: 214 | CS58: 2024 | CT58: 1984 | CU58: 650 | CV58: 0 | CW58: 0 | CX58: 0 | CY58: 0 | CZ58: 0 | DA58: 0 | DB58: 0 | DC58: 0 | DD58: 0 | DE58: 0 | DF58: 214 | DI58: 2025 | DJ58: 1984 | DK58: 650 | DL58: 0 | DM58: 0 | DN58: 0 | DO58: 0 | DP58: 0 | DQ58: 0 | DR58: 0 | DS58: 0 | DT58: 0 | DU58: 0 | DV58: 214 | DY58: 2026 | DZ58: 1984 | EA58: 650 | EB58: 0 | EC58: 0 | ED58: 0 | EE58: 0 | EF58: 0 | EG58: 0 | EH58: 0 | EI58: 0 | EJ58: 0 | EK58: 0 | EL58: 214 | EO58: 2027 | EP58: 1984 | EQ58: 650 | ER58: 0 | ES58: 0 | ET58: 0 | EU58: 0 | EV58: 0 | EW58: 0 | EX58: 0 | EY58: 0 | EZ58: 0 | FA58: 0 | FB58: 214 | FE58: 2028 | FF58: 1984 | FG58: 650 | FH58: 0 | FI58: 0 | FJ58: 0 | FK58: 0 | FL58: 0 | FM58: 0 | FN58: 0 | FO58: 0 | FP58: 0 | FQ58: 0 | FR58: 214 | FU58: 2029 | FV58: 1984 | FW58: 650 | FX58: 0 | FY58: 0 | FZ58: 0 | GA58: 0 | GB58: 0 | GC58: 0 | GD58: 0 | GE58: 0 | GF58: 0 | GG58: 0 | GH58: 214 | GK58: 2030 | GL58: 1984 | GM58: 650 | GN58: 0 | GO58: 0 | GP58: 0 | GQ58: 0 | GR58: 0 | GS58: 0 | GT58: 0 | GU58: 0 | GV58: 0 | GW58: 0 | GX58: 214 | HA58: 2031 | HB58: 1984 | HC58: 650 | HD58: 0 | HE58: 0 | HF58: 0 | HG58: 0 | HH58: 0 | HI58: 0 | HJ58: 0 | HK58: 0 | HL58: 0 | HM58: 0 | HN58: 390
A59: 2018 | B59: 1985 | C59: 802 | D59: 142 | E59: 0 | F59: 0 | G59: 222 | H59: 373 | I59: 0 | J59: 0 | K59: -328 | L59: -286 | M59: 197.5806452 | N59: -7 | O59: 93.42568493 | Q59: 2019 | R59: 1985 | S59: 802 | T59: 142 | U59: 0 | V59: 59 | W59: 53 | X59: 373 | Y59: 0 | Z59: 0 | AA59: -351 | AB59: -219 | AC59: 256.3548387 | AD59: 0 | AE59: 94.83938356 | AG59: 2020 | AH59: 1985 | AI59: 663 | AJ59: 0 | AK59: 430 | AL59: 132 | AM59: 189 | AN59: 634 | AO59: 0 | AP59: 0 | AQ59: -391 | AR59: 1159 | AS59: 450.4516129 | AT59: 247 | AW59: 2021 | AX59: 1985 | AY59: 663 | AZ59: 0 | BA59: 430 | BB59: 132 | BC59: 189 | BD59: 634 | BE59: 0 | BF59: 0 | BG59: -391 | BH59: 1159 | BI59: 450.4516129 | BJ59: 247 | BM59: 2022 | BN59: 1985 | BO59: 663 | BP59: 0 | BQ59: 430 | BR59: 132 | BS59: 189 | BT59: 634 | BU59: 0 | BV59: 0 | BW59: -391 | BX59: 1159 | BY59: 450.4516129 | BZ59: 247 | CC59: 2023 | CD59: 1985 | CE59: 663 | CF59: 0 | CG59: 430 | CH59: 132 | CI59: 189 | CJ59: 634 | CK59: 0 | CL59: 0 | CM59: -391 | CN59: 1159 | CO59: 450.4516129 | CP59: 247 | CS59: 2024 | CT59: 1985 | CU59: 663 | CV59: 0 | CW59: 430 | CX59: 132 | CY59: 189 | CZ59: 634 | DA59: 0 | DB59: 0 | DC59: -391 | DD59: 1159 | DE59: 450.4516129 | DF59: 247 | DI59: 2025 | DJ59: 1985 | DK59: 663 | DL59: 0 | DM59: 430 | DN59: 132 | DO59: 189 | DP59: 634 | DQ59: 0 | DR59: 0 | DS59: -391 | DT59: 1159 | DU59: 450.4516129 | DV59: 247 | DY59: 2026 | DZ59: 1985 | EA59: 663 | EB59: 0 | EC59: 430 | ED59: 132 | EE59: 189 | EF59: 634 | EG59: 0 | EH59: 0 | EI59: -391 | EJ59: 1159 | EK59: 450.4516129 | EL59: 247 | EO59: 2027 | EP59: 1985 | EQ59: 663 | ER59: 0 | ES59: 430 | ET59: 132 | EU59: 189 | EV59: 634 | EW59: 0 | EX59: 0 | EY59: -391 | EZ59: 1159 | FA59: 450.4516129 | FB59: 247 | FE59: 2028 | FF59: 1985 | FG59: 663 | FH59: 0 | FI59: 430 | FJ59: 132 | FK59: 189 | FL59: 634 | FM59: 0 | FN59: 0 | FO59: -391 | FP59: 1159 | FQ59: 450.4516129 | FR59: 247 | FU59: 2029 | FV59: 1985 | FW59: 663 | FX59: 0 | FY59: 430 | FZ59: 132 | GA59: 189 | GB59: 634 | GC59: 0 | GD59: 0 | GE59: -391 | GF59: 1159 | GG59: 450.4516129 | GH59: 247 | GK59: 2030 | GL59: 1985 | GM59: 663 | GN59: 0 | GO59: 430 | GP59: 132 | GQ59: 189 | GR59: 634 | GS59: 0 | GT59: 0 | GU59: -391 | GV59: 1159 | GW59: 450.4516129 | GX59: 247 | HA59: 2031 | HB59: 1985 | HC59: 663 | HD59: 0 | HE59: 430 | HF59: 0 | HG59: 55 | HH59: 753 | HI59: 0 | HJ59: 0 | HK59: -544 | HL59: 987 | HM59: 455.2580645 | HN59: 360
A60: 2018 | B60: 1986 | C60: 1062 | D60: 0 | E60: -51 | F60: 0 | G60: 0 | H60: 0 | I60: 0 | J60: 0 | K60: 0 | L60: -39 | M60: -24.77419355 | N60: 1022 | O60: 164.4493151 | Q60: 2019 | R60: 1986 | S60: 1143 | T60: 0 | U60: 0 | V60: 0 | W60: 0 | X60: 0 | Y60: 0 | Z60: 0 | AA60: 0 | AB60: -49 | AC60: -27.87096774 | AD60: 1033 | AE60: 175.4520548 | AG60: 2020 | AH60: 1986 | AI60: 440 | AJ60: 0 | AK60: 247 | AL60: 0 | AM60: 0 | AN60: 0 | AO60: 0 | AP60: 0 | AQ60: 0 | AR60: -27 | AS60: -21.67741935 | AT60: 1087 | AW60: 2021 | AX60: 1986 | AY60: 440 | AZ60: 0 | BA60: 247 | BB60: 0 | BC60: 0 | BD60: 0 | BE60: 0 | BF60: 0 | BG60: 0 | BH60: -27 | BI60: -21.67741935 | BJ60: 1087 | BM60: 2022 | BN60: 1986 | BO60: 440 | BP60: 0 | BQ60: 247 | BR60: 0 | BS60: 0 | BT60: 0 | BU60: 0 | BV60: 0 | BW60: 0 | BX60: -27 | BY60: -21.67741935 | BZ60: 1087 | CC60: 2023 | CD60: 1986 | CE60: 440 | CF60: 0 | CG60: 247 | CH60: 0 | CI60: 0 | CJ60: 0 | CK60: 0 | CL60: 0 | CM60: 0 | CN60: -27 | CO60: -21.67741935 | CP60: 1087 | CS60: 2024 | CT60: 1986 | CU60: 440 | CV60: 0 | CW60: 247 | CX60: 0 | CY60: 0 | CZ60: 0 | DA60: 0 | DB60: 0 | DC60: 0 | DD60: -27 | DE60: -21.67741935 | DF60: 1087 | DI60: 2025 | DJ60: 1986 | DK60: 440 | DL60: 0 | DM60: 247 | DN60: 0 | DO60: 0 | DP60: 0 | DQ60: 0 | DR60: 0 | DS60: 0 | DT60: -27 | DU60: -21.67741935 | DV60: 1087 | DY60: 2026 | DZ60: 1986 | EA60: 440 | EB60: 0 | EC60: 247 | ED60: 0 | EE60: 0 | EF60: 0 | EG60: 0 | EH60: 0 | EI60: 0 | EJ60: -27 | EK60: -21.67741935 | EL60: 1087 | EO60: 2027 | EP60: 1986 | EQ60: 440 | ER60: 0 | ES60: 247 | ET60: 0 | EU60: 0 | EV60: 0 | EW60: 0 | EX60: 0 | EY60: 0 | EZ60: -27 | FA60: -21.67741935 | FB60: 1087 | FE60: 2028 | FF60: 1986 | FG60: 440 | FH60: 0 | FI60: 247 | FJ60: 0 | FK60: 0 | FL60: 0 | FM60: 0 | FN60: 0 | FO60: 0 | FP60: -27 | FQ60: -21.67741935 | FR60: 1087 | FU60: 2029 | FV60: 1986 | FW60: 440 | FX60: 0 | FY60: 247 | FZ60: 0 | GA60: 0 | GB60: 0 | GC60: 0 | GD60: 0 | GE60: 0 | GF60: -27 | GG60: -21.67741935 | GH60: 1087 | GK60: 2030 | GL60: 1986 | GM60: 440 | GN60: 0 | GO60: 247 | GP60: 0 | GQ60: 0 | GR60: 0 | GS60: 0 | GT60: 0 | GU60: 0 | GV60: -27 | GW60: -21.67741935 | GX60: 1087 | HA60: 2031 | HB60: 1986 | HC60: 404 | HD60: 0 | HE60: 274 | HF60: 23 | HG60: 0 | HH60: 0 | HI60: 0 | HJ60: 0 | HK60: 0 | HL60: -223 | HM60: 0 | HN60: 1233
A61: 2018 | B61: 1987 | C61: 1508 | D61: 237 | E61: 0 | F61: 604 | G61: 1442 | H61: -347 | I61: 430.5 | J61: 0 | K61: -78 | L61: 400 | M61: -14.90322581 | N61: 209 | O61: 358.9269406 | Q61: 2019 | R61: 1987 | S61: 1508 | T61: 237 | U61: 0 | V61: 604 | W61: 1433 | X61: -347 | Y61: 359.5 | Z61: 0 | AA61: -78 | AB61: 434 | AC61: 85.16129032 | AD61: 262 | AE61: 368.143379 | AG61: 2020 | AH61: 1987 | AI61: 1016 | AJ61: 0 | AK61: 271 | AL61: 916 | AM61: 1818 | AN61: -339 | AO61: 493 | AP61: 0 | AQ61: -78 | AR61: -8 | AS61: -107.3870968 | AT61: 431 | AW61: 2021 | AX61: 1987 | AY61: 1016 | AZ61: 0 | BA61: 271 | BB61: 916 | BC61: 1818 | BD61: -339 | BE61: 493 | BF61: 0 | BG61: -78 | BH61: -8 | BI61: -107.3870968 | BJ61: 431 | BM61: 2022 | BN61: 1987 | BO61: 1016 | BP61: 0 | BQ61: 271 | BR61: 916 | BS61: 1818 | BT61: -339 | BU61: 493 | BV61: 0 | BW61: -78 | BX61: -8 | BY61: -107.3870968 | BZ61: 431 | CC61: 2023 | CD61: 1987 | CE61: 1016 | CF61: 0 | CG61: 271 | CH61: 916 | CI61: 1818 | CJ61: -339 | CK61: 493 | CL61: 0 | CM61: -78 | CN61: -8 | CO61: -107.3870968 | CP61: 431 | CS61: 2024 | CT61: 1987 | CU61: 1016 | CV61: 0 | CW61: 271 | CX61: 916 | CY61: 1818 | CZ61: -339 | DA61: 0 | DB61: 0 | DC61: -78 | DD61: -8 | DE61: -107.3870968 | DF61: 431 | DI61: 2025 | DJ61: 1987 | DK61: 1016 | DL61: 0 | DM61: 271 | DN61: 916 | DO61: 1818 | DP61: -339 | DQ61: 493 | DR61: 0 | DS61: -78 | DT61: -8 | DU61: -107.3870968 | DV61: 431 | DY61: 2026 | DZ61: 1987 | EA61: 1016 | EB61: 0 | EC61: 271 | ED61: 916 | EE61: 1818 | EF61: -339 | EG61: 493 | EH61: 0 | EI61: -78 | EJ61: -8 | EK61: -107.3870968 | EL61: 431 | EO61: 2027 | EP61: 1987 | EQ61: 1016 | ER61: 0 | ES61: 271 | ET61: 916 | EU61: 1818 | EV61: -339 | EW61: 493 | EX61: 0 | EY61: -78 | EZ61: -8 | FA61: -107.3870968 | FB61: 431 | FE61: 2028 | FF61: 1987 | FG61: 1016 | FH61: 0 | FI61: 271 | FJ61: 916 | FK61: 1818 | FL61: -339 | FM61: 493 | FN61: 0 | FO61: -78 | FP61: -8 | FQ61: -107.3870968 | FR61: 431 | FU61: 2029 | FV61: 1987 | FW61: 1016 | FX61: 0 | FY61: 271 | FZ61: 916 | GA61: 1818 | GB61: -339 | GC61: 493 | GD61: 0 | GE61: -78 | GF61: -8 | GG61: -107.3870968 | GH61: 431 | GK61: 2030 | GL61: 1987 | GM61: 1016 | GN61: 0 | GO61: 271 | GP61: 916 | GQ61: 1818 | GR61: -339 | GS61: 493 | GT61: 0 | GU61: -78 | GV61: -8 | GW61: -107.3870968 | GX61: 431 | HA61: 2031 | HB61: 1987 | HC61: 1018 | HD61: 0 | HE61: 271 | HF61: 1199 | HG61: 1379 | HH61: -435 | HI61: 496 | HJ61: 0 | HK61: -288 | HL61: -90 | HM61: -118.0645161 | HN61: 530
A62: 2018 | B62: 1988 | C62: 919 | D62: 880 | E62: 1986 | F62: 3299 | G62: 2195 | H62: 1543 | I62: 982.5 | J62: 130 | K62: 1949 | L62: -268 | M62: 0 | N62: 60 | O62: 1132.757192 | Q62: 2019 | R62: 1988 | S62: 919 | T62: 921 | U62: 1940 | V62: 3147 | W62: 2195 | X62: 1543 | Y62: 982.5 | Z62: 136 | AA62: 1964 | AB62: -279 | AC62: 0 | AD62: 52 | AE62: 1119.465982 | AG62: 2020 | AH62: 1988 | AI62: 556 | AJ62: 782 | AK62: 2059 | AL62: 3175 | AM62: 2165 | AN62: 2167 | AO62: 948 | AP62: 132 | AQ62: 1152 | AR62: -149 | AS62: -51.77419355 | AT62: 371 | AW62: 2021 | AX62: 1988 | AY62: 556 | AZ62: 782 | BA62: 2059 | BB62: 3175 | BC62: 2165 | BD62: 2167 | BE62: 948 | BF62: 132 | BG62: 1152 | BH62: -149 | BI62: -51.77419355 | BJ62: 371 | BM62: 2022 | BN62: 1988 | BO62: 556 | BP62: 782 | BQ62: 2059 | BR62: 3175 | BS62: 2165 | BT62: 2167 | BU62: 948 | BV62: 132 | BW62: 1152 | BX62: -149 | BY62: -51.77419355 | BZ62: 371 | CC62: 2023 | CD62: 1988 | CE62: 556 | CF62: 782 | CG62: 2059 | CH62: 3175 | CI62: 2165 | CJ62: 2167 | CK62: 948 | CL62: 132 | CM62: 1152 | CN62: -149 | CO62: -51.77419355 | CP62: 371 | CS62: 2024 | CT62: 1988 | CU62: 556 | CV62: 782 | CW62: 2059 | CX62: 3175 | CY62: 2165 | CZ62: 2167 | DA62: 755 | DB62: 132 | DC62: 1152 | DD62: -149 | DE62: -51.77419355 | DF62: 371 | DI62: 2025 | DJ62: 1988 | DK62: 556 | DL62: 782 | DM62: 2059 | DN62: 3175 | DO62: 2165 | DP62: 2167 | DQ62: 948 | DR62: 132 | DS62: 1152 | DT62: -149 | DU62: -51.77419355 | DV62: 371 | DY62: 2026 | DZ62: 1988 | EA62: 556 | EB62: 782 | EC62: 2059 | ED62: 3175 | EE62: 2165 | EF62: 2167 | EG62: 948 | EH62: 132 | EI62: 1152 | EJ62: -149 | EK62: -51.77419355 | EL62: 371 | EO62: 2027 | EP62: 1988 | EQ62: 556 | ER62: 782 | ES62: 2059 | ET62: 3175 | EU62: 2165 | EV62: 2167 | EW62: 948 | EX62: 132 | EY62: 1152 | EZ62: -149 | FA62: -51.77419355 | FB62: 371 | FE62: 2028 | FF62: 1988 | FG62: 556 | FH62: 782 | FI62: 2059 | FJ62: 3175 | FK62: 2165 | FL62: 2167 | FM62: 948 | FN62: 132 | FO62: 1152 | FP62: -149 | FQ62: -51.77419355 | FR62: 371 | FU62: 2029 | FV62: 1988 | FW62: 556 | FX62: 782 | FY62: 2059 | FZ62: 3175 | GA62: 2165 | GB62: 2167 | GC62: 948 | GD62: 132 | GE62: 1152 | GF62: -149 | GG62: -51.77419355 | GH62: 371 | GK62: 2030 | GL62: 1988 | GM62: 556 | GN62: 782 | GO62: 2059 | GP62: 3175 | GQ62: 2165 | GR62: 2167 | GS62: 948 | GT62: 132 | GU62: 1152 | GV62: -149 | GW62: -51.77419355 | GX62: 371 | HA62: 2031 | HB62: 1988 | HC62: 568 | HD62: 704 | HE62: 2098 | HF62: 3649 | HG62: 2102 | HH62: 1216 | HI62: 923.5 | HJ62: 170 | HK62: 1427 | HL62: -242 | HM62: -103.483871 | HN62: 462
A63: 2018 | B63: 1989 | C63: 693 | D63: -279 | E63: 1045 | F63: 2659 | G63: 1422 | H63: 67 | I63: 0 | J63: 0 | K63: -1128 | L63: -736 | M63: -21.29032258 | N63: 157 | O63: 321.1221461 | Q63: 2019 | R63: 1989 | S63: 712 | T63: -219 | U63: 1066 | V63: 2659 | W63: 1422 | X63: 47 | Y63: 0 | Z63: 0 | AA63: -1130 | AB63: -725 | AC63: -15.96774194 | AD63: 170 | AE63: 330.0518265 | AG63: 2020 | AH63: 1989 | AI63: 358 | AJ63: 327 | AK63: 976 | AL63: 2552 | AM63: 1802 | AN63: 110 | AO63: 0 | AP63: 0 | AQ63: -399 | AR63: -323 | AS63: -99.19354839 | AT63: 448 | AW63: 2021 | AX63: 1989 | AY63: 358 | AZ63: 327 | BA63: 976 | BB63: 2552 | BC63: 1802 | BD63: 110 | BE63: 0 | BF63: 0 | BG63: -399 | BH63: -323 | BI63: -99.19354839 | BJ63: 448 | BM63: 2022 | BN63: 1989 | BO63: 358 | BP63: 327 | BQ63: 976 | BR63: 2552 | BS63: 1802 | BT63: 110 | BU63: 0 | BV63: 0 | BW63: -399 | BX63: -323 | BY63: -99.19354839 | BZ63: 448 | CC63: 2023 | CD63: 1989 | CE63: 358 | CF63: 327 | CG63: 976 | CH63: 2552 | CI63: 1802 | CJ63: 110 | CK63: 0 | CL63: 0 | CM63: -399 | CN63: -323 | CO63: -99.19354839 | CP63: 448 | CS63: 2024 | CT63: 1989 | CU63: 358 | CV63: 327 | CW63: 976 | CX63: 2552 | CY63: 1802 | CZ63: 110 | DA63: 0 | DB63: 0 | DC63: -399 | DD63: -323 | DE63: -99.19354839 | DF63: 448 | DI63: 2025 | DJ63: 1989 | DK63: 358 | DL63: 327 | DM63: 976 | DN63: 2552 | DO63: 1802 | DP63: 110 | DQ63: 0 | DR63: 0 | DS63: -399 | DT63: -323 | DU63: -99.19354839 | DV63: 448 | DY63: 2026 | DZ63: 1989 | EA63: 358 | EB63: 327 | EC63: 976 | ED63: 2552 | EE63: 1802 | EF63: 110 | EG63: 0 | EH63: 0 | EI63: -399 | EJ63: -323 | EK63: -99.19354839 | EL63: 448 | EO63: 2027 | EP63: 1989 | EQ63: 358 | ER63: 327 | ES63: 976 | ET63: 2552 | EU63: 1802 | EV63: 110 | EW63: 0 | EX63: 0 | EY63: -399 | EZ63: -323 | FA63: -99.19354839 | FB63: 448 | FE63: 2028 | FF63: 1989 | FG63: 358 | FH63: 327 | FI63: 976 | FJ63: 2552 | FK63: 1802 | FL63: 110 | FM63: 0 | FN63: 0 | FO63: -399 | FP63: -323 | FQ63: -99.19354839 | FR63: 448 | FU63: 2029 | FV63: 1989 | FW63: 358 | FX63: 327 | FY63: 976 | FZ63: 2552 | GA63: 1802 | GB63: 110 | GC63: 0 | GD63: 0 | GE63: -399 | GF63: -323 | GG63: -99.19354839 | GH63: 448 | GK63: 2030 | GL63: 1989 | GM63: 358 | GN63: 327 | GO63: 976 | GP63: 2552 | GQ63: 1802 | GR63: 110 | GS63: 0 | GT63: 0 | GU63: -399 | GV63: -323 | GW63: -99.19354839 | GX63: 448 | HA63: 2031 | HB63: 1989 | HC63: 369 | HD63: 144 | HE63: 1015 | HF63: 3822 | HG63: 1851 | HH63: 0 | HI63: 0 | HJ63: 0 | HK63: -692 | HL63: -411 | HM63: -96.77419355 | HN63: 531
A64: 2018 | B64: 1990 | C64: 880 | D64: 787 | E64: 0 | F64: 0 | G64: 0 | H64: 0 | I64: 0 | J64: 0 | K64: 0 | L64: 0 | M64: 0 | N64: 861 | O64: 210.281621 | Q64: 2019 | R64: 1990 | S64: 880 | T64: 787 | U64: 0 | V64: 0 | W64: 0 | X64: 0 | Y64: 0 | Z64: 0 | AA64: 0 | AB64: -9 | AC64: 0 | AD64: 871 | AE64: 210.3391553 | AG64: 2020 | AH64: 1990 | AI64: 570 | AJ64: 0 | AK64: 0 | AL64: 576 | AM64: 0 | AN64: 0 | AO64: 0 | AP64: 0 | AQ64: 0 | AR64: 0 | AS64: 0 | AT64: 869 | AW64: 2021 | AX64: 1990 | AY64: 570 | AZ64: 0 | BA64: 0 | BB64: 576 | BC64: 0 | BD64: 0 | BE64: 0 | BF64: 0 | BG64: 0 | BH64: 0 | BI64: 0 | BJ64: 869 | BM64: 2022 | BN64: 1990 | BO64: 570 | BP64: 0 | BQ64: 0 | BR64: 576 | BS64: 0 | BT64: 0 | BU64: 0 | BV64: 0 | BW64: 0 | BX64: 0 | BY64: 0 | BZ64: 869 | CC64: 2023 | CD64: 1990 | CE64: 570 | CF64: 0 | CG64: 0 | CH64: 576 | CI64: 0 | CJ64: 0 | CK64: 0 | CL64: 0 | CM64: 0 | CN64: 0 | CO64: 0 | CP64: 869 | CS64: 2024 | CT64: 1990 | CU64: 570 | CV64: 0 | CW64: 0 | CX64: 576 | CY64: 0 | CZ64: 0 | DA64: 0 | DB64: 0 | DC64: 0 | DD64: 0 | DE64: 0 | DF64: 869 | DI64: 2025 | DJ64: 1990 | DK64: 570 | DL64: 0 | DM64: 0 | DN64: 576 | DO64: 0 | DP64: 0 | DQ64: 0 | DR64: 0 | DS64: 0 | DT64: 0 | DU64: 0 | DV64: 869 | DY64: 2026 | DZ64: 1990 | EA64: 570 | EB64: 0 | EC64: 0 | ED64: 576 | EE64: 0 | EF64: 0 | EG64: 0 | EH64: 0 | EI64: 0 | EJ64: 0 | EK64: 0 | EL64: 869 | EO64: 2027 | EP64: 1990 | EQ64: 570 | ER64: 0 | ES64: 0 | ET64: 576 | EU64: 0 | EV64: 0 | EW64: 0 | EX64: 0 | EY64: 0 | EZ64: 0 | FA64: 0 | FB64: 869 | FE64: 2028 | FF64: 1990 | FG64: 570 | FH64: 0 | FI64: 0 | FJ64: 576 | FK64: 0 | FL64: 0 | FM64: 0 | FN64: 0 | FO64: 0 | FP64: 0 | FQ64: 0 | FR64: 869 | FU64: 2029 | FV64: 1990 | FW64: 570 | FX64: 0 | FY64: 0 | FZ64: 576 | GA64: 0 | GB64: 0 | GC64: 0 | GD64: 0 | GE64: 0 | GF64: 0 | GG64: 0 | GH64: 869 | GK64: 2030 | GL64: 1990 | GM64: 570 | GN64: 0 | GO64: 0 | GP64: 576 | GQ64: 0 | GR64: 0 | GS64: 0 | GT64: 0 | GU64: 0 | GV64: 0 | GW64: 0 | GX64: 869 | HA64: 2031 | HB64: 1990 | HC64: 577 | HD64: 0 | HE64: 0 | HF64: 0 | HG64: 0 | HH64: 0 | HI64: 0 | HJ64: 0 | HK64: 0 | HL64: 0 | HM64: 0 | HN64: 1047
A65: 2018 | B65: 1991 | C65: 1388 | D65: 0 | E65: 0 | F65: 0 | G65: 0 | H65: 0 | I65: 0 | J65: 0 | K65: 0 | L65: 0 | M65: 0 | N65: 884 | O65: 190.5424658 | Q65: 2019 | R65: 1991 | S65: 1388 | T65: 0 | U65: 0 | V65: 0 | W65: 0 | X65: 0 | Y65: 0 | Z65: 0 | AA65: 0 | AB65: 0 | AC65: 0 | AD65: 894 | AE65: 191.3643836 | AG65: 2020 | AH65: 1991 | AI65: 1050 | AJ65: 0 | AK65: 0 | AL65: 0 | AM65: 0 | AN65: 0 | AO65: 0 | AP65: 0 | AQ65: 0 | AR65: 0 | AS65: 0 | AT65: 924 | AW65: 2021 | AX65: 1991 | AY65: 1050 | AZ65: 0 | BA65: 0 | BB65: 0 | BC65: 0 | BD65: 0 | BE65: 0 | BF65: 0 | BG65: 0 | BH65: 0 | BI65: 0 | BJ65: 924 | BM65: 2022 | BN65: 1991 | BO65: 1050 | BP65: 0 | BQ65: 0 | BR65: 0 | BS65: 0 | BT65: 0 | BU65: 0 | BV65: 0 | BW65: 0 | BX65: 0 | BY65: 0 | BZ65: 924 | CC65: 2023 | CD65: 1991 | CE65: 1050 | CF65: 0 | CG65: 0 | CH65: 0 | CI65: 0 | CJ65: 0 | CK65: 0 | CL65: 0 | CM65: 0 | CN65: 0 | CO65: 0 | CP65: 924 | CS65: 2024 | CT65: 1991 | CU65: 1050 | CV65: 0 | CW65: 0 | CX65: 0 | CY65: 0 | CZ65: 0 | DA65: 0 | DB65: 0 | DC65: 0 | DD65: 0 | DE65: 0 | DF65: 924 | DI65: 2025 | DJ65: 1991 | DK65: 1050 | DL65: 0 | DM65: 0 | DN65: 0 | DO65: 0 | DP65: 0 | DQ65: 0 | DR65: 0 | DS65: 0 | DT65: 0 | DU65: 0 | DV65: 924 | DY65: 2026 | DZ65: 1991 | EA65: 1050 | EB65: 0 | EC65: 0 | ED65: 0 | EE65: 0 | EF65: 0 | EG65: 0 | EH65: 0 | EI65: 0 | EJ65: 0 | EK65: 0 | EL65: 924 | EO65: 2027 | EP65: 1991 | EQ65: 1050 | ER65: 0 | ES65: 0 | ET65: 0 | EU65: 0 | EV65: 0 | EW65: 0 | EX65: 0 | EY65: 0 | EZ65: 0 | FA65: 0 | FB65: 924 | FE65: 2028 | FF65: 1991 | FG65: 1050 | FH65: 0 | FI65: 0 | FJ65: 0 | FK65: 0 | FL65: 0 | FM65: 0 | FN65: 0 | FO65: 0 | FP65: 0 | FQ65: 0 | FR65: 924 | FU65: 2029 | FV65: 1991 | FW65: 1050 | FX65: 0 | FY65: 0 | FZ65: 0 | GA65: 0 | GB65: 0 | GC65: 0 | GD65: 0 | GE65: 0 | GF65: 0 | GG65: 0 | GH65: 924 | GK65: 2030 | GL65: 1991 | GM65: 1050 | GN65: 0 | GO65: 0 | GP65: 0 | GQ65: 0 | GR65: 0 | GS65: 0 | GT65: 0 | GU65: 0 | GV65: 0 | GW65: 0 | GX65: 924 | HA65: 2031 | HB65: 1991 | HC65: 1053 | HD65: 0 | HE65: 0 | HF65: 0 | HG65: 0 | HH65: 0 | HI65: 0 | HJ65: 0 | HK65: 0 | HL65: 0 | HM65: 0 | HN65: 1109
A66: 2018 | B66: 1992 | C66: 1025 | D66: 302 | E66: 1801 | F66: 1220 | G66: 1014 | H66: -141 | I66: 609.5 | J66: 181 | K66: 1898 | L66: 410 | M66: -109.4193548 | N66: -43 | O66: 677.7793379 | Q66: 2019 | R66: 1992 | S66: 1025 | T66: 397 | U66: 1836 | V66: 1216 | W66: 1018 | X66: -141 | Y66: 627.5 | Z66: 177 | AA66: 1904 | AB66: 423 | AC66: -70.64516129 | AD66: 103 | AE66: 706.5682648 | AG66: 2020 | AH66: 1992 | AI66: 920 | AJ66: 49 | AK66: 1809 | AL66: 1389 | AM66: 1508 | AN66: 211 | AO66: 519.5 | AP66: -66 | AQ66: 476 | AR66: 201 | AS66: -82.83870968 | AT66: 154 | AW66: 2021 | AX66: 1992 | AY66: 920 | AZ66: 49 | BA66: 1809 | BB66: 1389 | BC66: 1508 | BD66: 211 | BE66: 519.5 | BF66: -66 | BG66: 476 | BH66: 201 | BI66: -82.83870968 | BJ66: 154 | BM66: 2022 | BN66: 1992 | BO66: 920 | BP66: 49 | BQ66: 1809 | BR66: 1389 | BS66: 1508 | BT66: 211 | BU66: 519.5 | BV66: -66 | BW66: 476 | BX66: 201 | BY66: -82.83870968 | BZ66: 154 | CC66: 2023 | CD66: 1992 | CE66: 920 | CF66: 49 | CG66: 1809 | CH66: 1389 | CI66: 1508 | CJ66: 211 | CK66: 519.5 | CL66: -66 | CM66: 476 | CN66: 201 | CO66: -82.83870968 | CP66: 154 | CS66: 2024 | CT66: 1992 | CU66: 920 | CV66: 49 | CW66: 1809 | CX66: 1389 | CY66: 1508 | CZ66: 211 | DA66: -110 | DB66: -66 | DC66: 476 | DD66: 201 | DE66: -82.83870968 | DF66: 154 | DI66: 2025 | DJ66: 1992 | DK66: 920 | DL66: 49 | DM66: 1809 | DN66: 1389 | DO66: 1508 | DP66: 211 | DQ66: 519.5 | DR66: -66 | DS66: 476 | DT66: 201 | DU66: -82.83870968 | DV66: 154 | DY66: 2026 | DZ66: 1992 | EA66: 920 | EB66: 49 | EC66: 1809 | ED66: 1389 | EE66: 1508 | EF66: 211 | EG66: 519.5 | EH66: -66 | EI66: 476 | EJ66: 201 | EK66: -82.83870968 | EL66: 154 | EO66: 2027 | EP66: 1992 | EQ66: 920 | ER66: 49 | ES66: 1809 | ET66: 1389 | EU66: 1508 | EV66: 211 | EW66: 519.5 | EX66: -66 | EY66: 476 | EZ66: 201 | FA66: -82.83870968 | FB66: 154 | FE66: 2028 | FF66: 1992 | FG66: 920 | FH66: 49 | FI66: 1809 | FJ66: 1389 | FK66: 1508 | FL66: 211 | FM66: 519.5 | FN66: -66 | FO66: 476 | FP66: 201 | FQ66: -82.83870968 | FR66: 154 | FU66: 2029 | FV66: 1992 | FW66: 920 | FX66: 49 | FY66: 1809 | FZ66: 1389 | GA66: 1508 | GB66: 211 | GC66: 519.5 | GD66: -66 | GE66: 476 | GF66: 201 | GG66: -82.83870968 | GH66: 154 | GK66: 2030 | GL66: 1992 | GM66: 920 | GN66: 49 | GO66: 1809 | GP66: 1389 | GQ66: 1508 | GR66: 211 | GS66: 519.5 | GT66: -66 | GU66: 476 | GV66: 201 | GW66: -82.83870968 | GX66: 154 | HA66: 2031 | HB66: 1992 | HC66: 921 | HD66: -78 | HE66: 1831 | HF66: 1808 | HG66: 1087 | HH66: -170 | HI66: 813.5 | HJ66: 251 | HK66: 1937 | HL66: 202 | HM66: -77.12903226 | HN66: 111
A67: 2018 | B67: 1993 | C67: 540 | D67: -108 | E67: 1743 | F67: 3188 | G67: 2246 | H67: 413 | I67: 200.5 | J67: 0 | K67: 0 | L67: 0 | M67: -75.48387097 | N67: -96 | O67: 665.2747717 | Q67: 2019 | R67: 1993 | S67: 498 | T67: -13 | U67: 1597 | V67: 3142 | W67: 2246 | X67: 404 | Y67: 200.5 | Z67: 0 | AA67: 0 | AB67: 0 | AC67: -85.64516129 | AD67: -125 | AE67: 649.2099315 | AG67: 2020 | AH67: 1993 | AI67: 171 | AJ67: -97 | AK67: 1814 | AL67: 3897 | AM67: 2241 | AN67: 234 | AO67: 256 | AP67: 0 | AQ67: 0 | AR67: 0 | AS67: -21.77419355 | AT67: -211 | AW67: 2021 | AX67: 1993 | AY67: 171 | AZ67: -97 | BA67: 1814 | BB67: 3897 | BC67: 2241 | BD67: 234 | BE67: 256 | BF67: 0 | BG67: 0 | BH67: 0 | BI67: -21.77419355 | BJ67: -211 | BM67: 2022 | BN67: 1993 | BO67: 171 | BP67: -97 | BQ67: 1814 | BR67: 3897 | BS67: 2241 | BT67: 234 | BU67: 256 | BV67: 0 | BW67: 0 | BX67: 0 | BY67: -21.77419355 | BZ67: -211 | CC67: 2023 | CD67: 1993 | CE67: 171 | CF67: -97 | CG67: 1814 | CH67: 3897 | CI67: 2241 | CJ67: 234 | CK67: 256 | CL67: 0 | CM67: 0 | CN67: 0 | CO67: -21.77419355 | CP67: -211 | CS67: 2024 | CT67: 1993 | CU67: 171 | CV67: -97 | CW67: 1814 | CX67: 3897 | CY67: 2241 | CZ67: 234 | DA67: 0 | DB67: 0 | DC67: 0 | DD67: 0 | DE67: -21.77419355 | DF67: -211 | DI67: 2025 | DJ67: 1993 | DK67: 171 | DL67: -97 | DM67: 1814 | DN67: 3897 | DO67: 2241 | DP67: 234 | DQ67: 256 | DR67: 0 | DS67: 0 | DT67: 0 | DU67: -21.77419355 | DV67: -211 | DY67: 2026 | DZ67: 1993 | EA67: 171 | EB67: -97 | EC67: 1814 | ED67: 3897 | EE67: 2241 | EF67: 234 | EG67: 256 | EH67: 0 | EI67: 0 | EJ67: 0 | EK67: -21.77419355 | EL67: -211 | EO67: 2027 | EP67: 1993 | EQ67: 171 | ER67: -97 | ES67: 1814 | ET67: 3897 | EU67: 2241 | EV67: 234 | EW67: 256 | EX67: 0 | EY67: 0 | EZ67: 0 | FA67: -21.77419355 | FB67: -211 | FE67: 2028 | FF67: 1993 | FG67: 171 | FH67: -97 | FI67: 1814 | FJ67: 3897 | FK67: 2241 | FL67: 234 | FM67: 256 | FN67: 0 | FO67: 0 | FP67: 0 | FQ67: -21.77419355 | FR67: -211 | FU67: 2029 | FV67: 1993 | FW67: 171 | FX67: -97 | FY67: 1814 | FZ67: 3897 | GA67: 2241 | GB67: 234 | GC67: 256 | GD67: 0 | GE67: 0 | GF67: 0 | GG67: -21.77419355 | GH67: -211 | GK67: 2030 | GL67: 1993 | GM67: 171 | GN67: -97 | GO67: 1814 | GP67: 3897 | GQ67: 2241 | GR67: 234 | GS67: 256 | GT67: 0 | GU67: 0 | GV67: 0 | GW67: -21.77419355 | GX67: -211 | HA67: 2031 | HB67: 1993 | HC67: 184 | HD67: -200 | HE67: 1832 | HF67: 3972 | HG67: 2303 | HH67: 384 | HI67: 281 | HJ67: 0 | HK67: 0 | HL67: 0 | HM67: -201.2903226 | HN67: -140
A68: 2018 | B68: 1994 | C68: 899 | D68: 196 | E68: 1026 | F68: 3934 | G68: 1545 | H68: 1767 | I68: 1039 | J68: 0 | K68: 38 | L68: 0 | M68: -84.61290323 | N68: -141 | O68: =IFERROR((SUMPRODUCT(C68:N68,C$1:N$1)/O$1),"") -> 851.8836758 | Q68: 2019 | R68: 1994 | S68: 899 | T68: 421 | U68: 1031 | V68: 3926 | W68: 1548 | X68: 1751 | Y68: 1038.5 | Z68: 0 | AA68: 54 | AB68: 0 | AC68: -14.51612903 | AD68: -45 | AE68: =IFERROR((SUMPRODUCT(S68:AD68,S$1:AD$1)/AE$1),"") -> 884.1385845 | AG68: 2020 | AH68: 1994 | AI68: 553 | AJ68: 41 | AK68: 1048 | AL68: 3864 | AM68: 1484 | AN68: 1774 | AO68: 1011 | AP68: 0 | AQ68: -1 | AR68: 0 | AS68: -92.64516129 | AT68: -16 | AW68: 2021 | AX68: 1994 | AY68: 553 | AZ68: 41 | BA68: 1048 | BB68: 3864 | BC68: 1484 | BD68: 1774 | BE68: 1011 | BF68: 0 | BG68: -1 | BH68: 0 | BI68: -92.64516129 | BJ68: -16 | BM68: 2022 | BN68: 1994 | BO68: 553 | BP68: 41 | BQ68: 1048 | BR68: 3864 | BS68: 1484 | BT68: 1774 | BU68: 1011 | BV68: 0 | BW68: -1 | BX68: 0 | BY68: -92.64516129 | BZ68: -16 | CC68: 2023 | CD68: 1994 | CE68: 553 | CF68: 41 | CG68: 1048 | CH68: 3864 | CI68: 1484 | CJ68: 1774 | CK68: 1011 | CL68: 0 | CM68: -1 | CN68: 0 | CO68: -92.64516129 | CP68: -16 | CS68: 2024 | CT68: 1994 | CU68: 553 | CV68: 41 | CW68: 1048 | CX68: 3864 | CY68: 1484 | CZ68: 1774 | DA68: 768.5 | DB68: 0 | DC68: -1 | DD68: 0 | DE68: -92.64516129 | DF68: -16 | DI68: 2025 | DJ68: 1994 | DK68: 553 | DL68: 41 | DM68: 1048 | DN68: 3864 | DO68: 1484 | DP68: 1774 | DQ68: 1011 | DR68: 0 | DS68: -1 | DT68: 0 | DU68: -92.64516129 | DV68: -16 | DY68: 2026 | DZ68: 1994 | EA68: 553 | EB68: 41 | EC68: 1048 | ED68: 3864 | EE68: 1484 | EF68: 1774 | EG68: 1011 | EH68: 0 | EI68: -1 | EJ68: 0 | EK68: -92.64516129 | EL68: -16 | EO68: 2027 | EP68: 1994 | EQ68: 553 | ER68: 41 | ES68: 1048 | ET68: 3864 | EU68: 1484 | EV68: 1774 | EW68: 1011 | EX68: 0 | EY68: -1 | EZ68: 0 | FA68: -92.64516129 | FB68: -16 | FE68: 2028 | FF68: 1994 | FG68: 553 | FH68: 41 | FI68: 1048 | FJ68: 3864 | FK68: 1484 | FL68: 1774 | FM68: 1011 | FN68: 0 | FO68: -1 | FP68: 0 | FQ68: -92.64516129 | FR68: -16 | FU68: 2029 | FV68: 1994 | FW68: 553 | FX68: 41 | FY68: 1048 | FZ68: 3864 | GA68: 1484 | GB68: 1774 | GC68: 1011 | GD68: 0 | GE68: -1 | GF68: 0 | GG68: -92.64516129 | GH68: -16 | GK68: 2030 | GL68: 1994 | GM68: 553 | GN68: 41 | GO68: 1048 | GP68: 3864 | GQ68: 1484 | GR68: 1774 | GS68: 1011 | GT68: 0 | GU68: -1 | GV68: 0 | GW68: -92.64516129 | GX68: -16 | HA68: 2031 | HB68: 1994 | HC68: 560 | HD68: -111 | HE68: 1059 | HF68: 3803 | HG68: 1517 | HH68: 1743 | HI68: 1011.5 | HJ68: 0 | HK68: -264 | HL68: 0 | HM68: -88.70967742 | HN68: 30
A69: 2018 | B69: 1995 | C69: 814 | D69: 1139 | E69: 1313 | F69: 1229 | G69: 0 | H69: 0 | I69: 624.5 | J69: 0 | K69: 0 | L69: 0 | M69: 0 | N69: 88 | O69: 437.338242 | Q69: 2019 | R69: 1995 | S69: 812 | T69: 1282 | U69: 1196 | V69: 1229 | W69: 0 | X69: 0 | Y69: 625 | Z69: 0 | AA69: 0 | AB69: 0 | AC69: 0 | AD69: 99 | AE69: 439.946347 | AG69: 2020 | AH69: 1995 | AI69: 475 | AJ69: 1046 | AK69: 1178 | AL69: 1355 | AM69: 0 | AN69: 70 | AO69: 412.5 | AP69: 0 | AQ69: 0 | AR69: 0 | AS69: 0 | AT69: 398 | AW69: 2021 | AX69: 1995 | AY69: 475 | AZ69: 1046 | BA69: 1178 | BB69: 1355 | BC69: 0 | BD69: 70 | BE69: 412.5 | BF69: 0 | BG69: 0 | BH69: 0 | BI69: 0 | BJ69: 398 | BM69: 2022 | BN69: 1995 | BO69: 475 | BP69: 1046 | BQ69: 1178 | BR69: 1355 | BS69: 0 | BT69: 70 | BU69: 412.5 | BV69: 0 | BW69: 0 | BX69: 0 | BY69: 0 | BZ69: 398 | CC69: 2023 | CD69: 1995 | CE69: 475 | CF69: 1046 | CG69: 1178 | CH69: 1355 | CI69: 0 | CJ69: 70 | CK69: 412.5 | CL69: 0 | CM69: 0 | CN69: 0 | CO69: 0 | CP69: 398 | CS69: 2024 | CT69: 1995 | CU69: 475 | CV69: 1046 | CW69: 1178 | CX69: 1355 | CY69: 0 | CZ69: 70 | DA69: 412.5 | DB69: 0 | DC69: 0 | DD69: 0 | DE69: 0 | DF69: 398 | DI69: 2025 | DJ69: 1995 | DK69: 475 | DL69: 1046 | DM69: 1178 | DN69: 1355 | DO69: 0 | DP69: 70 | DQ69: 412.5 | DR69: 0 | DS69: 0 | DT69: 0 | DU69: 0 | DV69: 398 | DY69: 2026 | DZ69: 1995 | EA69: 475 | EB69: 1046 | EC69: 1178 | ED69: 1355 | EE69: 0 | EF69: 70 | EG69: 412.5 | EH69: 0 | EI69: 0 | EJ69: 0 | EK69: 0 | EL69: 398 | EO69: 2027 | EP69: 1995 | EQ69: 475 | ER69: 1046 | ES69: 1178 | ET69: 1355 | EU69: 0 | EV69: 70 | EW69: 412.5 | EX69: 0 | EY69: 0 | EZ69: 0 | FA69: 0 | FB69: 398 | FE69: 2028 | FF69: 1995 | FG69: 475 | FH69: 1046 | FI69: 1178 | FJ69: 1355 | FK69: 0 | FL69: 70 | FM69: 412.5 | FN69: 0 | FO69: 0 | FP69: 0 | FQ69: 0 | FR69: 398 | FU69: 2029 | FV69: 1995 | FW69: 475 | FX69: 1046 | FY69: 1178 | FZ69: 1355 | GA69: 0 | GB69: 70 | GC69: 412.5 | GD69: 0 | GE69: 0 | GF69: 0 | GG69: 0 | GH69: 398 | GK69: 2030 | GL69: 1995 | GM69: 475 | GN69: 1046 | GO69: 1178 | GP69: 1355 | GQ69: 0 | GR69: 70 | GS69: 412.5 | GT69: 0 | GU69: 0 | GV69: 0 | GW69: 0 | GX69: 398 | HA69: 2031 | HB69: 1995 | HC69: 437 | HD69: 779 | HE69: 1044 | HF69: 3333 | HG69: 0 | HH69: 0 | HI69: 684 | HJ69: 0 | HK69: 0 | HL69: 0 | HM69: 0 | HN69: 545
A70: 2018 | B70: 1996 | C70: 165 | D70: 0 | E70: 0 | F70: 0 | G70: 0 | H70: 0 | I70: 0 | J70: 0 | K70: 0 | L70: 0 | M70: 0 | N70: 423 | O70: 48.78082192 | Q70: 2019 | R70: 1996 | S70: 165 | T70: 0 | U70: 0 | V70: 0 | W70: 0 | X70: 0 | Y70: 0 | Z70: 0 | AA70: 0 | AB70: 0 | AC70: 0 | AD70: 436 | AE70: 49.84931507 | AG70: 2020 | AH70: 1996 | AI70: 0 | AJ70: 0 | AK70: 0 | AL70: 0 | AM70: 0 | AN70: 0 | AO70: 0 | AP70: 0 | AQ70: 0 | AR70: 0 | AS70: 0 | AT70: 646 | AW70: 2021 | AX70: 1996 | AY70: 0 | AZ70: 0 | BA70: 0 | BB70: 0 | BC70: 0 | BD70: 0 | BE70: 0 | BF70: 0 | BG70: 0 | BH70: 0 | BI70: 0 | BJ70: 646 | BM70: 2022 | BN70: 1996 | BO70: 0 | BP70: 0 | BQ70: 0 | BR70: 0 | BS70: 0 | BT70: 0 | BU70: 0 | BV70: 0 | BW70: 0 | BX70: 0 | BY70: 0 | BZ70: 646 | CC70: 2023 | CD70: 1996 | CE70: 0 | CF70: 0 | CG70: 0 | CH70: 0 | CI70: 0 | CJ70: 0 | CK70: 0 | CL70: 0 | CM70: 0 | CN70: 0 | CO70: 0 | CP70: 646 | CS70: 2024 | CT70: 1996 | CU70: 0 | CV70: 0 | CW70: 0 | CX70: 0 | CY70: 0 | CZ70: 0 | DA70: 0 | DB70: 0 | DC70: 0 | DD70: 0 | DE70: 0 | DF70: 646 | DI70: 2025 | DJ70: 1996 | DK70: 0 | DL70: 0 | DM70: 0 | DN70: 0 | DO70: 0 | DP70: 0 | DQ70: 0 | DR70: 0 | DS70: 0 | DT70: 0 | DU70: 0 | DV70: 646 | DY70: 2026 | DZ70: 1996 | EA70: 0 | EB70: 0 | EC70: 0 | ED70: 0 | EE70: 0 | EF70: 0 | EG70: 0 | EH70: 0 | EI70: 0 | EJ70: 0 | EK70: 0 | EL70: 646 | EO70: 2027 | EP70: 1996 | EQ70: 0 | ER70: 0 | ES70: 0 | ET70: 0 | EU70: 0 | EV70: 0 | EW70: 0 | EX70: 0 | EY70: 0 | EZ70: 0 | FA70: 0 | FB70: 646 | FE70: 2028 | FF70: 1996 | FG70: 0 | FH70: 0 | FI70: 0 | FJ70: 0 | FK70: 0 | FL70: 0 | FM70: 0 | FN70: 0 | FO70: 0 | FP70: 0 | FQ70: 0 | FR70: 646 | FU70: 2029 | FV70: 1996 | FW70: 0 | FX70: 0 | FY70: 0 | FZ70: 0 | GA70: 0 | GB70: 0 | GC70: 0 | GD70: 0 | GE70: 0 | GF70: 0 | GG70: 0 | GH70: 646 | GK70: 2030 | GL70: 1996 | GM70: 0 | GN70: 0 | GO70: 0 | GP70: 0 | GQ70: 0 | GR70: 0 | GS70: 0 | GT70: 0 | GU70: 0 | GV70: 0 | GW70: 0 | GX70: 646 | HA70: 2031 | HB70: 1996 | HC70: 0 | HD70: 0 | HE70: 0 | HF70: 0 | HG70: 0 | HH70: 0 | HI70: 0 | HJ70: 0 | HK70: 0 | HL70: 0 | HM70: 0 | HN70: 783
A71: 2018 | B71: 1997 | C71: 955 | D71: 264 | E71: 0 | F71: 0 | G71: 0 | H71: 0 | I71: 0 | J71: 0 | K71: 0 | L71: 0 | M71: 0 | N71: 0 | O71: 102.8383562 | Q71: 2019 | R71: 1997 | S71: 955 | T71: 264 | U71: 0 | V71: 0 | W71: 0 | X71: 0 | Y71: 0 | Z71: 0 | AA71: 0 | AB71: 0 | AC71: 0 | AD71: 0 | AE71: 102.8383562 | AG71: 2020 | AH71: 1997 | AI71: 819 | AJ71: 0 | AK71: 0 | AL71: 0 | AM71: 0 | AN71: 0 | AO71: 0 | AP71: 0 | AQ71: 0 | AR71: 0 | AS71: 0 | AT71: 0 | AW71: 2021 | AX71: 1997 | AY71: 819 | AZ71: 0 | BA71: 0 | BB71: 0 | BC71: 0 | BD71: 0 | BE71: 0 | BF71: 0 | BG71: 0 | BH71: 0 | BI71: 0 | BJ71: 0 | BM71: 2022 | BN71: 1997 | BO71: 819 | BP71: 0 | BQ71: 0 | BR71: 0 | BS71: 0 | BT71: 0 | BU71: 0 | BV71: 0 | BW71: 0 | BX71: 0 | BY71: 0 | BZ71: 0 | CC71: 2023 | CD71: 1997 | CE71: 819 | CF71: 0 | CG71: 0 | CH71: 0 | CI71: 0 | CJ71: 0 | CK71: 0 | CL71: 0 | CM71: 0 | CN71: 0 | CO71: 0 | CP71: 0 | CS71: 2024 | CT71: 1997 | CU71: 819 | CV71: 0 | CW71: 0 | CX71: 0 | CY71: 0 | CZ71: 0 | DA71: 0 | DB71: 0 | DC71: 0 | DD71: 0 | DE71: 0 | DF71: 0 | DI71: 2025 | DJ71: 1997 | DK71: 819 | DL71: 0 | DM71: 0 | DN71: 0 | DO71: 0 | DP71: 0 | DQ71: 0 | DR71: 0 | DS71: 0 | DT71: 0 | DU71: 0 | DV71: 0 | DY71: 2026 | DZ71: 1997 | EA71: 819 | EB71: 0 | EC71: 0 | ED71: 0 | EE71: 0 | EF71: 0 | EG71: 0 | EH71: 0 | EI71: 0 | EJ71: 0 | EK71: 0 | EL71: 0 | EO71: 2027 | EP71: 1997 | EQ71: 819 | ER71: 0 | ES71: 0 | ET71: 0 | EU71: 0 | EV71: 0 | EW71: 0 | EX71: 0 | EY71: 0 | EZ71: 0 | FA71: 0 | FB71: 0 | FE71: 2028 | FF71: 1997 | FG71: 819 | FH71: 0 | FI71: 0 | FJ71: 0 | FK71: 0 | FL71: 0 | FM71: 0 | FN71: 0 | FO71: 0 | FP71: 0 | FQ71: 0 | FR71: 0 | FU71: 2029 | FV71: 1997 | FW71: 819 | FX71: 0 | FY71: 0 | FZ71: 0 | GA71: 0 | GB71: 0 | GC71: 0 | GD71: 0 | GE71: 0 | GF71: 0 | GG71: 0 | GH71: 0 | GK71: 2030 | GL71: 1997 | GM71: 819 | GN71: 0 | GO71: 0 | GP71: 0 | GQ71: 0 | GR71: 0 | GS71: 0 | GT71: 0 | GU71: 0 | GV71: 0 | GW71: 0 | GX71: 0 | HA71: 2031 | HB71: 1997 | HC71: 819 | HD71: 0 | HE71: 0 | HF71: 0 | HG71: 0 | HH71: 0 | HI71: 0 | HJ71: 0 | HK71: 0 | HL71: 0 | HM71: 0 | HN71: 0
A72: 2018 | B72: 1998 | C72: 0 | D72: 0 | E72: 0 | F72: 0 | G72: 0 | H72: 0 | I72: 0 | J72: 0 | K72: 0 | L72: 0 | M72: 0 | N72: 936 | O72: 76.93150685 | Q72: 2019 | R72: 1998 | S72: 0 | T72: 0 | U72: 0 | V72: 0 | W72: 0 | X72: 0 | Y72: 0 | Z72: 0 | AA72: 0 | AB72: 0 | AC72: 0 | AD72: 944 | AE72: 77.5890411 | AG72: 2020 | AH72: 1998 | AI72: 0 | AJ72: 0 | AK72: 469 | AL72: 218 | AM72: 0 | AN72: 0 | AO72: 127.5 | AP72: 0 | AQ72: 0 | AR72: 0 | AS72: 0 | AT72: 916 | AW72: 2021 | AX72: 1998 | AY72: 0 | AZ72: 0 | BA72: 469 | BB72: 218 | BC72: 0 | BD72: 0 | BE72: 127.5 | BF72: 0 | BG72: 0 | BH72: 0 | BI72: 0 | BJ72: 916 | BM72: 2022 | BN72: 1998 | BO72: 0 | BP72: 0 | BQ72: 469 | BR72: 218 | BS72: 0 | BT72: 0 | BU72: 127.5 | BV72: 0 | BW72: 0 | BX72: 0 | BY72: 0 | BZ72: 916 | CC72: 2023 | CD72: 1998 | CE72: 0 | CF72: 0 | CG72: 469 | CH72: 218 | CI72: 0 | CJ72: 0 | CK72: 127.5 | CL72: 0 | CM72: 0 | CN72: 0 | CO72: 0 | CP72: 916 | CS72: 2024 | CT72: 1998 | CU72: 0 | CV72: 0 | CW72: 469 | CX72: 218 | CY72: 0 | CZ72: 0 | DA72: 0 | DB72: 0 | DC72: 0 | DD72: 0 | DE72: 0 | DF72: 916 | DI72: 2025 | DJ72: 1998 | DK72: 0 | DL72: 0 | DM72: 469 | DN72: 218 | DO72: 0 | DP72: 0 | DQ72: 127.5 | DR72: 0 | DS72: 0 | DT72: 0 | DU72: 0 | DV72: 916 | DY72: 2026 | DZ72: 1998 | EA72: 0 | EB72: 0 | EC72: 469 | ED72: 218 | EE72: 0 | EF72: 0 | EG72: 127.5 | EH72: 0 | EI72: 0 | EJ72: 0 | EK72: 0 | EL72: 916 | EO72: 2027 | EP72: 1998 | EQ72: 0 | ER72: 0 | ES72: 469 | ET72: 218 | EU72: 0 | EV72: 0 | EW72: 127.5 | EX72: 0 | EY72: 0 | EZ72: 0 | FA72: 0 | FB72: 916 | FE72: 2028 | FF72: 1998 | FG72: 0 | FH72: 0 | FI72: 469 | FJ72: 218 | FK72: 0 | FL72: 0 | FM72: 127.5 | FN72: 0 | FO72: 0 | FP72: 0 | FQ72: 0 | FR72: 916 | FU72: 2029 | FV72: 1998 | FW72: 0 | FX72: 0 | FY72: 469 | FZ72: 218 | GA72: 0 | GB72: 0 | GC72: 127.5 | GD72: 0 | GE72: 0 | GF72: 0 | GG72: 0 | GH72: 916 | GK72: 2030 | GL72: 1998 | GM72: 0 | GN72: 0 | GO72: 469 | GP72: 218 | GQ72: 0 | GR72: 0 | GS72: 127.5 | GT72: 0 | GU72: 0 | GV72: 0 | GW72: 0 | GX72: 916 | HA72: 2031 | HB72: 1998 | HC72: 0 | HD72: 0 | HE72: 469 | HF72: 272 | HG72: 0 | HH72: 0 | HI72: 127.5 | HJ72: 0 | HK72: 0 | HL72: 0 | HM72: 0 | HN72: 1041
A73: 2018 | B73: 1999 | C73: 1259 | D73: 1001 | E73: 0 | F73: 0 | G73: 0 | H73: 0 | I73: 0 | J73: 0 | K73: 0 | L73: 0 | M73: 0 | N73: 0 | O73: 189.3170091 | Q73: 2019 | R73: 1999 | S73: 1259 | T73: 1040 | U73: 0 | V73: 0 | W73: 0 | X73: 0 | Y73: 0 | Z73: 0 | AA73: 0 | AB73: 0 | AC73: 0 | AD73: 0 | AE73: 192.5269406 | AG73: 2020 | AH73: 1999 | AI73: 970 | AJ73: 233 | AK73: 0 | AL73: 0 | AM73: 0 | AN73: 0 | AO73: 0 | AP73: 0 | AQ73: 0 | AR73: 0 | AS73: 0 | AT73: 133 | AW73: 2021 | AX73: 1999 | AY73: 970 | AZ73: 233 | BA73: 0 | BB73: 0 | BC73: 0 | BD73: 0 | BE73: 0 | BF73: 0 | BG73: 0 | BH73: 0 | BI73: 0 | BJ73: 133 | BM73: 2022 | BN73: 1999 | BO73: 970 | BP73: 233 | BQ73: 0 | BR73: 0 | BS73: 0 | BT73: 0 | BU73: 0 | BV73: 0 | BW73: 0 | BX73: 0 | BY73: 0 | BZ73: 133 | CC73: 2023 | CD73: 1999 | CE73: 970 | CF73: 233 | CG73: 0 | CH73: 0 | CI73: 0 | CJ73: 0 | CK73: 0 | CL73: 0 | CM73: 0 | CN73: 0 | CO73: 0 | CP73: 133 | CS73: 2024 | CT73: 1999 | CU73: 970 | CV73: 233 | CW73: 0 | CX73: 0 | CY73: 0 | CZ73: 0 | DA73: 0 | DB73: 0 | DC73: 0 | DD73: 0 | DE73: 0 | DF73: 133 | DI73: 2025 | DJ73: 1999 | DK73: 970 | DL73: 233 | DM73: 0 | DN73: 0 | DO73: 0 | DP73: 0 | DQ73: 0 | DR73: 0 | DS73: 0 | DT73: 0 | DU73: 0 | DV73: 133 | DY73: 2026 | DZ73: 1999 | EA73: 970 | EB73: 233 | EC73: 0 | ED73: 0 | EE73: 0 | EF73: 0 | EG73: 0 | EH73: 0 | EI73: 0 | EJ73: 0 | EK73: 0 | EL73: 133 | EO73: 2027 | EP73: 1999 | EQ73: 970 | ER73: 233 | ES73: 0 | ET73: 0 | EU73: 0 | EV73: 0 | EW73: 0 | EX73: 0 | EY73: 0 | EZ73: 0 | FA73: 0 | FB73: 133 | FE73: 2028 | FF73: 1999 | FG73: 970 | FH73: 233 | FI73: 0 | FJ73: 0 | FK73: 0 | FL73: 0 | FM73: 0 | FN73: 0 | FO73: 0 | FP73: 0 | FQ73: 0 | FR73: 133 | FU73: 2029 | FV73: 1999 | FW73: 970 | FX73: 233 | FY73: 0 | FZ73: 0 | GA73: 0 | GB73: 0 | GC73: 0 | GD73: 0 | GE73: 0 | GF73: 0 | GG73: 0 | GH73: 133 | GK73: 2030 | GL73: 1999 | GM73: 970 | GN73: 233 | GO73: 0 | GP73: 0 | GQ73: 0 | GR73: 0 | GS73: 0 | GT73: 0 | GU73: 0 | GV73: 0 | GW73: 0 | GX73: 133 | HA73: 2031 | HB73: 1999 | HC73: 972 | HD73: 86 | HE73: 0 | HF73: 0 | HG73: 0 | HH73: 0 | HI73: 0 | HJ73: 0 | HK73: 0 | HL73: 0 | HM73: 0 | HN73: 304
A74: 2018 | B74: 2000 | C74: 948 | D74: 0 | E74: 0 | F74: 0 | G74: 0 | H74: 0 | I74: 0 | J74: 0 | K74: -324 | L74: 0 | M74: -2.419354839 | N74: 1142 | O74: 147.5424658 | Q74: 2019 | R74: 2000 | S74: 948 | T74: 0 | U74: 0 | V74: 0 | W74: 0 | X74: 0 | Y74: 0 | Z74: 0 | AA74: -328 | AB74: 0 | AC74: -3.516129032 | AD74: 1151 | AE74: 147.860274 | AG74: 2020 | AH74: 2000 | AI74: 641 | AJ74: 0 | AK74: 0 | AL74: 0 | AM74: 0 | AN74: 0 | AO74: 0 | AP74: 0 | AQ74: -376 | AR74: 0 | AS74: -17 | AT74: 1163 | AW74: 2021 | AX74: 2000 | AY74: 641 | AZ74: 0 | BA74: 0 | BB74: 0 | BC74: 0 | BD74: 0 | BE74: 0 | BF74: 0 | BG74: -376 | BH74: 0 | BI74: -17 | BJ74: 1163 | BM74: 2022 | BN74: 2000 | BO74: 641 | BP74: 0 | BQ74: 0 | BR74: 0 | BS74: 0 | BT74: 0 | BU74: 0 | BV74: 0 | BW74: -376 | BX74: 0 | BY74: -17 | BZ74: 1163 | CC74: 2023 | CD74: 2000 | CE74: 641 | CF74: 0 | CG74: 0 | CH74: 0 | CI74: 0 | CJ74: 0 | CK74: 0 | CL74: 0 | CM74: -376 | CN74: 0 | CO74: -17 | CP74: 1163 | CS74: 2024 | CT74: 2000 | CU74: 641 | CV74: 0 | CW74: 0 | CX74: 0 | CY74: 0 | CZ74: 0 | DA74: 0 | DB74: 0 | DC74: -376 | DD74: 0 | DE74: -17 | DF74: 1163 | DI74: 2025 | DJ74: 2000 | DK74: 641 | DL74: 0 | DM74: 0 | DN74: 0 | DO74: 0 | DP74: 0 | DQ74: 0 | DR74: 0 | DS74: -376 | DT74: 0 | DU74: -17 | DV74: 1163 | DY74: 2026 | DZ74: 2000 | EA74: 641 | EB74: 0 | EC74: 0 | ED74: 0 | EE74: 0 | EF74: 0 | EG74: 0 | EH74: 0 | EI74: -376 | EJ74: 0 | EK74: -17 | EL74: 1163 | EO74: 2027 | EP74: 2000 | EQ74: 641 | ER74: 0 | ES74: 0 | ET74: 0 | EU74: 0 | EV74: 0 | EW74: 0 | EX74: 0 | EY74: -376 | EZ74: 0 | FA74: -17 | FB74: 1163 | FE74: 2028 | FF74: 2000 | FG74: 641 | FH74: 0 | FI74: 0 | FJ74: 0 | FK74: 0 | FL74: 0 | FM74: 0 | FN74: 0 | FO74: -376 | FP74: 0 | FQ74: -17 | FR74: 1163 | FU74: 2029 | FV74: 2000 | FW74: 641 | FX74: 0 | FY74: 0 | FZ74: 0 | GA74: 0 | GB74: 0 | GC74: 0 | GD74: 0 | GE74: -376 | GF74: 0 | GG74: -17 | GH74: 1163 | GK74: 2030 | GL74: 2000 | GM74: 641 | GN74: 0 | GO74: 0 | GP74: 0 | GQ74: 0 | GR74: 0 | GS74: 0 | GT74: 0 | GU74: -376 | GV74: 0 | GW74: -17 | GX74: 1163 | HA74: 2031 | HB74: 2000 | HC74: 641 | HD74: 0 | HE74: 0 | HF74: 0 | HG74: 0 | HH74: 0 | HI74: 0 | HJ74: 0 | HK74: -568 | HL74: 0 | HM74: -28.90322581 | HN74: 1279
A75: 2018 | B75: 2001 | C75: 1195 | D75: 447 | E75: 1418 | F75: 1935 | G75: 1560 | H75: 1348 | I75: 1011 | J75: 964 | K75: 3755 | L75: 221 | M75: -225.5483871 | N75: 1134 | O75: 1223.483447 | Q75: 2019 | R75: 2001 | S75: 1195 | T75: 447 | U75: 1418 | V75: 1935 | W75: 1507 | X75: 1320 | Y75: 1011 | Z75: 972 | AA75: 3771 | AB75: 250 | AC75: -124.3870968 | AD75: 1135 | AE75: 1230.174315 | AG75: 2020 | AH75: 2001 | AI75: 811 | AJ75: 313 | AK75: 1406 | AL75: 1821 | AM75: 1451 | AN75: 1243 | AO75: 819.5 | AP75: 946 | AQ75: 3869 | AR75: -33 | AS75: -227.2258065 | AT75: 1441 | AW75: 2021 | AX75: 2001 | AY75: 811 | AZ75: 313 | BA75: 1406 | BB75: 1821 | BC75: 1451 | BD75: 1243 | BE75: 819.5 | BF75: 946 | BG75: 3869 | BH75: -33 | BI75: -227.2258065 | BJ75: 1441 | BM75: 2022 | BN75: 2001 | BO75: 811 | BP75: 313 | BQ75: 1406 | BR75: 1821 | BS75: 1451 | BT75: 1243 | BU75: 819.5 | BV75: 946 | BW75: 3869 | BX75: -33 | BY75: -227.2258065 | BZ75: 1441 | CC75: 2023 | CD75: 2001 | CE75: 811 | CF75: 313 | CG75: 1406 | CH75: 1821 | CI75: 1451 | CJ75: 1243 | CK75: 819.5 | CL75: 946 | CM75: 3869 | CN75: -33 | CO75: -227.2258065 | CP75: 1441 | CS75: 2024 | CT75: 2001 | CU75: 811 | CV75: 313 | CW75: 1406 | CX75: 1821 | CY75: 1451 | CZ75: 1243 | DA75: 204 | DB75: 946 | DC75: 3869 | DD75: -33 | DE75: -227.2258065 | DF75: 1441 | DI75: 2025 | DJ75: 2001 | DK75: 811 | DL75: 313 | DM75: 1406 | DN75: 1821 | DO75: 1451 | DP75: 1243 | DQ75: 819.5 | DR75: 946 | DS75: 3869 | DT75: -33 | DU75: -227.2258065 | DV75: 1441 | DY75: 2026 | DZ75: 2001 | EA75: 811 | EB75: 313 | EC75: 1406 | ED75: 1821 | EE75: 1451 | EF75: 1243 | EG75: 819.5 | EH75: 946 | EI75: 3869 | EJ75: -33 | EK75: -227.2258065 | EL75: 1441 | EO75: 2027 | EP75: 2001 | EQ75: 811 | ER75: 313 | ES75: 1406 | ET75: 1821 | EU75: 1451 | EV75: 1243 | EW75: 819.5 | EX75: 946 | EY75: 3869 | EZ75: -33 | FA75: -227.2258065 | FB75: 1441 | FE75: 2028 | FF75: 2001 | FG75: 811 | FH75: 313 | FI75: 1406 | FJ75: 1821 | FK75: 1451 | FL75: 1243 | FM75: 819.5 | FN75: 946 | FO75: 3869 | FP75: -33 | FQ75: -227.2258065 | FR75: 1441 | FU75: 2029 | FV75: 2001 | FW75: 811 | FX75: 313 | FY75: 1406 | FZ75: 1821 | GA75: 1451 | GB75: 1243 | GC75: 819.5 | GD75: 946 | GE75: 3869 | GF75: -33 | GG75: -227.2258065 | GH75: 1441 | GK75: 2030 | GL75: 2001 | GM75: 811 | GN75: 313 | GO75: 1406 | GP75: 1821 | GQ75: 1451 | GR75: 1243 | GS75: 819.5 | GT75: 946 | GU75: 3869 | GV75: -33 | GW75: -227.2258065 | GX75: 1441 | HA75: 2031 | HB75: 2001 | HC75: 811 | HD75: 229 | HE75: 1406 | HF75: 1875 | HG75: 1453 | HH75: 1233 | HI75: 821.5 | HJ75: 949 | HK75: 3912 | HL75: -25 | HM75: -201.8709677 | HN75: 1467
A76: 2018 | B76: 2002 | C76: 1088 | D76: -143 | E76: 1196 | F76: 1917 | G76: 2349 | H76: 530 | I76: 0 | J76: 0 | K76: 0 | L76: 0 | M76: -242.9354839 | N76: 551 | O76: 594.8327626 | Q76: 2019 | R76: 2002 | S76: 1051 | T76: -225 | U76: 1199 | V76: 1922 | W76: 2274 | X76: 427 | Y76: 0 | Z76: 0 | AA76: 0 | AB76: 0 | AC76: -97.61290323 | AD76: 509 | AE76: 580.0214612 | AG76: 2020 | AH76: 2002 | AI76: 927 | AJ76: 308 | AK76: 1331 | AL76: 2283 | AM76: 2067 | AN76: 1545 | AO76: 0 | AP76: 0 | AQ76: 0 | AR76: 0 | AS76: -30.48387097 | AT76: 306 | AW76: 2021 | AX76: 2002 | AY76: 927 | AZ76: 308 | BA76: 1331 | BB76: 2283 | BC76: 2067 | BD76: 1545 | BE76: 0 | BF76: 0 | BG76: 0 | BH76: 0 | BI76: -30.48387097 | BJ76: 306 | BM76: 2022 | BN76: 2002 | BO76: 927 | BP76: 308 | BQ76: 1331 | BR76: 2283 | BS76: 2067 | BT76: 1545 | BU76: 0 | BV76: 0 | BW76: 0 | BX76: 0 | BY76: -30.48387097 | BZ76: 306 | CC76: 2023 | CD76: 2002 | CE76: 927 | CF76: 308 | CG76: 1331 | CH76: 2283 | CI76: 2067 | CJ76: 1545 | CK76: 0 | CL76: 0 | CM76: 0 | CN76: 0 | CO76: -30.48387097 | CP76: 306 | CS76: 2024 | CT76: 2002 | CU76: 927 | CV76: 308 | CW76: 1331 | CX76: 2283 | CY76: 2067 | CZ76: 1545 | DA76: 0 | DB76: 0 | DC76: 0 | DD76: 0 | DE76: -30.48387097 | DF76: 306 | DI76: 2025 | DJ76: 2002 | DK76: 927 | DL76: 308 | DM76: 1331 | DN76: 2283 | DO76: 2067 | DP76: 1545 | DQ76: 0 | DR76: 0 | DS76: 0 | DT76: 0 | DU76: -30.48387097 | DV76: 306 | DY76: 2026 | DZ76: 2002 | EA76: 927 | EB76: 308 | EC76: 1331 | ED76: 2283 | EE76: 2067 | EF76: 1545 | EG76: 0 | EH76: 0 | EI76: 0 | EJ76: 0 | EK76: -30.48387097 | EL76: 306 | EO76: 2027 | EP76: 2002 | EQ76: 927 | ER76: 308 | ES76: 1331 | ET76: 2283 | EU76: 2067 | EV76: 1545 | EW76: 0 | EX76: 0 | EY76: 0 | EZ76: 0 | FA76: -30.48387097 | FB76: 306 | FE76: 2028 | FF76: 2002 | FG76: 927 | FH76: 308 | FI76: 1331 | FJ76: 2283 | FK76: 2067 | FL76: 1545 | FM76: 0 | FN76: 0 | FO76: 0 | FP76: 0 | FQ76: -30.48387097 | FR76: 306 | FU76: 2029 | FV76: 2002 | FW76: 927 | FX76: 308 | FY76: 1331 | FZ76: 2283 | GA76: 2067 | GB76: 1545 | GC76: 0 | GD76: 0 | GE76: 0 | GF76: 0 | GG76: -30.48387097 | GH76: 306 | GK76: 2030 | GL76: 2002 | GM76: 927 | GN76: 308 | GO76: 1331 | GP76: 2283 | GQ76: 2067 | GR76: 1545 | GS76: 0 | GT76: 0 | GU76: 0 | GV76: 0 | GW76: -30.48387097 | GX76: 306 | HA76: 2031 | HB76: 2002 | HC76: 927 | HD76: 351 | HE76: 1447 | HF76: 2491 | HG76: 1977 | HH76: -482 | HI76: 0 | HJ76: 0 | HK76: 0 | HL76: 0 | HM76: -168.8709677 | HN76: 875
A77: 2018 | B77: 2003 | C77: 958 | D77: 13 | E77: 1128 | F77: 2216 | G77: 2129 | H77: 0 | I77: 0 | J77: 0 | K77: 0 | L77: 0 | M77: 45.96774194 | N77: 519 | O77: 576.3275114 | Q77: 2019 | R77: 2003 | S77: 958 | T77: 13 | U77: 1186 | V77: 2213 | W77: 2129 | X77: 0 | Y77: 0 | Z77: 0 | AA77: 0 | AB77: -8 | AC77: 74.03225806 | AD77: 532 | AE77: 583.771347 | AG77: 2020 | AH77: 2003 | AI77: 668 | AJ77: 0 | AK77: 1268 | AL77: 2814 | AM77: 1336 | AN77: 0 | AO77: 0 | AP77: 0 | AQ77: 0 | AR77: -53 | AS77: 0.8064516129 | AT77: 533 | AW77: 2021 | AX77: 2003 | AY77: 668 | AZ77: 0 | BA77: 1268 | BB77: 2814 | BC77: 1336 | BD77: 0 | BE77: 0 | BF77: 0 | BG77: 0 | BH77: -53 | BI77: 0.8064516129 | BJ77: 533 | BM77: 2022 | BN77: 2003 | BO77: 668 | BP77: 0 | BQ77: 1268 | BR77: 2814 | BS77: 1336 | BT77: 0 | BU77: 0 | BV77: 0 | BW77: 0 | BX77: -53 | BY77: 0.8064516129 | BZ77: 533 | CC77: 2023 | CD77: 2003 | CE77: 668 | CF77: 0 | CG77: 1268 | CH77: 2814 | CI77: 1336 | CJ77: 0 | CK77: 0 | CL77: 0 | CM77: 0 | CN77: -53 | CO77: 0.8064516129 | CP77: 533 | CS77: 2024 | CT77: 2003 | CU77: 668 | CV77: 0 | CW77: 1268 | CX77: 2814 | CY77: 1336 | CZ77: 0 | DA77: 0 | DB77: 0 | DC77: 0 | DD77: -53 | DE77: 0.8064516129 | DF77: 533 | DI77: 2025 | DJ77: 2003 | DK77: 668 | DL77: 0 | DM77: 1268 | DN77: 2814 | DO77: 1336 | DP77: 0 | DQ77: 0 | DR77: 0 | DS77: 0 | DT77: -53 | DU77: 0.8064516129 | DV77: 533 | DY77: 2026 | DZ77: 2003 | EA77: 668 | EB77: 0 | EC77: 1268 | ED77: 2814 | EE77: 1336 | EF77: 0 | EG77: 0 | EH77: 0 | EI77: 0 | EJ77: -53 | EK77: 0.8064516129 | EL77: 533 | EO77: 2027 | EP77: 2003 | EQ77: 668 | ER77: 0 | ES77: 1268 | ET77: 2814 | EU77: 1336 | EV77: 0 | EW77: 0 | EX77: 0 | EY77: 0 | EZ77: -53 | FA77: 0.8064516129 | FB77: 533 | FE77: 2028 | FF77: 2003 | FG77: 668 | FH77: 0 | FI77: 1268 | FJ77: 2814 | FK77: 1336 | FL77: 0 | FM77: 0 | FN77: 0 | FO77: 0 | FP77: -53 | FQ77: 0.8064516129 | FR77: 533 | FU77: 2029 | FV77: 2003 | FW77: 668 | FX77: 0 | FY77: 1268 | FZ77: 2814 | GA77: 1336 | GB77: 0 | GC77: 0 | GD77: 0 | GE77: 0 | GF77: -53 | GG77: 0.8064516129 | GH77: 533 | GK77: 2030 | GL77: 2003 | GM77: 668 | GN77: 0 | GO77: 1268 | GP77: 2814 | GQ77: 1336 | GR77: 0 | GS77: 0 | GT77: 0 | GU77: 0 | GV77: -53 | GW77: 0.8064516129 | GX77: 533 | HA77: 2031 | HB77: 2003 | HC77: 743 | HD77: 0 | HE77: 1205 | HF77: 2800 | HG77: 1431 | HH77: 0 | HI77: 0 | HJ77: 0 | HK77: 0 | HL77: -229 | HM77: -55.67741935 | HN77: 652
A78: 2018 | B78: 2004 | C78: 872 | D78: 116 | E78: 730 | F78: 1813 | G78: 1178 | H78: 226 | I78: 493 | J78: 0 | K78: 37 | L78: 0 | M78: -105.9677419 | N78: 0 | O78: 443.6860731 | Q78: 2019 | R78: 2004 | S78: 838 | T78: 219 | U78: 698 | V78: 1813 | W78: 1178 | X78: 226 | Y78: 512.5 | Z78: 0 | AA78: 56 | AB78: 0 | AC78: -75.96774194 | AD78: 0 | AE78: 452.2704338 | AG78: 2020 | AH78: 2004 | AI78: 307 | AJ78: -148 | AK78: 1226 | AL78: 2556 | AM78: 903 | AN78: 1127 | AO78: 436 | AP78: 0 | AQ78: 0 | AR78: 0 | AS78: 73.5483871 | AT78: 0 | AW78: 2021 | AX78: 2004 | AY78: 307 | AZ78: -148 | BA78: 1226 | BB78: 2556 | BC78: 903 | BD78: 1127 | BE78: 436 | BF78: 0 | BG78: 0 | BH78: 0 | BI78: 73.5483871 | BJ78: 0 | BM78: 2022 | BN78: 2004 | BO78: 307 | BP78: -148 | BQ78: 1226 | BR78: 2556 | BS78: 903 | BT78: 1127 | BU78: 436 | BV78: 0 | BW78: 0 | BX78: 0 | BY78: 73.5483871 | BZ78: 0 | CC78: 2023 | CD78: 2004 | CE78: 307 | CF78: -148 | CG78: 1226 | CH78: 2556 | CI78: 903 | CJ78: 1127 | CK78: 436 | CL78: 0 | CM78: 0 | CN78: 0 | CO78: 73.5483871 | CP78: 0 | CS78: 2024 | CT78: 2004 | CU78: 307 | CV78: -148 | CW78: 1226 | CX78: 2556 | CY78: 903 | CZ78: 1127 | DA78: 436 | DB78: 0 | DC78: 0 | DD78: 0 | DE78: 73.5483871 | DF78: 0 | DI78: 2025 | DJ78: 2004 | DK78: 307 | DL78: -148 | DM78: 1226 | DN78: 2556 | DO78: 903 | DP78: 1127 | DQ78: 436 | DR78: 0 | DS78: 0 | DT78: 0 | DU78: 73.5483871 | DV78: 0 | DY78: 2026 | DZ78: 2004 | EA78: 307 | EB78: -148 | EC78: 1226 | ED78: 2556 | EE78: 903 | EF78: 1127 | EG78: 436 | EH78: 0 | EI78: 0 | EJ78: 0 | EK78: 73.5483871 | EL78: 0 | EO78: 2027 | EP78: 2004 | EQ78: 307 | ER78: -148 | ES78: 1226 | ET78: 2556 | EU78: 903 | EV78: 1127 | EW78: 436 | EX78: 0 | EY78: 0 | EZ78: 0 | FA78: 73.5483871 | FB78: 0 | FE78: 2028 | FF78: 2004 | FG78: 307 | FH78: -148 | FI78: 1226 | FJ78: 2556 | FK78: 903 | FL78: 1127 | FM78: 436 | FN78: 0 | FO78: 0 | FP78: 0 | FQ78: 73.5483871 | FR78: 0 | FU78: 2029 | FV78: 2004 | FW78: 307 | FX78: -148 | FY78: 1226 | FZ78: 2556 | GA78: 903 | GB78: 1127 | GC78: 436 | GD78: 0 | GE78: 0 | GF78: 0 | GG78: 73.5483871 | GH78: 0 | GK78: 2030 | GL78: 2004 | GM78: 307 | GN78: -148 | GO78: 1226 | GP78: 2556 | GQ78: 903 | GR78: 1127 | GS78: 436 | GT78: 0 | GU78: 0 | GV78: 0 | GW78: 73.5483871 | GX78: 0 | HA78: 2031 | HB78: 2004 | HC78: 292 | HD78: -206 | HE78: 1176 | HF78: 3429 | HG78: 1359 | HH78: 0 | HI78: 379 | HJ78: 0 | HK78: 0 | HL78: -162 | HM78: 59.03225806 | HN78: 68
A79: 2018 | B79: 2005 | C79: 488 | D79: 385 | E79: 0 | F79: 0 | G79: 0 | H79: 618 | I79: 594.5 | J79: 0 | K79: 0 | L79: 0 | M79: 0 | N79: 597 | O79: 223.4829909 | Q79: 2019 | R79: 2005 | S79: 488 | T79: 385 | U79: 0 | V79: 0 | W79: 0 | X79: 581 | Y79: 617 | Z79: 0 | AA79: 0 | AB79: 0 | AC79: 0 | AD79: 620 | AE79: 224.0844749 | AG79: 2020 | AH79: 2005 | AI79: 355 | AJ79: 0 | AK79: 72 | AL79: 0 | AM79: 0 | AN79: 123 | AO79: 371.5 | AP79: 0 | AQ79: 0 | AR79: 0 | AS79: 0 | AT79: 886 | AW79: 2021 | AX79: 2005 | AY79: 355 | AZ79: 0 | BA79: 72 | BB79: 0 | BC79: 0 | BD79: 123 | BE79: 371.5 | BF79: 0 | BG79: 0 | BH79: 0 | BI79: 0 | BJ79: 886 | BM79: 2022 | BN79: 2005 | BO79: 355 | BP79: 0 | BQ79: 72 | BR79: 0 | BS79: 0 | BT79: 123 | BU79: 371.5 | BV79: 0 | BW79: 0 | BX79: 0 | BY79: 0 | BZ79: 886 | CC79: 2023 | CD79: 2005 | CE79: 355 | CF79: 0 | CG79: 72 | CH79: 0 | CI79: 0 | CJ79: 123 | CK79: 371.5 | CL79: 0 | CM79: 0 | CN79: 0 | CO79: 0 | CP79: 886 | CS79: 2024 | CT79: 2005 | CU79: 355 | CV79: 0 | CW79: 72 | CX79: 0 | CY79: 0 | CZ79: 123 | DA79: 0 | DB79: 0 | DC79: 0 | DD79: 0 | DE79: 0 | DF79: 886 | DI79: 2025 | DJ79: 2005 | DK79: 355 | DL79: 0 | DM79: 72 | DN79: 0 | DO79: 0 | DP79: 123 | DQ79: 371.5 | DR79: 0 | DS79: 0 | DT79: 0 | DU79: 0 | DV79: 886 | DY79: 2026 | DZ79: 2005 | EA79: 355 | EB79: 0 | EC79: 72 | ED79: 0 | EE79: 0 | EF79: 123 | EG79: 371.5 | EH79: 0 | EI79: 0 | EJ79: 0 | EK79: 0 | EL79: 886 | EO79: 2027 | EP79: 2005 | EQ79: 355 | ER79: 0 | ES79: 72 | ET79: 0 | EU79: 0 | EV79: 123 | EW79: 371.5 | EX79: 0 | EY79: 0 | EZ79: 0 | FA79: 0 | FB79: 886 | FE79: 2028 | FF79: 2005 | FG79: 355 | FH79: 0 | FI79: 72 | FJ79: 0 | FK79: 0 | FL79: 123 | FM79: 371.5 | FN79: 0 | FO79: 0 | FP79: 0 | FQ79: 0 | FR79: 886 | FU79: 2029 | FV79: 2005 | FW79: 355 | FX79: 0 | FY79: 72 | FZ79: 0 | GA79: 0 | GB79: 123 | GC79: 371.5 | GD79: 0 | GE79: 0 | GF79: 0 | GG79: 0 | GH79: 886 | GK79: 2030 | GL79: 2005 | GM79: 355 | GN79: 0 | GO79: 72 | GP79: 0 | GQ79: 0 | GR79: 123 | GS79: 371.5 | GT79: 0 | GU79: 0 | GV79: 0 | GW79: 0 | GX79: 886 | HA79: 2031 | HB79: 2005 | HC79: 355 | HD79: 0 | HE79: 72 | HF79: 0 | HG79: 0 | HH79: 194 | HI79: 317 | HJ79: 0 | HK79: 0 | HL79: 0 | HM79: -39.19354839 | HN79: 813
A80: 2018 | B80: 2006 | C80: 1574 | D80: 271 | E80: 0 | F80: 0 | G80: 0 | H80: 0 | I80: 0 | J80: 0 | K80: 0 | L80: -7 | M80: -232.4193548 | N80: 1097 | O80: 225.8172374 | Q80: 2019 | R80: 2006 | S80: 1574 | T80: 271 | U80: 0 | V80: 0 | W80: 0 | X80: 0 | Y80: 0 | Z80: 0 | AA80: 0 | AB80: -13 | AC80: -230.0967742 | AD80: 1160 | AE80: 230.6829909 | AG80: 2020 | AH80: 2006 | AI80: 912 | AJ80: 0 | AK80: 363 | AL80: 0 | AM80: 0 | AN80: 0 | AO80: 0 | AP80: 0 | AQ80: 0 | AR80: 0 | AS80: -240.6451613 | AT80: 1264 | AW80: 2021 | AX80: 2006 | AY80: 912 | AZ80: 0 | BA80: 363 | BB80: 0 | BC80: 0 | BD80: 0 | BE80: 0 | BF80: 0 | BG80: 0 | BH80: 0 | BI80: -240.6451613 | BJ80: 1264 | BM80: 2022 | BN80: 2006 | BO80: 912 | BP80: 0 | BQ80: 363 | BR80: 0 | BS80: 0 | BT80: 0 | BU80: 0 | BV80: 0 | BW80: 0 | BX80: 0 | BY80: -240.6451613 | BZ80: 1264 | CC80: 2023 | CD80: 2006 | CE80: 912 | CF80: 0 | CG80: 363 | CH80: 0 | CI80: 0 | CJ80: 0 | CK80: 0 | CL80: 0 | CM80: 0 | CN80: 0 | CO80: -240.6451613 | CP80: 1264 | CS80: 2024 | CT80: 2006 | CU80: 912 | CV80: 0 | CW80: 363 | CX80: 0 | CY80: 0 | CZ80: 0 | DA80: 0 | DB80: 0 | DC80: 0 | DD80: 0 | DE80: -240.6451613 | DF80: 1264 | DI80: 2025 | DJ80: 2006 | DK80: 912 | DL80: 0 | DM80: 363 | DN80: 0 | DO80: 0 | DP80: 0 | DQ80: 0 | DR80: 0 | DS80: 0 | DT80: 0 | DU80: -240.6451613 | DV80: 1264 | DY80: 2026 | DZ80: 2006 | EA80: 912 | EB80: 0 | EC80: 363 | ED80: 0 | EE80: 0 | EF80: 0 | EG80: 0 | EH80: 0 | EI80: 0 | EJ80: 0 | EK80: -240.6451613 | EL80: 1264 | EO80: 2027 | EP80: 2006 | EQ80: 912 | ER80: 0 | ES80: 363 | ET80: 0 | EU80: 0 | EV80: 0 | EW80: 0 | EX80: 0 | EY80: 0 | EZ80: 0 | FA80: -240.6451613 | FB80: 1264 | FE80: 2028 | FF80: 2006 | FG80: 912 | FH80: 0 | FI80: 363 | FJ80: 0 | FK80: 0 | FL80: 0 | FM80: 0 | FN80: 0 | FO80: 0 | FP80: 0 | FQ80: -240.6451613 | FR80: 1264 | FU80: 2029 | FV80: 2006 | FW80: 912 | FX80: 0 | FY80: 363 | FZ80: 0 | GA80: 0 | GB80: 0 | GC80: 0 | GD80: 0 | GE80: 0 | GF80: 0 | GG80: -240.6451613 | GH80: 1264 | GK80: 2030 | GL80: 2006 | GM80: 912 | GN80: 0 | GO80: 363 | GP80: 0 | GQ80: 0 | GR80: 0 | GS80: 0 | GT80: 0 | GU80: 0 | GV80: 0 | GW80: -240.6451613 | GX80: 1264 | HA80: 2031 | HB80: 2006 | HC80: 910 | HD80: 0 | HE80: 363 | HF80: 0 | HG80: 0 | HH80: 0 | HI80: 0 | HJ80: 0 | HK80: 0 | HL80: -50 | HM80: -331.8387097 | HN80: 1395
A81: 2018 | B81: 2007 | C81: 1017 | D81: 66 | E81: 629 | F81: 0 | G81: 0 | H81: 0 | I81: 0 | J81: 0 | K81: 0 | L81: -31 | M81: -268.6774194 | N81: 1262 | O81: 223.5034247 | Q81: 2019 | R81: 2007 | S81: 1017 | T81: 66 | U81: 629 | V81: 0 | W81: 0 | X81: 0 | Y81: 0 | Z81: 0 | AA81: 0 | AB81: -37 | AC81: -235 | AD81: 1272 | AE81: 226.6760274 | AG81: 2020 | AH81: 2007 | AI81: 990 | AJ81: 0 | AK81: 290 | AL81: 0 | AM81: 0 | AN81: 0 | AO81: 0 | AP81: 0 | AQ81: 0 | AR81: 0 | AS81: -263.3548387 | AT81: 1414 | AW81: 2021 | AX81: 2007 | AY81: 990 | AZ81: 0 | BA81: 290 | BB81: 0 | BC81: 0 | BD81: 0 | BE81: 0 | BF81: 0 | BG81: 0 | BH81: 0 | BI81: -263.3548387 | BJ81: 1414 | BM81: 2022 | BN81: 2007 | BO81: 990 | BP81: 0 | BQ81: 290 | BR81: 0 | BS81: 0 | BT81: 0 | BU81: 0 | BV81: 0 | BW81: 0 | BX81: 0 | BY81: -263.3548387 | BZ81: 1414 | CC81: 2023 | CD81: 2007 | CE81: 990 | CF81: 0 | CG81: 290 | CH81: 0 | CI81: 0 | CJ81: 0 | CK81: 0 | CL81: 0 | CM81: 0 | CN81: 0 | CO81: -263.3548387 | CP81: 1414 | CS81: 2024 | CT81: 2007 | CU81: 990 | CV81: 0 | CW81: 290 | CX81: 0 | CY81: 0 | CZ81: 0 | DA81: 0 | DB81: 0 | DC81: 0 | DD81: 0 | DE81: -263.3548387 | DF81: 1414 | DI81: 2025 | DJ81: 2007 | DK81: 990 | DL81: 0 | DM81: 290 | DN81: 0 | DO81: 0 | DP81: 0 | DQ81: 0 | DR81: 0 | DS81: 0 | DT81: 0 | DU81: -263.3548387 | DV81: 1414 | DY81: 2026 | DZ81: 2007 | EA81: 990 | EB81: 0 | EC81: 290 | ED81: 0 | EE81: 0 | EF81: 0 | EG81: 0 | EH81: 0 | EI81: 0 | EJ81: 0 | EK81: -263.3548387 | EL81: 1414 | EO81: 2027 | EP81: 2007 | EQ81: 990 | ER81: 0 | ES81: 290 | ET81: 0 | EU81: 0 | EV81: 0 | EW81: 0 | EX81: 0 | EY81: 0 | EZ81: 0 | FA81: -263.3548387 | FB81: 1414 | FE81: 2028 | FF81: 2007 | FG81: 990 | FH81: 0 | FI81: 290 | FJ81: 0 | FK81: 0 | FL81: 0 | FM81: 0 | FN81: 0 | FO81: 0 | FP81: 0 | FQ81: -263.3548387 | FR81: 1414 | FU81: 2029 | FV81: 2007 | FW81: 990 | FX81: 0 | FY81: 290 | FZ81: 0 | GA81: 0 | GB81: 0 | GC81: 0 | GD81: 0 | GE81: 0 | GF81: 0 | GG81: -263.3548387 | GH81: 1414 | GK81: 2030 | GL81: 2007 | GM81: 990 | GN81: 0 | GO81: 290 | GP81: 0 | GQ81: 0 | GR81: 0 | GS81: 0 | GT81: 0 | GU81: 0 | GV81: 0 | GW81: -263.3548387 | GX81: 1414 | HA81: 2031 | HB81: 2007 | HC81: 985 | HD81: 0 | HE81: 290 | HF81: 0 | HG81: 633 | HH81: 0 | HI81: 0 | HJ81: 0 | HK81: 0 | HL81: -101 | HM81: -370.8387097 | HN81: 1534
A82: 2018 | B82: 2008 | C82: 933 | D82: 0 | E82: 1465 | F82: 1345 | G82: 750 | H82: 321 | I82: 418 | J82: 0 | K82: 0 | L82: 0 | M82: 0 | N82: 1126 | O82: 529.5633562 | Q82: 2019 | R82: 2008 | S82: 933 | T82: 0 | U82: 1433 | V82: 1345 | W82: 750 | X82: 327 | Y82: 426 | Z82: 0 | AA82: 0 | AB82: 0 | AC82: 0 | AD82: 1108 | AE82: 526.5325342 | AG82: 2020 | AH82: 2008 | AI82: 714 | AJ82: 0 | AK82: 1261 | AL82: 1177 | AM82: 964 | AN82: 356 | AO82: 192.5 | AP82: 0 | AQ82: 0 | AR82: 0 | AS82: 0 | AT82: 885 | AW82: 2021 | AX82: 2008 | AY82: 714 | AZ82: 0 | BA82: 1261 | BB82: 1177 | BC82: 964 | BD82: 356 | BE82: 192.5 | BF82: 0 | BG82: 0 | BH82: 0 | BI82: 0 | BJ82: 885 | BM82: 2022 | BN82: 2008 | BO82: 714 | BP82: 0 | BQ82: 1261 | BR82: 1177 | BS82: 964 | BT82: 356 | BU82: 192.5 | BV82: 0 | BW82: 0 | BX82: 0 | BY82: 0 | BZ82: 885 | CC82: 2023 | CD82: 2008 | CE82: 714 | CF82: 0 | CG82: 1261 | CH82: 1177 | CI82: 964 | CJ82: 356 | CK82: 192.5 | CL82: 0 | CM82: 0 | CN82: 0 | CO82: 0 | CP82: 885 | CS82: 2024 | CT82: 2008 | CU82: 714 | CV82: 0 | CW82: 1261 | CX82: 1177 | CY82: 964 | CZ82: 356 | DA82: 375 | DB82: 0 | DC82: 0 | DD82: 0 | DE82: 0 | DF82: 885 | DI82: 2025 | DJ82: 2008 | DK82: 714 | DL82: 0 | DM82: 1261 | DN82: 1177 | DO82: 964 | DP82: 356 | DQ82: 192.5 | DR82: 0 | DS82: 0 | DT82: 0 | DU82: 0 | DV82: 885 | DY82: 2026 | DZ82: 2008 | EA82: 714 | EB82: 0 | EC82: 1261 | ED82: 1177 | EE82: 964 | EF82: 356 | EG82: 192.5 | EH82: 0 | EI82: 0 | EJ82: 0 | EK82: 0 | EL82: 885 | EO82: 2027 | EP82: 2008 | EQ82: 714 | ER82: 0 | ES82: 1261 | ET82: 1177 | EU82: 964 | EV82: 356 | EW82: 192.5 | EX82: 0 | EY82: 0 | EZ82: 0 | FA82: 0 | FB82: 885 | FE82: 2028 | FF82: 2008 | FG82: 714 | FH82: 0 | FI82: 1261 | FJ82: 1177 | FK82: 964 | FL82: 356 | FM82: 192.5 | FN82: 0 | FO82: 0 | FP82: 0 | FQ82: 0 | FR82: 885 | FU82: 2029 | FV82: 2008 | FW82: 714 | FX82: 0 | FY82: 1261 | FZ82: 1177 | GA82: 964 | GB82: 356 | GC82: 192.5 | GD82: 0 | GE82: 0 | GF82: 0 | GG82: 0 | GH82: 885 | GK82: 2030 | GL82: 2008 | GM82: 714 | GN82: 0 | GO82: 1261 | GP82: 1177 | GQ82: 964 | GR82: 356 | GS82: 192.5 | GT82: 0 | GU82: 0 | GV82: 0 | GW82: 0 | GX82: 885 | HA82: 2031 | HB82: 2008 | HC82: 715 | HD82: 0 | HE82: 1315 | HF82: 1222 | HG82: 1203 | HH82: -17 | HI82: 215 | HJ82: 0 | HK82: 0 | HL82: 0 | HM82: 0 | HN82: 999
B83: Average | C83: =AVERAGE(C3:C82) -> 793.6375 | D83: =AVERAGE(D3:D82) -> 304.2375 | E83: 615.1 | F83: 760.425 | G83: 509.325 | H83: 299.05 | I83: 187.38125 | J83: 86.95 | K83: 273.475 | L83: 32.7125 | M83: -40.80080645 | N83: 354.1 | O83: 347.3874757 | R83: Average | S83: =AVERAGE(S3:S82) -> 785.575 | T83: =AVERAGE(T3:T82) -> 320.9875 | U83: =AVERAGE(U3:U82) -> 610.225 | V83: =AVERAGE(V3:V82) -> 745.2 | W83: =AVERAGE(W3:W82) -> 521.7125 | X83: =AVERAGE(X3:X82) -> 273.5 | Y83: =AVERAGE(Y3:Y82) -> 189.425 | Z83: =AVERAGE(Z3:Z82) -> 87.95 | AA83: =AVERAGE(AA3:AA82) -> 283.025 | AB83: =AVERAGE(AB3:AB82) -> 32.5125 | AC83: =AVERAGE(AC3:AC82) -> -15.43225806 | AD83: =AVERAGE(AD3:AD82) -> 374.1 | AE83: 349.9766881
B95: Average | C95: =IFERROR(AVERAGE(C3:C82),"") -> 793.6375 | D95: =IFERROR(AVERAGE(D3:D82),"") -> 304.2375 | E95: 615.1 | F95: 760.425 | G95: 509.325 | H95: 299.05 | I95: 187.38125 | J95: 86.95 | K95: 273.475 | L95: 32.7125 | M95: -40.80080645 | N95: 354.1 | O95: 347.3874757 | S95: =IFERROR(AVERAGE(S3:S82),"") -> 785.575 | T95: =IFERROR(AVERAGE(T3:T82),"") -> 320.9875 | U95: 610.225 | V95: 745.2 | W95: 521.7125 | X95: 273.5 | Y95: 189.425 | Z95: 87.95 | AA95: 283.025 | AB95: 32.5125 | AC95: -15.43225806 | AD95: 374.1 | AE95: 349.9766881 | AI95: =IFERROR(AVERAGE(AI3:AI82),"") -> 541.25 | AJ95: =IFERROR(AVERAGE(AJ3:AJ82),"") -> 145.1125 | AK95: 686.5625 | AL95: 846.175 | AM95: 518.3125 | AN95: 377.575 | AO95: 212.54375 | AP95: 89.5125 | AQ95: 236.8 | AR95: 33.025 | AS95: -31.14354839 | AT95: 522.9875 | AY95: =IFERROR(AVERAGE(AY3:AY82),"") -> 541.25 | AZ95: =IFERROR(AVERAGE(AZ3:AZ82),"") -> 145.1125 | BA95: 686.5625 | BB95: 846.175 | BC95: 518.3125 | BD95: 377.575 | BE95: 212.54375 | BF95: 89.5125 | BG95: 236.8 | BH95: 33.025 | BI95: -31.14354839 | BJ95: 522.9875 | BO95: =IFERROR(AVERAGE(BO3:BO82),"") -> 541.25 | BP95: =IFERROR(AVERAGE(BP3:BP82),"") -> 145.1125 | BQ95: 686.5625 | BR95: 846.175 | BS95: 518.3125 | BT95: 377.575 | BU95: 212.54375 | BV95: 89.5125 | BW95: 236.8 | BX95: 33.025 | BY95: -31.14354839 | BZ95: 522.9875 | CE95: =IFERROR(AVERAGE(CE3:CE82),"") -> 541.25 | CF95: =IFERROR(AVERAGE(CF3:CF82),"") -> 145.1125 | CG95: 686.5625 | CH95: 846.175 | CI95: 518.3125 | CJ95: 377.575 | CK95: 212.54375 | CL95: 89.5125 | CM95: 236.8 | CN95: 33.025 | CO95: -31.14354839 | CP95: 522.9875 | CU95: =IFERROR(AVERAGE(CU3:CU82),"") -> 541.25 | CV95: =IFERROR(AVERAGE(CV3:CV82),"") -> 145.1125 | CW95: 686.5625 | CX95: 846.175 | CY95: 518.3125 | CZ95: 377.575 | DA95: 113.71875 | DB95: 89.5125 | DC95: 236.8 | DD95: 33.025 | DE95: -31.14354839 | DF95: 522.9875 | DK95: =IFERROR(AVERAGE(DK3:DK82),"") -> 541.25 | DL95: =IFERROR(AVERAGE(DL3:DL82),"") -> 145.1125 | DM95: 686.5625 | DN95: 846.175 | DO95: 518.3125 | DP95: 377.575 | DQ95: 212.54375 | DR95: 89.5125 | DS95: 236.8 | DT95: 33.025 | DU95: -31.14354839 | DV95: 522.9875 | EA95: =IFERROR(AVERAGE(EA3:EA82),"") -> 541.25 | EB95: =IFERROR(AVERAGE(EB3:EB82),"") -> 145.1125 | EC95: 686.5625 | ED95: 846.175 | EE95: 518.3125 | EF95: 377.575 | EG95: 212.54375 | EH95: 89.5125 | EI95: 236.8 | EJ95: 33.025 | EK95: -31.14354839 | EL95: 522.9875 | EQ95: =IFERROR(AVERAGE(EQ3:EQ82),"") -> 541.25 | ER95: =IFERROR(AVERAGE(ER3:ER82),"") -> 145.1125 | ES95: 686.5625 | ET95: 846.175 | EU95: 518.3125 | EV95: 377.575 | EW95: 212.54375 | EX95: 89.5125 | EY95: 236.8 | EZ95: 33.025 | FA95: -31.14354839 | FB95: 522.9875 | FG95: =IFERROR(AVERAGE(FG3:FG82),"") -> 541.25 | FH95: =IFERROR(AVERAGE(FH3:FH82),"") -> 145.1125 | FI95: 686.5625 | FJ95: 846.175 | FK95: 518.3125 | FL95: 377.575 | FM95: 212.54375 | FN95: 89.5125 | FO95: 236.8 | FP95: 33.025 | FQ95: -31.14354839 | FR95: 522.9875 | FW95: =IFERROR(AVERAGE(FW3:FW82),"") -> 541.25 | FX95: =IFERROR(AVERAGE(FX3:FX82),"") -> 145.1125 | FY95: 686.5625 | FZ95: 846.175 | GA95: 518.3125 | GB95: 377.575 | GC95: 212.54375 | GD95: 89.5125 | GE95: 236.8 | GF95: 33.025 | GG95: -31.14354839 | GH95: 522.9875 | GM95: =IFERROR(AVERAGE(GM3:GM82),"") -> 541.25 | GN95: =IFERROR(AVERAGE(GN3:GN82),"") -> 145.1125 | GO95: 686.5625 | GP95: 846.175 | GQ95: 518.3125 | GR95: 377.575 | GS95: 212.54375 | GT95: 89.5125 | GU95: 236.8 | GV95: 33.025 | GW95: -31.14354839 | GX95: 522.9875 | HC95: =IFERROR(AVERAGE(HC3:HC82),"") -> 545.8 | HD95: =IFERROR(AVERAGE(HD3:HD82),"") -> 89.9875 | HE95: 691.125 | HF95: 889.5375 | HG95: 606.5125 | HH95: 275.3625 | HI95: 208.675 | HJ95: 93.95 | HK95: 221.65 | HL95: -1.325 | HM95: -43.23145161 | HN95: 627.4

Sheet PricesByItr
A1: =ReplacementPurches!A1 -> Hours | C1: =ReplacementPurches!C1 -> 744 | D1: =ReplacementPurches!D1 -> 721 | E1: =ReplacementPurches!E1 -> 744 | F1: =ReplacementPurches!F1 -> 744 | G1: =ReplacementPurches!G1 -> 672 | H1: =ReplacementPurches!H1 -> 743 | I1: =ReplacementPurches!I1 -> 720 | J1: =ReplacementPurches!J1 -> 744 | K1: =ReplacementPurches!K1 -> 720 | L1: =ReplacementPurches!L1 -> 744 | M1: =ReplacementPurches!M1 -> 744 | N1: =ReplacementPurches!N1 -> 720 | O1: =ReplacementPurches!O1 -> 8760 | Q1: =ReplacementPurches!Q1 -> Hours | S1: =ReplacementPurches!S1 -> 744 | T1: =ReplacementPurches!T1 -> 721 | U1: =ReplacementPurches!U1 -> 744 | V1: =ReplacementPurches!V1 -> 744 | W1: =ReplacementPurches!W1 -> 672 | X1: =ReplacementPurches!X1 -> 743 | Y1: =ReplacementPurches!Y1 -> 720 | Z1: =ReplacementPurches!Z1 -> 744 | AA1: =ReplacementPurches!AA1 -> 720 | AB1: =ReplacementPurches!AB1 -> 744 | AC1: =ReplacementPurches!AC1 -> 744 | AD1: =ReplacementPurches!AD1 -> 720 | AE1: =ReplacementPurches!AE1 -> 8760 | AG1: =ReplacementPurches!AG1 -> Hours | AH1: =ReplacementPurches!AH1 -> 0 | AI1: =ReplacementPurches!AI1 -> 744 | AJ1: =ReplacementPurches!AJ1 -> 721 | AK1: =ReplacementPurches!AK1 -> 744 | AL1: =ReplacementPurches!AL1 -> 744 | AM1: =ReplacementPurches!AM1 -> 696 | AN1: =ReplacementPurches!AN1 -> 743 | AO1: =ReplacementPurches!AO1 -> 720 | AP1: =ReplacementPurches!AP1 -> 744 | AQ1: =ReplacementPurches!AQ1 -> 720 | AR1: =ReplacementPurches!AR1 -> 744 | AS1: =ReplacementPurches!AS1 -> 744 | AT1: =ReplacementPurches!AT1 -> 720 | AU1: =ReplacementPurches!AU1 -> 8784 | AW1: =ReplacementPurches!AW1 -> Hours | AX1: =ReplacementPurches!AX1 -> 0 | AY1: =ReplacementPurches!AY1 -> 744 | AZ1: =ReplacementPurches!AZ1 -> 721 | BA1: =ReplacementPurches!BA1 -> 744 | BB1: =ReplacementPurches!BB1 -> 744 | BC1: =ReplacementPurches!BC1 -> 672 | BD1: =ReplacementPurches!BD1 -> 743 | BE1: =ReplacementPurches!BE1 -> 720 | BF1: =ReplacementPurches!BF1 -> 744 | BG1: =ReplacementPurches!BG1 -> 720 | BH1: =ReplacementPurches!BH1 -> 744 | BI1: =ReplacementPurches!BI1 -> 744 | BJ1: =ReplacementPurches!BJ1 -> 720 | BK1: =ReplacementPurches!BK1 -> 8760 | BM1: =ReplacementPurches!BM1 -> Hours | BN1: =ReplacementPurches!BN1 -> 0 | BO1: =ReplacementPurches!BO1 -> 744 | BP1: =ReplacementPurches!BP1 -> 721 | BQ1: =ReplacementPurches!BQ1 -> 744 | BR1: =ReplacementPurches!BR1 -> 744 | BS1: =ReplacementPurches!BS1 -> 672 | BT1: =ReplacementPurches!BT1 -> 743 | BU1: =ReplacementPurches!BU1 -> 720 | BV1: =ReplacementPurches!BV1 -> 744 | BW1: =ReplacementPurches!BW1 -> 720 | BX1: =ReplacementPurches!BX1 -> 744 | BY1: =ReplacementPurches!BY1 -> 744 | BZ1: =ReplacementPurches!BZ1 -> 720 | CA1: =ReplacementPurches!CA1 -> 8760 | CC1: =ReplacementPurches!CC1 -> Hours | CD1: =ReplacementPurches!CD1 -> 0 | CE1: =ReplacementPurches!CE1 -> 744 | CF1: =ReplacementPurches!CF1 -> 721 | CG1: =ReplacementPurches!CG1 -> 744 | CH1: =ReplacementPurches!CH1 -> 744 | CI1: =ReplacementPurches!CI1 -> 672 | CJ1: =ReplacementPurches!CJ1 -> 743 | CK1: =ReplacementPurches!CK1 -> 720 | CL1: =ReplacementPurches!CL1 -> 744 | CM1: =ReplacementPurches!CM1 -> 720 | CN1: =ReplacementPurches!CN1 -> 744 | CO1: =ReplacementPurches!CO1 -> 744 | CP1: =ReplacementPurches!CP1 -> 720 | CQ1: =ReplacementPurches!CQ1 -> 8760 | CS1: =ReplacementPurches!CS1 -> Hours | CT1: =ReplacementPurches!CT1 -> 0 | CU1: =ReplacementPurches!CU1 -> 744 | CV1: =ReplacementPurches!CV1 -> 721 | CW1: =ReplacementPurches!CW1 -> 744 | CX1: =ReplacementPurches!CX1 -> 744 | CY1: =ReplacementPurches!CY1 -> 696 | CZ1: =ReplacementPurches!CZ1 -> 743 | DA1: =ReplacementPurches!DA1 -> 720 | DB1: =ReplacementPurches!DB1 -> 744 | DC1: =ReplacementPurches!DC1 -> 720 | DD1: =ReplacementPurches!DD1 -> 744 | DE1: =ReplacementPurches!DE1 -> 744 | DF1: =ReplacementPurches!DF1 -> 720 | DG1: =ReplacementPurches!DG1 -> 8784 | DI1: =ReplacementPurches!DI1 -> Hours | DJ1: =ReplacementPurches!DJ1 -> 0 | DK1: =ReplacementPurches!DK1 -> 744 | DL1: =ReplacementPurches!DL1 -> 721 | DM1: =ReplacementPurches!DM1 -> 744 | DN1: =ReplacementPurches!DN1 -> 744 | DO1: =ReplacementPurches!DO1 -> 672 | DP1: =ReplacementPurches!DP1 -> 743 | DQ1: =ReplacementPurches!DQ1 -> 720 | DR1: =ReplacementPurches!DR1 -> 744 | DS1: =ReplacementPurches!DS1 -> 720 | DT1: =ReplacementPurches!DT1 -> 744 | DU1: =ReplacementPurches!DU1 -> 744 | DV1: =ReplacementPurches!DV1 -> 720 | DW1: =ReplacementPurches!DW1 -> 8760 | DY1: =ReplacementPurches!DY1 -> Hours | DZ1: =ReplacementPurches!DZ1 -> 0 | EA1: =ReplacementPurches!EA1 -> 744 | EB1: =ReplacementPurches!EB1 -> 721 | EC1: =ReplacementPurches!EC1 -> 744 | ED1: =ReplacementPurches!ED1 -> 744 | EE1: =ReplacementPurches!EE1 -> 672 | EF1: =ReplacementPurches!EF1 -> 743 | EG1: =ReplacementPurches!EG1 -> 720 | EH1: =ReplacementPurches!EH1 -> 744 | EI1: =ReplacementPurches!EI1 -> 720 | EJ1: =ReplacementPurches!EJ1 -> 744 | EK1: =ReplacementPurches!EK1 -> 744 | EL1: =ReplacementPurches!EL1 -> 720 | EM1: =ReplacementPurches!EM1 -> 8760 | EO1: =ReplacementPurches!EO1 -> Hours | EP1: =ReplacementPurches!EP1 -> 0 | EQ1: =ReplacementPurches!EQ1 -> 744 | ER1: =ReplacementPurches!ER1 -> 721 | ES1: =ReplacementPurches!ES1 -> 744 | ET1: =ReplacementPurches!ET1 -> 744 | EU1: =ReplacementPurches!EU1 -> 672 | EV1: =ReplacementPurches!EV1 -> 743 | EW1: =ReplacementPurches!EW1 -> 720 | EX1: =ReplacementPurches!EX1 -> 744 | EY1: =ReplacementPurches!EY1 -> 720 | EZ1: =ReplacementPurches!EZ1 -> 744 | FA1: =ReplacementPurches!FA1 -> 744 | FB1: =ReplacementPurches!FB1 -> 720 | FC1: =ReplacementPurches!FC1 -> 8760 | FE1: =ReplacementPurches!FE1 -> Hours | FF1: =ReplacementPurches!FF1 -> 0 | FG1: =ReplacementPurches!FG1 -> 744 | FH1: =ReplacementPurches!FH1 -> 721 | FI1: =ReplacementPurches!FI1 -> 744 | FJ1: =ReplacementPurches!FJ1 -> 744 | FK1: =ReplacementPurches!FK1 -> 696 | FL1: =ReplacementPurches!FL1 -> 743 | FM1: =ReplacementPurches!FM1 -> 720 | FN1: =ReplacementPurches!FN1 -> 744 | FO1: =ReplacementPurches!FO1 -> 720 | FP1: =ReplacementPurches!FP1 -> 744 | FQ1: =ReplacementPurches!FQ1 -> 744 | FR1: =ReplacementPurches!FR1 -> 720 | FS1: =ReplacementPurches!FS1 -> 8784 | FU1: =ReplacementPurches!FU1 -> Hours | FV1: =ReplacementPurches!FV1 -> 0 | FW1: =ReplacementPurches!FW1 -> 744 | FX1: =ReplacementPurches!FX1 -> 721 | FY1: =ReplacementPurches!FY1 -> 744 | FZ1: =ReplacementPurches!FZ1 -> 744 | GA1: =ReplacementPurches!GA1 -> 672 | GB1: =ReplacementPurches!GB1 -> 743 | GC1: =ReplacementPurches!GC1 -> 720 | GD1: =ReplacementPurches!GD1 -> 744 | GE1: =ReplacementPurches!GE1 -> 720 | GF1: =ReplacementPurches!GF1 -> 744 | GG1: =ReplacementPurches!GG1 -> 744 | GH1: =ReplacementPurches!GH1 -> 720 | GI1: =ReplacementPurches!GI1 -> 8760 | GK1: =ReplacementPurches!GK1 -> Hours | GL1: =ReplacementPurches!GL1 -> 0 | GM1: =ReplacementPurches!GM1 -> 744 | GN1: =ReplacementPurches!GN1 -> 721 | GO1: =ReplacementPurches!GO1 -> 744 | GP1: =ReplacementPurches!GP1 -> 744 | GQ1: =ReplacementPurches!GQ1 -> 672 | GR1: =ReplacementPurches!GR1 -> 743 | GS1: =ReplacementPurches!GS1 -> 720 | GT1: =ReplacementPurches!GT1 -> 744 | GU1: =ReplacementPurches!GU1 -> 720 | GV1: =ReplacementPurches!GV1 -> 744 | GW1: =ReplacementPurches!GW1 -> 744 | GX1: =ReplacementPurches!GX1 -> 720 | GY1: =ReplacementPurches!GY1 -> 8760 | HA1: =ReplacementPurches!HA1 -> Hours | HB1: =ReplacementPurches!HB1 -> 0 | HC1: =ReplacementPurches!HC1 -> 744 | HD1: =ReplacementPurches!HD1 -> 721 | HE1: =ReplacementPurches!HE1 -> 744 | HF1: =ReplacementPurches!HF1 -> 744 | HG1: =ReplacementPurches!HG1 -> 672 | HH1: =ReplacementPurches!HH1 -> 743 | HI1: =ReplacementPurches!HI1 -> 720 | HJ1: =ReplacementPurches!HJ1 -> 744 | HK1: =ReplacementPurches!HK1 -> 720 | HL1: =ReplacementPurches!HL1 -> 744 | HM1: =ReplacementPurches!HM1 -> 744 | HN1: =ReplacementPurches!HN1 -> 720 | HO1: =ReplacementPurches!HO1 -> 8760
A2: =ReplacementPurches!A2 -> FY | B2: =ReplacementPurches!B2 -> WY | C2: =ReplacementPurches!C2 -> Oct | D2: =ReplacementPurches!D2 -> Nov | E2: =ReplacementPurches!E2 -> Dec | F2: =ReplacementPurches!F2 -> Jan | G2: =ReplacementPurches!G2 -> Feb | H2: =ReplacementPurches!H2 -> Mar | I2: =ReplacementPurches!I2 -> Apr | J2: =ReplacementPurches!J2 -> May | K2: =ReplacementPurches!K2 -> Jun | L2: =ReplacementPurches!L2 -> Jul | M2: =ReplacementPurches!M2 -> Aug | N2: =ReplacementPurches!N2 -> Sep | O2: =ReplacementPurches!O2 -> Wtd Avg | Q2: =ReplacementPurches!Q2 -> FY | R2: =ReplacementPurches!R2 -> WY | S2: =ReplacementPurches!S2 -> Oct | T2: =ReplacementPurches!T2 -> Nov | U2: =ReplacementPurches!U2 -> Dec | V2: =ReplacementPurches!V2 -> Jan | W2: =ReplacementPurches!W2 -> Feb | X2: =ReplacementPurches!X2 -> Mar | Y2: =ReplacementPurches!Y2 -> Apr | Z2: =ReplacementPurches!Z2 -> May | AA2: =ReplacementPurches!AA2 -> Jun | AB2: =ReplacementPurches!AB2 -> Jul | AC2: =ReplacementPurches!AC2 -> Aug | AD2: =ReplacementPurches!AD2 -> Sep | AE2: =ReplacementPurches!AE2 -> Wtd Avg | AG2: =ReplacementPurches!AG2 -> FY | AH2: =ReplacementPurches!AH2 -> WY | AI2: =ReplacementPurches!AI2 -> Oct | AJ2: =ReplacementPurches!AJ2 -> Nov | AK2: =ReplacementPurches!AK2 -> Dec | AL2: =ReplacementPurches!AL2 -> Jan | AM2: =ReplacementPurches!AM2 -> Feb | AN2: =ReplacementPurches!AN2 -> Mar | AO2: =ReplacementPurches!AO2 -> Apr | AP2: =ReplacementPurches!AP2 -> May | AQ2: =ReplacementPurches!AQ2 -> Jun | AR2: =ReplacementPurches!AR2 -> Jul | AS2: =ReplacementPurches!AS2 -> Aug | AT2: =ReplacementPurches!AT2 -> Sep | AU2: =ReplacementPurches!AU2 -> Wtd Avg | AW2: =ReplacementPurches!AW2 -> FY | AX2: =ReplacementPurches!AX2 -> WY | AY2: =ReplacementPurches!AY2 -> Oct | AZ2: =ReplacementPurches!AZ2 -> Nov | BA2: =ReplacementPurches!BA2 -> Dec | BB2: =ReplacementPurches!BB2 -> Jan | BC2: =ReplacementPurches!BC2 -> Feb | BD2: =ReplacementPurches!BD2 -> Mar | BE2: =ReplacementPurches!BE2 -> Apr | BF2: =ReplacementPurches!BF2 -> May | BG2: =ReplacementPurches!BG2 -> Jun | BH2: =ReplacementPurches!BH2 -> Jul | BI2: =ReplacementPurches!BI2 -> Aug | BJ2: =ReplacementPurches!BJ2 -> Sep | BK2: =ReplacementPurches!BK2 -> Wtd Avg | BM2: =ReplacementPurches!BM2 -> FY | BN2: =ReplacementPurches!BN2 -> WY | BO2: =ReplacementPurches!BO2 -> Oct | BP2: =ReplacementPurches!BP2 -> Nov | BQ2: =ReplacementPurches!BQ2 -> Dec | BR2: =ReplacementPurches!BR2 -> Jan | BS2: =ReplacementPurches!BS2 -> Feb | BT2: =ReplacementPurches!BT2 -> Mar | BU2: =ReplacementPurches!BU2 -> Apr | BV2: =ReplacementPurches!BV2 -> May | BW2: =ReplacementPurches!BW2 -> Jun | BX2: =ReplacementPurches!BX2 -> Jul | BY2: =ReplacementPurches!BY2 -> Aug | BZ2: =ReplacementPurches!BZ2 -> Sep | CA2: =ReplacementPurches!CA2 -> Wtd Avg | CC2: =ReplacementPurches!CC2 -> FY | CD2: =ReplacementPurches!CD2 -> WY | CE2: =ReplacementPurches!CE2 -> Oct | CF2: =ReplacementPurches!CF2 -> Nov | CG2: =ReplacementPurches!CG2 -> Dec | CH2: =ReplacementPurches!CH2 -> Jan | CI2: =ReplacementPurches!CI2 -> Feb | CJ2: =ReplacementPurches!CJ2 -> Mar | CK2: =ReplacementPurches!CK2 -> Apr | CL2: =ReplacementPurches!CL2 -> May | CM2: =ReplacementPurches!CM2 -> Jun | CN2: =ReplacementPurches!CN2 -> Jul | CO2: =ReplacementPurches!CO2 -> Aug | CP2: =ReplacementPurches!CP2 -> Sep | CQ2: =ReplacementPurches!CQ2 -> Wtd Avg | CS2: =ReplacementPurches!CS2 -> FY | CT2: =ReplacementPurches!CT2 -> WY | CU2: =ReplacementPurches!CU2 -> Oct | CV2: =ReplacementPurches!CV2 -> Nov | CW2: =ReplacementPurches!CW2 -> Dec | CX2: =ReplacementPurches!CX2 -> Jan | CY2: =ReplacementPurches!CY2 -> Feb | CZ2: =ReplacementPurches!CZ2 -> Mar | DA2: =ReplacementPurches!DA2 -> Apr | DB2: =ReplacementPurches!DB2 -> May | DC2: =ReplacementPurches!DC2 -> Jun | DD2: =ReplacementPurches!DD2 -> Jul | DE2: =ReplacementPurches!DE2 -> Aug | DF2: =ReplacementPurches!DF2 -> Sep | DG2: =ReplacementPurches!DG2 -> Wtd Avg | DI2: =ReplacementPurches!DI2 -> FY | DJ2: =ReplacementPurches!DJ2 -> WY | DK2: =ReplacementPurches!DK2 -> Oct | DL2: =ReplacementPurches!DL2 -> Nov | DM2: =ReplacementPurches!DM2 -> Dec | DN2: =ReplacementPurches!DN2 -> Jan | DO2: =ReplacementPurches!DO2 -> Feb | DP2: =ReplacementPurches!DP2 -> Mar | DQ2: =ReplacementPurches!DQ2 -> Apr | DR2: =ReplacementPurches!DR2 -> May | DS2: =ReplacementPurches!DS2 -> Jun | DT2: =ReplacementPurches!DT2 -> Jul | DU2: =ReplacementPurches!DU2 -> Aug | DV2: =ReplacementPurches!DV2 -> Sep | DW2: =ReplacementPurches!DW2 -> Wtd Avg | DY2: =ReplacementPurches!DY2 -> FY | DZ2: =ReplacementPurches!DZ2 -> WY | EA2: =ReplacementPurches!EA2 -> Oct | EB2: =ReplacementPurches!EB2 -> Nov | EC2: =ReplacementPurches!EC2 -> Dec | ED2: =ReplacementPurches!ED2 -> Jan | EE2: =ReplacementPurches!EE2 -> Feb | EF2: =ReplacementPurches!EF2 -> Mar | EG2: =ReplacementPurches!EG2 -> Apr | EH2: =ReplacementPurches!EH2 -> May | EI2: =ReplacementPurches!EI2 -> Jun | EJ2: =ReplacementPurches!EJ2 -> Jul | EK2: =ReplacementPurches!EK2 -> Aug | EL2: =ReplacementPurches!EL2 -> Sep | EM2: =ReplacementPurches!EM2 -> Wtd Avg | EO2: =ReplacementPurches!EO2 -> FY | EP2: =ReplacementPurches!EP2 -> WY | EQ2: =ReplacementPurches!EQ2 -> Oct | ER2: =ReplacementPurches!ER2 -> Nov | ES2: =ReplacementPurches!ES2 -> Dec | ET2: =ReplacementPurches!ET2 -> Jan | EU2: =ReplacementPurches!EU2 -> Feb | EV2: =ReplacementPurches!EV2 -> Mar | EW2: =ReplacementPurches!EW2 -> Apr | EX2: =ReplacementPurches!EX2 -> May | EY2: =ReplacementPurches!EY2 -> Jun | EZ2: =ReplacementPurches!EZ2 -> Jul | FA2: =ReplacementPurches!FA2 -> Aug | FB2: =ReplacementPurches!FB2 -> Sep | FC2: =ReplacementPurches!FC2 -> Wtd Avg | FE2: =ReplacementPurches!FE2 -> FY | FF2: =ReplacementPurches!FF2 -> WY | FG2: =ReplacementPurches!FG2 -> Oct | FH2: =ReplacementPurches!FH2 -> Nov | FI2: =ReplacementPurches!FI2 -> Dec | FJ2: =ReplacementPurches!FJ2 -> Jan | FK2: =ReplacementPurches!FK2 -> Feb | FL2: =ReplacementPurches!FL2 -> Mar | FM2: =ReplacementPurches!FM2 -> Apr | FN2: =ReplacementPurches!FN2 -> May | FO2: =ReplacementPurches!FO2 -> Jun | FP2: =ReplacementPurches!FP2 -> Jul | FQ2: =ReplacementPurches!FQ2 -> Aug | FR2: =ReplacementPurches!FR2 -> Sep | FS2: =ReplacementPurches!FS2 -> Wtd Avg | FU2: =ReplacementPurches!FU2 -> FY | FV2: =ReplacementPurches!FV2 -> WY | FW2: =ReplacementPurches!FW2 -> Oct | FX2: =ReplacementPurches!FX2 -> Nov | FY2: =ReplacementPurches!FY2 -> Dec | FZ2: =ReplacementPurches!FZ2 -> Jan | GA2: =ReplacementPurches!GA2 -> Feb | GB2: =ReplacementPurches!GB2 -> Mar | GC2: =ReplacementPurches!GC2 -> Apr | GD2: =ReplacementPurches!GD2 -> May | GE2: =ReplacementPurches!GE2 -> Jun | GF2: =ReplacementPurches!GF2 -> Jul | GG2: =ReplacementPurches!GG2 -> Aug | GH2: =ReplacementPurches!GH2 -> Sep | GI2: =ReplacementPurches!GI2 -> Wtd Avg | GK2: =ReplacementPurches!GK2 -> FY | GL2: =ReplacementPurches!GL2 -> WY | GM2: =ReplacementPurches!GM2 -> Oct | GN2: =ReplacementPurches!GN2 -> Nov | GO2: =ReplacementPurches!GO2 -> Dec | GP2: =ReplacementPurches!GP2 -> Jan | GQ2: =ReplacementPurches!GQ2 -> Feb | GR2: =ReplacementPurches!GR2 -> Mar | GS2: =ReplacementPurches!GS2 -> Apr | GT2: =ReplacementPurches!GT2 -> May | GU2: =ReplacementPurches!GU2 -> Jun | GV2: =ReplacementPurches!GV2 -> Jul | GW2: =ReplacementPurches!GW2 -> Aug | GX2: =ReplacementPurches!GX2 -> Sep | GY2: =ReplacementPurches!GY2 -> Wtd Avg | HA2: =ReplacementPurches!HA2 -> FY | HB2: =ReplacementPurches!HB2 -> WY | HC2: =ReplacementPurches!HC2 -> Oct | HD2: =ReplacementPurches!HD2 -> Nov | HE2: =ReplacementPurches!HE2 -> Dec | HF2: =ReplacementPurches!HF2 -> Jan | HG2: =ReplacementPurches!HG2 -> Feb | HH2: =ReplacementPurches!HH2 -> Mar | HI2: =ReplacementPurches!HI2 -> Apr | HJ2: =ReplacementPurches!HJ2 -> May | HK2: =ReplacementPurches!HK2 -> Jun | HL2: =ReplacementPurches!HL2 -> Jul | HM2: =ReplacementPurches!HM2 -> Aug | HN2: =ReplacementPurches!HN2 -> Sep | HO2: =ReplacementPurches!HO2 -> Wtd Avg
A3: 2018 | B3: 1951 | C3: 24.32854392 | D3: 19.42257959 | E3: 25.04211826 | F3: 16.39324149 | G3: 25.85572106 | H3: 23.78617659 | I3: 17.3454592 | J3: 16.47841694 | K3: 2.608197276 | L3: 14.36833092 | M3: 21.47425042 | N3: 25.69693756 | O3: =IFERROR((SUMPRODUCT(C3:N3,C$1:N$1)/O$1),"") -> 19.38075895 | Q3: 2019 | R3: 1952 | S3: 22.45613307 | T3: 14.56588765 | U3: 18.25294183 | V3: 16.43377772 | W3: 14.96637399 | X3: 10.40462904 | Y3: 10.50339701 | Z3: 8.603474571 | AA3: 10.13191679 | AB3: 13.49859374 | AC3: 22.82944704 | AD3: 21.5557677 | AE3: =IFERROR((SUMPRODUCT(S3:AD3,S$1:AD$1)/AE$1),"") -> 15.3665475 | AG3: 2020 | AH3: 1929 | AI3: 31.52374027 | AJ3: 32.41493151 | AK3: 37.60336419 | AL3: 40.05026124 | AM3: 39.96397336 | AN3: 35.03536047 | AO3: 29.93482125 | AP3: 26.09600333 | AQ3: 27.20503976 | AR3: 35.95209125 | AS3: 33.89664277 | AT3: 32.62696988 | AW3: 2021 | AX3: 1929 | AY3: 30.88947332 | AZ3: 32.79799518 | BA3: 37.22388978 | BB3: 42.22602995 | BC3: 43.52614157 | BD3: 35.16721302 | BE3: 29.17727762 | BF3: 25.55402581 | BG3: 27.52943234 | BH3: 37.27575295 | BI3: 37.06698591 | BJ3: 34.80561527 | BM3: 2022 | BN3: 1929 | BO3: 31.84180804 | BP3: 34.03824274 | BQ3: 39.15833023 | BR3: 43.70822284 | BS3: 46.15782746 | BT3: 37.82969368 | BU3: 31.34115828 | BV3: 25.90891987 | BW3: 27.62332381 | BX3: 38.62374177 | BY3: 37.48025234 | BZ3: 35.8173325 | CC3: 2023 | CD3: 1929 | CE3: 32.70000393 | CF3: 37.00495415 | CG3: 42.62144846 | CH3: 48.93137914 | CI3: 50.0599256 | CJ3: 40.07832521 | CK3: 32.96493553 | CL3: 28.83056107 | CM3: 30.24514144 | CN3: 41.18499258 | CO3: 39.8439872 | CP3: 36.64387099 | CS3: 2024 | CT3: 1929 | CU3: 34.66473871 | CV3: 39.81179117 | CW3: 45.88215052 | CX3: 50.1891607 | CY3: 51.23002752 | CZ3: 43.33352983 | DA3: 34.66450669 | DB3: 29.35562465 | DC3: 30.73880294 | DD3: 42.46814232 | DE3: 41.80668645 | DF3: 38.72779651 | DI3: 2025 | DJ3: 1929 | DK3: 37.99258974 | DL3: 42.26465562 | DM3: 47.86356492 | DN3: 53.37599839 | DO3: 54.72747297 | DP3: 43.88561332 | DQ3: 36.87188402 | DR3: 33.15343599 | DS3: 34.36615403 | DT3: 46.40216526 | DU3: 44.64919106 | DV3: 41.57911942 | DY3: 2026 | DZ3: 1929 | EA3: 39.79270768 | EB3: 43.70414478 | EC3: 53.21619536 | ED3: 61.12761815 | EE3: 61.73261337 | EF3: 46.41509272 | EG3: 38.68270377 | EH3: 31.65083302 | EI3: 32.98429306 | EJ3: 48.51572522 | EK3: 49.84643436 | EL3: 45.62479724 | EO3: 2027 | EP3: 1929 | EQ3: 42.9087689 | ER3: 47.59569796 | ES3: 56.34355167 | ET3: 57.59667277 | EU3: 58.19616176 | EV3: 48.95590665 | EW3: 40.83622348 | EX3: 34.78458471 | EY3: 35.90766779 | EZ3: 50.73536678 | FA3: 48.26788855 | FB3: 46.24206053 | FE3: 2028 | FF3: 1929 | FG3: 43.0132605 | FH3: 50.01586645 | FI3: 56.36922154 | FJ3: 60.95854979 | FK3: 58.33638782 | FL3: 48.07637435 | FM3: 39.70912232 | FN3: 31.97693462 | FO3: 35.10781266 | FP3: 51.71666289 | FQ3: 49.0991618 | FR3: 47.08340385 | FU3: 2029 | FV3: 1929 | FW3: 45.49490332 | FX3: 51.02143178 | FY3: 58.19862096 | FZ3: 59.54025516 | GA3: 59.60155681 | GB3: 48.83862525 | GC3: 40.00962165 | GD3: 35.20647577 | GE3: 38.06967855 | GF3: 51.92925369 | GG3: 50.47439955 | GH3: 48.53404941 | GK3: 2030 | GL3: 1929 | GM3: 45.28591923 | GN3: 51.18812315 | GO3: 55.07543344 | GP3: 61.64314638 | GQ3: 64.59694217 | GR3: 52.21447613 | GS3: 42.55836755 | GT3: 35.49216916 | GU3: 36.84424965 | GV3: 51.85952373 | GW3: 51.38021153 | GX3: 48.55327366 | HA3: 2031 | HB3: 1929 | HC3: 49.84969551 | HD3: 52.33609782 | HE3: 59.6322209 | HF3: 62.12694029 | HG3: 64.1739716 | HH3: 53.41997408 | HI3: 46.17111629 | HJ3: 39.13725065 | HK3: 41.83480035 | HL3: 58.14839855 | HM3: 54.83289627 | HN3: 50.42398721
A4: 2018 | B4: 1942 | C4: 22.61151027 | D4: 25.54227825 | E4: 27.47600238 | F4: 30.94729251 | G4: 42.20895767 | H4: 31.64171935 | I4: 25.13110521 | J4: 23.03253929 | K4: 24.94866651 | L4: 26.74562329 | M4: 25.87747199 | N4: 24.00886319 | O4: =IFERROR((SUMPRODUCT(C4:N4,C$1:N$1)/O$1),"") -> 27.42142739 | Q4: 2019 | R4: 1943 | S4: 21.14345427 | T4: 25.00185655 | U4: 22.44398047 | V4: 18.20951363 | W4: 21.16489301 | X4: 18.80822671 | Y4: 15.65678766 | Z4: 13.69464389 | AA4: 15.80740378 | AB4: 22.54891211 | AC4: 27.28387064 | AD4: 26.77623113 | AE4: =IFERROR((SUMPRODUCT(S4:AD4,S$1:AD$1)/AE$1),"") -> 20.70754548 | AG4: 2020 | AH4: 1930 | AI4: 31.86770455 | AJ4: 33.14650545 | AK4: 39.47995919 | AL4: 42.45085154 | AM4: 36.73801175 | AN4: 34.64796272 | AO4: 27.56714366 | AP4: 27.21906275 | AQ4: 31.47151857 | AR4: 30.97953583 | AS4: 33.93692192 | AT4: 31.92527107 | AW4: 2021 | AX4: 1930 | AY4: 31.74599133 | AZ4: 32.99350734 | BA4: 38.26768233 | BB4: 44.19954998 | BC4: 42.83497744 | BD4: 37.39066711 | BE4: 28.13735338 | BF4: 27.50161908 | BG4: 32.96639569 | BH4: 31.94126031 | BI4: 35.15228179 | BJ4: 34.01744852 | BM4: 2022 | BN4: 1930 | BO4: 34.54641037 | BP4: 37.61259337 | BQ4: 43.75167709 | BR4: 47.51525401 | BS4: 44.52513034 | BT4: 36.72106227 | BU4: 28.40295595 | BV4: 27.37444264 | BW4: 33.22204635 | BX4: 32.73970032 | BY4: 38.18024487 | BZ4: 35.50724067 | CC4: 2023 | CD4: 1930 | CE4: 35.4783882 | CF4: 38.4052225 | CG4: 44.76409838 | CH4: 51.38636085 | CI4: 48.49936607 | CJ4: 40.75838822 | CK4: 31.02014524 | CL4: 30.76176881 | CM4: 36.82961525 | CN4: 34.88918968 | CO4: 39.29714214 | CP4: 39.56144982 | CS4: 2024 | CT4: 1930 | CU4: 37.20493531 | CV4: 41.31111647 | CW4: 47.86141175 | CX4: 53.06792099 | CY4: 49.44476934 | CZ4: 43.37289349 | DA4: 31.78347145 | DB4: 30.71804133 | DC4: 35.24734924 | DD4: 35.58080685 | DE4: 40.26753143 | DF4: 38.35540812 | DI4: 2025 | DJ4: 1930 | DK4: 38.47437424 | DL4: 41.99749285 | DM4: 48.96906688 | DN4: 52.37538551 | DO4: 50.60502041 | DP4: 44.32429305 | DQ4: 34.36718666 | DR4: 34.48837841 | DS4: 40.85437817 | DT4: 38.57830002 | DU4: 43.42740945 | DV4: 42.0002916 | DY4: 2026 | DZ4: 1930 | EA4: 40.62575887 | EB4: 42.85961318 | EC4: 53.65393828 | ED4: 57.86586233 | EE4: 57.51765188 | EF4: 47.31123902 | EG4: 36.14616761 | EH4: 34.65722308 | EI4: 41.67445598 | EJ4: 40.94343456 | EK4: 47.22735309 | EL4: 45.17855245 | EO4: 2027 | EP4: 1930 | EQ4: 46.20882179 | ER4: 51.24642962 | ES4: 60.01641674 | ET4: 64.17136363 | EU4: 58.30371963 | EV4: 48.37113061 | EW4: 38.15760218 | EX4: 37.70617779 | EY4: 43.87527926 | EZ4: 42.83040214 | FA4: 49.26385568 | FB4: 46.77441831 | FE4: 2028 | FF4: 1930 | FG4: 45.7495319 | FH4: 50.8583032 | FI4: 57.97453954 | FJ4: 65.08018219 | FK4: 55.66009596 | FL4: 49.24669193 | FM4: 37.68570283 | FN4: 36.98233253 | FO4: 42.99374179 | FP4: 45.5926188 | FQ4: 50.93920703 | FR4: 49.49602781 | FU4: 2029 | FV4: 1930 | FW4: 48.71652584 | FX4: 53.73540566 | FY4: 60.37037579 | FZ4: 65.40655695 | GA4: 59.05760335 | GB4: 52.17571225 | GC4: 40.73956005 | GD4: 39.99614592 | GE4: 48.47868128 | GF4: 47.43403258 | GG4: 53.52569153 | GH4: 49.12548157 | GK4: 2030 | GL4: 1930 | GM4: 49.28800441 | GN4: 54.25331476 | GO4: 60.5783909 | GP4: 67.2481394 | GQ4: 63.08677062 | GR4: 51.36043163 | GS4: 39.39489027 | GT4: 39.24260339 | GU4: 45.4241537 | GV4: 48.38115109 | GW4: 53.25539276 | GX4: 51.75479491 | HA4: 2031 | HB4: 1930 | HC4: 47.88290837 | HD4: 52.92159378 | HE4: 61.58217067 | HF4: 63.97682081 | HG4: 58.00499969 | HH4: 51.296507 | HI4: 40.46825211 | HJ4: 39.84348248 | HK4: 47.46873295 | HL4: 46.44564898 | HM4: 53.27911287 | HN4: 50.64109514
A5: 2018 | B5: 1969 | C5: 23.22841749 | D5: 24.08798382 | E5: 25.61559177 | F5: 23.7725512 | G5: 23.85046468 | H5: 22.26649293 | I5: 25.13523038 | J5: 23.79961155 | K5: 25.34038628 | L5: 29.18969124 | M5: 32.58705471 | N5: 29.28502973 | O5: 25.69202617 | Q5: 2019 | R5: 1970 | S5: 33.13540489 | T5: 31.6592588 | U5: 41.54581369 | V5: 32.24676089 | W5: 26.36903763 | X5: 27.73308763 | Y5: 15.56762388 | Z5: 6.195408239 | AA5: 19.13781717 | AB5: 23.58130406 | AC5: 31.86346386 | AD5: 33.27050832 | AE5: 26.88463406 | AG5: 2020 | AH5: 1931 | AI5: 30.45861861 | AJ5: 32.13076821 | AK5: 36.24875492 | AL5: 40.70968102 | AM5: 44.4258644 | AN5: 33.37552309 | AO5: 31.64527079 | AP5: 22.5193745 | AQ5: 30.32383085 | AR5: 30.51044352 | AS5: 32.99773998 | AT5: 32.01474311 | AW5: 2021 | AX5: 1931 | AY5: 31.80445556 | AZ5: 33.57075717 | BA5: 37.36834465 | BB5: 45.66890898 | BC5: 51.75053705 | BD5: 39.52771605 | BE5: 34.63913629 | BF5: 25.42118498 | BG5: 35.19429076 | BH5: 32.65872539 | BI5: 35.63769986 | BJ5: 35.90082005 | BM5: 2022 | BN5: 1931 | BO5: 32.80119315 | BP5: 37.2537953 | BQ5: 41.45734564 | BR5: 46.30105786 | BS5: 52.25453862 | BT5: 37.85976114 | BU5: 34.73720029 | BV5: 24.15797923 | BW5: 34.31152445 | BX5: 34.21274497 | BY5: 37.68299482 | BZ5: 36.77779946 | CC5: 2023 | CD5: 1931 | CE5: 35.97215064 | CF5: 38.90675452 | CG5: 44.5399974 | CH5: 48.844059 | CI5: 56.78278792 | CJ5: 41.20503428 | CK5: 38.19420682 | CL5: 27.46929948 | CM5: 38.95105799 | CN5: 36.13627041 | CO5: 39.66330841 | CP5: 39.09127358 | CS5: 2024 | CT5: 1931 | CU5: 38.364749 | CV5: 41.85018039 | CW5: 47.82056995 | CX5: 53.57061999 | CY5: 60.0983019 | CZ5: 43.55199234 | DA5: 39.75793438 | DB5: 29.05764713 | DC5: 38.59199438 | DD5: 37.32005568 | DE5: 40.48316663 | DF5: 40.64965543 | DI5: 2025 | DJ5: 1931 | DK5: 37.84321578 | DL5: 42.10084162 | DM5: 47.27536981 | DN5: 53.63045588 | DO5: 64.87883705 | DP5: 44.71724581 | DQ5: 39.89638761 | DR5: 28.83280898 | DS5: 39.65288886 | DT5: 38.32152852 | DU5: 42.87860488 | DV5: 41.92977161 | DY5: 2026 | DZ5: 1931 | EA5: 40.45373297 | EB5: 43.25412857 | EC5: 51.42819705 | ED5: 60.28540609 | EE5: 74.03923191 | EF5: 48.08526947 | EG5: 44.67646245 | EH5: 30.64060348 | EI5: 43.31340282 | EJ5: 41.99943463 | EK5: 47.47088483 | EL5: 46.15955176 | EO5: 2027 | EP5: 1931 | EQ5: 45.95419793 | ER5: 51.61812661 | ES5: 59.4174509 | ET5: 59.65489912 | EU5: 69.741079 | EV5: 50.79989367 | EW5: 46.05485272 | EX5: 33.82120829 | EY5: 47.62350346 | EZ5: 46.33328844 | FA5: 48.80771153 | FB5: 49.60607274 | FE5: 2028 | FF5: 1931 | FG5: 46.72456002 | FH5: 51.4727797 | FI5: 56.67987901 | FJ5: 65.70660599 | FK5: 70.7304281 | FL5: 51.52319286 | FM5: 45.9656308 | FN5: 32.53914967 | FO5: 44.41533135 | FP5: 45.95525557 | FQ5: 51.69810988 | FR5: 50.12771143 | FU5: 2029 | FV5: 1931 | FW5: 50.0153828 | FX5: 56.43940902 | FY5: 57.37784545 | FZ5: 62.44226692 | GA5: 76.26858274 | GB5: 50.58750161 | GC5: 45.48334074 | GD5: 33.26272559 | GE5: 46.47953858 | GF5: 45.68313784 | GG5: 51.57021637 | GH5: 50.7606304 | GK5: 2030 | GL5: 1931 | GM5: 49.1823128 | GN5: 54.71235287 | GO5: 58.5587452 | GP5: 66.62025818 | GQ5: 79.54165595 | GR5: 53.02956453 | GS5: 47.39628352 | GT5: 33.65644329 | GU5: 47.61912309 | GV5: 48.41550115 | GW5: 54.13126947 | GX5: 52.11611156 | HA5: 2031 | HB5: 1931 | HC5: 52.37430625 | HD5: 54.06196494 | HE5: 59.77947158 | HF5: 62.85151318 | HG5: 76.66524843 | HH5: 51.2384443 | HI5: 48.34282662 | HJ5: 36.77813656 | HK5: 51.50373047 | HL5: 50.69872732 | HM5: 54.57633543 | HN5: 52.98213085
A6: 2018 | B6: 1941 | C6: 35.12726609 | D6: 34.05990041 | E6: 36.9607733 | F6: 30.2936106 | G6: 26.08310563 | H6: 23.60164377 | I6: 23.21645821 | J6: 17.41263964 | K6: 20.5015608 | L6: 24.50659885 | M6: 31.35884611 | N6: 27.56736692 | O6: 27.58417545 | Q6: 2019 | R6: 1942 | S6: 26.48731705 | T6: 25.74510076 | U6: 28.51701726 | V6: 27.67266805 | W6: 28.87374006 | X6: 28.07845351 | Y6: 30.21694289 | Z6: 26.40188205 | AA6: 29.32941055 | AB6: 29.94492637 | AC6: 32.42418265 | AD6: 28.72910423 | AE6: 28.53234002 | AG6: 2020 | AH6: 1932 | AI6: 32.41759865 | AJ6: 35.13977334 | AK6: 39.61774824 | AL6: 45.2614118 | AM6: 44.50847968 | AN6: 27.48296459 | AO6: 21.59968333 | AP6: 16.1452848 | AQ6: 16.91681158 | AR6: 28.04614051 | AS6: 31.01962253 | AT6: 30.40557103 | AW6: 2021 | AX6: 1932 | AY6: 30.98269913 | AZ6: 33.05261806 | BA6: 35.82093419 | BB6: 46.83806864 | BC6: 48.54159002 | BD6: 28.98011331 | BE6: 21.63438813 | BF6: 16.59680298 | BG6: 18.76346706 | BH6: 28.71487858 | BI6: 32.97523948 | BJ6: 33.04635082 | BM6: 2022 | BN6: 1932 | BO6: 35.0945015 | BP6: 38.98072464 | BQ6: 43.63388808 | BR6: 48.85275417 | BS6: 51.1555406 | BT6: 31.67457859 | BU6: 23.48399438 | BV6: 16.54206007 | BW6: 19.77116586 | BX6: 30.42190358 | BY6: 34.72221515 | BZ6: 34.19487233 | CC6: 2023 | CD6: 1932 | CE6: 35.48040479 | CF6: 40.44515717 | CG6: 41.87825236 | CH6: 50.72147345 | CI6: 57.26137981 | CJ6: 32.84884172 | CK6: 24.2533245 | CL6: 19.75831999 | CM6: 22.13471585 | CN6: 33.50479607 | CO6: 37.3196555 | CP6: 37.46413668 | CS6: 2024 | CT6: 1932 | CU6: 37.84826586 | CV6: 41.89277111 | CW6: 45.14400486 | CX6: 56.87213615 | CY6: 55.76754175 | CZ6: 35.56705004 | DA6: 23.7659821 | DB6: 17.40931045 | DC6: 20.92851353 | DD6: 34.43411299 | DE6: 38.44282413 | DF6: 37.68270545 | DI6: 2025 | DJ6: 1932 | DK6: 39.84321277 | DL6: 45.2803357 | DM6: 47.81104435 | DN6: 62.05189244 | DO6: 66.69436167 | DP6: 37.67266116 | DQ6: 27.00041734 | DR6: 21.48587569 | DS6: 23.6053827 | DT6: 36.59233986 | DU6: 40.38834301 | DV6: 41.23153732 | DY6: 2026 | DZ6: 1932 | EA6: 40.35433042 | EB6: 46.620406 | EC6: 54.37295652 | ED6: 68.31415016 | EE6: 74.88680021 | EF6: 39.77611519 | EG6: 27.97338001 | EH6: 19.83402628 | EI6: 21.36801551 | EJ6: 38.68080419 | EK6: 43.77562322 | EL6: 43.46289236 | EO6: 2027 | EP6: 1932 | EQ6: 45.71512433 | ER6: 52.19932953 | ES6: 60.09856908 | ET6: 68.35267206 | EU6: 70.74521923 | EV6: 40.78821862 | EW6: 27.61304228 | EX6: 20.52571924 | EY6: 24.33683714 | EZ6: 39.45126416 | FA6: 44.94529781 | FB6: 45.07857069 | FE6: 2028 | FF6: 1932 | FG6: 49.14856498 | FH6: 57.03442563 | FI6: 61.25579701 | FJ6: 73.33872225 | FK6: 68.00199474 | FL6: 42.09293959 | FM6: 29.22117424 | FN6: 19.99941441 | FO6: 23.59898744 | FP6: 43.19994035 | FQ6: 49.4016191 | FR6: 47.07940741 | FU6: 2029 | FV6: 1932 | FW6: 49.70185995 | FX6: 55.02319862 | FY6: 56.72564561 | FZ6: 68.9560764 | GA6: 73.37529489 | GB6: 42.87402254 | GC6: 30.35560903 | GD6: 22.83937834 | GE6: 26.03785141 | GF6: 42.11643013 | GG6: 47.5673922 | GH6: 45.75450764 | GK6: 2030 | GL6: 1932 | GM6: 48.4328135 | GN6: 54.71424567 | GO6: 57.23256751 | GP6: 66.09073922 | GQ6: 71.12807827 | GR6: 43.24282045 | GS6: 31.16334655 | GT6: 20.61444681 | GU6: 22.9493696 | GV6: 44.31489835 | GW6: 48.09174591 | GX6: 48.36573018 | HA6: 2031 | HB6: 1932 | HC6: 49.18917342 | HD6: 56.22383667 | HE6: 58.49877258 | HF6: 68.71929359 | HG6: 70.34208411 | HH6: 44.41973132 | HI6: 30.95602766 | HJ6: 22.48893975 | HK6: 27.12674273 | HL6: 45.33922308 | HM6: 50.87341931 | HN6: 50.83300938
